Workbook

Sheet District
Y1: Do Not | AF1: Aberdeen
F2: District Name | G2: BURLINGTON | K2: <- Please select distrtict from this drop-down | X2: <<- Please Select District From Drop Down | Y2: Change | AF2: Brewster
F3: CCDDD | G3: =VLOOKUP(G2,CCDDD!B:C,2,0) -> 29100 | H3: 2023-24 | J3: 2022-23 | K3: 2021-22 | M3: 2020-21 | O3: 2011-12 | Q3: 2010-11 | S3: 2009-10 | U3: 2008-09 | W3: 2007-08 | AF3: Bridgeport
V4: %% | AF4: Burlington
H5: FINAL 23-24 | I5: % of PY | J5: Final 22-23 | K5: Final 2021-22 | L5: % of PY | M5: Final 2020-21 | O5: Prelim 2011-12 | P5: % of PY | Q5: Final 2010-11 | R5: % of PY | S5: Final 2009-10 | T5: % of PY | U5: =[2]Assumptions!AC4 -> Final 2008-09 | V5: of Prior Year | W5: 2007-08 | AF5: Cascade
F6: Regular Allocation | AF6: Cashmere
B7: 2 | F7: K-12 Migrant Students | G7: Average Number | H7: =IFERROR(VLOOKUP($G$3,'2023-24 Final'!$B$19:$Z$156,4,0),0) -> 491 | I7: =H7/J7 -> 1.265463918 | J7: =IFERROR(VLOOKUP($G$3,'22-23 Final'!$B$19:$Z$156,4,0),0) -> 388 | K7: =IFERROR(VLOOKUP($G$3,'[2]2021-22 Final'!$B:$R,3,0),0) -> 338 | L7: =IFERROR(K7/M7-1,0) -> 0.1304347826 | M7: =IFERROR(VLOOKUP($G$3,'[2]2020-21 Final'!$B:$R,3,0),0) -> 299 | O7: =VLOOKUP($G$2,#REF!,$B7,FALSE) ->  | P7: =IF(Q7=0,0,O7/Q7) ->  | Q7: =VLOOKUP($G$2,#REF!,$B7,FALSE) ->  | R7: =IF(S7>0,Q7/S7,"-") ->  | S7: =VLOOKUP($G$2,#REF!,$B7,FALSE) ->  | T7: =IF(U7>0,S7/U7,"-") ->  | U7: =VLOOKUP($G$2,#REF!,$B7,FALSE) ->  | V7: =IF(W7>0,U7/W7,"-") ->  | W7: =VLOOKUP($G$2,#REF!,$B7,FALSE) ->  | Y7: 1 | Z7: 3 | AF7: Centralia
B8: 3 | G8: Regular Dollars | H8: =IFERROR(VLOOKUP($G$3,'2023-24 Final'!$B$19:$Z$156,5,0),0) -> 212105 | I8: =H8/J8 -> 1.268456777 | J8: =IFERROR(VLOOKUP($G$3,'22-23 Final'!$B$19:$Z$156,5,0),0) -> 167215 | K8: =IFERROR(VLOOKUP($G$3,'[2]2021-22 Final'!$B:$R,4,0),0) -> 159039 | L8: 0.3281029487 | M8: =IFERROR(VLOOKUP($G$3,'[2]2020-21 Final'!$B:$R,4,0),0) -> 119749 | O8: =VLOOKUP($G$2,#REF!,$B8,FALSE) ->  | Q8: =VLOOKUP($G$2,#REF!,$B8,FALSE) ->  | R8: =IF(S8>0,Q8/S8,"-") ->  | S8: =VLOOKUP($G$2,#REF!,$B8,FALSE) ->  | T8: =IF(U8>0,S8/U8,"-") ->  | U8: =VLOOKUP($G$2,#REF!,$B8,FALSE) ->  | W8: =VLOOKUP($G$2,#REF!,$B8,FALSE) ->  | Y8: 2 | Z8: 3 | AF8: College Place
B9: 4 | F9: Needs Support | G9: Average Number | H9: =IFERROR(VLOOKUP($G$3,'2023-24 Final'!$B$19:$Z$156,6,0),0) -> 124 | I9: 1.008130081 | J9: =IFERROR(VLOOKUP($G$3,'22-23 Final'!$B$19:$Z$156,6,0),0) -> 123 | K9: =IFERROR(VLOOKUP($G$3,'[2]2021-22 Final'!$B:$R,5,0),0) -> 59 | L9: -0.01666666667 | M9: =IFERROR(VLOOKUP($G$3,'[2]2020-21 Final'!$B:$R,5,0),0) -> 60 | O9: =VLOOKUP($G$2,#REF!,$B9,FALSE) ->  | P9: =IF(Q9=0,0,O9/Q9) ->  | Q9: =VLOOKUP($G$2,#REF!,$B9,FALSE) ->  | S9: =VLOOKUP($G$2,#REF!,$B9,FALSE) ->  | U9: =VLOOKUP($G$2,#REF!,$B9,FALSE) ->  | W9: =VLOOKUP($G$2,#REF!,$B9,FALSE) ->  | Y9: 1 | Z9: 4 | AF9: Columbia
B10: 5 | G10: Regular Dollars | H10: =IFERROR(VLOOKUP($G$3,'2023-24 Final'!$B$19:$Z$156,7,0),0) -> 13392 | I10: 1.010564443 | J10: =IFERROR(VLOOKUP($G$3,'22-23 Final'!$B$19:$Z$156,7,0),0) -> 13252 | K10: =IFERROR(VLOOKUP($G$3,'[2]2021-22 Final'!$B:$R,6,0),0) -> 6940 | L10: 0.1553187947 | M10: =IFERROR(VLOOKUP($G$3,'[2]2020-21 Final'!$B:$R,6,0),0) -> 6007 | O10: =VLOOKUP($G$2,#REF!,$B10,FALSE) ->  | P10: =IF(Q10=0,0,O10/Q10) ->  | Q10: =VLOOKUP($G$2,#REF!,$B10,FALSE) ->  | S10: =VLOOKUP($G$2,#REF!,$B10,FALSE) ->  | U10: =VLOOKUP($G$2,#REF!,$B10,FALSE) ->  | W10: =VLOOKUP($G$2,#REF!,$B10,FALSE) ->  | Y10: 2 | Z10: 4 | AF10: Conway
B11: 6 | F11: Priority Interruption | G11: Priority Number | H11: =IFERROR(VLOOKUP($G$3,'2023-24 Final'!$B$19:$Z$156,8,0),0) -> 341 | I11: 1.863387978 | J11: =IFERROR(VLOOKUP($G$3,'22-23 Final'!$B$19:$Z$156,8,0),0) -> 183 | K11: =IFERROR(VLOOKUP($G$3,'[2]2021-22 Final'!$B:$R,7,0),0) -> 108 | L11: 0.1368421053 | M11: =IFERROR(VLOOKUP($G$3,'[2]2020-21 Final'!$B:$R,7,0),0) -> 95 | O11: =VLOOKUP($G$2,#REF!,$B11,FALSE) ->  | Q11: =VLOOKUP($G$2,#REF!,$B11,FALSE) ->  | S11: =VLOOKUP($G$2,#REF!,$B11,FALSE) ->  | U11: =VLOOKUP($G$2,#REF!,$B11,FALSE) ->  | W11: =VLOOKUP($G$2,#REF!,$B11,FALSE) ->  | Y11: 1 | Z11: 5 | AF11: East Valley
B12: 7 | G12: Priority Dollars | H12: =IFERROR(VLOOKUP($G$3,'2023-24 Final'!$B$19:$Z$156,9,0),0) -> 147307 | I12: 1.867790077 | J12: =IFERROR(VLOOKUP($G$3,'22-23 Final'!$B$19:$Z$156,9,0),0) -> 78867 | K12: =IFERROR(VLOOKUP($G$3,'[2]2021-22 Final'!$B:$R,8,0),0) -> 50817 | L12: 0.335637501 | M12: =IFERROR(VLOOKUP($G$3,'[2]2020-21 Final'!$B:$R,8,0),0) -> 38047 | O12: =VLOOKUP($G$2,#REF!,$B12,FALSE) ->  | Q12: =VLOOKUP($G$2,#REF!,$B12,FALSE) ->  | S12: =VLOOKUP($G$2,#REF!,$B12,FALSE) ->  | U12: =VLOOKUP($G$2,#REF!,$B12,FALSE) ->  | W12: =VLOOKUP($G$2,#REF!,$B12,FALSE) ->  | Y12: 3 | Z12: 5 | AF12: Eastmont
B13: 8 | C13: Grades 1-5 | F13: Top 1/4 | G13: Attendance | H13: =IFERROR(VLOOKUP($G$3,'[3]2022-23 Final'!$B$19:$Z$156,9,0),0) -> 78867 | I13: 1 | J13: =IFERROR(VLOOKUP($G$3,'[3]2022-23 Final'!$B$19:$Z$156,9,0),0) -> 78867 | L13: =K13/M13-1 ->  | Q13: =VLOOKUP($G$2,#REF!,$B13,FALSE) ->  | S13: =VLOOKUP($G$2,#REF!,$B13,FALSE) ->  | U13: =VLOOKUP($G$2,#REF!,$B13,FALSE) ->  | W13: =VLOOKUP($G$2,#REF!,$B13,FALSE) ->  | Y13: 1 | Z13: 6 | AF13: Ellensburg
B14: 9 | G14: Dollars | H14: =IFERROR(VLOOKUP($G$3,'[3]2022-23 Final'!$B$19:$Z$156,9,0),0) -> 78867 | I14: 1 | J14: =IFERROR(VLOOKUP($G$3,'[3]2022-23 Final'!$B$19:$Z$156,9,0),0) -> 78867 | Q14: =VLOOKUP($G$2,#REF!,$B14,FALSE) ->  | S14: =VLOOKUP($G$2,#REF!,$B14,FALSE) ->  | U14: =VLOOKUP($G$2,#REF!,$B14,FALSE) ->  | W14: =VLOOKUP($G$2,#REF!,$B14,FALSE) ->  | Y14: 4 | Z14: 6 | AF14: Entiat
B15: 10 | F15: middle 2/4 | G15: Attendance | H15: =IFERROR(VLOOKUP($G$3,'[3]2022-23 Final'!$B$19:$Z$156,9,0),0) -> 78867 | I15: 1 | J15: =IFERROR(VLOOKUP($G$3,'[3]2022-23 Final'!$B$19:$Z$156,9,0),0) -> 78867 | Q15: =VLOOKUP($G$2,#REF!,$B15,FALSE) ->  | S15: =VLOOKUP($G$2,#REF!,$B15,FALSE) ->  | U15: =VLOOKUP($G$2,#REF!,$B15,FALSE) ->  | W15: =VLOOKUP($G$2,#REF!,$B15,FALSE) ->  | Y15: 1 | Z15: 7 | AF15: Ephrata
B16: 11 | G16: Dollars | H16: =IFERROR(VLOOKUP($G$3,'[3]2022-23 Final'!$B$19:$Z$156,9,0),0) -> 78867 | I16: 1 | J16: =IFERROR(VLOOKUP($G$3,'[3]2022-23 Final'!$B$19:$Z$156,9,0),0) -> 78867 | Q16: =VLOOKUP($G$2,#REF!,$B16,FALSE) ->  | S16: =VLOOKUP($G$2,#REF!,$B16,FALSE) ->  | U16: =VLOOKUP($G$2,#REF!,$B16,FALSE) ->  | W16: =VLOOKUP($G$2,#REF!,$B16,FALSE) ->  | Y16: 4 | Z16: 7 | AF16: Ferndale
B17: 12 | C17: Grades 6-8 | F17: Top 1/4 | G17: Attendance | H17: =IFERROR(VLOOKUP($G$3,'[3]2022-23 Final'!$B$19:$Z$156,9,0),0) -> 78867 | I17: 1 | J17: =IFERROR(VLOOKUP($G$3,'[3]2022-23 Final'!$B$19:$Z$156,9,0),0) -> 78867 | Q17: =VLOOKUP($G$2,#REF!,$B17,FALSE) ->  | S17: =VLOOKUP($G$2,#REF!,$B17,FALSE) ->  | U17: =VLOOKUP($G$2,#REF!,$B17,FALSE) ->  | W17: =VLOOKUP($G$2,#REF!,$B17,FALSE) ->  | Y17: 1 | Z17: 8 | AF17: Finley
B18: 13 | G18: Dollars | H18: =IFERROR(VLOOKUP($G$3,'[3]2022-23 Final'!$B$19:$Z$156,9,0),0) -> 78867 | I18: 1 | J18: =IFERROR(VLOOKUP($G$3,'[3]2022-23 Final'!$B$19:$Z$156,9,0),0) -> 78867 | Q18: =VLOOKUP($G$2,#REF!,$B18,FALSE) ->  | S18: =VLOOKUP($G$2,#REF!,$B18,FALSE) ->  | U18: =VLOOKUP($G$2,#REF!,$B18,FALSE) ->  | W18: =VLOOKUP($G$2,#REF!,$B18,FALSE) ->  | Y18: 4 | Z18: 8 | AF18: Goldendale
B19: 14 | F19: middle 2/4 | G19: Attendance | H19: =IFERROR(VLOOKUP($G$3,'[3]2022-23 Final'!$B$19:$Z$156,9,0),0) -> 78867 | I19: 1 | J19: =IFERROR(VLOOKUP($G$3,'[3]2022-23 Final'!$B$19:$Z$156,9,0),0) -> 78867 | Q19: =VLOOKUP($G$2,#REF!,$B19,FALSE) ->  | S19: =VLOOKUP($G$2,#REF!,$B19,FALSE) ->  | U19: =VLOOKUP($G$2,#REF!,$B19,FALSE) ->  | W19: =VLOOKUP($G$2,#REF!,$B19,FALSE) ->  | Y19: 1 | Z19: 9 | AF19: Grandview
B20: 15 | G20: Dollars | H20: =IFERROR(VLOOKUP($G$3,'[3]2022-23 Final'!$B$19:$Z$156,9,0),0) -> 78867 | I20: 1 | J20: =IFERROR(VLOOKUP($G$3,'[3]2022-23 Final'!$B$19:$Z$156,9,0),0) -> 78867 | Q20: =VLOOKUP($G$2,#REF!,$B20,FALSE) ->  | S20: =VLOOKUP($G$2,#REF!,$B20,FALSE) ->  | U20: =VLOOKUP($G$2,#REF!,$B20,FALSE) ->  | W20: =VLOOKUP($G$2,#REF!,$B20,FALSE) ->  | Y20: 4 | Z20: 9 | AF20: Granger
B21: 16 | C21: Grades 9-12 | F21: Top 1/4 | G21: Attendance | H21: =IFERROR(VLOOKUP($G$3,'[3]2022-23 Final'!$B$19:$Z$156,9,0),0) -> 78867 | I21: 1 | J21: =IFERROR(VLOOKUP($G$3,'[3]2022-23 Final'!$B$19:$Z$156,9,0),0) -> 78867 | Q21: =VLOOKUP($G$2,#REF!,$B21,FALSE) ->  | S21: =VLOOKUP($G$2,#REF!,$B21,FALSE) ->  | U21: =VLOOKUP($G$2,#REF!,$B21,FALSE) ->  | W21: =VLOOKUP($G$2,#REF!,$B21,FALSE) ->  | Y21: 1 | Z21: 10 | AF21: Highland
B22: 17 | G22: Dollars | H22: =IFERROR(VLOOKUP($G$3,'[3]2022-23 Final'!$B$19:$Z$156,9,0),0) -> 78867 | I22: 1 | J22: =IFERROR(VLOOKUP($G$3,'[3]2022-23 Final'!$B$19:$Z$156,9,0),0) -> 78867 | Q22: =VLOOKUP($G$2,#REF!,$B22,FALSE) ->  | S22: =VLOOKUP($G$2,#REF!,$B22,FALSE) ->  | U22: =VLOOKUP($G$2,#REF!,$B22,FALSE) ->  | W22: =VLOOKUP($G$2,#REF!,$B22,FALSE) ->  | Y22: 4 | Z22: 10 | AF22: Hoquiam
B23: 18 | F23: middle 2/4 | G23: Attendance | H23: =IFERROR(VLOOKUP($G$3,'[3]2022-23 Final'!$B$19:$Z$156,9,0),0) -> 78867 | I23: 1 | J23: =IFERROR(VLOOKUP($G$3,'[3]2022-23 Final'!$B$19:$Z$156,9,0),0) -> 78867 | Q23: =VLOOKUP($G$2,#REF!,$B23,FALSE) ->  | S23: =VLOOKUP($G$2,#REF!,$B23,FALSE) ->  | U23: =VLOOKUP($G$2,#REF!,$B23,FALSE) ->  | W23: =VLOOKUP($G$2,#REF!,$B23,FALSE) ->  | Y23: 1 | Z23: 11 | AF23: Kennewick
B24: 19 | G24: Dollars | H24: =IFERROR(VLOOKUP($G$3,'[3]2022-23 Final'!$B$19:$Z$156,9,0),0) -> 78867 | I24: 1 | J24: =IFERROR(VLOOKUP($G$3,'[3]2022-23 Final'!$B$19:$Z$156,9,0),0) -> 78867 | Q24: =VLOOKUP($G$2,#REF!,$B24,FALSE) ->  | S24: =VLOOKUP($G$2,#REF!,$B24,FALSE) ->  | U24: =VLOOKUP($G$2,#REF!,$B24,FALSE) ->  | W24: =VLOOKUP($G$2,#REF!,$B24,FALSE) ->  | Y24: 4 | Z24: 11 | AF24: Kiona Benton
B26: 20 | G26: Subtotal Dollars | H26: =IFERROR(VLOOKUP($G$3,'2023-24 Final'!$B$19:$Z$156,10,0),0) -> 372804 | I26: 1.437543862 | J26: =IFERROR(VLOOKUP($G$3,'22-23 Final'!$B$19:$Z$156,10,0),0) -> 259334 | K26: =IFERROR(VLOOKUP($G$3,'[2]2021-22 Final'!$B:$R,9,0),0) -> 216796 | L26: =IFERROR(K26/M26-1,0) -> 0.3235166633 | M26: =IFERROR(VLOOKUP($G$3,'[2]2020-21 Final'!$B:$R,9,0),0) -> 163803 | O26: =VLOOKUP($G$2,#REF!,8,FALSE) ->  | Q26: =VLOOKUP($G$2,#REF!,$B26,FALSE) ->  | S26: =VLOOKUP($G$2,#REF!,$B26,FALSE) ->  | U26: =VLOOKUP($G$2,#REF!,$B26,FALSE) ->  | W26: =VLOOKUP($G$2,#REF!,$B26,FALSE) ->  | AF26: La Conner
B28: 21 | F28: Other Fund Factor | H28: =IFERROR(VLOOKUP($G$3,'2023-24 Final'!$B$19:$Z$156,11,0),0) -> 1 | J28: =IFERROR(VLOOKUP($G$3,'22-23 Final'!$B$19:$Z$156,11,0),0) -> 0.95 | K28: =IFERROR(VLOOKUP($G$3,'[2]2021-22 Final'!$B:$R,10,0),0) -> 0.95 | L28: =IFERROR(K28/M28-1,0) -> 0 | M28: =IFERROR(VLOOKUP($G$3,'[2]2020-21 Final'!$B:$R,10,0),0) -> 0.95 | O28: N/A | Q28: =VLOOKUP($G$2,#REF!,$B28,FALSE) ->  | S28: =VLOOKUP($G$2,#REF!,$B28,FALSE) ->  | U28: =VLOOKUP($G$2,#REF!,$B28,FALSE) ->  | W28: =VLOOKUP($G$2,#REF!,$B28,FALSE) ->  | Y28: 1 | Z28: 12 | AF28: Lake Chelan
B29: 22 | F29: Rural Factor | H29: =IFERROR(VLOOKUP($G$3,'2023-24 Final'!$B$19:$Z$156,13,0),0) -> 1 | J29: =IFERROR(VLOOKUP($G$3,'22-23 Final'!$B$19:$Z$156,13,0),0) -> 1 | K29: =IFERROR(VLOOKUP($G$3,'[2]2021-22 Final'!$B:$R,12,0),0) -> 1 | L29: =IFERROR(K29/M29-1,0) -> 0 | M29: =IFERROR(VLOOKUP($G$3,'[2]2020-21 Final'!$B:$R,12,0),0) -> 1 | Q29: =VLOOKUP($G$2,#REF!,$B29,FALSE) ->  | S29: =VLOOKUP($G$2,#REF!,$B29,FALSE) ->  | U29: =VLOOKUP($G$2,#REF!,$B29,FALSE) ->  | W29: =VLOOKUP($G$2,#REF!,$B29,FALSE) ->  | Y29: 2 | Z29: 12 | AF29: Lake Quinault
B30: 23 | G30: Total Allocated Amount | H30: =IFERROR(VLOOKUP($G$3,'2023-24 Final'!$B$19:$Z$156,18,0),0) -> 372804 | I30: =H30/J30 -> 1.513205908 | J30: =IFERROR(VLOOKUP($G$3,'22-23 Final'!$B$19:$Z$156,18,0),0) -> 246367 | K30: =IFERROR(VLOOKUP($G$3,'[2]2021-22 Final'!$B:$R,17,0),0) -> 205956 | L30: =IFERROR(K30/M30-1,0) -> 0.3235141023 | M30: =IFERROR(VLOOKUP($G$3,'[2]2020-21 Final'!$B:$R,17,0),0) -> 155613 | O30: =VLOOKUP($G$2,#REF!,9,FALSE) ->  | P30: =IF(Q30=0,0,O30/Q30) ->  | Q30: =VLOOKUP($G$2,#REF!,$B30,FALSE) ->  | S30: =VLOOKUP($G$2,#REF!,$B30,FALSE) ->  | U30: =VLOOKUP($G$2,#REF!,$B30,FALSE) ->  | W30: =VLOOKUP($G$2,#REF!,$B30,FALSE) ->  | Y30: 25 | AF30: Lind
O31: =IF(VLOOKUP($G$3,#REF!,15,FALSE)="Y","Not participating","") ->  | Q31: =IF(VLOOKUP($G$3,#REF!,29,FALSE)="Y","Not participating","") ->  | AF31: Lynden
F32: Summer Allocation | AF32: Mabton
F33: Allocation Factors | G33: Total Student | M33: =IFERROR(VLOOKUP($G$3,'[2]Summer 2021'!A:K,4,0),0) -> 299 | Q33: =IF(ISNA(VLOOKUP($G$2,#REF!,Y33,FALSE)),0,VLOOKUP($G$2,#REF!,Y33,FALSE)) ->  | S33: =IF(ISNA(VLOOKUP($G$2,#REF!,AA33,FALSE)),0,VLOOKUP($G$2,#REF!,AA33,FALSE)) ->  | U33: =IF(ISNA(VLOOKUP($G$2,#REF!,$Y$33,FALSE)),0,VLOOKUP($G$2,#REF!,$Y$33,FALSE)) ->  | W33: =IF(ISNA(VLOOKUP($G$2,#REF!,AA33,FALSE)),0,VLOOKUP($G$2,#REF!,AA33,FALSE)) ->  | Y33: 2 | AA33: 2 | AF33: Manson
G34: Needs Service | M34: =IFERROR(VLOOKUP($G$3,'[2]Summer 2021'!A:K,6,0),0) -> 60 | Q34: =IF(ISNA(VLOOKUP($G$2,#REF!,$AA$34,FALSE)),0,VLOOKUP($G$2,#REF!,$AA$34,FALSE)) ->  | S34: =IF(ISNA(VLOOKUP($G$2,#REF!,$AA$34,FALSE)),0,VLOOKUP($G$2,#REF!,$AA$34,FALSE)) ->  | U34: =IF(ISNA(VLOOKUP($G$2,#REF!,$Y$34,FALSE)),0,VLOOKUP($G$2,#REF!,$Y$34,FALSE)) ->  | W34: =IF(ISNA(VLOOKUP($G$2,#REF!,AA34,FALSE)),0,VLOOKUP($G$2,#REF!,AA34,FALSE)) ->  | Y34: 3 | AA34: 3 | AF34: Monroe
G35: Priority | M35: =IFERROR(VLOOKUP($G$3,'[2]Summer 2021'!A:K,8,0),0) -> 95 | Q35: =IF(ISNA(VLOOKUP($G$2,#REF!,$AA$35,FALSE)),0,VLOOKUP($G$2,#REF!,$AA$35,FALSE)) ->  | S35: =IF(ISNA(VLOOKUP($G$2,#REF!,$AA$35,FALSE)),0,VLOOKUP($G$2,#REF!,$AA$35,FALSE)) ->  | U35: =IF(ISNA(VLOOKUP($G$2,#REF!,$Y$35,FALSE)),0,VLOOKUP($G$2,#REF!,$Y$35,FALSE)) ->  | W35: =IF(ISNA(VLOOKUP($G$2,#REF!,AA35,FALSE)),0,VLOOKUP($G$2,#REF!,AA35,FALSE)) ->  | Y35: 4 | AA35: 4 | AF35: Moses Lake
F36: Dollars | M36: =IFERROR(VLOOKUP($G$3,'[2]Summer 2021'!A:V,22,0),0) -> 21049 | Q36: =IF(ISNA(VLOOKUP($G$2,#REF!,$AA$36,FALSE)),0,VLOOKUP($G$2,#REF!,$AA$36,FALSE)) ->  | S36: =IF(ISNA(VLOOKUP($G$2,#REF!,$AA$36,FALSE)),0,VLOOKUP($G$2,#REF!,$AA$36,FALSE)) ->  | U36: =IF(ISNA(VLOOKUP($G$2,#REF!,$Y$36,FALSE)),0,VLOOKUP($G$2,#REF!,$Y$36,FALSE)) ->  | W36: =IF(ISNA(VLOOKUP($G$2,#REF!,AA36,FALSE)),0,VLOOKUP($G$2,#REF!,AA36,FALSE)) ->  | Y36: 5 | AA36: 5 | AF36: Mossyrock
Q37: =IF(ISNA(VLOOKUP($G$2,#REF!,$AA$37,FALSE)),0,VLOOKUP($G$2,#REF!,$AA$37,FALSE)) ->  | S37: =IF(ISNA(VLOOKUP($G$2,#REF!,$AA$37,FALSE)),0,VLOOKUP($G$2,#REF!,$AA$37,FALSE)) ->  | U37: =IF(ISNA(VLOOKUP($G$2,#REF!,$Y$37,FALSE)),0,VLOOKUP($G$2,#REF!,$Y$37,FALSE)) ->  | W37: =IF(ISNA(VLOOKUP($G$2,#REF!,AA37,FALSE)),0,VLOOKUP($G$2,#REF!,AA37,FALSE)) ->  | Y37: 6 | AA37: 6 | AF37: Mount Vernon
F38: SY 21-22 Health Support Grant | H38: =IFERROR(VLOOKUP($G$3,'2023-24 Final'!$B$19:$Z$156,24,0),0) -> 4000 | J38: =IFERROR(VLOOKUP($G$3,'22-23 Final'!$B$19:$Z$156,24,0),0) -> 2500 | K38: =IFERROR(VLOOKUP($G$3,'[2]2021-22 Final'!$B:$X,22,0),0) -> 2500 | Q38: =IF(ISNA(VLOOKUP($G$2,#REF!,$AA$38,FALSE)),0,VLOOKUP($G$2,#REF!,$AA$38,FALSE)) ->  | S38: =IF(ISNA(VLOOKUP($G$2,#REF!,$AA$38,FALSE)),0,VLOOKUP($G$2,#REF!,$AA$38,FALSE)) ->  | U38: =IF(ISNA(VLOOKUP($G$2,#REF!,$Y$38,FALSE)),0,VLOOKUP($G$2,#REF!,$Y$38,FALSE)) ->  | W38: =IF(ISNA(VLOOKUP($G$2,#REF!,AA38,FALSE)),0,VLOOKUP($G$2,#REF!,AA38,FALSE)) ->  | Y38: 7 | AA38: 7 | AF38: Mt Adams
G39: Total Allocated Amount | H39: =H38+H30 -> 376804 | I39: =H39/J39 -> 1.514077801 | J39: =J38+J30 -> 248867 | K39: =K38+K30 -> 208456 | Q39: =IF(ISNA(VLOOKUP($G$2,#REF!,$AA$39,FALSE)),0,VLOOKUP($G$2,#REF!,$AA$39,FALSE)) ->  | S39: =IF(ISNA(VLOOKUP($G$2,#REF!,$AA$39,FALSE)),0,VLOOKUP($G$2,#REF!,$AA$39,FALSE)) ->  | U39: =IF(ISNA(VLOOKUP($G$2,#REF!,$Y$39,FALSE)),0,VLOOKUP($G$2,#REF!,$Y$39,FALSE)) ->  | V39: =IF(W39>0,U39/W39,"-") ->  | W39: =IF(ISNA(VLOOKUP($G$2,#REF!,AA39,FALSE)),0,VLOOKUP($G$2,#REF!,AA39,FALSE)) ->  | Y39: 8 | AA39: 8 | AF39: Naches
AF40: Naselle-Grays River
AF41: Nooksack Valley
AF42: North Franklin
AF43: Ocean Beach
AF44: Ocosta
AF45: Okanogan
AF46: Omak
AF47: Orondo
AF48: Oroville
AF49: Othello
AF50: Palisades
AF51: Pasco
AF52: Pateros
AF53: Paterson
AF54: Prosser
AF55: Quillayute Valley
AF56: Quincy
AF57: Rochester
AF58: Roosevelt
AF59: Royal City
AF60: Seattle
AF61: Sedro Woolley
AF62: Shelton
AF63: Soap Lake
AF64: South Bend
AF65: Sunnyside
AF66: Tacoma
AF67: Tonasket
AF68: Toppenish
AF69: Touchet
AF70: Union Gap
AF71: Vancouver
AF72: Wahkiakum
AF73: Wahluke
AF74: Walla Walla
AF75: Wapato
AF76: Warden
AF77: Waterville
AF78: Wenatchee
AF79: West Valley
AF80: White Salmon
AF81: Winlock
AF82: Yakima
AF83: Zillah

Sheet 2023-24 Final (hidden)
J1: From Assumptions Page:
D2: Constant Dollar Multipliers - Do Not Change Here | J2: Target Amounts | O2: =Assumptions!C24 -> 21091065
D3: =[2]Assumptions!$AO$4 -> 0 | F3: 2.036969198e+66 | G3: 431.9855955 | H3: Use CTRL K | J3: Actual Amounts | O3: =O18 -> 21091065
J4: Difference | O4: =O3-O2 -> 0
J6: =O18 -> 21091065
H7: Put total here | J7: =Assumptions!C24 -> 21091065
J10: Go to H9 & Control K to set dollar amount
E14: Migrant Students | V14: Accepting Funding? | X14: HOLD HARMLESS
D15: =G3 -> 431.9855955 | E15: K-12 | G15: Needs Support | I15: Priority Interuption | S15: =S18 -> 21091065
C16: CCDDD | D16: District | E16: Ave. number | F16: Regular Dollars | G16: Ave. number | H16: Regular Dollars | I16: Priority Number | J16: Priority Dollars | K16: Subtotal | L16: Other Funds Factor | M16: Subtotal 2 | N16: Add'l Rural Factor | O16: Total Allocated Amount | Q16: MOE | R16: MOE Red. | S16: Subtotal After MOE | V16: Y for yes, N for no (reallocates money) | X16: Override funding? Y for yes, otherwise blank. | Y16: Health Support Grant | Z16: Total
E17: 10 | F17: =F18/E18 -> 431.985684 | G17: 0.25 | H17: =H18/G18 -> 110.8102379 | I17: 1 | J17: =J18/I18 -> 434.7024492 | N17: 0.1 | O17: 124
A18: 0 | C18: 99999 | D18: State Total | E18: =SUMIF(E19:E164,">-10") -> 31643 | F18: =SUM(F19:F164) -> 13669323 | G18: =SUMIF(G19:G164,">=10") -> 8869 | H18: =SUM(H19:H164) -> 982776 | I18: =SUMIF(I19:I164,">=10") -> 19721 | J18: =SUM(J19:J164) -> 8572767 | K18: =SUM(K19:K164) -> 23224866 | M18: =SUM(M19:M164) -> 22569242 | O18: =SUM(O19:O164) -> 21091065 | R18: =SUM(R19:R152) -> 0 | S18: =SUM(S19:S164) -> 21091065 | T18: Previous Year Final Allocations | U18: Allocation Difference | W18: Consortia | Y18: =SUM(Y19:Y164) -> 212500 | Z18: =SUM(Z19:Z164) -> 20927983
A19: 1 | B19: 14005 | D19: ABERDEEN | E19: =IFERROR(VLOOKUP(B19,Enrollment!$A$1:$F$147,4,FALSE),0) -> 114 | F19: =IF(E19>=10,ROUND(E19*$G$3,0),0) -> 49246 | G19: =IFERROR(VLOOKUP(B19,Enrollment!$A$1:$F$147,6,FALSE),0) -> 38 | H19: =IF(E19>=$E$17,ROUND(G19*$G$3*$G$17,0),0) -> 4104 | I19: =IFERROR(VLOOKUP(B19,Enrollment!$A$1:$F$147,5,FALSE),0) -> 58 | J19: =IF(E19>=$E$17,ROUND(I19*$G$3*$I$17,0),0) -> 25055 | K19: =+F19+H19+J19 -> 78405 | L19: =IF(E19>$E$17,_xlfn.IFNA(VLOOKUP(B19,'other funds ftr 2023'!A:I,9,FALSE),0),1) -> 1.15 | M19: =IF(L19=0,K19,ROUND(K19*L19,0)) -> 90166 | N19: =1+IF(ISNA(VLOOKUP(B19,'Rural and Low Income 23-24'!$A:$B,2,FALSE)),0,$N$17) -> 1.1 | O19: =IF(V19="y",ROUND(M19*N19,0),0) -> 99183 | R19: =ROUND(IF(Q19>0,-(0.9-Q19)*O19,0),0) -> 0 | S19: =O19+R19 -> 99183 | T19: =IFERROR(VLOOKUP(B19,'[3]2022-23 Final'!$B$19:$S$156,18,FALSE),0) -> 80840 | U19: =S19-T19 -> 18343 | V19: =IF(ISNA(VLOOKUP(B19,[4]Sheet1!$B$1:$D$96,1,FALSE)),"N","Y") -> Y | Y19: =IF(V19="Y",IF(E19<=99,1500,IF(AND(E19>=100,E19<=399),2500,4000)),0) -> 2500 | Z19: =IF(W19=1, 0, Y19+S19) -> 101683
A20: 2 | B20: 29103 | D20: ANACORTES | E20: =IFERROR(VLOOKUP(B20,Enrollment!$A$1:$F$147,4,FALSE),0) -> 11 | F20: =IF(E20>=10,ROUND(E20*$G$3,0),0) -> 4752 | G20: =IFERROR(VLOOKUP(B20,Enrollment!$A$1:$F$147,6,FALSE),0) -> 0 | H20: =IF(E20>=$E$17,ROUND(G20*$G$3*$G$17,0),0) -> 0 | I20: =IFERROR(VLOOKUP(B20,Enrollment!$A$1:$F$147,5,FALSE),0) -> 10 | J20: =IF(E20>=$E$17,ROUND(I20*$G$3*$I$17,0),0) -> 4320 | K20: 9072 | L20: =IF(E20>$E$17,_xlfn.IFNA(VLOOKUP(B20,'other funds ftr 2023'!A:I,9,FALSE),0),1) -> 1.15 | M20: 10433 | N20: =1+IF(ISNA(VLOOKUP(B20,'Rural and Low Income 23-24'!$A:$B,2,FALSE)),0,$N$17) -> 1 | O20: 10433 | R20: 0 | S20: 10433 | T20: =IFERROR(VLOOKUP(B20,'[3]2022-23 Final'!$B$19:$S$156,18,FALSE),0) -> 0 | U20: 10433 | V20: =IF(ISNA(VLOOKUP(B20,[4]Sheet1!$B$1:$D$96,1,FALSE)),"N","Y") -> Y | Y20: =IF(V20="Y",IF(E20<=99,1500,IF(AND(E20>=100,E20<=399),2500,4000)),0) -> 1500 | Z20: =IF(W20=1, 0, Y20+S20) -> 11933
A21: 3 | B21: 31016 | D21: ARLINGTON | E21: =IFERROR(VLOOKUP(B21,Enrollment!$A$1:$F$147,4,FALSE),0) -> 41 | F21: 17711 | G21: =IFERROR(VLOOKUP(B21,Enrollment!$A$1:$F$147,6,FALSE),0) -> 12 | H21: 1296 | I21: =IFERROR(VLOOKUP(B21,Enrollment!$A$1:$F$147,5,FALSE),0) -> 26 | J21: 11232 | K21: 30239 | L21: =IF(E21>$E$17,_xlfn.IFNA(VLOOKUP(B21,'other funds ftr 2023'!A:I,9,FALSE),0),1) -> 1.15 | M21: 34775 | N21: =1+IF(ISNA(VLOOKUP(B21,'Rural and Low Income 23-24'!$A:$B,2,FALSE)),0,$N$17) -> 1 | O21: 0 | R21: 0 | S21: 0 | T21: =IFERROR(VLOOKUP(B21,'[3]2022-23 Final'!$B$19:$S$156,18,FALSE),0) -> 0 | U21: 0 | V21: =IF(ISNA(VLOOKUP(B21,[4]Sheet1!$B$1:$D$96,1,FALSE)),"N","Y") -> N | Y21: 0 | Z21: 0
A22: 4 | B22: 17408 | D22: AUBURN | E22: =IFERROR(VLOOKUP(B22,Enrollment!$A$1:$F$147,4,FALSE),0) -> 37 | F22: 15983 | G22: =IFERROR(VLOOKUP(B22,Enrollment!$A$1:$F$147,6,FALSE),0) -> 6 | H22: 648 | I22: =IFERROR(VLOOKUP(B22,Enrollment!$A$1:$F$147,5,FALSE),0) -> 28 | J22: 12096 | K22: 28727 | L22: =IF(E22>$E$17,_xlfn.IFNA(VLOOKUP(B22,'other funds ftr 2023'!A:I,9,FALSE),0),1) -> 1.15 | M22: 33036 | N22: =1+IF(ISNA(VLOOKUP(B22,'Rural and Low Income 23-24'!$A:$B,2,FALSE)),0,$N$17) -> 1 | O22: 33036 | R22: 0 | S22: 33036 | T22: =IFERROR(VLOOKUP(B22,'[3]2022-23 Final'!$B$19:$S$156,18,FALSE),0) -> 0 | U22: 33036 | V22: =IF(ISNA(VLOOKUP(B22,[4]Sheet1!$B$1:$D$96,1,FALSE)),"N","Y") -> Y | Y22: 1500 | Z22: 34536
A23: 5 | B23: 06119 | D23: BATTLE GROUND | E23: =IFERROR(VLOOKUP(B23,Enrollment!$A$1:$F$147,4,FALSE),0) -> 23 | F23: 9936 | G23: =IFERROR(VLOOKUP(B23,Enrollment!$A$1:$F$147,6,FALSE),0) -> 0 | H23: 0 | I23: =IFERROR(VLOOKUP(B23,Enrollment!$A$1:$F$147,5,FALSE),0) -> 21 | J23: 9072 | K23: 19008 | L23: =IF(E23>$E$17,_xlfn.IFNA(VLOOKUP(B23,'other funds ftr 2023'!A:I,9,FALSE),0),1) -> 1.15 | M23: 21859 | N23: =1+IF(ISNA(VLOOKUP(B23,'Rural and Low Income 23-24'!$A:$B,2,FALSE)),0,$N$17) -> 1 | O23: 0 | R23: 0 | S23: 0 | T23: =IFERROR(VLOOKUP(B23,'[3]2022-23 Final'!$B$19:$S$156,18,FALSE),0) -> 0 | U23: 0 | V23: =IF(ISNA(VLOOKUP(B23,[4]Sheet1!$B$1:$D$96,1,FALSE)),"N","Y") -> N | Y23: 0 | Z23: 0
A24: 6 | B24: 37501 | D24: BELLINGHAM | E24: =IFERROR(VLOOKUP(B24,Enrollment!$A$1:$F$147,4,FALSE),0) -> 128 | F24: 55294 | G24: =IFERROR(VLOOKUP(B24,Enrollment!$A$1:$F$147,6,FALSE),0) -> 43 | H24: 4644 | I24: =IFERROR(VLOOKUP(B24,Enrollment!$A$1:$F$147,5,FALSE),0) -> 70 | J24: 30239 | K24: 90177 | L24: =IF(E24>$E$17,_xlfn.IFNA(VLOOKUP(B24,'other funds ftr 2023'!A:I,9,FALSE),0),1) -> 1.15 | M24: 103704 | N24: =1+IF(ISNA(VLOOKUP(B24,'Rural and Low Income 23-24'!$A:$B,2,FALSE)),0,$N$17) -> 1 | O24: 103704 | R24: 0 | S24: 103704 | T24: =IFERROR(VLOOKUP(B24,'[3]2022-23 Final'!$B$19:$S$156,18,FALSE),0) -> 0 | U24: 103704 | V24: =IF(ISNA(VLOOKUP(B24,[4]Sheet1!$B$1:$D$96,1,FALSE)),"N","Y") -> Y | Y24: 2500 | Z24: 106204
A25: 7 | B25: 27403 | D25: BETHEL | E25: =IFERROR(VLOOKUP(B25,Enrollment!$A$1:$F$147,4,FALSE),0) -> 16 | F25: 6912 | G25: =IFERROR(VLOOKUP(B25,Enrollment!$A$1:$F$147,6,FALSE),0) -> 2 | H25: 216 | I25: =IFERROR(VLOOKUP(B25,Enrollment!$A$1:$F$147,5,FALSE),0) -> 13 | J25: 5616 | K25: 12744 | L25: =IF(E25>$E$17,_xlfn.IFNA(VLOOKUP(B25,'other funds ftr 2023'!A:I,9,FALSE),0),1) -> 1.15 | M25: 14656 | N25: =1+IF(ISNA(VLOOKUP(B25,'Rural and Low Income 23-24'!$A:$B,2,FALSE)),0,$N$17) -> 1 | O25: 0 | R25: 0 | S25: 0 | T25: =IFERROR(VLOOKUP(B25,'[3]2022-23 Final'!$B$19:$S$156,18,FALSE),0) -> 0 | U25: 0 | V25: =IF(ISNA(VLOOKUP(B25,[4]Sheet1!$B$1:$D$96,1,FALSE)),"N","Y") -> N | Y25: 0 | Z25: 0
A26: 8 | B26: 18100 | D26: BREMERTON | E26: =IFERROR(VLOOKUP(B26,Enrollment!$A$1:$F$147,4,FALSE),0) -> 61 | F26: 26351 | G26: =IFERROR(VLOOKUP(B26,Enrollment!$A$1:$F$147,6,FALSE),0) -> 13 | H26: 1404 | I26: =IFERROR(VLOOKUP(B26,Enrollment!$A$1:$F$147,5,FALSE),0) -> 38 | J26: 16415 | K26: 44170 | L26: =IF(E26>$E$17,_xlfn.IFNA(VLOOKUP(B26,'other funds ftr 2023'!A:I,9,FALSE),0),1) -> 1.15 | M26: 50796 | N26: =1+IF(ISNA(VLOOKUP(B26,'Rural and Low Income 23-24'!$A:$B,2,FALSE)),0,$N$17) -> 1 | O26: 50796 | R26: 0 | S26: 50796 | T26: =IFERROR(VLOOKUP(B26,'[3]2022-23 Final'!$B$19:$S$156,18,FALSE),0) -> 45790 | U26: 5006 | V26: =IF(ISNA(VLOOKUP(B26,[4]Sheet1!$B$1:$D$96,1,FALSE)),"N","Y") -> Y | Y26: 1500 | Z26: 52296
A27: 9 | B27: 24111 | D27: BREWSTER | E27: =IFERROR(VLOOKUP(B27,Enrollment!$A$1:$F$147,4,FALSE),0) -> 237 | F27: 102381 | G27: =IFERROR(VLOOKUP(B27,Enrollment!$A$1:$F$147,6,FALSE),0) -> 43 | H27: 4644 | I27: =IFERROR(VLOOKUP(B27,Enrollment!$A$1:$F$147,5,FALSE),0) -> 156 | J27: 67390 | K27: 174415 | L27: =IF(E27>$E$17,_xlfn.IFNA(VLOOKUP(B27,'other funds ftr 2023'!A:I,9,FALSE),0),1) -> 0.95 | M27: 165694 | N27: =1+IF(ISNA(VLOOKUP(B27,'Rural and Low Income 23-24'!$A:$B,2,FALSE)),0,$N$17) -> 1.1 | O27: 182263 | R27: 0 | S27: 182263 | T27: =IFERROR(VLOOKUP(B27,'[3]2022-23 Final'!$B$19:$S$156,18,FALSE),0) -> 169488 | U27: 12775 | V27: =IF(ISNA(VLOOKUP(B27,[4]Sheet1!$B$1:$D$96,1,FALSE)),"N","Y") -> Y | Y27: 2500 | Z27: 184763
A28: 10 | B28: 09075 | D28: BRIDGEPORT | E28: =IFERROR(VLOOKUP(B28,Enrollment!$A$1:$F$147,4,FALSE),0) -> 128 | F28: 55294 | G28: =IFERROR(VLOOKUP(B28,Enrollment!$A$1:$F$147,6,FALSE),0) -> 37 | H28: 3996 | I28: =IFERROR(VLOOKUP(B28,Enrollment!$A$1:$F$147,5,FALSE),0) -> 85 | J28: 36719 | K28: 96009 | L28: =IF(E28>$E$17,_xlfn.IFNA(VLOOKUP(B28,'other funds ftr 2023'!A:I,9,FALSE),0),1) -> 1 | M28: 96009 | N28: =1+IF(ISNA(VLOOKUP(B28,'Rural and Low Income 23-24'!$A:$B,2,FALSE)),0,$N$17) -> 1.1 | O28: 105610 | R28: 0 | S28: 105610 | T28: =IFERROR(VLOOKUP(B28,'[3]2022-23 Final'!$B$19:$S$156,18,FALSE),0) -> 126591 | U28: -20981 | V28: =IF(ISNA(VLOOKUP(B28,[4]Sheet1!$B$1:$D$96,1,FALSE)),"N","Y") -> Y | Y28: 2500 | Z28: 108110
A29: 11 | B29: 29100 | D29: BURLINGTON-EDISON | E29: =IFERROR(VLOOKUP(B29,Enrollment!$A$1:$F$147,4,FALSE),0) -> 491 | F29: 212105 | G29: =IFERROR(VLOOKUP(B29,Enrollment!$A$1:$F$147,6,FALSE),0) -> 124 | H29: 13392 | I29: =IFERROR(VLOOKUP(B29,Enrollment!$A$1:$F$147,5,FALSE),0) -> 341 | J29: 147307 | K29: 372804 | L29: =IF(E29>$E$17,_xlfn.IFNA(VLOOKUP(B29,'other funds ftr 2023'!A:I,9,FALSE),0),1) -> 1 | M29: 372804 | N29: =1+IF(ISNA(VLOOKUP(B29,'Rural and Low Income 23-24'!$A:$B,2,FALSE)),0,$N$17) -> 1 | O29: 372804 | R29: 0 | S29: 372804 | T29: =IFERROR(VLOOKUP(B29,'[3]2022-23 Final'!$B$19:$S$156,18,FALSE),0) -> 246367 | U29: 126437 | V29: =IF(ISNA(VLOOKUP(B29,[4]Sheet1!$B$1:$D$96,1,FALSE)),"N","Y") -> Y | Y29: 4000 | Z29: 376804
A30: 12 | B30: 04228 | D30: CASCADE | E30: =IFERROR(VLOOKUP(B30,Enrollment!$A$1:$F$147,4,FALSE),0) -> 53 | F30: 22895 | G30: =IFERROR(VLOOKUP(B30,Enrollment!$A$1:$F$147,6,FALSE),0) -> 16 | H30: 1728 | I30: =IFERROR(VLOOKUP(B30,Enrollment!$A$1:$F$147,5,FALSE),0) -> 30 | J30: 12960 | K30: 37583 | L30: =IF(E30>$E$17,_xlfn.IFNA(VLOOKUP(B30,'other funds ftr 2023'!A:I,9,FALSE),0),1) -> 1 | M30: 37583 | N30: =1+IF(ISNA(VLOOKUP(B30,'Rural and Low Income 23-24'!$A:$B,2,FALSE)),0,$N$17) -> 1 | O30: 37583 | R30: 0 | S30: 37583 | T30: =IFERROR(VLOOKUP(B30,'[3]2022-23 Final'!$B$19:$S$156,18,FALSE),0) -> 40123 | U30: -2540 | V30: =IF(ISNA(VLOOKUP(B30,[4]Sheet1!$B$1:$D$96,1,FALSE)),"N","Y") -> Y | Y30: 1500 | Z30: 39083
A31: 14 | B31: 04222 | D31: CASHMERE | E31: =IFERROR(VLOOKUP(B31,Enrollment!$A$1:$F$147,4,FALSE),0) -> 184 | F31: 79485 | G31: =IFERROR(VLOOKUP(B31,Enrollment!$A$1:$F$147,6,FALSE),0) -> 26 | H31: 2808 | I31: =IFERROR(VLOOKUP(B31,Enrollment!$A$1:$F$147,5,FALSE),0) -> 146 | J31: 63070 | K31: 145363 | L31: =IF(E31>$E$17,_xlfn.IFNA(VLOOKUP(B31,'other funds ftr 2023'!A:I,9,FALSE),0),1) -> 0.95 | M31: 138095 | N31: =1+IF(ISNA(VLOOKUP(B31,'Rural and Low Income 23-24'!$A:$B,2,FALSE)),0,$N$17) -> 1 | O31: 138095 | R31: 0 | S31: 138095 | T31: =IFERROR(VLOOKUP(B31,'[3]2022-23 Final'!$B$19:$S$156,18,FALSE),0) -> 151656 | U31: -13561 | V31: =IF(ISNA(VLOOKUP(B31,[4]Sheet1!$B$1:$D$96,1,FALSE)),"N","Y") -> Y | Y31: 2500 | Z31: 140595
A32: 13 | B32: 18401 | D32: CENTRAL KITSAP | E32: =IFERROR(VLOOKUP(B32,Enrollment!$A$1:$F$147,4,FALSE),0) -> 17 | F32: 7344 | G32: =IFERROR(VLOOKUP(B32,Enrollment!$A$1:$F$147,6,FALSE),0) -> 10 | H32: 1080 | I32: =IFERROR(VLOOKUP(B32,Enrollment!$A$1:$F$147,5,FALSE),0) -> 5 | J32: 2160 | K32: 10584 | L32: =IF(E32>$E$17,_xlfn.IFNA(VLOOKUP(B32,'other funds ftr 2023'!A:I,9,FALSE),0),1) -> 1.15 | M32: 12172 | N32: =1+IF(ISNA(VLOOKUP(B32,'Rural and Low Income 23-24'!$A:$B,2,FALSE)),0,$N$17) -> 1 | O32: 0 | R32: =ROUND(IF(Q32>0,-(0.9-Q32)*O32,0),0) -> 0 | S32: 0 | T32: =IFERROR(VLOOKUP(B32,'[3]2022-23 Final'!$B$19:$S$156,18,FALSE),0) -> 0 | U32: 0 | V32: =IF(ISNA(VLOOKUP(B32,[4]Sheet1!$B$1:$D$96,1,FALSE)),"N","Y") -> N | Y32: 0 | Z32: 0
A33: 15 | B33: 32356 | D33: CENTRAL VALLEY | E33: =IFERROR(VLOOKUP(B33,Enrollment!$A$1:$F$147,4,FALSE),0) -> 17 | F33: 7344 | G33: =IFERROR(VLOOKUP(B33,Enrollment!$A$1:$F$147,6,FALSE),0) -> 8 | H33: 864 | I33: =IFERROR(VLOOKUP(B33,Enrollment!$A$1:$F$147,5,FALSE),0) -> 8 | J33: 3456 | K33: 11664 | L33: =IF(E33>$E$17,_xlfn.IFNA(VLOOKUP(B33,'other funds ftr 2023'!A:I,9,FALSE),0),1) -> 1.15 | M33: 13414 | N33: =1+IF(ISNA(VLOOKUP(B33,'Rural and Low Income 23-24'!$A:$B,2,FALSE)),0,$N$17) -> 1 | O33: 0 | R33: =ROUND(IF(Q33>0,-(0.9-Q33)*O33,0),0) -> 0 | S33: 0 | T33: =IFERROR(VLOOKUP(B33,'[3]2022-23 Final'!$B$19:$S$156,18,FALSE),0) -> 0 | U33: 0 | V33: =IF(ISNA(VLOOKUP(B33,[4]Sheet1!$B$1:$D$96,1,FALSE)),"N","Y") -> N | Y33: 0 | Z33: 0
A34: 16 | B34: 21401 | D34: CENTRALIA | E34: =IFERROR(VLOOKUP(B34,Enrollment!$A$1:$F$147,4,FALSE),0) -> 90 | F34: 38879 | G34: =IFERROR(VLOOKUP(B34,Enrollment!$A$1:$F$147,6,FALSE),0) -> 49 | H34: 5292 | I34: =IFERROR(VLOOKUP(B34,Enrollment!$A$1:$F$147,5,FALSE),0) -> 30 | J34: 12960 | K34: 57131 | L34: =IF(E34>$E$17,_xlfn.IFNA(VLOOKUP(B34,'other funds ftr 2023'!A:I,9,FALSE),0),1) -> 1.15 | M34: 65701 | N34: =1+IF(ISNA(VLOOKUP(B34,'Rural and Low Income 23-24'!$A:$B,2,FALSE)),0,$N$17) -> 1 | O34: 65701 | R34: =ROUND(IF(Q34>0,-(0.9-Q34)*O34,0),0) -> 0 | S34: 65701 | T34: =IFERROR(VLOOKUP(B34,'[3]2022-23 Final'!$B$19:$S$156,18,FALSE),0) -> 67220 | U34: -1519 | V34: =IF(ISNA(VLOOKUP(B34,[4]Sheet1!$B$1:$D$96,1,FALSE)),"N","Y") -> Y | X34: Y | Y34: 1500 | Z34: 67201
A35: 17 | B35: 21302 | D35: CHEHALIS | E35: =IFERROR(VLOOKUP(B35,Enrollment!$A$1:$F$147,4,FALSE),0) -> 38 | F35: 16415 | G35: =IFERROR(VLOOKUP(B35,Enrollment!$A$1:$F$147,6,FALSE),0) -> 13 | H35: 1404 | I35: =IFERROR(VLOOKUP(B35,Enrollment!$A$1:$F$147,5,FALSE),0) -> 18 | J35: 7776 | K35: 25595 | L35: =IF(E35>$E$17,_xlfn.IFNA(VLOOKUP(B35,'other funds ftr 2023'!A:I,9,FALSE),0),1) -> 1.15 | M35: 29434 | N35: =1+IF(ISNA(VLOOKUP(B35,'Rural and Low Income 23-24'!$A:$B,2,FALSE)),0,$N$17) -> 1 | O35: 29434 | R35: 0 | S35: 29434 | T35: =IFERROR(VLOOKUP(B35,'[3]2022-23 Final'!$B$19:$S$156,18,FALSE),0) -> 18866 | U35: 10568 | V35: =IF(ISNA(VLOOKUP(B35,[4]Sheet1!$B$1:$D$96,1,FALSE)),"N","Y") -> Y | Y35: 1500 | Z35: 30934
A36: 18 | B36: 32360 | D36: CHENEY | E36: =IFERROR(VLOOKUP(B36,Enrollment!$A$1:$F$147,4,FALSE),0) -> 21 | F36: 9072 | G36: =IFERROR(VLOOKUP(B36,Enrollment!$A$1:$F$147,6,FALSE),0) -> 9 | H36: 972 | I36: =IFERROR(VLOOKUP(B36,Enrollment!$A$1:$F$147,5,FALSE),0) -> 8 | J36: 3456 | K36: 13500 | L36: =IF(E36>$E$17,_xlfn.IFNA(VLOOKUP(B36,'other funds ftr 2023'!A:I,9,FALSE),0),1) -> 1.15 | M36: 15525 | N36: =1+IF(ISNA(VLOOKUP(B36,'Rural and Low Income 23-24'!$A:$B,2,FALSE)),0,$N$17) -> 1 | O36: 0 | R36: =ROUND(IF(Q36>0,-(0.9-Q36)*O36,0),0) -> 0 | S36: 0 | T36: =IFERROR(VLOOKUP(B36,'[3]2022-23 Final'!$B$19:$S$156,18,FALSE),0) -> 0 | U36: 0 | V36: =IF(ISNA(VLOOKUP(B36,[4]Sheet1!$B$1:$D$96,1,FALSE)),"N","Y") -> N | X36: Y | Y36: 0 | Z36: 0
A37: 19 | B37: 27901 | D37: CHIEF LESCHI TRIBAL COMPACT | E37: =IFERROR(VLOOKUP(B37,Enrollment!$A$1:$F$147,4,FALSE),0) -> 37 | F37: 15983 | G37: =IFERROR(VLOOKUP(B37,Enrollment!$A$1:$F$147,6,FALSE),0) -> 3 | H37: 324 | I37: =IFERROR(VLOOKUP(B37,Enrollment!$A$1:$F$147,5,FALSE),0) -> 28 | J37: 12096 | K37: 28403 | L37: =IF(E37>$E$17,_xlfn.IFNA(VLOOKUP(B37,'other funds ftr 2023'!A:I,9,FALSE),0),1) -> 1.05 | M37: 29823 | N37: =1+IF(ISNA(VLOOKUP(B37,'Rural and Low Income 23-24'!$A:$B,2,FALSE)),0,$N$17) -> 1 | O37: 29823 | R37: 0 | S37: 29823 | T37: =IFERROR(VLOOKUP(B37,'[3]2022-23 Final'!$B$19:$S$156,18,FALSE),0) -> 10344 | U37: 19479 | V37: =IF(ISNA(VLOOKUP(B37,[4]Sheet1!$B$1:$D$96,1,FALSE)),"N","Y") -> Y | Y37: 1500 | Z37: 31323
A38: 20 | B38: 27400 | D38: CLOVER PARK | E38: =IFERROR(VLOOKUP(B38,Enrollment!$A$1:$F$147,4,FALSE),0) -> 13 | F38: 5616 | G38: =IFERROR(VLOOKUP(B38,Enrollment!$A$1:$F$147,6,FALSE),0) -> 5 | H38: 540 | I38: =IFERROR(VLOOKUP(B38,Enrollment!$A$1:$F$147,5,FALSE),0) -> 8 | J38: 3456 | K38: 9612 | L38: =IF(E38>$E$17,_xlfn.IFNA(VLOOKUP(B38,'other funds ftr 2023'!A:I,9,FALSE),0),1) -> 1.15 | M38: 11054 | N38: =1+IF(ISNA(VLOOKUP(B38,'Rural and Low Income 23-24'!$A:$B,2,FALSE)),0,$N$17) -> 1 | O38: 0 | R38: 0 | S38: 0 | T38: =IFERROR(VLOOKUP(B38,'[3]2022-23 Final'!$B$19:$S$156,18,FALSE),0) -> 0 | U38: 0 | V38: =IF(ISNA(VLOOKUP(B38,[4]Sheet1!$B$1:$D$96,1,FALSE)),"N","Y") -> N | Y38: 0 | Z38: 0
A39: 21 | B39: 36250 | D39: COLLEGE PLACE | E39: =IFERROR(VLOOKUP(B39,Enrollment!$A$1:$F$147,4,FALSE),0) -> 144 | F39: 62206 | G39: =IFERROR(VLOOKUP(B39,Enrollment!$A$1:$F$147,6,FALSE),0) -> 49 | H39: 5292 | I39: =IFERROR(VLOOKUP(B39,Enrollment!$A$1:$F$147,5,FALSE),0) -> 77 | J39: 33263 | K39: 100761 | L39: =IF(E39>$E$17,_xlfn.IFNA(VLOOKUP(B39,'other funds ftr 2023'!A:I,9,FALSE),0),1) -> 1.05 | M39: 105799 | N39: =1+IF(ISNA(VLOOKUP(B39,'Rural and Low Income 23-24'!$A:$B,2,FALSE)),0,$N$17) -> 1 | O39: 105799 | R39: 0 | S39: 105799 | T39: =IFERROR(VLOOKUP(B39,'[3]2022-23 Final'!$B$19:$S$156,18,FALSE),0) -> 76049 | U39: 29750 | V39: =IF(ISNA(VLOOKUP(B39,[4]Sheet1!$B$1:$D$96,1,FALSE)),"N","Y") -> Y | Y39: 2500 | Z39: 108299
A40: 22 | B40: 36400 | D40: COLUMBIA (WALLA WALLA) | E40: =IFERROR(VLOOKUP(B40,Enrollment!$A$1:$F$147,4,FALSE),0) -> 53 | F40: 22895 | G40: =IFERROR(VLOOKUP(B40,Enrollment!$A$1:$F$147,6,FALSE),0) -> 28 | H40: 3024 | I40: =IFERROR(VLOOKUP(B40,Enrollment!$A$1:$F$147,5,FALSE),0) -> 29 | J40: 12528 | K40: 38447 | L40: =IF(E40>$E$17,_xlfn.IFNA(VLOOKUP(B40,'other funds ftr 2023'!A:I,9,FALSE),0),1) -> 1.05 | M40: 40369 | N40: =1+IF(ISNA(VLOOKUP(B40,'Rural and Low Income 23-24'!$A:$B,2,FALSE)),0,$N$17) -> 1 | O40: 40369 | R40: 0 | S40: 40369 | T40: =IFERROR(VLOOKUP(B40,'[3]2022-23 Final'!$B$19:$S$156,18,FALSE),0) -> 30296 | U40: 10073 | V40: =IF(ISNA(VLOOKUP(B40,[4]Sheet1!$B$1:$D$96,1,FALSE)),"N","Y") -> Y | W40: 1 | Y40: 1500 | Z40: 0
A41: 23 | B41: 29317 | D41: CONWAY | E41: =IFERROR(VLOOKUP(B41,Enrollment!$A$1:$F$147,4,FALSE),0) -> 14 | F41: 6048 | G41: =IFERROR(VLOOKUP(B41,Enrollment!$A$1:$F$147,6,FALSE),0) -> 5 | H41: 540 | I41: =IFERROR(VLOOKUP(B41,Enrollment!$A$1:$F$147,5,FALSE),0) -> 10 | J41: 4320 | K41: 10908 | L41: =IF(E41>$E$17,_xlfn.IFNA(VLOOKUP(B41,'other funds ftr 2023'!A:I,9,FALSE),0),1) -> 0.85 | M41: 9272 | N41: =1+IF(ISNA(VLOOKUP(B41,'Rural and Low Income 23-24'!$A:$B,2,FALSE)),0,$N$17) -> 1.1 | O41: 0 | R41: 0 | S41: 0 | T41: =IFERROR(VLOOKUP(B41,'[3]2022-23 Final'!$B$19:$S$156,18,FALSE),0) -> 25079 | U41: -25079 | V41: =IF(ISNA(VLOOKUP(B41,[4]Sheet1!$B$1:$D$96,1,FALSE)),"N","Y") -> N | Y41: 0 | Z41: 0
A42: 24 | B42: 15204 | D42: COUPEVILLE | E42: =IFERROR(VLOOKUP(B42,Enrollment!$A$1:$F$147,4,FALSE),0) -> 18 | F42: 7776 | G42: =IFERROR(VLOOKUP(B42,Enrollment!$A$1:$F$147,6,FALSE),0) -> 8 | H42: 864 | I42: =IFERROR(VLOOKUP(B42,Enrollment!$A$1:$F$147,5,FALSE),0) -> 7 | J42: 3024 | K42: 11664 | L42: =IF(E42>$E$17,_xlfn.IFNA(VLOOKUP(B42,'other funds ftr 2023'!A:I,9,FALSE),0),1) -> 1.15 | M42: 13414 | N42: =1+IF(ISNA(VLOOKUP(B42,'Rural and Low Income 23-24'!$A:$B,2,FALSE)),0,$N$17) -> 1 | O42: 13414 | R42: 0 | S42: 13414 | T42: =IFERROR(VLOOKUP(B42,'[3]2022-23 Final'!$B$19:$S$156,18,FALSE),0) -> 8700 | U42: 4714 | V42: =IF(ISNA(VLOOKUP(B42,[4]Sheet1!$B$1:$D$96,1,FALSE)),"N","Y") -> Y | Y42: 1500 | Z42: 14914
A43: 25 | B43: 39090 | D43: EAST VALLEY (YAKIMA) | E43: =IFERROR(VLOOKUP(B43,Enrollment!$A$1:$F$147,4,FALSE),0) -> 230 | F43: 99357 | G43: =IFERROR(VLOOKUP(B43,Enrollment!$A$1:$F$147,6,FALSE),0) -> 43 | H43: 4644 | I43: =IFERROR(VLOOKUP(B43,Enrollment!$A$1:$F$147,5,FALSE),0) -> 165 | J43: 71278 | K43: 175279 | L43: =IF(E43>$E$17,_xlfn.IFNA(VLOOKUP(B43,'other funds ftr 2023'!A:I,9,FALSE),0),1) -> 1.15 | M43: 201571 | N43: =1+IF(ISNA(VLOOKUP(B43,'Rural and Low Income 23-24'!$A:$B,2,FALSE)),0,$N$17) -> 1 | O43: 0 | R43: 0 | S43: 0 | T43: =IFERROR(VLOOKUP(B43,'[3]2022-23 Final'!$B$19:$S$156,18,FALSE),0) -> 0 | U43: 0 | V43: =IF(ISNA(VLOOKUP(B43,[4]Sheet1!$B$1:$D$96,1,FALSE)),"N","Y") -> N | Y43: 0 | Z43: 0
A44: 26 | B44: 09206 | D44: EASTMONT | E44: =IFERROR(VLOOKUP(B44,Enrollment!$A$1:$F$147,4,FALSE),0) -> 888 | F44: 383603 | G44: =IFERROR(VLOOKUP(B44,Enrollment!$A$1:$F$147,6,FALSE),0) -> 295 | H44: 31859 | I44: =IFERROR(VLOOKUP(B44,Enrollment!$A$1:$F$147,5,FALSE),0) -> 597 | J44: 257895 | K44: 673357 | L44: =IF(E44>$E$17,_xlfn.IFNA(VLOOKUP(B44,'other funds ftr 2023'!A:I,9,FALSE),0),1) -> 0.95 | M44: 639689 | N44: =1+IF(ISNA(VLOOKUP(B44,'Rural and Low Income 23-24'!$A:$B,2,FALSE)),0,$N$17) -> 1 | O44: 639689 | R44: 0 | S44: 639689 | T44: =IFERROR(VLOOKUP(B44,'[3]2022-23 Final'!$B$19:$S$156,18,FALSE),0) -> 640986 | U44: -1297 | V44: =IF(ISNA(VLOOKUP(B44,[4]Sheet1!$B$1:$D$96,1,FALSE)),"N","Y") -> Y | Y44: 4000 | Z44: 643689
A45: 27 | B45: 19028 | D45: EASTON | E45: =IFERROR(VLOOKUP(B45,Enrollment!$A$1:$F$147,4,FALSE),0) -> 13 | F45: 5616 | G45: =IFERROR(VLOOKUP(B45,Enrollment!$A$1:$F$147,6,FALSE),0) -> 0 | H45: 0 | I45: =IFERROR(VLOOKUP(B45,Enrollment!$A$1:$F$147,5,FALSE),0) -> 12 | J45: 5184 | K45: 10800 | L45: =IF(E45>$E$17,_xlfn.IFNA(VLOOKUP(B45,'other funds ftr 2023'!A:I,9,FALSE),0),1) -> 0 | M45: 10800 | N45: =1+IF(ISNA(VLOOKUP(B45,'Rural and Low Income 23-24'!$A:$B,2,FALSE)),0,$N$17) -> 1.1 | O45: 0 | R45: 0 | S45: 0 | T45: =IFERROR(VLOOKUP(B45,'[3]2022-23 Final'!$B$19:$S$156,18,FALSE),0) -> 0 | U45: 0 | V45: =IF(ISNA(VLOOKUP(B45,[4]Sheet1!$B$1:$D$96,1,FALSE)),"N","Y") -> N | Y45: 0 | Z45: 0
A46: 28 | B46: 31015 | D46: EDMONDS | E46: =IFERROR(VLOOKUP(B46,Enrollment!$A$1:$F$147,4,FALSE),0) -> 17 | F46: 7344 | G46: =IFERROR(VLOOKUP(B46,Enrollment!$A$1:$F$147,6,FALSE),0) -> 4 | H46: 432 | I46: =IFERROR(VLOOKUP(B46,Enrollment!$A$1:$F$147,5,FALSE),0) -> 12 | J46: 5184 | K46: 12960 | L46: =IF(E46>$E$17,_xlfn.IFNA(VLOOKUP(B46,'other funds ftr 2023'!A:I,9,FALSE),0),1) -> 1.15 | M46: 14904 | N46: =1+IF(ISNA(VLOOKUP(B46,'Rural and Low Income 23-24'!$A:$B,2,FALSE)),0,$N$17) -> 1 | O46: 0 | R46: 0 | S46: 0 | T46: =IFERROR(VLOOKUP(B46,'[3]2022-23 Final'!$B$19:$S$156,18,FALSE),0) -> 0 | U46: 0 | V46: =IF(ISNA(VLOOKUP(B46,[4]Sheet1!$B$1:$D$96,1,FALSE)),"N","Y") -> N | Y46: 0 | Z46: 0
A47: 29 | B47: 39801 | D47: EDUCATIONAL SERVICE DISTRICT 105 | E47: =IFERROR(VLOOKUP(B47,Enrollment!$A$1:$F$147,4,FALSE),0) -> 35 | F47: 15119 | G47: =IFERROR(VLOOKUP(B47,Enrollment!$A$1:$F$147,6,FALSE),0) -> 14 | H47: 1512 | I47: =IFERROR(VLOOKUP(B47,Enrollment!$A$1:$F$147,5,FALSE),0) -> 19 | J47: 8208 | K47: 24839 | L47: =IF(E47>$E$17,_xlfn.IFNA(VLOOKUP(B47,'other funds ftr 2023'!A:I,9,FALSE),0),1) -> 0 | M47: 24839 | N47: =1+IF(ISNA(VLOOKUP(B47,'Rural and Low Income 23-24'!$A:$B,2,FALSE)),0,$N$17) -> 1 | O47: 0 | R47: 0 | S47: 0 | T47: =IFERROR(VLOOKUP(B47,'[3]2022-23 Final'!$B$19:$S$156,18,FALSE),0) -> 0 | U47: 0 | V47: =IF(ISNA(VLOOKUP(B47,[4]Sheet1!$B$1:$D$96,1,FALSE)),"N","Y") -> N | Y47: 0 | Z47: 0
A48: 30 | B48: 11801 | D48: EDUCATIONAL SERVICE DISTRICT 123 | E48: =IFERROR(VLOOKUP(B48,Enrollment!$A$1:$F$147,4,FALSE),0) -> 119 | F48: 51406 | G48: =IFERROR(VLOOKUP(B48,Enrollment!$A$1:$F$147,6,FALSE),0) -> 54 | H48: 5832 | I48: =IFERROR(VLOOKUP(B48,Enrollment!$A$1:$F$147,5,FALSE),0) -> 54 | J48: 23327 | K48: 80565 | L48: =IF(E48>$E$17,_xlfn.IFNA(VLOOKUP(B48,'other funds ftr 2023'!A:I,9,FALSE),0),1) -> 0 | M48: 80565 | N48: =1+IF(ISNA(VLOOKUP(B48,'Rural and Low Income 23-24'!$A:$B,2,FALSE)),0,$N$17) -> 1 | O48: 0 | R48: 0 | S48: 0 | T48: =IFERROR(VLOOKUP(B48,'[3]2022-23 Final'!$B$19:$S$156,18,FALSE),0) -> 0 | U48: 0 | V48: =IF(ISNA(VLOOKUP(B48,[4]Sheet1!$B$1:$D$96,1,FALSE)),"N","Y") -> N | Y48: 0 | Z48: 0
A49: 31 | B49: 19401 | D49: ELLENSBURG | E49: =IFERROR(VLOOKUP(B49,Enrollment!$A$1:$F$147,4,FALSE),0) -> 49 | F49: 21167 | G49: =IFERROR(VLOOKUP(B49,Enrollment!$A$1:$F$147,6,FALSE),0) -> 15 | H49: 1620 | I49: =IFERROR(VLOOKUP(B49,Enrollment!$A$1:$F$147,5,FALSE),0) -> 30 | J49: 12960 | K49: 35747 | L49: =IF(E49>$E$17,_xlfn.IFNA(VLOOKUP(B49,'other funds ftr 2023'!A:I,9,FALSE),0),1) -> 1.15 | M49: 41109 | N49: =1+IF(ISNA(VLOOKUP(B49,'Rural and Low Income 23-24'!$A:$B,2,FALSE)),0,$N$17) -> 1 | O49: 0 | R49: 0 | S49: 0 | T49: =IFERROR(VLOOKUP(B49,'[3]2022-23 Final'!$B$19:$S$156,18,FALSE),0) -> 0 | U49: 0 | V49: =IF(ISNA(VLOOKUP(B49,[4]Sheet1!$B$1:$D$96,1,FALSE)),"N","Y") -> N | Y49: 0 | Z49: 0
A50: 32 | B50: 14068 | D50: ELMA | E50: =IFERROR(VLOOKUP(B50,Enrollment!$A$1:$F$147,4,FALSE),0) -> 41 | F50: 17711 | G50: =IFERROR(VLOOKUP(B50,Enrollment!$A$1:$F$147,6,FALSE),0) -> 2 | H50: 216 | I50: =IFERROR(VLOOKUP(B50,Enrollment!$A$1:$F$147,5,FALSE),0) -> 34 | J50: 14688 | K50: 32615 | L50: =IF(E50>$E$17,_xlfn.IFNA(VLOOKUP(B50,'other funds ftr 2023'!A:I,9,FALSE),0),1) -> 1.15 | M50: 37507 | N50: =1+IF(ISNA(VLOOKUP(B50,'Rural and Low Income 23-24'!$A:$B,2,FALSE)),0,$N$17) -> 1 | O50: 0 | R50: 0 | S50: 0 | T50: =IFERROR(VLOOKUP(B50,'[3]2022-23 Final'!$B$19:$S$156,18,FALSE),0) -> 0 | U50: 0 | V50: =IF(ISNA(VLOOKUP(B50,[4]Sheet1!$B$1:$D$96,1,FALSE)),"N","Y") -> N | Y50: 0 | Z50: 0
A51: 33 | B51: 04127 | D51: ENTIAT | E51: =IFERROR(VLOOKUP(B51,Enrollment!$A$1:$F$147,4,FALSE),0) -> 29 | F51: 12528 | G51: =IFERROR(VLOOKUP(B51,Enrollment!$A$1:$F$147,6,FALSE),0) -> 1 | H51: 108 | I51: =IFERROR(VLOOKUP(B51,Enrollment!$A$1:$F$147,5,FALSE),0) -> 23 | J51: 9936 | K51: 22572 | L51: =IF(E51>$E$17,_xlfn.IFNA(VLOOKUP(B51,'other funds ftr 2023'!A:I,9,FALSE),0),1) -> 1.15 | M51: 25958 | N51: =1+IF(ISNA(VLOOKUP(B51,'Rural and Low Income 23-24'!$A:$B,2,FALSE)),0,$N$17) -> 1.1 | O51: 0 | R51: 0 | S51: 0 | T51: =IFERROR(VLOOKUP(B51,'[3]2022-23 Final'!$B$19:$S$156,18,FALSE),0) -> 0 | U51: 0 | V51: =IF(ISNA(VLOOKUP(B51,[4]Sheet1!$B$1:$D$96,1,FALSE)),"N","Y") -> N | Y51: 0 | Z51: 0
A52: 34 | B52: 13165 | D52: EPHRATA | E52: =IFERROR(VLOOKUP(B52,Enrollment!$A$1:$F$147,4,FALSE),0) -> 176 | F52: 76029 | G52: =IFERROR(VLOOKUP(B52,Enrollment!$A$1:$F$147,6,FALSE),0) -> 85 | H52: 9180 | I52: =IFERROR(VLOOKUP(B52,Enrollment!$A$1:$F$147,5,FALSE),0) -> 69 | J52: 29807 | K52: 115016 | L52: =IF(E52>$E$17,_xlfn.IFNA(VLOOKUP(B52,'other funds ftr 2023'!A:I,9,FALSE),0),1) -> 1 | M52: 115016 | N52: =1+IF(ISNA(VLOOKUP(B52,'Rural and Low Income 23-24'!$A:$B,2,FALSE)),0,$N$17) -> 1 | O52: 115016 | R52: 0 | S52: 115016 | T52: =IFERROR(VLOOKUP(B52,'[3]2022-23 Final'!$B$19:$S$156,18,FALSE),0) -> 142757 | U52: -27741 | V52: =IF(ISNA(VLOOKUP(B52,[4]Sheet1!$B$1:$D$96,1,FALSE)),"N","Y") -> Y | Y52: 2500 | Z52: 117516
A53: 35 | B53: 31002 | D53: EVERETT | E53: =IFERROR(VLOOKUP(B53,Enrollment!$A$1:$F$147,4,FALSE),0) -> 65 | F53: 28079 | G53: =IFERROR(VLOOKUP(B53,Enrollment!$A$1:$F$147,6,FALSE),0) -> 12 | H53: 1296 | I53: =IFERROR(VLOOKUP(B53,Enrollment!$A$1:$F$147,5,FALSE),0) -> 44 | J53: 19007 | K53: 48382 | L53: =IF(E53>$E$17,_xlfn.IFNA(VLOOKUP(B53,'other funds ftr 2023'!A:I,9,FALSE),0),1) -> 1.15 | M53: 55639 | N53: =1+IF(ISNA(VLOOKUP(B53,'Rural and Low Income 23-24'!$A:$B,2,FALSE)),0,$N$17) -> 1 | O53: 0 | R53: 0 | S53: 0 | T53: =IFERROR(VLOOKUP(B53,'[3]2022-23 Final'!$B$19:$S$156,18,FALSE),0) -> 0 | U53: 0 | V53: =IF(ISNA(VLOOKUP(B53,[4]Sheet1!$B$1:$D$96,1,FALSE)),"N","Y") -> N | Y53: 0 | Z53: 0
A54: 36 | B54: 06114 | D54: EVERGREEN (CLARK) | E54: =IFERROR(VLOOKUP(B54,Enrollment!$A$1:$F$147,4,FALSE),0) -> 45 | F54: 19439 | G54: =IFERROR(VLOOKUP(B54,Enrollment!$A$1:$F$147,6,FALSE),0) -> 10 | H54: 1080 | I54: =IFERROR(VLOOKUP(B54,Enrollment!$A$1:$F$147,5,FALSE),0) -> 31 | J54: 13392 | K54: 33911 | L54: =IF(E54>$E$17,_xlfn.IFNA(VLOOKUP(B54,'other funds ftr 2023'!A:I,9,FALSE),0),1) -> 1.15 | M54: 38998 | N54: =1+IF(ISNA(VLOOKUP(B54,'Rural and Low Income 23-24'!$A:$B,2,FALSE)),0,$N$17) -> 1 | O54: 0 | R54: 0 | S54: 0 | T54: =IFERROR(VLOOKUP(B54,'[3]2022-23 Final'!$B$19:$S$156,18,FALSE),0) -> 0 | U54: 0 | V54: =IF(ISNA(VLOOKUP(B54,[4]Sheet1!$B$1:$D$96,1,FALSE)),"N","Y") -> N | Y54: 0 | Z54: 0
A55: 37 | B55: 17210 | D55: FEDERAL WAY | E55: =IFERROR(VLOOKUP(B55,Enrollment!$A$1:$F$147,4,FALSE),0) -> 49 | F55: 21167 | G55: =IFERROR(VLOOKUP(B55,Enrollment!$A$1:$F$147,6,FALSE),0) -> 16 | H55: 1728 | I55: =IFERROR(VLOOKUP(B55,Enrollment!$A$1:$F$147,5,FALSE),0) -> 13 | J55: 5616 | K55: 28511 | L55: =IF(E55>$E$17,_xlfn.IFNA(VLOOKUP(B55,'other funds ftr 2023'!A:I,9,FALSE),0),1) -> 1.15 | M55: 32788 | N55: =1+IF(ISNA(VLOOKUP(B55,'Rural and Low Income 23-24'!$A:$B,2,FALSE)),0,$N$17) -> 1 | O55: 0 | R55: 0 | S55: 0 | T55: =IFERROR(VLOOKUP(B55,'[3]2022-23 Final'!$B$19:$S$156,18,FALSE),0) -> 47729 | U55: -47729 | V55: =IF(ISNA(VLOOKUP(B55,[4]Sheet1!$B$1:$D$96,1,FALSE)),"N","Y") -> N | X55: Y | Y55: 0 | Z55: 0
A56: 38 | B56: 37502 | D56: FERNDALE | E56: =IFERROR(VLOOKUP(B56,Enrollment!$A$1:$F$147,4,FALSE),0) -> 144 | F56: 62206 | G56: =IFERROR(VLOOKUP(B56,Enrollment!$A$1:$F$147,6,FALSE),0) -> 33 | H56: 3564 | I56: =IFERROR(VLOOKUP(B56,Enrollment!$A$1:$F$147,5,FALSE),0) -> 102 | J56: 44063 | K56: 109833 | L56: =IF(E56>$E$17,_xlfn.IFNA(VLOOKUP(B56,'other funds ftr 2023'!A:I,9,FALSE),0),1) -> 1.05 | M56: 115325 | N56: =1+IF(ISNA(VLOOKUP(B56,'Rural and Low Income 23-24'!$A:$B,2,FALSE)),0,$N$17) -> 1 | O56: 115325 | R56: 0 | S56: 115325 | T56: =IFERROR(VLOOKUP(B56,'[3]2022-23 Final'!$B$19:$S$156,18,FALSE),0) -> 95805 | U56: 19520 | V56: =IF(ISNA(VLOOKUP(B56,[4]Sheet1!$B$1:$D$96,1,FALSE)),"N","Y") -> Y | X56: Y | Y56: 2500 | Z56: 117825
A57: 39 | B57: 03053 | D57: FINLEY | E57: =IFERROR(VLOOKUP(B57,Enrollment!$A$1:$F$147,4,FALSE),0) -> 122 | F57: 52702 | G57: =IFERROR(VLOOKUP(B57,Enrollment!$A$1:$F$147,6,FALSE),0) -> 61 | H57: 6588 | I57: =IFERROR(VLOOKUP(B57,Enrollment!$A$1:$F$147,5,FALSE),0) -> 61 | J57: 26351 | K57: 85641 | L57: =IF(E57>$E$17,_xlfn.IFNA(VLOOKUP(B57,'other funds ftr 2023'!A:I,9,FALSE),0),1) -> 1 | M57: 85641 | N57: =1+IF(ISNA(VLOOKUP(B57,'Rural and Low Income 23-24'!$A:$B,2,FALSE)),0,$N$17) -> 1 | O57: 85641 | R57: 0 | S57: 85641 | T57: =IFERROR(VLOOKUP(B57,'[3]2022-23 Final'!$B$19:$S$156,18,FALSE),0) -> 70727 | U57: 14914 | V57: =IF(ISNA(VLOOKUP(B57,[4]Sheet1!$B$1:$D$96,1,FALSE)),"N","Y") -> Y | W57: 1 | Y57: 2500 | Z57: 0
A58: 40 | B58: 27402 | D58: FRANKLIN PIERCE | E58: =IFERROR(VLOOKUP(B58,Enrollment!$A$1:$F$147,4,FALSE),0) -> 12 | F58: 5184 | G58: =IFERROR(VLOOKUP(B58,Enrollment!$A$1:$F$147,6,FALSE),0) -> 4 | H58: 432 | I58: =IFERROR(VLOOKUP(B58,Enrollment!$A$1:$F$147,5,FALSE),0) -> 3 | J58: 1296 | K58: 6912 | L58: =IF(E58>$E$17,_xlfn.IFNA(VLOOKUP(B58,'other funds ftr 2023'!A:I,9,FALSE),0),1) -> 1.15 | M58: 7949 | N58: =1+IF(ISNA(VLOOKUP(B58,'Rural and Low Income 23-24'!$A:$B,2,FALSE)),0,$N$17) -> 1 | O58: 0 | R58: 0 | S58: 0 | T58: =IFERROR(VLOOKUP(B58,'[3]2022-23 Final'!$B$19:$S$156,18,FALSE),0) -> 0 | U58: 0 | V58: =IF(ISNA(VLOOKUP(B58,[4]Sheet1!$B$1:$D$96,1,FALSE)),"N","Y") -> N | Y58: 0 | Z58: 0
A59: 41 | B59: 20404 | D59: GOLDENDALE | E59: =IFERROR(VLOOKUP(B59,Enrollment!$A$1:$F$147,4,FALSE),0) -> 83 | F59: 35855 | G59: =IFERROR(VLOOKUP(B59,Enrollment!$A$1:$F$147,6,FALSE),0) -> 13 | H59: 1404 | I59: =IFERROR(VLOOKUP(B59,Enrollment!$A$1:$F$147,5,FALSE),0) -> 65 | J59: 28079 | K59: 65338 | L59: =IF(E59>$E$17,_xlfn.IFNA(VLOOKUP(B59,'other funds ftr 2023'!A:I,9,FALSE),0),1) -> 1.05 | M59: 68605 | N59: =1+IF(ISNA(VLOOKUP(B59,'Rural and Low Income 23-24'!$A:$B,2,FALSE)),0,$N$17) -> 1.1 | O59: 75466 | R59: 0 | S59: 75466 | T59: =IFERROR(VLOOKUP(B59,'[3]2022-23 Final'!$B$19:$S$156,18,FALSE),0) -> 45241 | U59: 30225 | V59: =IF(ISNA(VLOOKUP(B59,[4]Sheet1!$B$1:$D$96,1,FALSE)),"N","Y") -> Y | Y59: 1500 | Z59: 76966
A60: 42 | B60: 13301 | D60: GRAND COULEE DAM | E60: =IFERROR(VLOOKUP(B60,Enrollment!$A$1:$F$147,4,FALSE),0) -> 233 | F60: 100653 | G60: =IFERROR(VLOOKUP(B60,Enrollment!$A$1:$F$147,6,FALSE),0) -> 33 | H60: 3564 | I60: =IFERROR(VLOOKUP(B60,Enrollment!$A$1:$F$147,5,FALSE),0) -> 166 | J60: 71710 | K60: 175927 | L60: =IF(E60>$E$17,_xlfn.IFNA(VLOOKUP(B60,'other funds ftr 2023'!A:I,9,FALSE),0),1) -> 0.85 | M60: 149538 | N60: =1+IF(ISNA(VLOOKUP(B60,'Rural and Low Income 23-24'!$A:$B,2,FALSE)),0,$N$17) -> 1 | O60: 149538 | R60: 0 | S60: 149538 | T60: =IFERROR(VLOOKUP(B60,'[3]2022-23 Final'!$B$19:$S$156,18,FALSE),0) -> 111512 | U60: 38026 | V60: =IF(ISNA(VLOOKUP(B60,[4]Sheet1!$B$1:$D$96,1,FALSE)),"N","Y") -> Y | Y60: 2500 | Z60: 152038
A61: 43 | B61: 39200 | D61: GRANDVIEW | E61: =IFERROR(VLOOKUP(B61,Enrollment!$A$1:$F$147,4,FALSE),0) -> 589 | F61: 254440 | G61: =IFERROR(VLOOKUP(B61,Enrollment!$A$1:$F$147,6,FALSE),0) -> 134 | H61: 14472 | I61: =IFERROR(VLOOKUP(B61,Enrollment!$A$1:$F$147,5,FALSE),0) -> 429 | J61: 185322 | K61: 454234 | L61: =IF(E61>$E$17,_xlfn.IFNA(VLOOKUP(B61,'other funds ftr 2023'!A:I,9,FALSE),0),1) -> 1 | M61: 454234 | N61: =1+IF(ISNA(VLOOKUP(B61,'Rural and Low Income 23-24'!$A:$B,2,FALSE)),0,$N$17) -> 1 | O61: 454234 | R61: 0 | S61: 454234 | T61: =IFERROR(VLOOKUP(B61,'[3]2022-23 Final'!$B$19:$S$156,18,FALSE),0) -> 362657 | U61: 91577 | V61: =IF(ISNA(VLOOKUP(B61,[4]Sheet1!$B$1:$D$96,1,FALSE)),"N","Y") -> Y | Y61: 4000 | Z61: 458234
A62: 44 | B62: 39204 | D62: GRANGER | E62: =IFERROR(VLOOKUP(B62,Enrollment!$A$1:$F$147,4,FALSE),0) -> 362 | F62: 156379 | G62: =IFERROR(VLOOKUP(B62,Enrollment!$A$1:$F$147,6,FALSE),0) -> 149 | H62: 16091 | I62: =IFERROR(VLOOKUP(B62,Enrollment!$A$1:$F$147,5,FALSE),0) -> 196 | J62: 84669 | K62: 257139 | L62: =IF(E62>$E$17,_xlfn.IFNA(VLOOKUP(B62,'other funds ftr 2023'!A:I,9,FALSE),0),1) -> 0.95 | M62: 244282 | N62: =1+IF(ISNA(VLOOKUP(B62,'Rural and Low Income 23-24'!$A:$B,2,FALSE)),0,$N$17) -> 1.1 | O62: 268710 | R62: 0 | S62: 268710 | T62: =IFERROR(VLOOKUP(B62,'[3]2022-23 Final'!$B$19:$S$156,18,FALSE),0) -> 266679 | U62: 2031 | V62: =IF(ISNA(VLOOKUP(B62,[4]Sheet1!$B$1:$D$96,1,FALSE)),"N","Y") -> Y | Y62: 2500 | Z62: 271210
A63: 45 | B63: 39203 | D63: HIGHLAND | E63: =IFERROR(VLOOKUP(B63,Enrollment!$A$1:$F$147,4,FALSE),0) -> 218 | F63: 94173 | G63: =IFERROR(VLOOKUP(B63,Enrollment!$A$1:$F$147,6,FALSE),0) -> 46 | H63: 4968 | I63: =IFERROR(VLOOKUP(B63,Enrollment!$A$1:$F$147,5,FALSE),0) -> 150 | J63: 64798 | K63: 163939 | L63: =IF(E63>$E$17,_xlfn.IFNA(VLOOKUP(B63,'other funds ftr 2023'!A:I,9,FALSE),0),1) -> 1 | M63: 163939 | N63: =1+IF(ISNA(VLOOKUP(B63,'Rural and Low Income 23-24'!$A:$B,2,FALSE)),0,$N$17) -> 1 | O63: 163939 | R63: 0 | S63: 163939 | T63: =IFERROR(VLOOKUP(B63,'[3]2022-23 Final'!$B$19:$S$156,18,FALSE),0) -> 110004 | U63: 53935 | V63: =IF(ISNA(VLOOKUP(B63,[4]Sheet1!$B$1:$D$96,1,FALSE)),"N","Y") -> Y | Y63: 2500 | Z63: 166439
A64: 46 | B64: 17401 | D64: HIGHLINE | E64: =IFERROR(VLOOKUP(B64,Enrollment!$A$1:$F$147,4,FALSE),0) -> 17 | F64: 7344 | G64: =IFERROR(VLOOKUP(B64,Enrollment!$A$1:$F$147,6,FALSE),0) -> 8 | H64: 864 | I64: =IFERROR(VLOOKUP(B64,Enrollment!$A$1:$F$147,5,FALSE),0) -> 8 | J64: 3456 | K64: 11664 | L64: =IF(E64>$E$17,_xlfn.IFNA(VLOOKUP(B64,'other funds ftr 2023'!A:I,9,FALSE),0),1) -> 1.15 | M64: 13414 | N64: =1+IF(ISNA(VLOOKUP(B64,'Rural and Low Income 23-24'!$A:$B,2,FALSE)),0,$N$17) -> 1 | O64: 0 | R64: 0 | S64: 0 | T64: =IFERROR(VLOOKUP(B64,'[3]2022-23 Final'!$B$19:$S$156,18,FALSE),0) -> 0 | U64: 0 | V64: =IF(ISNA(VLOOKUP(B64,[4]Sheet1!$B$1:$D$96,1,FALSE)),"N","Y") -> N | X64: Y | Y64: 0 | Z64: 0
A65: 47 | B65: 23404 | D65: HOOD CANAL | E65: =IFERROR(VLOOKUP(B65,Enrollment!$A$1:$F$147,4,FALSE),0) -> 34 | F65: 14688 | G65: =IFERROR(VLOOKUP(B65,Enrollment!$A$1:$F$147,6,FALSE),0) -> 17 | H65: 1836 | I65: =IFERROR(VLOOKUP(B65,Enrollment!$A$1:$F$147,5,FALSE),0) -> 15 | J65: 6480 | K65: 23004 | L65: =IF(E65>$E$17,_xlfn.IFNA(VLOOKUP(B65,'other funds ftr 2023'!A:I,9,FALSE),0),1) -> 1.15 | M65: 26455 | N65: =1+IF(ISNA(VLOOKUP(B65,'Rural and Low Income 23-24'!$A:$B,2,FALSE)),0,$N$17) -> 1.1 | O65: 29101 | R65: 0 | S65: 29101 | T65: =IFERROR(VLOOKUP(B65,'[3]2022-23 Final'!$B$19:$S$156,18,FALSE),0) -> 0 | U65: 29101 | V65: =IF(ISNA(VLOOKUP(B65,[4]Sheet1!$B$1:$D$96,1,FALSE)),"N","Y") -> Y | Y65: 1500 | Z65: 30601
A66: 48 | B66: 14028 | D66: HOQUIAM | E66: =IFERROR(VLOOKUP(B66,Enrollment!$A$1:$F$147,4,FALSE),0) -> 43 | F66: 18575 | G66: =IFERROR(VLOOKUP(B66,Enrollment!$A$1:$F$147,6,FALSE),0) -> 19 | H66: 2052 | I66: =IFERROR(VLOOKUP(B66,Enrollment!$A$1:$F$147,5,FALSE),0) -> 16 | J66: 6912 | K66: 27539 | L66: =IF(E66>$E$17,_xlfn.IFNA(VLOOKUP(B66,'other funds ftr 2023'!A:I,9,FALSE),0),1) -> 1.15 | M66: 31670 | N66: =1+IF(ISNA(VLOOKUP(B66,'Rural and Low Income 23-24'!$A:$B,2,FALSE)),0,$N$17) -> 1.1 | O66: 0 | R66: 0 | S66: 0 | T66: =IFERROR(VLOOKUP(B66,'[3]2022-23 Final'!$B$19:$S$156,18,FALSE),0) -> 0 | U66: 0 | V66: =IF(ISNA(VLOOKUP(B66,[4]Sheet1!$B$1:$D$96,1,FALSE)),"N","Y") -> N | Y66: 0 | Z66: 0
A67: 49 | B67: 10070 | D67: INCHELIUM | E67: =IFERROR(VLOOKUP(B67,Enrollment!$A$1:$F$147,4,FALSE),0) -> 18 | F67: 7776 | G67: =IFERROR(VLOOKUP(B67,Enrollment!$A$1:$F$147,6,FALSE),0) -> 5 | H67: 540 | I67: =IFERROR(VLOOKUP(B67,Enrollment!$A$1:$F$147,5,FALSE),0) -> 6 | J67: 2592 | K67: 10908 | L67: =IF(E67>$E$17,_xlfn.IFNA(VLOOKUP(B67,'other funds ftr 2023'!A:I,9,FALSE),0),1) -> 1.15 | M67: 12544 | N67: =1+IF(ISNA(VLOOKUP(B67,'Rural and Low Income 23-24'!$A:$B,2,FALSE)),0,$N$17) -> 1.1 | O67: 0 | R67: 0 | S67: 0 | T67: =IFERROR(VLOOKUP(B67,'[3]2022-23 Final'!$B$19:$S$156,18,FALSE),0) -> 0 | U67: 0 | V67: =IF(ISNA(VLOOKUP(B67,[4]Sheet1!$B$1:$D$96,1,FALSE)),"N","Y") -> N | Y67: 0 | Z67: 0
A68: 50 | B68: 08458 | D68: KELSO | E68: =IFERROR(VLOOKUP(B68,Enrollment!$A$1:$F$147,4,FALSE),0) -> 38 | F68: 16415 | G68: =IFERROR(VLOOKUP(B68,Enrollment!$A$1:$F$147,6,FALSE),0) -> 8 | H68: 864 | I68: =IFERROR(VLOOKUP(B68,Enrollment!$A$1:$F$147,5,FALSE),0) -> 28 | J68: 12096 | K68: 29375 | L68: =IF(E68>$E$17,_xlfn.IFNA(VLOOKUP(B68,'other funds ftr 2023'!A:I,9,FALSE),0),1) -> 1.15 | M68: 33781 | N68: =1+IF(ISNA(VLOOKUP(B68,'Rural and Low Income 23-24'!$A:$B,2,FALSE)),0,$N$17) -> 1 | O68: 0 | R68: 0 | S68: 0 | T68: =IFERROR(VLOOKUP(B68,'[3]2022-23 Final'!$B$19:$S$156,18,FALSE),0) -> 0 | U68: 0 | V68: =IF(ISNA(VLOOKUP(B68,[4]Sheet1!$B$1:$D$96,1,FALSE)),"N","Y") -> N | Y68: 0 | Z68: 0
A69: 51 | B69: 03017 | D69: KENNEWICK | E69: =IFERROR(VLOOKUP(B69,Enrollment!$A$1:$F$147,4,FALSE),0) -> 3081 | F69: 1330948 | G69: =IFERROR(VLOOKUP(B69,Enrollment!$A$1:$F$147,6,FALSE),0) -> 1107 | H69: 119552 | I69: =IFERROR(VLOOKUP(B69,Enrollment!$A$1:$F$147,5,FALSE),0) -> 1633 | J69: 705432 | K69: 2155932 | L69: =IF(E69>$E$17,_xlfn.IFNA(VLOOKUP(B69,'other funds ftr 2023'!A:I,9,FALSE),0),1) -> 0.95 | M69: 2048135 | N69: =1+IF(ISNA(VLOOKUP(B69,'Rural and Low Income 23-24'!$A:$B,2,FALSE)),0,$N$17) -> 1 | O69: 2048135 | R69: 0 | S69: 2048135 | T69: =IFERROR(VLOOKUP(B69,'[3]2022-23 Final'!$B$19:$S$156,18,FALSE),0) -> 2108260 | U69: -60125 | V69: =IF(ISNA(VLOOKUP(B69,[4]Sheet1!$B$1:$D$96,1,FALSE)),"N","Y") -> Y | Y69: 4000 | Z69: 2052135
A70: 52 | B70: 17415 | D70: KENT | E70: =IFERROR(VLOOKUP(B70,Enrollment!$A$1:$F$147,4,FALSE),0) -> 32 | F70: 13824 | G70: =IFERROR(VLOOKUP(B70,Enrollment!$A$1:$F$147,6,FALSE),0) -> 8 | H70: 864 | I70: =IFERROR(VLOOKUP(B70,Enrollment!$A$1:$F$147,5,FALSE),0) -> 23 | J70: 9936 | K70: 24624 | L70: =IF(E70>$E$17,_xlfn.IFNA(VLOOKUP(B70,'other funds ftr 2023'!A:I,9,FALSE),0),1) -> 1.15 | M70: 28318 | N70: =1+IF(ISNA(VLOOKUP(B70,'Rural and Low Income 23-24'!$A:$B,2,FALSE)),0,$N$17) -> 1 | O70: 0 | R70: 0 | S70: 0 | T70: =IFERROR(VLOOKUP(B70,'[3]2022-23 Final'!$B$19:$S$156,18,FALSE),0) -> 0 | U70: 0 | V70: =IF(ISNA(VLOOKUP(B70,[4]Sheet1!$B$1:$D$96,1,FALSE)),"N","Y") -> N | Y70: 0 | Z70: 0
A71: 53 | B71: 03052 | D71: KIONA-BENTON CITY | E71: =IFERROR(VLOOKUP(B71,Enrollment!$A$1:$F$147,4,FALSE),0) -> 374 | F71: 161563 | G71: =IFERROR(VLOOKUP(B71,Enrollment!$A$1:$F$147,6,FALSE),0) -> 132 | H71: 14256 | I71: =IFERROR(VLOOKUP(B71,Enrollment!$A$1:$F$147,5,FALSE),0) -> 243 | J71: 104972 | K71: 280791 | L71: =IF(E71>$E$17,_xlfn.IFNA(VLOOKUP(B71,'other funds ftr 2023'!A:I,9,FALSE),0),1) -> 0.85 | M71: 238672 | N71: =1+IF(ISNA(VLOOKUP(B71,'Rural and Low Income 23-24'!$A:$B,2,FALSE)),0,$N$17) -> 1 | O71: 238672 | R71: 0 | S71: 238672 | T71: =IFERROR(VLOOKUP(B71,'[3]2022-23 Final'!$B$19:$S$156,18,FALSE),0) -> 287578 | U71: -48906 | V71: =IF(ISNA(VLOOKUP(B71,[4]Sheet1!$B$1:$D$96,1,FALSE)),"N","Y") -> Y | Y71: 2500 | Z71: 241172
A72: 54 | B72: 19403 | D72: KITTITAS | E72: =IFERROR(VLOOKUP(B72,Enrollment!$A$1:$F$147,4,FALSE),0) -> 25 | F72: 10800 | G72: =IFERROR(VLOOKUP(B72,Enrollment!$A$1:$F$147,6,FALSE),0) -> 5 | H72: 540 | I72: =IFERROR(VLOOKUP(B72,Enrollment!$A$1:$F$147,5,FALSE),0) -> 17 | J72: 7344 | K72: 18684 | L72: =IF(E72>$E$17,_xlfn.IFNA(VLOOKUP(B72,'other funds ftr 2023'!A:I,9,FALSE),0),1) -> 1.15 | M72: 21487 | N72: =1+IF(ISNA(VLOOKUP(B72,'Rural and Low Income 23-24'!$A:$B,2,FALSE)),0,$N$17) -> 1 | O72: 0 | R72: 0 | S72: 0 | T72: =IFERROR(VLOOKUP(B72,'[3]2022-23 Final'!$B$19:$S$156,18,FALSE),0) -> 0 | U72: 0 | V72: =IF(ISNA(VLOOKUP(B72,[4]Sheet1!$B$1:$D$96,1,FALSE)),"N","Y") -> N | Y72: 0 | Z72: 0
A73: 55 | B73: 29311 | D73: LA CONNER | E73: =IFERROR(VLOOKUP(B73,Enrollment!$A$1:$F$147,4,FALSE),0) -> 160 | F73: 69118 | G73: =IFERROR(VLOOKUP(B73,Enrollment!$A$1:$F$147,6,FALSE),0) -> 23 | H73: 2484 | I73: =IFERROR(VLOOKUP(B73,Enrollment!$A$1:$F$147,5,FALSE),0) -> 132 | J73: 57022 | K73: 128624 | L73: =IF(E73>$E$17,_xlfn.IFNA(VLOOKUP(B73,'other funds ftr 2023'!A:I,9,FALSE),0),1) -> 0.85 | M73: 109330 | N73: =1+IF(ISNA(VLOOKUP(B73,'Rural and Low Income 23-24'!$A:$B,2,FALSE)),0,$N$17) -> 1.1 | O73: 120263 | R73: 0 | S73: 120263 | T73: =IFERROR(VLOOKUP(B73,'[3]2022-23 Final'!$B$19:$S$156,18,FALSE),0) -> 142219 | U73: -21956 | V73: =IF(ISNA(VLOOKUP(B73,[4]Sheet1!$B$1:$D$96,1,FALSE)),"N","Y") -> Y | Y73: 2500 | Z73: 122763
A74: 56 | B74: 04129 | D74: LAKE CHELAN | E74: =IFERROR(VLOOKUP(B74,Enrollment!$A$1:$F$147,4,FALSE),0) -> 164 | F74: 70846 | G74: =IFERROR(VLOOKUP(B74,Enrollment!$A$1:$F$147,6,FALSE),0) -> 59 | H74: 6372 | I74: =IFERROR(VLOOKUP(B74,Enrollment!$A$1:$F$147,5,FALSE),0) -> 94 | J74: 40607 | K74: 117825 | L74: =IF(E74>$E$17,_xlfn.IFNA(VLOOKUP(B74,'other funds ftr 2023'!A:I,9,FALSE),0),1) -> 0.95 | M74: 111934 | N74: =1+IF(ISNA(VLOOKUP(B74,'Rural and Low Income 23-24'!$A:$B,2,FALSE)),0,$N$17) -> 1 | O74: 111934 | R74: 0 | S74: 111934 | T74: =IFERROR(VLOOKUP(B74,'[3]2022-23 Final'!$B$19:$S$156,18,FALSE),0) -> 138017 | U74: -26083 | V74: =IF(ISNA(VLOOKUP(B74,[4]Sheet1!$B$1:$D$96,1,FALSE)),"N","Y") -> Y | Y74: 2500 | Z74: 114434
A75: 57 | B75: 31306 | D75: LAKEWOOD | E75: =IFERROR(VLOOKUP(B75,Enrollment!$A$1:$F$147,4,FALSE),0) -> 11 | F75: 4752 | G75: =IFERROR(VLOOKUP(B75,Enrollment!$A$1:$F$147,6,FALSE),0) -> 2 | H75: 216 | I75: =IFERROR(VLOOKUP(B75,Enrollment!$A$1:$F$147,5,FALSE),0) -> 9 | J75: 3888 | K75: 8856 | L75: =IF(E75>$E$17,_xlfn.IFNA(VLOOKUP(B75,'other funds ftr 2023'!A:I,9,FALSE),0),1) -> 1.15 | M75: 10184 | N75: =1+IF(ISNA(VLOOKUP(B75,'Rural and Low Income 23-24'!$A:$B,2,FALSE)),0,$N$17) -> 1 | O75: 0 | R75: 0 | S75: 0 | T75: =IFERROR(VLOOKUP(B75,'[3]2022-23 Final'!$B$19:$S$156,18,FALSE),0) -> 0 | U75: 0 | V75: =IF(ISNA(VLOOKUP(B75,[4]Sheet1!$B$1:$D$96,1,FALSE)),"N","Y") -> N | Y75: 0 | Z75: 0
A76: 58 | B76: 01158 | D76: LIND | E76: =IFERROR(VLOOKUP(B76,Enrollment!$A$1:$F$147,4,FALSE),0) -> 36 | F76: 15551 | G76: =IFERROR(VLOOKUP(B76,Enrollment!$A$1:$F$147,6,FALSE),0) -> 3 | H76: 324 | I76: =IFERROR(VLOOKUP(B76,Enrollment!$A$1:$F$147,5,FALSE),0) -> 29 | J76: 12528 | K76: 28403 | L76: =IF(E76>$E$17,_xlfn.IFNA(VLOOKUP(B76,'other funds ftr 2023'!A:I,9,FALSE),0),1) -> 0.85 | M76: 24143 | N76: =1+IF(ISNA(VLOOKUP(B76,'Rural and Low Income 23-24'!$A:$B,2,FALSE)),0,$N$17) -> 1.1 | O76: 26557 | R76: 0 | S76: 26557 | T76: =IFERROR(VLOOKUP(B76,'[3]2022-23 Final'!$B$19:$S$156,18,FALSE),0) -> 45112 | U76: -18555 | V76: =IF(ISNA(VLOOKUP(B76,[4]Sheet1!$B$1:$D$96,1,FALSE)),"N","Y") -> Y | Y76: 1500 | Z76: 28057
A77: 59 | B77: 08122 | D77: LONGVIEW | E77: =IFERROR(VLOOKUP(B77,Enrollment!$A$1:$F$147,4,FALSE),0) -> 47 | F77: 20303 | G77: =IFERROR(VLOOKUP(B77,Enrollment!$A$1:$F$147,6,FALSE),0) -> 13 | H77: 1404 | I77: =IFERROR(VLOOKUP(B77,Enrollment!$A$1:$F$147,5,FALSE),0) -> 29 | J77: 12528 | K77: 34235 | L77: =IF(E77>$E$17,_xlfn.IFNA(VLOOKUP(B77,'other funds ftr 2023'!A:I,9,FALSE),0),1) -> 1.15 | M77: 39370 | N77: =1+IF(ISNA(VLOOKUP(B77,'Rural and Low Income 23-24'!$A:$B,2,FALSE)),0,$N$17) -> 1 | O77: 0 | R77: 0 | S77: 0 | T77: =IFERROR(VLOOKUP(B77,'[3]2022-23 Final'!$B$19:$S$156,18,FALSE),0) -> 0 | U77: 0 | V77: =IF(ISNA(VLOOKUP(B77,[4]Sheet1!$B$1:$D$96,1,FALSE)),"N","Y") -> N | Y77: 0 | Z77: 0
A78: 60 | B78: 20406 | D78: LYLE | E78: =IFERROR(VLOOKUP(B78,Enrollment!$A$1:$F$147,4,FALSE),0) -> 28 | F78: 12096 | G78: =IFERROR(VLOOKUP(B78,Enrollment!$A$1:$F$147,6,FALSE),0) -> 1 | H78: 108 | I78: =IFERROR(VLOOKUP(B78,Enrollment!$A$1:$F$147,5,FALSE),0) -> 21 | J78: 9072 | K78: 21276 | L78: =IF(E78>$E$17,_xlfn.IFNA(VLOOKUP(B78,'other funds ftr 2023'!A:I,9,FALSE),0),1) -> 1 | M78: 21276 | N78: =1+IF(ISNA(VLOOKUP(B78,'Rural and Low Income 23-24'!$A:$B,2,FALSE)),0,$N$17) -> 1.1 | O78: 23404 | R78: 0 | S78: 23404 | T78: =IFERROR(VLOOKUP(B78,'[3]2022-23 Final'!$B$19:$S$156,18,FALSE),0) -> 25363 | U78: -1959 | V78: =IF(ISNA(VLOOKUP(B78,[4]Sheet1!$B$1:$D$96,1,FALSE)),"N","Y") -> Y | Y78: 1500 | Z78: 24904
A79: 61 | B79: 37504 | D79: LYNDEN | E79: =IFERROR(VLOOKUP(B79,Enrollment!$A$1:$F$147,4,FALSE),0) -> 129 | F79: 55726 | G79: =IFERROR(VLOOKUP(B79,Enrollment!$A$1:$F$147,6,FALSE),0) -> 32 | H79: 3456 | I79: =IFERROR(VLOOKUP(B79,Enrollment!$A$1:$F$147,5,FALSE),0) -> 76 | J79: 32831 | K79: 92013 | L79: =IF(E79>$E$17,_xlfn.IFNA(VLOOKUP(B79,'other funds ftr 2023'!A:I,9,FALSE),0),1) -> 1 | M79: 92013 | N79: =1+IF(ISNA(VLOOKUP(B79,'Rural and Low Income 23-24'!$A:$B,2,FALSE)),0,$N$17) -> 1 | O79: 92013 | R79: 0 | S79: 92013 | T79: =IFERROR(VLOOKUP(B79,'[3]2022-23 Final'!$B$19:$S$156,18,FALSE),0) -> 104940 | U79: -12927 | V79: =IF(ISNA(VLOOKUP(B79,[4]Sheet1!$B$1:$D$96,1,FALSE)),"N","Y") -> Y | Y79: 2500 | Z79: 94513
A80: 62 | B80: 39120 | D80: MABTON | E80: =IFERROR(VLOOKUP(B80,Enrollment!$A$1:$F$147,4,FALSE),0) -> 382 | F80: 165018 | G80: =IFERROR(VLOOKUP(B80,Enrollment!$A$1:$F$147,6,FALSE),0) -> 136 | H80: 14688 | I80: =IFERROR(VLOOKUP(B80,Enrollment!$A$1:$F$147,5,FALSE),0) -> 255 | J80: 110156 | K80: 289862 | L80: =IF(E80>$E$17,_xlfn.IFNA(VLOOKUP(B80,'other funds ftr 2023'!A:I,9,FALSE),0),1) -> 0.85 | M80: 246383 | N80: =1+IF(ISNA(VLOOKUP(B80,'Rural and Low Income 23-24'!$A:$B,2,FALSE)),0,$N$17) -> 1.1 | O80: 271021 | R80: 0 | S80: 271021 | T80: =IFERROR(VLOOKUP(B80,'[3]2022-23 Final'!$B$19:$S$156,18,FALSE),0) -> 322879 | U80: -51858 | V80: =IF(ISNA(VLOOKUP(B80,[4]Sheet1!$B$1:$D$96,1,FALSE)),"N","Y") -> Y | Y80: 2500 | Z80: 273521
A81: 63 | B81: 04019 | D81: MANSON | E81: =IFERROR(VLOOKUP(B81,Enrollment!$A$1:$F$147,4,FALSE),0) -> 89 | F81: 38447 | G81: =IFERROR(VLOOKUP(B81,Enrollment!$A$1:$F$147,6,FALSE),0) -> 20 | H81: 2160 | I81: =IFERROR(VLOOKUP(B81,Enrollment!$A$1:$F$147,5,FALSE),0) -> 53 | J81: 22895 | K81: 63502 | L81: =IF(E81>$E$17,_xlfn.IFNA(VLOOKUP(B81,'other funds ftr 2023'!A:I,9,FALSE),0),1) -> 1 | M81: 63502 | N81: =1+IF(ISNA(VLOOKUP(B81,'Rural and Low Income 23-24'!$A:$B,2,FALSE)),0,$N$17) -> 1 | O81: 63502 | R81: 0 | S81: 63502 | T81: =IFERROR(VLOOKUP(B81,'[3]2022-23 Final'!$B$19:$S$156,18,FALSE),0) -> 59150 | U81: 4352 | V81: =IF(ISNA(VLOOKUP(B81,[4]Sheet1!$B$1:$D$96,1,FALSE)),"N","Y") -> Y | Y81: 1500 | Z81: 65002
A82: 64 | B82: 33207 | D82: MARY WALKER | E82: =IFERROR(VLOOKUP(B82,Enrollment!$A$1:$F$147,4,FALSE),0) -> 27 | F82: 11664 | G82: =IFERROR(VLOOKUP(B82,Enrollment!$A$1:$F$147,6,FALSE),0) -> 2 | H82: 216 | I82: =IFERROR(VLOOKUP(B82,Enrollment!$A$1:$F$147,5,FALSE),0) -> 22 | J82: 9504 | K82: 21384 | L82: =IF(E82>$E$17,_xlfn.IFNA(VLOOKUP(B82,'other funds ftr 2023'!A:I,9,FALSE),0),1) -> 0 | M82: 21384 | N82: =1+IF(ISNA(VLOOKUP(B82,'Rural and Low Income 23-24'!$A:$B,2,FALSE)),0,$N$17) -> 1.1 | O82: 0 | R82: 0 | S82: 0 | T82: =IFERROR(VLOOKUP(B82,'[3]2022-23 Final'!$B$19:$S$156,18,FALSE),0) -> 0 | U82: 0 | V82: =IF(ISNA(VLOOKUP(B82,[4]Sheet1!$B$1:$D$96,1,FALSE)),"N","Y") -> N | Y82: 0 | Z82: 0
A83: 65 | B83: 31025 | D83: MARYSVILLE | E83: =IFERROR(VLOOKUP(B83,Enrollment!$A$1:$F$147,4,FALSE),0) -> 328 | F83: 141691 | G83: =IFERROR(VLOOKUP(B83,Enrollment!$A$1:$F$147,6,FALSE),0) -> 68 | H83: 7344 | I83: =IFERROR(VLOOKUP(B83,Enrollment!$A$1:$F$147,5,FALSE),0) -> 229 | J83: 98925 | K83: =+F83+H83+J83 -> 247960 | L83: =IF(E83>$E$17,_xlfn.IFNA(VLOOKUP(B83,'other funds ftr 2023'!A:I,9,FALSE),0),1) -> 1.15 | M83: =IF(L83=0,K83,ROUND(K83*L83,0)) -> 285154 | N83: =1+IF(ISNA(VLOOKUP(B83,'Rural and Low Income 23-24'!$A:$B,2,FALSE)),0,$N$17) -> 1 | O83: =IF(V83="y",ROUND(M83*N83,0),0) -> 285154 | R83: 0 | S83: =O83+R83 -> 285154 | T83: =IFERROR(VLOOKUP(B83,'[3]2022-23 Final'!$B$19:$S$156,18,FALSE),0) -> 180231 | U83: =S83-T83 -> 104923 | V83: =IF(ISNA(VLOOKUP(B83,[4]Sheet1!$B$1:$D$96,1,FALSE)),"N","Y") -> Y | Y83: 2500 | Z83: 287654
A84: 66 | B84: 37505 | D84: MERIDIAN | E84: =IFERROR(VLOOKUP(B84,Enrollment!$A$1:$F$147,4,FALSE),0) -> 45 | F84: =IF(E84>=10,ROUND(E84*$G$3,0),0) -> 19439 | G84: =IFERROR(VLOOKUP(B84,Enrollment!$A$1:$F$147,6,FALSE),0) -> 8 | H84: =IF(E84>=$E$17,ROUND(G84*$G$3*$G$17,0),0) -> 864 | I84: =IFERROR(VLOOKUP(B84,Enrollment!$A$1:$F$147,5,FALSE),0) -> 33 | J84: =IF(E84>=$E$17,ROUND(I84*$G$3*$I$17,0),0) -> 14256 | K84: 34559 | L84: =IF(E84>$E$17,_xlfn.IFNA(VLOOKUP(B84,'other funds ftr 2023'!A:I,9,FALSE),0),1) -> 1.15 | M84: 39743 | N84: =1+IF(ISNA(VLOOKUP(B84,'Rural and Low Income 23-24'!$A:$B,2,FALSE)),0,$N$17) -> 1 | O84: 39743 | R84: 0 | S84: 39743 | T84: =IFERROR(VLOOKUP(B84,'[3]2022-23 Final'!$B$19:$S$156,18,FALSE),0) -> 0 | U84: 39743 | V84: =IF(ISNA(VLOOKUP(B84,[4]Sheet1!$B$1:$D$96,1,FALSE)),"N","Y") -> Y | Y84: =IF(V84="Y",IF(E84<=99,1500,IF(AND(E84>=100,E84<=399),2500,4000)),0) -> 1500 | Z84: =IF(W84=1, 0, Y84+S84) -> 41243
A85: 67 | B85: 31103 | D85: MONROE | E85: =IFERROR(VLOOKUP(B85,Enrollment!$A$1:$F$147,4,FALSE),0) -> 18 | F85: 7776 | G85: =IFERROR(VLOOKUP(B85,Enrollment!$A$1:$F$147,6,FALSE),0) -> 6 | H85: 648 | I85: =IFERROR(VLOOKUP(B85,Enrollment!$A$1:$F$147,5,FALSE),0) -> 10 | J85: 4320 | K85: 12744 | L85: =IF(E85>$E$17,_xlfn.IFNA(VLOOKUP(B85,'other funds ftr 2023'!A:I,9,FALSE),0),1) -> 1.15 | M85: 14656 | N85: =1+IF(ISNA(VLOOKUP(B85,'Rural and Low Income 23-24'!$A:$B,2,FALSE)),0,$N$17) -> 1 | O85: 0 | R85: 0 | S85: 0 | T85: =IFERROR(VLOOKUP(B85,'[3]2022-23 Final'!$B$19:$S$156,18,FALSE),0) -> 0 | U85: 0 | V85: =IF(ISNA(VLOOKUP(B85,[4]Sheet1!$B$1:$D$96,1,FALSE)),"N","Y") -> N | X85: Y | Y85: 0 | Z85: 0
A86: 68 | B86: 13161 | D86: MOSES LAKE | E86: =IFERROR(VLOOKUP(B86,Enrollment!$A$1:$F$147,4,FALSE),0) -> 495 | F86: 213833 | G86: =IFERROR(VLOOKUP(B86,Enrollment!$A$1:$F$147,6,FALSE),0) -> 158 | H86: 17063 | I86: =IFERROR(VLOOKUP(B86,Enrollment!$A$1:$F$147,5,FALSE),0) -> 319 | J86: 137803 | K86: 368699 | L86: =IF(E86>$E$17,_xlfn.IFNA(VLOOKUP(B86,'other funds ftr 2023'!A:I,9,FALSE),0),1) -> 1.05 | M86: 387134 | N86: =1+IF(ISNA(VLOOKUP(B86,'Rural and Low Income 23-24'!$A:$B,2,FALSE)),0,$N$17) -> 1 | O86: 387134 | R86: 0 | S86: 387134 | T86: =IFERROR(VLOOKUP(B86,'[3]2022-23 Final'!$B$19:$S$156,18,FALSE),0) -> 275845 | U86: 111289 | V86: =IF(ISNA(VLOOKUP(B86,[4]Sheet1!$B$1:$D$96,1,FALSE)),"N","Y") -> Y | X86: Y | Y86: 4000 | Z86: 391134
A87: 69 | B87: 21206 | D87: MOSSYROCK | E87: =IFERROR(VLOOKUP(B87,Enrollment!$A$1:$F$147,4,FALSE),0) -> 51 | F87: 22031 | G87: =IFERROR(VLOOKUP(B87,Enrollment!$A$1:$F$147,6,FALSE),0) -> 13 | H87: 1404 | I87: =IFERROR(VLOOKUP(B87,Enrollment!$A$1:$F$147,5,FALSE),0) -> 25 | J87: 10800 | K87: 34235 | L87: =IF(E87>$E$17,_xlfn.IFNA(VLOOKUP(B87,'other funds ftr 2023'!A:I,9,FALSE),0),1) -> 1 | M87: 34235 | N87: =1+IF(ISNA(VLOOKUP(B87,'Rural and Low Income 23-24'!$A:$B,2,FALSE)),0,$N$17) -> 1.1 | O87: 37659 | R87: 0 | S87: 37659 | T87: =IFERROR(VLOOKUP(B87,'[3]2022-23 Final'!$B$19:$S$156,18,FALSE),0) -> 34251 | U87: 3408 | V87: =IF(ISNA(VLOOKUP(B87,[4]Sheet1!$B$1:$D$96,1,FALSE)),"N","Y") -> Y | Y87: 1500 | Z87: 39159
A88: 70 | B88: 39209 | D88: MOUNT ADAMS | E88: =IFERROR(VLOOKUP(B88,Enrollment!$A$1:$F$147,4,FALSE),0) -> 231 | F88: 99789 | G88: =IFERROR(VLOOKUP(B88,Enrollment!$A$1:$F$147,6,FALSE),0) -> 61 | H88: 6588 | I88: =IFERROR(VLOOKUP(B88,Enrollment!$A$1:$F$147,5,FALSE),0) -> 143 | J88: 61774 | K88: 168151 | L88: =IF(E88>$E$17,_xlfn.IFNA(VLOOKUP(B88,'other funds ftr 2023'!A:I,9,FALSE),0),1) -> 0.95 | M88: 159743 | N88: =1+IF(ISNA(VLOOKUP(B88,'Rural and Low Income 23-24'!$A:$B,2,FALSE)),0,$N$17) -> 1.1 | O88: 175717 | R88: 0 | S88: 175717 | T88: =IFERROR(VLOOKUP(B88,'[3]2022-23 Final'!$B$19:$S$156,18,FALSE),0) -> 168529 | U88: 7188 | V88: =IF(ISNA(VLOOKUP(B88,[4]Sheet1!$B$1:$D$96,1,FALSE)),"N","Y") -> Y | Y88: 2500 | Z88: 178217
A89: 71 | B89: 37507 | D89: MOUNT BAKER | E89: =IFERROR(VLOOKUP(B89,Enrollment!$A$1:$F$147,4,FALSE),0) -> 56 | F89: 24191 | G89: =IFERROR(VLOOKUP(B89,Enrollment!$A$1:$F$147,6,FALSE),0) -> 14 | H89: 1512 | I89: =IFERROR(VLOOKUP(B89,Enrollment!$A$1:$F$147,5,FALSE),0) -> 38 | J89: 16415 | K89: 42118 | L89: =IF(E89>$E$17,_xlfn.IFNA(VLOOKUP(B89,'other funds ftr 2023'!A:I,9,FALSE),0),1) -> 1.15 | M89: 48436 | N89: =1+IF(ISNA(VLOOKUP(B89,'Rural and Low Income 23-24'!$A:$B,2,FALSE)),0,$N$17) -> 1 | O89: 48436 | R89: 0 | S89: 48436 | T89: =IFERROR(VLOOKUP(B89,'[3]2022-23 Final'!$B$19:$S$156,18,FALSE),0) -> 32144 | U89: 16292 | V89: =IF(ISNA(VLOOKUP(B89,[4]Sheet1!$B$1:$D$96,1,FALSE)),"N","Y") -> Y | Y89: 1500 | Z89: 49936
A90: 72 | B90: 29320 | D90: MOUNT VERNON | E90: =IFERROR(VLOOKUP(B90,Enrollment!$A$1:$F$147,4,FALSE),0) -> 1652 | F90: 713640 | G90: =IFERROR(VLOOKUP(B90,Enrollment!$A$1:$F$147,6,FALSE),0) -> 522 | H90: 56374 | I90: =IFERROR(VLOOKUP(B90,Enrollment!$A$1:$F$147,5,FALSE),0) -> 955 | J90: 412546 | K90: 1182560 | L90: =IF(E90>$E$17,_xlfn.IFNA(VLOOKUP(B90,'other funds ftr 2023'!A:I,9,FALSE),0),1) -> 0.95 | M90: 1123432 | N90: =1+IF(ISNA(VLOOKUP(B90,'Rural and Low Income 23-24'!$A:$B,2,FALSE)),0,$N$17) -> 1 | O90: 1123432 | R90: 0 | S90: 1123432 | T90: =IFERROR(VLOOKUP(B90,'[3]2022-23 Final'!$B$19:$S$156,18,FALSE),0) -> 1001526 | U90: 121906 | V90: =IF(ISNA(VLOOKUP(B90,[4]Sheet1!$B$1:$D$96,1,FALSE)),"N","Y") -> Y | Y90: 4000 | Z90: 1127432
A91: 73 | B91: 17903 | D91: MUCKLESHOOT INDIAN TRIBE | E91: =IFERROR(VLOOKUP(B91,Enrollment!$A$1:$F$147,4,FALSE),0) -> 20 | F91: 8640 | G91: =IFERROR(VLOOKUP(B91,Enrollment!$A$1:$F$147,6,FALSE),0) -> 12 | H91: 1296 | I91: =IFERROR(VLOOKUP(B91,Enrollment!$A$1:$F$147,5,FALSE),0) -> 4 | J91: 1728 | K91: 11664 | L91: =IF(E91>$E$17,_xlfn.IFNA(VLOOKUP(B91,'other funds ftr 2023'!A:I,9,FALSE),0),1) -> 1.05 | M91: 12247 | N91: =1+IF(ISNA(VLOOKUP(B91,'Rural and Low Income 23-24'!$A:$B,2,FALSE)),0,$N$17) -> 1 | O91: 0 | R91: 0 | S91: 0 | T91: =IFERROR(VLOOKUP(B91,'[3]2022-23 Final'!$B$19:$S$156,18,FALSE),0) -> 15623 | U91: -15623 | V91: =IF(ISNA(VLOOKUP(B91,[4]Sheet1!$B$1:$D$96,1,FALSE)),"N","Y") -> N | Y91: 0 | Z91: 0
A92: 74 | B92: 31006 | D92: MUKILTEO | E92: =IFERROR(VLOOKUP(B92,Enrollment!$A$1:$F$147,4,FALSE),0) -> 29 | F92: 12528 | G92: =IFERROR(VLOOKUP(B92,Enrollment!$A$1:$F$147,6,FALSE),0) -> 10 | H92: 1080 | I92: =IFERROR(VLOOKUP(B92,Enrollment!$A$1:$F$147,5,FALSE),0) -> 17 | J92: 7344 | K92: 20952 | L92: =IF(E92>$E$17,_xlfn.IFNA(VLOOKUP(B92,'other funds ftr 2023'!A:I,9,FALSE),0),1) -> 1.15 | M92: 24095 | N92: =1+IF(ISNA(VLOOKUP(B92,'Rural and Low Income 23-24'!$A:$B,2,FALSE)),0,$N$17) -> 1 | O92: 0 | R92: 0 | S92: 0 | T92: =IFERROR(VLOOKUP(B92,'[3]2022-23 Final'!$B$19:$S$156,18,FALSE),0) -> 0 | U92: 0 | V92: =IF(ISNA(VLOOKUP(B92,[4]Sheet1!$B$1:$D$96,1,FALSE)),"N","Y") -> N | Y92: 0 | Z92: 0
A93: 75 | B93: 39003 | D93: NACHES VALLEY | E93: =IFERROR(VLOOKUP(B93,Enrollment!$A$1:$F$147,4,FALSE),0) -> 141 | F93: 60910 | G93: =IFERROR(VLOOKUP(B93,Enrollment!$A$1:$F$147,6,FALSE),0) -> 39 | H93: 4212 | I93: =IFERROR(VLOOKUP(B93,Enrollment!$A$1:$F$147,5,FALSE),0) -> 89 | J93: 38447 | K93: 103569 | L93: =IF(E93>$E$17,_xlfn.IFNA(VLOOKUP(B93,'other funds ftr 2023'!A:I,9,FALSE),0),1) -> 1.15 | M93: 119104 | N93: =1+IF(ISNA(VLOOKUP(B93,'Rural and Low Income 23-24'!$A:$B,2,FALSE)),0,$N$17) -> 1 | O93: 0 | R93: 0 | S93: 0 | T93: =IFERROR(VLOOKUP(B93,'[3]2022-23 Final'!$B$19:$S$156,18,FALSE),0) -> 0 | U93: 0 | V93: =IF(ISNA(VLOOKUP(B93,[4]Sheet1!$B$1:$D$96,1,FALSE)),"N","Y") -> N | Y93: 0 | Z93: 0
A94: 76 | B94: 25155 | D94: NASELLE-GRAYS RIVER VALLEY | E94: =IFERROR(VLOOKUP(B94,Enrollment!$A$1:$F$147,4,FALSE),0) -> 49 | F94: 21167 | G94: =IFERROR(VLOOKUP(B94,Enrollment!$A$1:$F$147,6,FALSE),0) -> 23 | H94: 2484 | I94: =IFERROR(VLOOKUP(B94,Enrollment!$A$1:$F$147,5,FALSE),0) -> 21 | J94: 9072 | K94: 32723 | L94: =IF(E94>$E$17,_xlfn.IFNA(VLOOKUP(B94,'other funds ftr 2023'!A:I,9,FALSE),0),1) -> 0.85 | M94: 27815 | N94: =1+IF(ISNA(VLOOKUP(B94,'Rural and Low Income 23-24'!$A:$B,2,FALSE)),0,$N$17) -> 1.1 | O94: 30597 | R94: 0 | S94: 30597 | T94: =IFERROR(VLOOKUP(B94,'[3]2022-23 Final'!$B$19:$S$156,18,FALSE),0) -> 49611 | U94: -19014 | V94: =IF(ISNA(VLOOKUP(B94,[4]Sheet1!$B$1:$D$96,1,FALSE)),"N","Y") -> Y | Y94: 1500 | Z94: 32097
A95: 77 | B95: 24014 | D95: NESPELEM | E95: =IFERROR(VLOOKUP(B95,Enrollment!$A$1:$F$147,4,FALSE),0) -> 56 | F95: 24191 | G95: =IFERROR(VLOOKUP(B95,Enrollment!$A$1:$F$147,6,FALSE),0) -> 6 | H95: 648 | I95: =IFERROR(VLOOKUP(B95,Enrollment!$A$1:$F$147,5,FALSE),0) -> 45 | J95: 19439 | K95: 44278 | L95: =IF(E95>$E$17,_xlfn.IFNA(VLOOKUP(B95,'other funds ftr 2023'!A:I,9,FALSE),0),1) -> 0.95 | M95: 42064 | N95: =1+IF(ISNA(VLOOKUP(B95,'Rural and Low Income 23-24'!$A:$B,2,FALSE)),0,$N$17) -> 1.1 | O95: 46270 | R95: 0 | S95: 46270 | T95: =IFERROR(VLOOKUP(B95,'[3]2022-23 Final'!$B$19:$S$156,18,FALSE),0) -> 25244 | U95: 21026 | V95: =IF(ISNA(VLOOKUP(B95,[4]Sheet1!$B$1:$D$96,1,FALSE)),"N","Y") -> Y | Y95: 1500 | Z95: 47770
A96: 78 | B96: 37506 | D96: NOOKSACK VALLEY | E96: =IFERROR(VLOOKUP(B96,Enrollment!$A$1:$F$147,4,FALSE),0) -> 139 | F96: 60046 | G96: =IFERROR(VLOOKUP(B96,Enrollment!$A$1:$F$147,6,FALSE),0) -> 42 | H96: 4536 | I96: =IFERROR(VLOOKUP(B96,Enrollment!$A$1:$F$147,5,FALSE),0) -> 86 | J96: 37151 | K96: 101733 | L96: =IF(E96>$E$17,_xlfn.IFNA(VLOOKUP(B96,'other funds ftr 2023'!A:I,9,FALSE),0),1) -> 1 | M96: 101733 | N96: =1+IF(ISNA(VLOOKUP(B96,'Rural and Low Income 23-24'!$A:$B,2,FALSE)),0,$N$17) -> 1 | O96: 101733 | R96: 0 | S96: 101733 | T96: =IFERROR(VLOOKUP(B96,'[3]2022-23 Final'!$B$19:$S$156,18,FALSE),0) -> 102031 | U96: -298 | V96: =IF(ISNA(VLOOKUP(B96,[4]Sheet1!$B$1:$D$96,1,FALSE)),"N","Y") -> Y | Y96: 2500 | Z96: 104233
A97: 79 | B97: 14064 | D97: NORTH BEACH | E97: =IFERROR(VLOOKUP(B97,Enrollment!$A$1:$F$147,4,FALSE),0) -> 45 | F97: 19439 | G97: =IFERROR(VLOOKUP(B97,Enrollment!$A$1:$F$147,6,FALSE),0) -> 9 | H97: 972 | I97: =IFERROR(VLOOKUP(B97,Enrollment!$A$1:$F$147,5,FALSE),0) -> 30 | J97: 12960 | K97: 33371 | L97: =IF(E97>$E$17,_xlfn.IFNA(VLOOKUP(B97,'other funds ftr 2023'!A:I,9,FALSE),0),1) -> 1.05 | M97: 35040 | N97: =1+IF(ISNA(VLOOKUP(B97,'Rural and Low Income 23-24'!$A:$B,2,FALSE)),0,$N$17) -> 1.1 | O97: 0 | R97: 0 | S97: 0 | T97: =IFERROR(VLOOKUP(B97,'[3]2022-23 Final'!$B$19:$S$156,18,FALSE),0) -> 26466 | U97: -26466 | V97: =IF(ISNA(VLOOKUP(B97,[4]Sheet1!$B$1:$D$96,1,FALSE)),"N","Y") -> N | Y97: 0 | Z97: 0
A98: 80 | B98: 11051 | D98: NORTH FRANKLIN | E98: =IFERROR(VLOOKUP(B98,Enrollment!$A$1:$F$147,4,FALSE),0) -> 674 | F98: 291158 | G98: =IFERROR(VLOOKUP(B98,Enrollment!$A$1:$F$147,6,FALSE),0) -> 234 | H98: 25271 | I98: =IFERROR(VLOOKUP(B98,Enrollment!$A$1:$F$147,5,FALSE),0) -> 443 | J98: 191370 | K98: 507799 | L98: =IF(E98>$E$17,_xlfn.IFNA(VLOOKUP(B98,'other funds ftr 2023'!A:I,9,FALSE),0),1) -> 0.85 | M98: 431629 | N98: =1+IF(ISNA(VLOOKUP(B98,'Rural and Low Income 23-24'!$A:$B,2,FALSE)),0,$N$17) -> 1 | O98: 431629 | R98: 0 | S98: 431629 | T98: =IFERROR(VLOOKUP(B98,'[3]2022-23 Final'!$B$19:$S$156,18,FALSE),0) -> 593122 | U98: -161493 | V98: =IF(ISNA(VLOOKUP(B98,[4]Sheet1!$B$1:$D$96,1,FALSE)),"N","Y") -> Y | Y98: 4000 | Z98: 435629
A99: 81 | B99: 18400 | D99: NORTH KITSAP | E99: =IFERROR(VLOOKUP(B99,Enrollment!$A$1:$F$147,4,FALSE),0) -> 40 | F99: 17279 | G99: =IFERROR(VLOOKUP(B99,Enrollment!$A$1:$F$147,6,FALSE),0) -> 12 | H99: 1296 | I99: =IFERROR(VLOOKUP(B99,Enrollment!$A$1:$F$147,5,FALSE),0) -> 22 | J99: 9504 | K99: 28079 | L99: =IF(E99>$E$17,_xlfn.IFNA(VLOOKUP(B99,'other funds ftr 2023'!A:I,9,FALSE),0),1) -> 1.15 | M99: 32291 | N99: =1+IF(ISNA(VLOOKUP(B99,'Rural and Low Income 23-24'!$A:$B,2,FALSE)),0,$N$17) -> 1 | O99: 0 | R99: 0 | S99: 0 | T99: =IFERROR(VLOOKUP(B99,'[3]2022-23 Final'!$B$19:$S$156,18,FALSE),0) -> 0 | U99: 0 | V99: =IF(ISNA(VLOOKUP(B99,[4]Sheet1!$B$1:$D$96,1,FALSE)),"N","Y") -> N | Y99: 0 | Z99: 0
A100: 82 | B100: 23403 | D100: NORTH MASON | E100: =IFERROR(VLOOKUP(B100,Enrollment!$A$1:$F$147,4,FALSE),0) -> 13 | F100: 5616 | G100: =IFERROR(VLOOKUP(B100,Enrollment!$A$1:$F$147,6,FALSE),0) -> 2 | H100: 216 | I100: =IFERROR(VLOOKUP(B100,Enrollment!$A$1:$F$147,5,FALSE),0) -> 11 | J100: 4752 | K100: 10584 | L100: =IF(E100>$E$17,_xlfn.IFNA(VLOOKUP(B100,'other funds ftr 2023'!A:I,9,FALSE),0),1) -> 1.15 | M100: 12172 | N100: =1+IF(ISNA(VLOOKUP(B100,'Rural and Low Income 23-24'!$A:$B,2,FALSE)),0,$N$17) -> 1 | O100: 12172 | R100: =ROUND(IF(Q100>0,-(0.9-Q100)*O100,0),0) -> 0 | S100: 12172 | T100: =IFERROR(VLOOKUP(B100,'[3]2022-23 Final'!$B$19:$S$156,18,FALSE),0) -> 0 | U100: 12172 | V100: =IF(ISNA(VLOOKUP(B100,[4]Sheet1!$B$1:$D$96,1,FALSE)),"N","Y") -> Y | Y100: 1500 | Z100: 13672
A101: 83 | B101: 34003 | D101: NORTH THURSTON PUBLIC SCHOOLS | E101: =IFERROR(VLOOKUP(B101,Enrollment!$A$1:$F$147,4,FALSE),0) -> 50 | F101: 21599 | G101: =IFERROR(VLOOKUP(B101,Enrollment!$A$1:$F$147,6,FALSE),0) -> 10 | H101: 1080 | I101: =IFERROR(VLOOKUP(B101,Enrollment!$A$1:$F$147,5,FALSE),0) -> 33 | J101: 14256 | K101: 36935 | L101: =IF(E101>$E$17,_xlfn.IFNA(VLOOKUP(B101,'other funds ftr 2023'!A:I,9,FALSE),0),1) -> 1.15 | M101: 42475 | N101: =1+IF(ISNA(VLOOKUP(B101,'Rural and Low Income 23-24'!$A:$B,2,FALSE)),0,$N$17) -> 1 | O101: 42475 | R101: 0 | S101: 42475 | T101: =IFERROR(VLOOKUP(B101,'[3]2022-23 Final'!$B$19:$S$156,18,FALSE),0) -> 0 | U101: 42475 | V101: =IF(ISNA(VLOOKUP(B101,[4]Sheet1!$B$1:$D$96,1,FALSE)),"N","Y") -> Y | Y101: 1500 | Z101: 43975
A102: 84 | B102: 15201 | D102: OAK HARBOR | E102: =IFERROR(VLOOKUP(B102,Enrollment!$A$1:$F$147,4,FALSE),0) -> 24 | F102: 10368 | G102: =IFERROR(VLOOKUP(B102,Enrollment!$A$1:$F$147,6,FALSE),0) -> 8 | H102: 864 | I102: =IFERROR(VLOOKUP(B102,Enrollment!$A$1:$F$147,5,FALSE),0) -> 14 | J102: 6048 | K102: 17280 | L102: =IF(E102>$E$17,_xlfn.IFNA(VLOOKUP(B102,'other funds ftr 2023'!A:I,9,FALSE),0),1) -> 1.15 | M102: 19872 | N102: =1+IF(ISNA(VLOOKUP(B102,'Rural and Low Income 23-24'!$A:$B,2,FALSE)),0,$N$17) -> 1 | O102: 19872 | R102: 0 | S102: 19872 | T102: =IFERROR(VLOOKUP(B102,'[3]2022-23 Final'!$B$19:$S$156,18,FALSE),0) -> 0 | U102: 19872 | V102: =IF(ISNA(VLOOKUP(B102,[4]Sheet1!$B$1:$D$96,1,FALSE)),"N","Y") -> Y | Y102: 1500 | Z102: 21372
A103: 85 | B103: 25101 | D103: OCEAN BEACH | E103: =IFERROR(VLOOKUP(B103,Enrollment!$A$1:$F$147,4,FALSE),0) -> 41 | F103: 17711 | G103: =IFERROR(VLOOKUP(B103,Enrollment!$A$1:$F$147,6,FALSE),0) -> 28 | H103: 3024 | I103: =IFERROR(VLOOKUP(B103,Enrollment!$A$1:$F$147,5,FALSE),0) -> 9 | J103: 3888 | K103: 24623 | L103: =IF(E103>$E$17,_xlfn.IFNA(VLOOKUP(B103,'other funds ftr 2023'!A:I,9,FALSE),0),1) -> 1.05 | M103: 25854 | N103: =1+IF(ISNA(VLOOKUP(B103,'Rural and Low Income 23-24'!$A:$B,2,FALSE)),0,$N$17) -> 1 | O103: 25854 | R103: 0 | S103: 25854 | T103: =IFERROR(VLOOKUP(B103,'[3]2022-23 Final'!$B$19:$S$156,18,FALSE),0) -> 35926 | U103: -10072 | V103: =IF(ISNA(VLOOKUP(B103,[4]Sheet1!$B$1:$D$96,1,FALSE)),"N","Y") -> Y | Y103: 1500 | Z103: 27354
A104: 86 | B104: 14172 | D104: OCOSTA | E104: =IFERROR(VLOOKUP(B104,Enrollment!$A$1:$F$147,4,FALSE),0) -> 31 | F104: 13392 | G104: =IFERROR(VLOOKUP(B104,Enrollment!$A$1:$F$147,6,FALSE),0) -> 9 | H104: 972 | I104: =IFERROR(VLOOKUP(B104,Enrollment!$A$1:$F$147,5,FALSE),0) -> 17 | J104: 7344 | K104: 21708 | L104: =IF(E104>$E$17,_xlfn.IFNA(VLOOKUP(B104,'other funds ftr 2023'!A:I,9,FALSE),0),1) -> 1.05 | M104: 22793 | N104: =1+IF(ISNA(VLOOKUP(B104,'Rural and Low Income 23-24'!$A:$B,2,FALSE)),0,$N$17) -> 1.1 | O104: 25072 | R104: 0 | S104: 25072 | T104: =IFERROR(VLOOKUP(B104,'[3]2022-23 Final'!$B$19:$S$156,18,FALSE),0) -> 36858 | U104: -11786 | V104: =IF(ISNA(VLOOKUP(B104,[4]Sheet1!$B$1:$D$96,1,FALSE)),"N","Y") -> Y | Y104: 1500 | Z104: 26572
A105: 87 | B105: 24105 | D105: OKANOGAN | E105: =IFERROR(VLOOKUP(B105,Enrollment!$A$1:$F$147,4,FALSE),0) -> 64 | F105: 27647 | G105: =IFERROR(VLOOKUP(B105,Enrollment!$A$1:$F$147,6,FALSE),0) -> 18 | H105: 1944 | I105: =IFERROR(VLOOKUP(B105,Enrollment!$A$1:$F$147,5,FALSE),0) -> 42 | J105: 18143 | K105: 47734 | L105: =IF(E105>$E$17,_xlfn.IFNA(VLOOKUP(B105,'other funds ftr 2023'!A:I,9,FALSE),0),1) -> 1.15 | M105: 54894 | N105: =1+IF(ISNA(VLOOKUP(B105,'Rural and Low Income 23-24'!$A:$B,2,FALSE)),0,$N$17) -> 1.1 | O105: 0 | R105: 0 | S105: 0 | T105: =IFERROR(VLOOKUP(B105,'[3]2022-23 Final'!$B$19:$S$156,18,FALSE),0) -> 0 | U105: 0 | V105: =IF(ISNA(VLOOKUP(B105,[4]Sheet1!$B$1:$D$96,1,FALSE)),"N","Y") -> N | Y105: 0 | Z105: 0
A106: 88 | B106: 34111 | D106: OLYMPIA | E106: =IFERROR(VLOOKUP(B106,Enrollment!$A$1:$F$147,4,FALSE),0) -> 39 | F106: 16847 | G106: =IFERROR(VLOOKUP(B106,Enrollment!$A$1:$F$147,6,FALSE),0) -> 13 | H106: 1404 | I106: =IFERROR(VLOOKUP(B106,Enrollment!$A$1:$F$147,5,FALSE),0) -> 21 | J106: 9072 | K106: 27323 | L106: =IF(E106>$E$17,_xlfn.IFNA(VLOOKUP(B106,'other funds ftr 2023'!A:I,9,FALSE),0),1) -> 1.15 | M106: 31421 | N106: =1+IF(ISNA(VLOOKUP(B106,'Rural and Low Income 23-24'!$A:$B,2,FALSE)),0,$N$17) -> 1 | O106: 31421 | R106: 0 | S106: 31421 | T106: =IFERROR(VLOOKUP(B106,'[3]2022-23 Final'!$B$19:$S$156,18,FALSE),0) -> 21440 | U106: 9981 | V106: =IF(ISNA(VLOOKUP(B106,[4]Sheet1!$B$1:$D$96,1,FALSE)),"N","Y") -> Y | Y106: 1500 | Z106: 32921
A107: 89 | B107: 24019 | D107: OMAK | E107: =IFERROR(VLOOKUP(B107,Enrollment!$A$1:$F$147,4,FALSE),0) -> 65 | F107: 28079 | G107: =IFERROR(VLOOKUP(B107,Enrollment!$A$1:$F$147,6,FALSE),0) -> 17 | H107: 1836 | I107: =IFERROR(VLOOKUP(B107,Enrollment!$A$1:$F$147,5,FALSE),0) -> 37 | J107: 15983 | K107: 45898 | L107: =IF(E107>$E$17,_xlfn.IFNA(VLOOKUP(B107,'other funds ftr 2023'!A:I,9,FALSE),0),1) -> 1.15 | M107: 52783 | N107: =1+IF(ISNA(VLOOKUP(B107,'Rural and Low Income 23-24'!$A:$B,2,FALSE)),0,$N$17) -> 1.1 | O107: 0 | R107: 0 | S107: 0 | T107: =IFERROR(VLOOKUP(B107,'[3]2022-23 Final'!$B$19:$S$156,18,FALSE),0) -> 0 | U107: 0 | V107: =IF(ISNA(VLOOKUP(B107,[4]Sheet1!$B$1:$D$96,1,FALSE)),"N","Y") -> N | Y107: 0 | Z107: 0
A108: 90 | B108: 09013 | D108: ORONDO | E108: =IFERROR(VLOOKUP(B108,Enrollment!$A$1:$F$147,4,FALSE),0) -> 49 | F108: 21167 | G108: =IFERROR(VLOOKUP(B108,Enrollment!$A$1:$F$147,6,FALSE),0) -> 13 | H108: 1404 | I108: =IFERROR(VLOOKUP(B108,Enrollment!$A$1:$F$147,5,FALSE),0) -> 27 | J108: 11664 | K108: 34235 | L108: =IF(E108>$E$17,_xlfn.IFNA(VLOOKUP(B108,'other funds ftr 2023'!A:I,9,FALSE),0),1) -> 0.85 | M108: 29100 | N108: =1+IF(ISNA(VLOOKUP(B108,'Rural and Low Income 23-24'!$A:$B,2,FALSE)),0,$N$17) -> 1.1 | O108: 32010 | R108: 0 | S108: 32010 | T108: =IFERROR(VLOOKUP(B108,'[3]2022-23 Final'!$B$19:$S$156,18,FALSE),0) -> 56562 | U108: -24552 | V108: =IF(ISNA(VLOOKUP(B108,[4]Sheet1!$B$1:$D$96,1,FALSE)),"N","Y") -> Y | Y108: 1500 | Z108: 33510
A109: 91 | B109: 24410 | D109: OROVILLE | E109: =IFERROR(VLOOKUP(B109,Enrollment!$A$1:$F$147,4,FALSE),0) -> 28 | F109: 12096 | G109: =IFERROR(VLOOKUP(B109,Enrollment!$A$1:$F$147,6,FALSE),0) -> 3 | H109: 324 | I109: =IFERROR(VLOOKUP(B109,Enrollment!$A$1:$F$147,5,FALSE),0) -> 20 | J109: 8640 | K109: 21060 | L109: =IF(E109>$E$17,_xlfn.IFNA(VLOOKUP(B109,'other funds ftr 2023'!A:I,9,FALSE),0),1) -> 1.15 | M109: 24219 | N109: =1+IF(ISNA(VLOOKUP(B109,'Rural and Low Income 23-24'!$A:$B,2,FALSE)),0,$N$17) -> 1.1 | O109: 0 | R109: 0 | S109: 0 | T109: =IFERROR(VLOOKUP(B109,'[3]2022-23 Final'!$B$19:$S$156,18,FALSE),0) -> 0 | U109: 0 | V109: =IF(ISNA(VLOOKUP(B109,[4]Sheet1!$B$1:$D$96,1,FALSE)),"N","Y") -> N | Y109: 0 | Z109: 0
A110: 92 | B110: 01147 | D110: OTHELLO | E110: =IFERROR(VLOOKUP(B110,Enrollment!$A$1:$F$147,4,FALSE),0) -> 845 | F110: 365028 | G110: =IFERROR(VLOOKUP(B110,Enrollment!$A$1:$F$147,6,FALSE),0) -> 268 | H110: 28943 | I110: =IFERROR(VLOOKUP(B110,Enrollment!$A$1:$F$147,5,FALSE),0) -> 494 | J110: 213401 | K110: 607372 | L110: =IF(E110>$E$17,_xlfn.IFNA(VLOOKUP(B110,'other funds ftr 2023'!A:I,9,FALSE),0),1) -> 0.95 | M110: 577003 | N110: =1+IF(ISNA(VLOOKUP(B110,'Rural and Low Income 23-24'!$A:$B,2,FALSE)),0,$N$17) -> 1 | O110: 577003 | R110: 0 | S110: 577003 | T110: =IFERROR(VLOOKUP(B110,'[3]2022-23 Final'!$B$19:$S$156,18,FALSE),0) -> 648339 | U110: -71336 | V110: =IF(ISNA(VLOOKUP(B110,[4]Sheet1!$B$1:$D$96,1,FALSE)),"N","Y") -> Y | Y110: 4000 | Z110: 581003
A111: 93 | B111: 11001 | D111: PASCO | E111: =IFERROR(VLOOKUP(B111,Enrollment!$A$1:$F$147,4,FALSE),0) -> 2018 | F111: 871747 | G111: =IFERROR(VLOOKUP(B111,Enrollment!$A$1:$F$147,6,FALSE),0) -> 628 | H111: 67822 | I111: =IFERROR(VLOOKUP(B111,Enrollment!$A$1:$F$147,5,FALSE),0) -> 1229 | J111: 530910 | K111: 1470479 | L111: =IF(E111>$E$17,_xlfn.IFNA(VLOOKUP(B111,'other funds ftr 2023'!A:I,9,FALSE),0),1) -> 1.05 | M111: 1544003 | N111: =1+IF(ISNA(VLOOKUP(B111,'Rural and Low Income 23-24'!$A:$B,2,FALSE)),0,$N$17) -> 1 | O111: 1544003 | R111: 0 | S111: 1544003 | T111: =IFERROR(VLOOKUP(B111,'[3]2022-23 Final'!$B$19:$S$156,18,FALSE),0) -> 1286287 | U111: 257716 | V111: =IF(ISNA(VLOOKUP(B111,[4]Sheet1!$B$1:$D$96,1,FALSE)),"N","Y") -> Y | Y111: 4000 | Z111: 1548003
A112: 94 | B112: 24122 | D112: PATEROS | E112: =IFERROR(VLOOKUP(B112,Enrollment!$A$1:$F$147,4,FALSE),0) -> 43 | F112: 18575 | G112: =IFERROR(VLOOKUP(B112,Enrollment!$A$1:$F$147,6,FALSE),0) -> 9 | H112: 972 | I112: =IFERROR(VLOOKUP(B112,Enrollment!$A$1:$F$147,5,FALSE),0) -> 17 | J112: 7344 | K112: 26891 | L112: =IF(E112>$E$17,_xlfn.IFNA(VLOOKUP(B112,'other funds ftr 2023'!A:I,9,FALSE),0),1) -> 0.95 | M112: 25546 | N112: =1+IF(ISNA(VLOOKUP(B112,'Rural and Low Income 23-24'!$A:$B,2,FALSE)),0,$N$17) -> 1.1 | O112: 28101 | R112: 0 | S112: 28101 | T112: =IFERROR(VLOOKUP(B112,'[3]2022-23 Final'!$B$19:$S$156,18,FALSE),0) -> 51109 | U112: -23008 | V112: =IF(ISNA(VLOOKUP(B112,[4]Sheet1!$B$1:$D$96,1,FALSE)),"N","Y") -> Y | Y112: 1500 | Z112: 29601
A113: 95 | B113: 03050 | D113: PATERSON | E113: =IFERROR(VLOOKUP(B113,Enrollment!$A$1:$F$147,4,FALSE),0) -> 24 | F113: 10368 | G113: =IFERROR(VLOOKUP(B113,Enrollment!$A$1:$F$147,6,FALSE),0) -> 4 | H113: 432 | I113: =IFERROR(VLOOKUP(B113,Enrollment!$A$1:$F$147,5,FALSE),0) -> 17 | J113: 7344 | K113: 18144 | L113: =IF(E113>$E$17,_xlfn.IFNA(VLOOKUP(B113,'other funds ftr 2023'!A:I,9,FALSE),0),1) -> 0.95 | M113: 17237 | N113: =1+IF(ISNA(VLOOKUP(B113,'Rural and Low Income 23-24'!$A:$B,2,FALSE)),0,$N$17) -> 1.1 | O113: 18961 | R113: 0 | S113: 18961 | T113: =IFERROR(VLOOKUP(B113,'[3]2022-23 Final'!$B$19:$S$156,18,FALSE),0) -> 20782 | U113: -1821 | V113: =IF(ISNA(VLOOKUP(B113,[4]Sheet1!$B$1:$D$96,1,FALSE)),"N","Y") -> Y | Y113: 1500 | Z113: 20461
A114: 96 | B114: 04901 | D114: PINNACLES PREP CHARTER SCHOOL | E114: =IFERROR(VLOOKUP(B114,Enrollment!$A$1:$F$147,4,FALSE),0) -> 13 | F114: 5616 | G114: =IFERROR(VLOOKUP(B114,Enrollment!$A$1:$F$147,6,FALSE),0) -> 4 | H114: 432 | I114: =IFERROR(VLOOKUP(B114,Enrollment!$A$1:$F$147,5,FALSE),0) -> 7 | J114: 3024 | K114: 9072 | L114: =IF(E114>$E$17,_xlfn.IFNA(VLOOKUP(B114,'other funds ftr 2023'!A:I,9,FALSE),0),1) -> 0 | M114: 9072 | N114: =1+IF(ISNA(VLOOKUP(B114,'Rural and Low Income 23-24'!$A:$B,2,FALSE)),0,$N$17) -> 1 | O114: 9072 | R114: 0 | S114: 9072 | T114: =IFERROR(VLOOKUP(B114,'[3]2022-23 Final'!$B$19:$S$156,18,FALSE),0) -> 0 | U114: 9072 | V114: =IF(ISNA(VLOOKUP(B114,[4]Sheet1!$B$1:$D$96,1,FALSE)),"N","Y") -> Y | Y114: 1500 | Z114: 10572
A115: 97 | B115: 36402 | D115: PRESCOTT | E115: =IFERROR(VLOOKUP(B115,Enrollment!$A$1:$F$147,4,FALSE),0) -> 25 | F115: 10800 | G115: =IFERROR(VLOOKUP(B115,Enrollment!$A$1:$F$147,6,FALSE),0) -> 11 | H115: 1188 | I115: =IFERROR(VLOOKUP(B115,Enrollment!$A$1:$F$147,5,FALSE),0) -> 12 | J115: 5184 | K115: 17172 | L115: =IF(E115>$E$17,_xlfn.IFNA(VLOOKUP(B115,'other funds ftr 2023'!A:I,9,FALSE),0),1) -> 1 | M115: 17172 | N115: =1+IF(ISNA(VLOOKUP(B115,'Rural and Low Income 23-24'!$A:$B,2,FALSE)),0,$N$17) -> 1.1 | O115: 18889 | R115: 0 | S115: 18889 | T115: =IFERROR(VLOOKUP(B115,'[3]2022-23 Final'!$B$19:$S$156,18,FALSE),0) -> 23520 | U115: -4631 | V115: =IF(ISNA(VLOOKUP(B115,[4]Sheet1!$B$1:$D$96,1,FALSE)),"N","Y") -> Y | W115: 1 | Y115: 1500 | Z115: 0
A116: 98 | B116: 03116 | D116: PROSSER | E116: =IFERROR(VLOOKUP(B116,Enrollment!$A$1:$F$147,4,FALSE),0) -> 802 | F116: 346452 | G116: =IFERROR(VLOOKUP(B116,Enrollment!$A$1:$F$147,6,FALSE),0) -> 261 | H116: 28187 | I116: =IFERROR(VLOOKUP(B116,Enrollment!$A$1:$F$147,5,FALSE),0) -> 557 | J116: 240616 | K116: 615255 | L116: =IF(E116>$E$17,_xlfn.IFNA(VLOOKUP(B116,'other funds ftr 2023'!A:I,9,FALSE),0),1) -> 0.85 | M116: 522967 | N116: =1+IF(ISNA(VLOOKUP(B116,'Rural and Low Income 23-24'!$A:$B,2,FALSE)),0,$N$17) -> 1 | O116: 522967 | R116: 0 | S116: 522967 | T116: =IFERROR(VLOOKUP(B116,'[3]2022-23 Final'!$B$19:$S$156,18,FALSE),0) -> 646276 | U116: -123309 | V116: =IF(ISNA(VLOOKUP(B116,[4]Sheet1!$B$1:$D$96,1,FALSE)),"N","Y") -> Y | Y116: 4000 | Z116: 526967
A117: 99 | B117: 27003 | D117: PUYALLUP | E117: =IFERROR(VLOOKUP(B117,Enrollment!$A$1:$F$147,4,FALSE),0) -> 18 | F117: 7776 | G117: =IFERROR(VLOOKUP(B117,Enrollment!$A$1:$F$147,6,FALSE),0) -> 4 | H117: 432 | I117: =IFERROR(VLOOKUP(B117,Enrollment!$A$1:$F$147,5,FALSE),0) -> 11 | J117: 4752 | K117: 12960 | L117: =IF(E117>$E$17,_xlfn.IFNA(VLOOKUP(B117,'other funds ftr 2023'!A:I,9,FALSE),0),1) -> 0 | M117: 12960 | N117: =1+IF(ISNA(VLOOKUP(B117,'Rural and Low Income 23-24'!$A:$B,2,FALSE)),0,$N$17) -> 1 | O117: 12960 | R117: 0 | S117: 12960 | T117: =IFERROR(VLOOKUP(B117,'[3]2022-23 Final'!$B$19:$S$156,18,FALSE),0) -> 0 | U117: 12960 | V117: =IF(ISNA(VLOOKUP(B117,[4]Sheet1!$B$1:$D$96,1,FALSE)),"N","Y") -> Y | Y117: 1500 | Z117: 14460
A118: 100 | B118: 05402 | D118: QUILLAYUTE VALLEY | E118: =IFERROR(VLOOKUP(B118,Enrollment!$A$1:$F$147,4,FALSE),0) -> 110 | F118: 47518 | G118: =IFERROR(VLOOKUP(B118,Enrollment!$A$1:$F$147,6,FALSE),0) -> 47 | H118: 5076 | I118: =IFERROR(VLOOKUP(B118,Enrollment!$A$1:$F$147,5,FALSE),0) -> 47 | J118: 20303 | K118: 72897 | L118: =IF(E118>$E$17,_xlfn.IFNA(VLOOKUP(B118,'other funds ftr 2023'!A:I,9,FALSE),0),1) -> 1.15 | M118: 83832 | N118: =1+IF(ISNA(VLOOKUP(B118,'Rural and Low Income 23-24'!$A:$B,2,FALSE)),0,$N$17) -> 1.1 | O118: 92215 | R118: 0 | S118: 92215 | T118: =IFERROR(VLOOKUP(B118,'[3]2022-23 Final'!$B$19:$S$156,18,FALSE),0) -> 51578 | U118: 40637 | V118: =IF(ISNA(VLOOKUP(B118,[4]Sheet1!$B$1:$D$96,1,FALSE)),"N","Y") -> Y | Y118: 2500 | Z118: 94715
A119: 101 | B119: 13144 | D119: QUINCY | E119: =IFERROR(VLOOKUP(B119,Enrollment!$A$1:$F$147,4,FALSE),0) -> 627 | F119: 270855 | G119: =IFERROR(VLOOKUP(B119,Enrollment!$A$1:$F$147,6,FALSE),0) -> 123 | H119: 13284 | I119: =IFERROR(VLOOKUP(B119,Enrollment!$A$1:$F$147,5,FALSE),0) -> 466 | J119: 201305 | K119: 485444 | L119: =IF(E119>$E$17,_xlfn.IFNA(VLOOKUP(B119,'other funds ftr 2023'!A:I,9,FALSE),0),1) -> 1 | M119: 485444 | N119: =1+IF(ISNA(VLOOKUP(B119,'Rural and Low Income 23-24'!$A:$B,2,FALSE)),0,$N$17) -> 1 | O119: 485444 | R119: 0 | S119: 485444 | T119: =IFERROR(VLOOKUP(B119,'[3]2022-23 Final'!$B$19:$S$156,18,FALSE),0) -> 362011 | U119: 123433 | V119: =IF(ISNA(VLOOKUP(B119,[4]Sheet1!$B$1:$D$96,1,FALSE)),"N","Y") -> Y | Y119: 4000 | Z119: 489444
A120: 102 | B120: 22009 | D120: REARDAN-EDWALL | E120: =IFERROR(VLOOKUP(B120,Enrollment!$A$1:$F$147,4,FALSE),0) -> 15 | F120: 6480 | G120: =IFERROR(VLOOKUP(B120,Enrollment!$A$1:$F$147,6,FALSE),0) -> 4 | H120: 432 | I120: =IFERROR(VLOOKUP(B120,Enrollment!$A$1:$F$147,5,FALSE),0) -> 11 | J120: 4752 | K120: 11664 | L120: =IF(E120>$E$17,_xlfn.IFNA(VLOOKUP(B120,'other funds ftr 2023'!A:I,9,FALSE),0),1) -> 0 | M120: 11664 | N120: =1+IF(ISNA(VLOOKUP(B120,'Rural and Low Income 23-24'!$A:$B,2,FALSE)),0,$N$17) -> 1.1 | O120: 0 | R120: 0 | S120: 0 | T120: =IFERROR(VLOOKUP(B120,'[3]2022-23 Final'!$B$19:$S$156,18,FALSE),0) -> 0 | U120: 0 | V120: =IF(ISNA(VLOOKUP(B120,[4]Sheet1!$B$1:$D$96,1,FALSE)),"N","Y") -> N | Y120: 0 | Z120: 0
A121: 103 | B121: 17403 | D121: RENTON | E121: =IFERROR(VLOOKUP(B121,Enrollment!$A$1:$F$147,4,FALSE),0) -> 29 | F121: 12528 | G121: =IFERROR(VLOOKUP(B121,Enrollment!$A$1:$F$147,6,FALSE),0) -> 8 | H121: 864 | I121: =IFERROR(VLOOKUP(B121,Enrollment!$A$1:$F$147,5,FALSE),0) -> 17 | J121: 7344 | K121: 20736 | L121: =IF(E121>$E$17,_xlfn.IFNA(VLOOKUP(B121,'other funds ftr 2023'!A:I,9,FALSE),0),1) -> 1.15 | M121: 23846 | N121: =1+IF(ISNA(VLOOKUP(B121,'Rural and Low Income 23-24'!$A:$B,2,FALSE)),0,$N$17) -> 1 | O121: 0 | R121: 0 | S121: 0 | T121: =IFERROR(VLOOKUP(B121,'[3]2022-23 Final'!$B$19:$S$156,18,FALSE),0) -> 0 | U121: 0 | V121: =IF(ISNA(VLOOKUP(B121,[4]Sheet1!$B$1:$D$96,1,FALSE)),"N","Y") -> N | Y121: 0 | Z121: 0
A122: 104 | B122: 03400 | D122: RICHLAND | E122: =IFERROR(VLOOKUP(B122,Enrollment!$A$1:$F$147,4,FALSE),0) -> 254 | F122: 109724 | G122: =IFERROR(VLOOKUP(B122,Enrollment!$A$1:$F$147,6,FALSE),0) -> 81 | H122: 8748 | I122: =IFERROR(VLOOKUP(B122,Enrollment!$A$1:$F$147,5,FALSE),0) -> 174 | J122: 75165 | K122: 193637 | L122: =IF(E122>$E$17,_xlfn.IFNA(VLOOKUP(B122,'other funds ftr 2023'!A:I,9,FALSE),0),1) -> 1.15 | M122: 222683 | N122: =1+IF(ISNA(VLOOKUP(B122,'Rural and Low Income 23-24'!$A:$B,2,FALSE)),0,$N$17) -> 1 | O122: 222683 | R122: 0 | S122: 222683 | T122: =IFERROR(VLOOKUP(B122,'[3]2022-23 Final'!$B$19:$S$156,18,FALSE),0) -> 167538 | U122: 55145 | V122: =IF(ISNA(VLOOKUP(B122,[4]Sheet1!$B$1:$D$96,1,FALSE)),"N","Y") -> Y | W122: 1 | Y122: 2500 | Z122: 0
A123: 105 | B123: 06122 | D123: RIDGEFIELD | E123: =IFERROR(VLOOKUP(B123,Enrollment!$A$1:$F$147,4,FALSE),0) -> 30 | F123: 12960 | G123: =IFERROR(VLOOKUP(B123,Enrollment!$A$1:$F$147,6,FALSE),0) -> 3 | H123: 324 | I123: =IFERROR(VLOOKUP(B123,Enrollment!$A$1:$F$147,5,FALSE),0) -> 26 | J123: 11232 | K123: 24516 | L123: =IF(E123>$E$17,_xlfn.IFNA(VLOOKUP(B123,'other funds ftr 2023'!A:I,9,FALSE),0),1) -> 1.15 | M123: 28193 | N123: =1+IF(ISNA(VLOOKUP(B123,'Rural and Low Income 23-24'!$A:$B,2,FALSE)),0,$N$17) -> 1 | O123: =IF(V123="y",ROUND(M123*N123,0),0) -> 28193 | R123: 0 | S123: 28193 | T123: =IFERROR(VLOOKUP(B123,'[3]2022-23 Final'!$B$19:$S$156,18,FALSE),0) -> 0 | U123: 28193 | V123: =IF(ISNA(VLOOKUP(B123,[4]Sheet1!$B$1:$D$96,1,FALSE)),"N","Y") -> Y | Y123: 1500 | Z123: 29693
A124: 106 | B124: 17407 | D124: RIVERVIEW | E124: =IFERROR(VLOOKUP(B124,Enrollment!$A$1:$F$147,4,FALSE),0) -> 11 | F124: 4752 | G124: =IFERROR(VLOOKUP(B124,Enrollment!$A$1:$F$147,6,FALSE),0) -> 0 | H124: 0 | I124: =IFERROR(VLOOKUP(B124,Enrollment!$A$1:$F$147,5,FALSE),0) -> 8 | J124: 3456 | K124: 8208 | L124: =IF(E124>$E$17,_xlfn.IFNA(VLOOKUP(B124,'other funds ftr 2023'!A:I,9,FALSE),0),1) -> 0 | M124: 8208 | N124: =1+IF(ISNA(VLOOKUP(B124,'Rural and Low Income 23-24'!$A:$B,2,FALSE)),0,$N$17) -> 1 | O124: 8208 | R124: 0 | S124: 8208 | T124: =IFERROR(VLOOKUP(B124,'[3]2022-23 Final'!$B$19:$S$156,18,FALSE),0) -> 0 | U124: 8208 | V124: =IF(ISNA(VLOOKUP(B124,[4]Sheet1!$B$1:$D$96,1,FALSE)),"N","Y") -> Y | Y124: 1500 | Z124: 9708
A125: 107 | B125: 34401 | D125: ROCHESTER | E125: =IFERROR(VLOOKUP(B125,Enrollment!$A$1:$F$147,4,FALSE),0) -> 42 | F125: 18143 | G125: =IFERROR(VLOOKUP(B125,Enrollment!$A$1:$F$147,6,FALSE),0) -> 8 | H125: 864 | I125: =IFERROR(VLOOKUP(B125,Enrollment!$A$1:$F$147,5,FALSE),0) -> 32 | J125: 13824 | K125: 32831 | L125: =IF(E125>$E$17,_xlfn.IFNA(VLOOKUP(B125,'other funds ftr 2023'!A:I,9,FALSE),0),1) -> 1.15 | M125: 37756 | N125: =1+IF(ISNA(VLOOKUP(B125,'Rural and Low Income 23-24'!$A:$B,2,FALSE)),0,$N$17) -> 1 | O125: 37756 | R125: 0 | S125: 37756 | T125: =IFERROR(VLOOKUP(B125,'[3]2022-23 Final'!$B$19:$S$156,18,FALSE),0) -> 21657 | U125: 16099 | V125: =IF(ISNA(VLOOKUP(B125,[4]Sheet1!$B$1:$D$96,1,FALSE)),"N","Y") -> Y | Y125: 1500 | Z125: 39256
A126: 108 | B126: 20403 | D126: ROOSEVELT | E126: =IFERROR(VLOOKUP(B126,Enrollment!$A$1:$F$147,4,FALSE),0) -> 27 | F126: 11664 | G126: =IFERROR(VLOOKUP(B126,Enrollment!$A$1:$F$147,6,FALSE),0) -> 2 | H126: 216 | I126: =IFERROR(VLOOKUP(B126,Enrollment!$A$1:$F$147,5,FALSE),0) -> 21 | J126: 9072 | K126: 20952 | L126: =IF(E126>$E$17,_xlfn.IFNA(VLOOKUP(B126,'other funds ftr 2023'!A:I,9,FALSE),0),1) -> 0.85 | M126: 17809 | N126: =1+IF(ISNA(VLOOKUP(B126,'Rural and Low Income 23-24'!$A:$B,2,FALSE)),0,$N$17) -> 1.1 | O126: 19590 | R126: 0 | S126: 19590 | T126: =IFERROR(VLOOKUP(B126,'[3]2022-23 Final'!$B$19:$S$156,18,FALSE),0) -> 15763 | U126: 3827 | V126: =IF(ISNA(VLOOKUP(B126,[4]Sheet1!$B$1:$D$96,1,FALSE)),"N","Y") -> Y | Y126: 1500 | Z126: 21090
A127: 109 | B127: 13160 | D127: ROYAL | E127: =IFERROR(VLOOKUP(B127,Enrollment!$A$1:$F$147,4,FALSE),0) -> 237 | F127: 102381 | G127: =IFERROR(VLOOKUP(B127,Enrollment!$A$1:$F$147,6,FALSE),0) -> 80 | H127: 8640 | I127: =IFERROR(VLOOKUP(B127,Enrollment!$A$1:$F$147,5,FALSE),0) -> 139 | J127: 60046 | K127: 171067 | L127: =IF(E127>$E$17,_xlfn.IFNA(VLOOKUP(B127,'other funds ftr 2023'!A:I,9,FALSE),0),1) -> 1 | M127: 171067 | N127: =1+IF(ISNA(VLOOKUP(B127,'Rural and Low Income 23-24'!$A:$B,2,FALSE)),0,$N$17) -> 1 | O127: 171067 | R127: 0 | S127: 171067 | T127: =IFERROR(VLOOKUP(B127,'[3]2022-23 Final'!$B$19:$S$156,18,FALSE),0) -> 162130 | U127: 8937 | V127: =IF(ISNA(VLOOKUP(B127,[4]Sheet1!$B$1:$D$96,1,FALSE)),"N","Y") -> Y | Y127: 2500 | Z127: 173567
A128: 110 | B128: 28149 | D128: SAN JUAN ISLAND | E128: =IFERROR(VLOOKUP(B128,Enrollment!$A$1:$F$147,4,FALSE),0) -> 12 | F128: 5184 | G128: =IFERROR(VLOOKUP(B128,Enrollment!$A$1:$F$147,6,FALSE),0) -> 2 | H128: 216 | I128: =IFERROR(VLOOKUP(B128,Enrollment!$A$1:$F$147,5,FALSE),0) -> 7 | J128: 3024 | K128: 8424 | L128: =IF(E128>$E$17,_xlfn.IFNA(VLOOKUP(B128,'other funds ftr 2023'!A:I,9,FALSE),0),1) -> 1.05 | M128: 8845 | N128: =1+IF(ISNA(VLOOKUP(B128,'Rural and Low Income 23-24'!$A:$B,2,FALSE)),0,$N$17) -> 1 | O128: 8845 | R128: 0 | S128: 8845 | T128: =IFERROR(VLOOKUP(B128,'[3]2022-23 Final'!$B$19:$S$156,18,FALSE),0) -> 11851 | U128: -3006 | V128: =IF(ISNA(VLOOKUP(B128,[4]Sheet1!$B$1:$D$96,1,FALSE)),"N","Y") -> Y | Y128: 1500 | Z128: 10345
A129: 111 | B129: 17001 | D129: SEATTLE PUBLIC SCHOOLS | E129: =IFERROR(VLOOKUP(B129,Enrollment!$A$1:$F$147,4,FALSE),0) -> 57 | F129: 24623 | G129: =IFERROR(VLOOKUP(B129,Enrollment!$A$1:$F$147,6,FALSE),0) -> 37 | H129: 3996 | I129: =IFERROR(VLOOKUP(B129,Enrollment!$A$1:$F$147,5,FALSE),0) -> 9 | J129: 3888 | K129: 32507 | L129: =IF(E129>$E$17,_xlfn.IFNA(VLOOKUP(B129,'other funds ftr 2023'!A:I,9,FALSE),0),1) -> 1.15 | M129: 37383 | N129: =1+IF(ISNA(VLOOKUP(B129,'Rural and Low Income 23-24'!$A:$B,2,FALSE)),0,$N$17) -> 1 | O129: 37383 | R129: 0 | S129: 37383 | T129: =IFERROR(VLOOKUP(B129,'[3]2022-23 Final'!$B$19:$S$156,18,FALSE),0) -> 121802 | U129: -84419 | V129: =IF(ISNA(VLOOKUP(B129,[4]Sheet1!$B$1:$D$96,1,FALSE)),"N","Y") -> Y | Y129: 1500 | Z129: 38883
A130: 112 | B130: 29101 | D130: SEDRO-WOOLLEY | E130: =IFERROR(VLOOKUP(B130,Enrollment!$A$1:$F$147,4,FALSE),0) -> 176 | F130: 76029 | G130: =IFERROR(VLOOKUP(B130,Enrollment!$A$1:$F$147,6,FALSE),0) -> 39 | H130: 4212 | I130: =IFERROR(VLOOKUP(B130,Enrollment!$A$1:$F$147,5,FALSE),0) -> 116 | J130: 50110 | K130: 130351 | L130: =IF(E130>$E$17,_xlfn.IFNA(VLOOKUP(B130,'other funds ftr 2023'!A:I,9,FALSE),0),1) -> 1.05 | M130: 136869 | N130: =1+IF(ISNA(VLOOKUP(B130,'Rural and Low Income 23-24'!$A:$B,2,FALSE)),0,$N$17) -> 1 | O130: 136869 | R130: 0 | S130: 136869 | T130: =IFERROR(VLOOKUP(B130,'[3]2022-23 Final'!$B$19:$S$156,18,FALSE),0) -> 125077 | U130: 11792 | V130: =IF(ISNA(VLOOKUP(B130,[4]Sheet1!$B$1:$D$96,1,FALSE)),"N","Y") -> Y | Y130: 2500 | Z130: 139369
A131: 113 | B131: 39119 | D131: SELAH | E131: =IFERROR(VLOOKUP(B131,Enrollment!$A$1:$F$147,4,FALSE),0) -> 204 | F131: 88125 | G131: =IFERROR(VLOOKUP(B131,Enrollment!$A$1:$F$147,6,FALSE),0) -> 38 | H131: 4104 | I131: =IFERROR(VLOOKUP(B131,Enrollment!$A$1:$F$147,5,FALSE),0) -> 151 | J131: 65230 | K131: 157459 | L131: =IF(E131>$E$17,_xlfn.IFNA(VLOOKUP(B131,'other funds ftr 2023'!A:I,9,FALSE),0),1) -> 1.05 | M131: 165332 | N131: =1+IF(ISNA(VLOOKUP(B131,'Rural and Low Income 23-24'!$A:$B,2,FALSE)),0,$N$17) -> 1 | O131: 165332 | R131: 0 | S131: 165332 | T131: =IFERROR(VLOOKUP(B131,'[3]2022-23 Final'!$B$19:$S$156,18,FALSE),0) -> 134493 | U131: 30839 | V131: =IF(ISNA(VLOOKUP(B131,[4]Sheet1!$B$1:$D$96,1,FALSE)),"N","Y") -> Y | Y131: 2500 | Z131: 167832
A132: 114 | B132: 23309 | D132: SHELTON | E132: =IFERROR(VLOOKUP(B132,Enrollment!$A$1:$F$147,4,FALSE),0) -> 137 | F132: 59182 | G132: =IFERROR(VLOOKUP(B132,Enrollment!$A$1:$F$147,6,FALSE),0) -> 89 | H132: 9612 | I132: =IFERROR(VLOOKUP(B132,Enrollment!$A$1:$F$147,5,FALSE),0) -> 35 | J132: 15119 | K132: 83913 | L132: =IF(E132>$E$17,_xlfn.IFNA(VLOOKUP(B132,'other funds ftr 2023'!A:I,9,FALSE),0),1) -> 1.15 | M132: 96500 | N132: =1+IF(ISNA(VLOOKUP(B132,'Rural and Low Income 23-24'!$A:$B,2,FALSE)),0,$N$17) -> 1 | O132: 0 | R132: 0 | S132: 0 | T132: =IFERROR(VLOOKUP(B132,'[3]2022-23 Final'!$B$19:$S$156,18,FALSE),0) -> 0 | U132: 0 | V132: =IF(ISNA(VLOOKUP(B132,[4]Sheet1!$B$1:$D$96,1,FALSE)),"N","Y") -> N | Y132: 0 | Z132: 0
A133: 115 | B133: 31201 | D133: SNOHOMISH | E133: =IFERROR(VLOOKUP(B133,Enrollment!$A$1:$F$147,4,FALSE),0) -> 77 | F133: 33263 | G133: =IFERROR(VLOOKUP(B133,Enrollment!$A$1:$F$147,6,FALSE),0) -> 18 | H133: 1944 | I133: =IFERROR(VLOOKUP(B133,Enrollment!$A$1:$F$147,5,FALSE),0) -> 43 | J133: 18575 | K133: 53782 | L133: =IF(E133>$E$17,_xlfn.IFNA(VLOOKUP(B133,'other funds ftr 2023'!A:I,9,FALSE),0),1) -> 1.05 | M133: 56471 | N133: =1+IF(ISNA(VLOOKUP(B133,'Rural and Low Income 23-24'!$A:$B,2,FALSE)),0,$N$17) -> 1 | O133: 56471 | R133: 0 | S133: 56471 | T133: =IFERROR(VLOOKUP(B133,'[3]2022-23 Final'!$B$19:$S$156,18,FALSE),0) -> 56193 | U133: 278 | V133: =IF(ISNA(VLOOKUP(B133,[4]Sheet1!$B$1:$D$96,1,FALSE)),"N","Y") -> Y | Y133: 1500 | Z133: 57971
A134: 116 | B134: 13156 | D134: SOAP LAKE | E134: =IFERROR(VLOOKUP(B134,Enrollment!$A$1:$F$147,4,FALSE),0) -> 55 | F134: 23759 | G134: =IFERROR(VLOOKUP(B134,Enrollment!$A$1:$F$147,6,FALSE),0) -> 17 | H134: 1836 | I134: =IFERROR(VLOOKUP(B134,Enrollment!$A$1:$F$147,5,FALSE),0) -> 32 | J134: 13824 | K134: 39419 | L134: =IF(E134>$E$17,_xlfn.IFNA(VLOOKUP(B134,'other funds ftr 2023'!A:I,9,FALSE),0),1) -> 1.15 | M134: 45332 | N134: =1+IF(ISNA(VLOOKUP(B134,'Rural and Low Income 23-24'!$A:$B,2,FALSE)),0,$N$17) -> 1.1 | O134: 0 | R134: 0 | S134: 0 | T134: =IFERROR(VLOOKUP(B134,'[3]2022-23 Final'!$B$19:$S$156,18,FALSE),0) -> 0 | U134: 0 | V134: =IF(ISNA(VLOOKUP(B134,[4]Sheet1!$B$1:$D$96,1,FALSE)),"N","Y") -> N | Y134: 0 | Z134: 0
A135: 117 | B135: 32081 | D135: SPOKANE | E135: =IFERROR(VLOOKUP(B135,Enrollment!$A$1:$F$147,4,FALSE),0) -> 119 | F135: 51406 | G135: =IFERROR(VLOOKUP(B135,Enrollment!$A$1:$F$147,6,FALSE),0) -> 31 | H135: 3348 | I135: =IFERROR(VLOOKUP(B135,Enrollment!$A$1:$F$147,5,FALSE),0) -> 70 | J135: 30239 | K135: 84993 | L135: =IF(E135>$E$17,_xlfn.IFNA(VLOOKUP(B135,'other funds ftr 2023'!A:I,9,FALSE),0),1) -> 1.15 | M135: 97742 | N135: =1+IF(ISNA(VLOOKUP(B135,'Rural and Low Income 23-24'!$A:$B,2,FALSE)),0,$N$17) -> 1 | O135: 0 | R135: 0 | S135: 0 | T135: =IFERROR(VLOOKUP(B135,'[3]2022-23 Final'!$B$19:$S$156,18,FALSE),0) -> 0 | U135: 0 | V135: =IF(ISNA(VLOOKUP(B135,[4]Sheet1!$B$1:$D$96,1,FALSE)),"N","Y") -> N | Y135: 0 | Z135: 0
A136: 118 | B136: 31401 | D136: STANWOOD-CAMANO | E136: =IFERROR(VLOOKUP(B136,Enrollment!$A$1:$F$147,4,FALSE),0) -> 18 | F136: 7776 | G136: =IFERROR(VLOOKUP(B136,Enrollment!$A$1:$F$147,6,FALSE),0) -> 2 | H136: 216 | I136: =IFERROR(VLOOKUP(B136,Enrollment!$A$1:$F$147,5,FALSE),0) -> 16 | J136: 6912 | K136: 14904 | L136: =IF(E136>$E$17,_xlfn.IFNA(VLOOKUP(B136,'other funds ftr 2023'!A:I,9,FALSE),0),1) -> 1.15 | M136: 17140 | N136: =1+IF(ISNA(VLOOKUP(B136,'Rural and Low Income 23-24'!$A:$B,2,FALSE)),0,$N$17) -> 1 | O136: 17140 | R136: 0 | S136: 17140 | T136: =IFERROR(VLOOKUP(B136,'[3]2022-23 Final'!$B$19:$S$156,18,FALSE),0) -> 12821 | U136: 4319 | V136: =IF(ISNA(VLOOKUP(B136,[4]Sheet1!$B$1:$D$96,1,FALSE)),"N","Y") -> Y | Y136: 1500 | Z136: 18640
A137: 119 | B137: 30303 | D137: STEVENSON-CARSON | E137: =IFERROR(VLOOKUP(B137,Enrollment!$A$1:$F$147,4,FALSE),0) -> 21 | F137: 9072 | G137: =IFERROR(VLOOKUP(B137,Enrollment!$A$1:$F$147,6,FALSE),0) -> 6 | H137: 648 | I137: =IFERROR(VLOOKUP(B137,Enrollment!$A$1:$F$147,5,FALSE),0) -> 14 | J137: 6048 | K137: 15768 | L137: =IF(E137>$E$17,_xlfn.IFNA(VLOOKUP(B137,'other funds ftr 2023'!A:I,9,FALSE),0),1) -> 1.15 | M137: 18133 | N137: =1+IF(ISNA(VLOOKUP(B137,'Rural and Low Income 23-24'!$A:$B,2,FALSE)),0,$N$17) -> 1.1 | O137: 0 | R137: 0 | S137: 0 | T137: =IFERROR(VLOOKUP(B137,'[3]2022-23 Final'!$B$19:$S$156,18,FALSE),0) -> 0 | U137: 0 | V137: =IF(ISNA(VLOOKUP(B137,[4]Sheet1!$B$1:$D$96,1,FALSE)),"N","Y") -> N | Y137: 0 | Z137: 0
A138: 120 | B138: 39201 | D138: SUNNYSIDE | E138: =IFERROR(VLOOKUP(B138,Enrollment!$A$1:$F$147,4,FALSE),0) -> 1911 | F138: 825524 | G138: =IFERROR(VLOOKUP(B138,Enrollment!$A$1:$F$147,6,FALSE),0) -> 458 | H138: 49462 | I138: =IFERROR(VLOOKUP(B138,Enrollment!$A$1:$F$147,5,FALSE),0) -> 1047 | J138: 452289 | K138: 1327275 | L138: =IF(E138>$E$17,_xlfn.IFNA(VLOOKUP(B138,'other funds ftr 2023'!A:I,9,FALSE),0),1) -> 0.95 | M138: 1260911 | N138: =1+IF(ISNA(VLOOKUP(B138,'Rural and Low Income 23-24'!$A:$B,2,FALSE)),0,$N$17) -> 1.1 | O138: 1387002 | R138: 0 | S138: 1387002 | T138: =IFERROR(VLOOKUP(B138,'[3]2022-23 Final'!$B$19:$S$156,18,FALSE),0) -> 1500016 | U138: -113014 | V138: =IF(ISNA(VLOOKUP(B138,[4]Sheet1!$B$1:$D$96,1,FALSE)),"N","Y") -> Y | Y138: 4000 | Z138: 1391002
A139: 121 | B139: 27010 | D139: TACOMA | E139: =IFERROR(VLOOKUP(B139,Enrollment!$A$1:$F$147,4,FALSE),0) -> 25 | F139: 10800 | G139: =IFERROR(VLOOKUP(B139,Enrollment!$A$1:$F$147,6,FALSE),0) -> 10 | H139: 1080 | I139: =IFERROR(VLOOKUP(B139,Enrollment!$A$1:$F$147,5,FALSE),0) -> 13 | J139: 5616 | K139: 17496 | L139: =IF(E139>$E$17,_xlfn.IFNA(VLOOKUP(B139,'other funds ftr 2023'!A:I,9,FALSE),0),1) -> 1.15 | M139: 20120 | N139: =1+IF(ISNA(VLOOKUP(B139,'Rural and Low Income 23-24'!$A:$B,2,FALSE)),0,$N$17) -> 1 | O139: 0 | R139: 0 | S139: 0 | T139: =IFERROR(VLOOKUP(B139,'[3]2022-23 Final'!$B$19:$S$156,18,FALSE),0) -> 0 | U139: 0 | V139: =IF(ISNA(VLOOKUP(B139,[4]Sheet1!$B$1:$D$96,1,FALSE)),"N","Y") -> N | Y139: 0 | Z139: 0
A140: 122 | B140: 14077 | D140: TAHOLAH | E140: =IFERROR(VLOOKUP(B140,Enrollment!$A$1:$F$147,4,FALSE),0) -> 99 | F140: 42767 | G140: =IFERROR(VLOOKUP(B140,Enrollment!$A$1:$F$147,6,FALSE),0) -> 21 | H140: 2268 | I140: =IFERROR(VLOOKUP(B140,Enrollment!$A$1:$F$147,5,FALSE),0) -> 78 | J140: 33695 | K140: 78730 | L140: =IF(E140>$E$17,_xlfn.IFNA(VLOOKUP(B140,'other funds ftr 2023'!A:I,9,FALSE),0),1) -> 0.85 | M140: 66921 | N140: =1+IF(ISNA(VLOOKUP(B140,'Rural and Low Income 23-24'!$A:$B,2,FALSE)),0,$N$17) -> 1.1 | O140: 73613 | R140: 0 | S140: 73613 | T140: =IFERROR(VLOOKUP(B140,'[3]2022-23 Final'!$B$19:$S$156,18,FALSE),0) -> 42428 | U140: 31185 | V140: =IF(ISNA(VLOOKUP(B140,[4]Sheet1!$B$1:$D$96,1,FALSE)),"N","Y") -> Y | Y140: 1500 | Z140: 75113
A141: 123 | B141: 24404 | D141: TONASKET | E141: =IFERROR(VLOOKUP(B141,Enrollment!$A$1:$F$147,4,FALSE),0) -> 318 | F141: 137371 | G141: =IFERROR(VLOOKUP(B141,Enrollment!$A$1:$F$147,6,FALSE),0) -> 91 | H141: 9828 | I141: =IFERROR(VLOOKUP(B141,Enrollment!$A$1:$F$147,5,FALSE),0) -> 234 | J141: 101085 | K141: 248284 | L141: =IF(E141>$E$17,_xlfn.IFNA(VLOOKUP(B141,'other funds ftr 2023'!A:I,9,FALSE),0),1) -> 0.85 | M141: 211041 | N141: =1+IF(ISNA(VLOOKUP(B141,'Rural and Low Income 23-24'!$A:$B,2,FALSE)),0,$N$17) -> 1.1 | O141: 232145 | R141: 0 | S141: 232145 | T141: =IFERROR(VLOOKUP(B141,'[3]2022-23 Final'!$B$19:$S$156,18,FALSE),0) -> 275856 | U141: -43711 | V141: =IF(ISNA(VLOOKUP(B141,[4]Sheet1!$B$1:$D$96,1,FALSE)),"N","Y") -> Y | Y141: 2500 | Z141: 234645
A142: 124 | B142: 39202 | D142: TOPPENISH | E142: =IFERROR(VLOOKUP(B142,Enrollment!$A$1:$F$147,4,FALSE),0) -> 852 | F142: 368052 | G142: =IFERROR(VLOOKUP(B142,Enrollment!$A$1:$F$147,6,FALSE),0) -> 270 | H142: 29159 | I142: =IFERROR(VLOOKUP(B142,Enrollment!$A$1:$F$147,5,FALSE),0) -> 515 | J142: 222473 | K142: 619684 | L142: =IF(E142>$E$17,_xlfn.IFNA(VLOOKUP(B142,'other funds ftr 2023'!A:I,9,FALSE),0),1) -> 0.95 | M142: 588700 | N142: =1+IF(ISNA(VLOOKUP(B142,'Rural and Low Income 23-24'!$A:$B,2,FALSE)),0,$N$17) -> 1 | O142: 588700 | R142: 0 | S142: 588700 | T142: =IFERROR(VLOOKUP(B142,'[3]2022-23 Final'!$B$19:$S$156,18,FALSE),0) -> 614175 | U142: -25475 | V142: =IF(ISNA(VLOOKUP(B142,[4]Sheet1!$B$1:$D$96,1,FALSE)),"N","Y") -> Y | Y142: 4000 | Z142: 592700
A143: 125 | B143: 20400 | D143: TROUT LAKE | E143: =IFERROR(VLOOKUP(B143,Enrollment!$A$1:$F$147,4,FALSE),0) -> 52 | F143: 22463 | G143: =IFERROR(VLOOKUP(B143,Enrollment!$A$1:$F$147,6,FALSE),0) -> 2 | H143: 216 | I143: =IFERROR(VLOOKUP(B143,Enrollment!$A$1:$F$147,5,FALSE),0) -> 48 | J143: 20735 | K143: 43414 | L143: =IF(E143>$E$17,_xlfn.IFNA(VLOOKUP(B143,'other funds ftr 2023'!A:I,9,FALSE),0),1) -> 1.15 | M143: 49926 | N143: =1+IF(ISNA(VLOOKUP(B143,'Rural and Low Income 23-24'!$A:$B,2,FALSE)),0,$N$17) -> 1.1 | O143: 0 | R143: 0 | S143: 0 | T143: =IFERROR(VLOOKUP(B143,'[3]2022-23 Final'!$B$19:$S$156,18,FALSE),0) -> 0 | U143: 0 | V143: =IF(ISNA(VLOOKUP(B143,[4]Sheet1!$B$1:$D$96,1,FALSE)),"N","Y") -> N | Y143: 0 | Z143: 0
A144: 126 | B144: 34033 | D144: TUMWATER | E144: =IFERROR(VLOOKUP(B144,Enrollment!$A$1:$F$147,4,FALSE),0) -> 10 | F144: 4320 | G144: =IFERROR(VLOOKUP(B144,Enrollment!$A$1:$F$147,6,FALSE),0) -> 2 | H144: 216 | I144: =IFERROR(VLOOKUP(B144,Enrollment!$A$1:$F$147,5,FALSE),0) -> 8 | J144: 3456 | K144: 7992 | L144: =IF(E144>$E$17,_xlfn.IFNA(VLOOKUP(B144,'other funds ftr 2023'!A:I,9,FALSE),0),1) -> 1 | M144: 7992 | N144: =1+IF(ISNA(VLOOKUP(B144,'Rural and Low Income 23-24'!$A:$B,2,FALSE)),0,$N$17) -> 1 | O144: 0 | R144: 0 | S144: 0 | T144: =IFERROR(VLOOKUP(B144,'[3]2022-23 Final'!$B$19:$S$156,18,FALSE),0) -> 0 | U144: 0 | V144: =IF(ISNA(VLOOKUP(B144,[4]Sheet1!$B$1:$D$96,1,FALSE)),"N","Y") -> N | Y144: 0 | Z144: 0
A145: 127 | B145: 39002 | D145: UNION GAP | E145: =IFERROR(VLOOKUP(B145,Enrollment!$A$1:$F$147,4,FALSE),0) -> 82 | F145: 35423 | G145: =IFERROR(VLOOKUP(B145,Enrollment!$A$1:$F$147,6,FALSE),0) -> 18 | H145: 1944 | I145: =IFERROR(VLOOKUP(B145,Enrollment!$A$1:$F$147,5,FALSE),0) -> 54 | J145: 23327 | K145: 60694 | L145: =IF(E145>$E$17,_xlfn.IFNA(VLOOKUP(B145,'other funds ftr 2023'!A:I,9,FALSE),0),1) -> 1.05 | M145: 63729 | N145: =1+IF(ISNA(VLOOKUP(B145,'Rural and Low Income 23-24'!$A:$B,2,FALSE)),0,$N$17) -> 1.1 | O145: 70102 | R145: 0 | S145: 70102 | T145: =IFERROR(VLOOKUP(B145,'[3]2022-23 Final'!$B$19:$S$156,18,FALSE),0) -> 35517 | U145: 34585 | V145: =IF(ISNA(VLOOKUP(B145,[4]Sheet1!$B$1:$D$96,1,FALSE)),"N","Y") -> Y | Y145: 1500 | Z145: 71602
A146: 128 | B146: 06037 | D146: VANCOUVER | E146: =IFERROR(VLOOKUP(B146,Enrollment!$A$1:$F$147,4,FALSE),0) -> 59 | F146: 25487 | G146: =IFERROR(VLOOKUP(B146,Enrollment!$A$1:$F$147,6,FALSE),0) -> 1 | H146: 108 | I146: =IFERROR(VLOOKUP(B146,Enrollment!$A$1:$F$147,5,FALSE),0) -> 55 | J146: 23759 | K146: 49354 | L146: =IF(E146>$E$17,_xlfn.IFNA(VLOOKUP(B146,'other funds ftr 2023'!A:I,9,FALSE),0),1) -> 1.15 | M146: 56757 | N146: =1+IF(ISNA(VLOOKUP(B146,'Rural and Low Income 23-24'!$A:$B,2,FALSE)),0,$N$17) -> 1 | O146: 56757 | R146: 0 | S146: 56757 | T146: =IFERROR(VLOOKUP(B146,'[3]2022-23 Final'!$B$19:$S$156,18,FALSE),0) -> 42450 | U146: 14307 | V146: =IF(ISNA(VLOOKUP(B146,[4]Sheet1!$B$1:$D$96,1,FALSE)),"N","Y") -> Y | Y146: 1500 | Z146: 58257
A147: 129 | B147: 34901 | D147: WA HE LUT INDIAN SCHOOL | E147: =IFERROR(VLOOKUP(B147,Enrollment!$A$1:$F$147,4,FALSE),0) -> 14 | F147: 6048 | G147: =IFERROR(VLOOKUP(B147,Enrollment!$A$1:$F$147,6,FALSE),0) -> 3 | H147: 324 | I147: =IFERROR(VLOOKUP(B147,Enrollment!$A$1:$F$147,5,FALSE),0) -> 7 | J147: 3024 | K147: =+F147+H147+J147 -> 9396 | L147: =IF(E147>$E$17,_xlfn.IFNA(VLOOKUP(B147,'other funds ftr 2023'!A:I,9,FALSE),0),1) -> 0.95 | M147: =IF(L147=0,K147,ROUND(K147*L147,0)) -> 8926 | N147: =1+IF(ISNA(VLOOKUP(B147,'Rural and Low Income 23-24'!$A:$B,2,FALSE)),0,$N$17) -> 1 | O147: =IF(V147="y",ROUND(M147*N147,0),0) -> 0 | R147: 0 | S147: =O147+R147 -> 0 | T147: =IFERROR(VLOOKUP(B147,'[3]2022-23 Final'!$B$19:$S$156,18,FALSE),0) -> 12067 | U147: =S147-T147 -> -12067 | V147: =IF(ISNA(VLOOKUP(B147,[4]Sheet1!$B$1:$D$96,1,FALSE)),"N","Y") -> N | Y147: 0 | Z147: 0
A148: 130 | B148: 13073 | D148: WAHLUKE | E148: =IFERROR(VLOOKUP(B148,Enrollment!$A$1:$F$147,4,FALSE),0) -> 1856 | F148: =IF(E148>=10,ROUND(E148*$G$3,0),0) -> 801765 | G148: =IFERROR(VLOOKUP(B148,Enrollment!$A$1:$F$147,6,FALSE),0) -> 422 | H148: =IF(E148>=$E$17,ROUND(G148*$G$3*$G$17,0),0) -> 45574 | I148: =IFERROR(VLOOKUP(B148,Enrollment!$A$1:$F$147,5,FALSE),0) -> 1318 | J148: =IF(E148>=$E$17,ROUND(I148*$G$3*$I$17,0),0) -> 569357 | K148: 1416696 | L148: =IF(E148>$E$17,_xlfn.IFNA(VLOOKUP(B148,'other funds ftr 2023'!A:I,9,FALSE),0),1) -> 0.85 | M148: 1204192 | N148: =1+IF(ISNA(VLOOKUP(B148,'Rural and Low Income 23-24'!$A:$B,2,FALSE)),0,$N$17) -> 1 | O148: 1204192 | R148: 0 | S148: 1204192 | T148: =IFERROR(VLOOKUP(B148,'[3]2022-23 Final'!$B$19:$S$156,18,FALSE),0) -> 1364113 | U148: -159921 | V148: =IF(ISNA(VLOOKUP(B148,[4]Sheet1!$B$1:$D$96,1,FALSE)),"N","Y") -> Y | Y148: =IF(V148="Y",IF(E148<=99,1500,IF(AND(E148>=100,E148<=399),2500,4000)),0) -> 4000 | Z148: =IF(W148=1, 0, Y148+S148) -> 1208192
A149: 131 | B149: 36140 | D149: WALLA WALLA PUBLIC SCHOOLS | E149: =IFERROR(VLOOKUP(B149,Enrollment!$A$1:$F$147,4,FALSE),0) -> 82 | F149: 35423 | G149: =IFERROR(VLOOKUP(B149,Enrollment!$A$1:$F$147,6,FALSE),0) -> 50 | H149: 5400 | I149: =IFERROR(VLOOKUP(B149,Enrollment!$A$1:$F$147,5,FALSE),0) -> 20 | J149: 8640 | K149: 49463 | L149: =IF(E149>$E$17,_xlfn.IFNA(VLOOKUP(B149,'other funds ftr 2023'!A:I,9,FALSE),0),1) -> 1.15 | M149: 56882 | N149: =1+IF(ISNA(VLOOKUP(B149,'Rural and Low Income 23-24'!$A:$B,2,FALSE)),0,$N$17) -> 1 | O149: 56882 | R149: 0 | S149: 56882 | T149: =IFERROR(VLOOKUP(B149,'[3]2022-23 Final'!$B$19:$S$156,18,FALSE),0) -> 62916 | U149: -6034 | V149: =IF(ISNA(VLOOKUP(B149,[4]Sheet1!$B$1:$D$96,1,FALSE)),"N","Y") -> Y | Y149: 1500 | Z149: 58382
A150: 132 | B150: 39207 | D150: WAPATO | E150: =IFERROR(VLOOKUP(B150,Enrollment!$A$1:$F$147,4,FALSE),0) -> 905 | F150: 390947 | G150: =IFERROR(VLOOKUP(B150,Enrollment!$A$1:$F$147,6,FALSE),0) -> 206 | H150: 22247 | I150: =IFERROR(VLOOKUP(B150,Enrollment!$A$1:$F$147,5,FALSE),0) -> 596 | J150: 257463 | K150: 670657 | L150: =IF(E150>$E$17,_xlfn.IFNA(VLOOKUP(B150,'other funds ftr 2023'!A:I,9,FALSE),0),1) -> 0.95 | M150: 637124 | N150: =1+IF(ISNA(VLOOKUP(B150,'Rural and Low Income 23-24'!$A:$B,2,FALSE)),0,$N$17) -> 1 | O150: 637124 | R150: 0 | S150: 637124 | T150: =IFERROR(VLOOKUP(B150,'[3]2022-23 Final'!$B$19:$S$156,18,FALSE),0) -> 683408 | U150: -46284 | V150: =IF(ISNA(VLOOKUP(B150,[4]Sheet1!$B$1:$D$96,1,FALSE)),"N","Y") -> Y | Y150: 4000 | Z150: 641124
A151: 133 | B151: 13146 | D151: WARDEN | E151: =IFERROR(VLOOKUP(B151,Enrollment!$A$1:$F$147,4,FALSE),0) -> 279 | F151: 120524 | G151: =IFERROR(VLOOKUP(B151,Enrollment!$A$1:$F$147,6,FALSE),0) -> 74 | H151: 7992 | I151: =IFERROR(VLOOKUP(B151,Enrollment!$A$1:$F$147,5,FALSE),0) -> 180 | J151: 77757 | K151: 206273 | L151: =IF(E151>$E$17,_xlfn.IFNA(VLOOKUP(B151,'other funds ftr 2023'!A:I,9,FALSE),0),1) -> 0.85 | M151: 175332 | N151: =1+IF(ISNA(VLOOKUP(B151,'Rural and Low Income 23-24'!$A:$B,2,FALSE)),0,$N$17) -> 1 | O151: 175332 | R151: 0 | S151: 175332 | T151: =IFERROR(VLOOKUP(B151,'[3]2022-23 Final'!$B$19:$S$156,18,FALSE),0) -> 234696 | U151: -59364 | V151: =IF(ISNA(VLOOKUP(B151,[4]Sheet1!$B$1:$D$96,1,FALSE)),"N","Y") -> Y | Y151: 2500 | Z151: 177832
A152: 134 | B152: 09209 | D152: WATERVILLE | E152: =IFERROR(VLOOKUP(B152,Enrollment!$A$1:$F$147,4,FALSE),0) -> 19 | F152: 8208 | G152: =IFERROR(VLOOKUP(B152,Enrollment!$A$1:$F$147,6,FALSE),0) -> 4 | H152: 432 | I152: =IFERROR(VLOOKUP(B152,Enrollment!$A$1:$F$147,5,FALSE),0) -> 14 | J152: 6048 | K152: 14688 | L152: =IF(E152>$E$17,_xlfn.IFNA(VLOOKUP(B152,'other funds ftr 2023'!A:I,9,FALSE),0),1) -> 1.15 | M152: 16891 | N152: =1+IF(ISNA(VLOOKUP(B152,'Rural and Low Income 23-24'!$A:$B,2,FALSE)),0,$N$17) -> 1.1 | O152: 18580 | R152: 0 | S152: 18580 | T152: =IFERROR(VLOOKUP(B152,'[3]2022-23 Final'!$B$19:$S$156,18,FALSE),0) -> 0 | U152: 18580 | V152: =IF(ISNA(VLOOKUP(B152,[4]Sheet1!$B$1:$D$96,1,FALSE)),"N","Y") -> Y | Y152: 1500 | Z152: 20080
A153: 135 | B153: 33049 | D153: WELLPINIT | E153: =IFERROR(VLOOKUP(B153,Enrollment!$A$1:$F$147,4,FALSE),0) -> 114 | F153: 49246 | G153: =IFERROR(VLOOKUP(B153,Enrollment!$A$1:$F$147,6,FALSE),0) -> 35 | H153: 3780 | I153: =IFERROR(VLOOKUP(B153,Enrollment!$A$1:$F$147,5,FALSE),0) -> 39 | J153: 16847 | K153: 69873 | L153: =IF(E153>$E$17,_xlfn.IFNA(VLOOKUP(B153,'other funds ftr 2023'!A:I,9,FALSE),0),1) -> 0.95 | M153: 66379 | N153: =1+IF(ISNA(VLOOKUP(B153,'Rural and Low Income 23-24'!$A:$B,2,FALSE)),0,$N$17) -> 1.1 | O153: 73017 | R153: 0 | S153: 73017 | T153: =IFERROR(VLOOKUP(B153,'[3]2022-23 Final'!$B$19:$S$156,18,FALSE),0) -> 63880 | U153: 9137 | V153: =IF(ISNA(VLOOKUP(B153,[4]Sheet1!$B$1:$D$96,1,FALSE)),"N","Y") -> Y | Y153: 2500 | Z153: 75517
A154: 136 | B154: 04246 | D154: WENATCHEE | E154: =IFERROR(VLOOKUP(B154,Enrollment!$A$1:$F$147,4,FALSE),0) -> 1562 | F154: 674762 | G154: =IFERROR(VLOOKUP(B154,Enrollment!$A$1:$F$147,6,FALSE),0) -> 431 | H154: 46546 | I154: =IFERROR(VLOOKUP(B154,Enrollment!$A$1:$F$147,5,FALSE),0) -> 1105 | J154: 477344 | K154: 1198652 | L154: =IF(E154>$E$17,_xlfn.IFNA(VLOOKUP(B154,'other funds ftr 2023'!A:I,9,FALSE),0),1) -> 0.85 | M154: 1018854 | N154: =1+IF(ISNA(VLOOKUP(B154,'Rural and Low Income 23-24'!$A:$B,2,FALSE)),0,$N$17) -> 1 | O154: 1018854 | R154: 0 | S154: 1018854 | T154: =IFERROR(VLOOKUP(B154,'[3]2022-23 Final'!$B$19:$S$156,18,FALSE),0) -> 1320925 | U154: -302071 | V154: =IF(ISNA(VLOOKUP(B154,[4]Sheet1!$B$1:$D$96,1,FALSE)),"N","Y") -> Y | Y154: 4000 | Z154: 1022854
A155: 137 | B155: 39208 | D155: WEST VALLEY (YAKIMA) | E155: =IFERROR(VLOOKUP(B155,Enrollment!$A$1:$F$147,4,FALSE),0) -> 197 | F155: 85101 | G155: =IFERROR(VLOOKUP(B155,Enrollment!$A$1:$F$147,6,FALSE),0) -> 40 | H155: 4320 | I155: =IFERROR(VLOOKUP(B155,Enrollment!$A$1:$F$147,5,FALSE),0) -> 142 | J155: 61342 | K155: 150763 | L155: =IF(E155>$E$17,_xlfn.IFNA(VLOOKUP(B155,'other funds ftr 2023'!A:I,9,FALSE),0),1) -> 1.15 | M155: 173377 | N155: =1+IF(ISNA(VLOOKUP(B155,'Rural and Low Income 23-24'!$A:$B,2,FALSE)),0,$N$17) -> 1 | O155: 173377 | R155: 0 | S155: 173377 | T155: =IFERROR(VLOOKUP(B155,'[3]2022-23 Final'!$B$19:$S$156,18,FALSE),0) -> 63007 | U155: 110370 | V155: =IF(ISNA(VLOOKUP(B155,[4]Sheet1!$B$1:$D$96,1,FALSE)),"N","Y") -> Y | Y155: 2500 | Z155: 175877
A156: 138 | B156: 21303 | D156: WHITE PASS | E156: =IFERROR(VLOOKUP(B156,Enrollment!$A$1:$F$147,4,FALSE),0) -> 27 | F156: 11664 | G156: =IFERROR(VLOOKUP(B156,Enrollment!$A$1:$F$147,6,FALSE),0) -> 0 | H156: 0 | I156: =IFERROR(VLOOKUP(B156,Enrollment!$A$1:$F$147,5,FALSE),0) -> 23 | J156: 9936 | K156: 21600 | L156: =IF(E156>$E$17,_xlfn.IFNA(VLOOKUP(B156,'other funds ftr 2023'!A:I,9,FALSE),0),1) -> 1.15 | M156: 24840 | N156: =1+IF(ISNA(VLOOKUP(B156,'Rural and Low Income 23-24'!$A:$B,2,FALSE)),0,$N$17) -> 1.1 | O156: 0 | R156: 0 | S156: 0 | T156: =IFERROR(VLOOKUP(B156,'[3]2022-23 Final'!$B$19:$S$156,18,FALSE),0) -> 0 | U156: 0 | V156: =IF(ISNA(VLOOKUP(B156,[4]Sheet1!$B$1:$D$96,1,FALSE)),"N","Y") -> N | Y156: 0 | Z156: 0
A157: 139 | B157: 20405 | D157: WHITE SALMON VALLEY | E157: =IFERROR(VLOOKUP(B157,Enrollment!$A$1:$F$147,4,FALSE),0) -> 34 | F157: 14688 | G157: =IFERROR(VLOOKUP(B157,Enrollment!$A$1:$F$147,6,FALSE),0) -> 6 | H157: 648 | I157: =IFERROR(VLOOKUP(B157,Enrollment!$A$1:$F$147,5,FALSE),0) -> 26 | J157: 11232 | K157: 26568 | L157: =IF(E157>$E$17,_xlfn.IFNA(VLOOKUP(B157,'other funds ftr 2023'!A:I,9,FALSE),0),1) -> 1.15 | M157: 30553 | N157: =1+IF(ISNA(VLOOKUP(B157,'Rural and Low Income 23-24'!$A:$B,2,FALSE)),0,$N$17) -> 1 | O157: 30553 | R157: 0 | S157: 30553 | T157: =IFERROR(VLOOKUP(B157,'[3]2022-23 Final'!$B$19:$S$156,18,FALSE),0) -> 0 | U157: 30553 | V157: =IF(ISNA(VLOOKUP(B157,[4]Sheet1!$B$1:$D$96,1,FALSE)),"N","Y") -> Y | Y157: 1500 | Z157: 32053
A158: 140 | B158: 21232 | D158: WINLOCK | E158: =IFERROR(VLOOKUP(B158,Enrollment!$A$1:$F$147,4,FALSE),0) -> 99 | F158: 42767 | G158: =IFERROR(VLOOKUP(B158,Enrollment!$A$1:$F$147,6,FALSE),0) -> 41 | H158: 4428 | I158: =IFERROR(VLOOKUP(B158,Enrollment!$A$1:$F$147,5,FALSE),0) -> 39 | J158: 16847 | K158: 64042 | L158: =IF(E158>$E$17,_xlfn.IFNA(VLOOKUP(B158,'other funds ftr 2023'!A:I,9,FALSE),0),1) -> 1 | M158: 64042 | N158: =1+IF(ISNA(VLOOKUP(B158,'Rural and Low Income 23-24'!$A:$B,2,FALSE)),0,$N$17) -> 1 | O158: 64042 | R158: 0 | S158: 64042 | T158: =IFERROR(VLOOKUP(B158,'[3]2022-23 Final'!$B$19:$S$156,18,FALSE),0) -> 64710 | U158: -668 | V158: =IF(ISNA(VLOOKUP(B158,[4]Sheet1!$B$1:$D$96,1,FALSE)),"N","Y") -> Y | Y158: 1500 | Z158: 65542
A159: 141 | B159: 20094 | D159: WISHRAM | E159: =IFERROR(VLOOKUP(B159,Enrollment!$A$1:$F$147,4,FALSE),0) -> 13 | F159: 5616 | G159: =IFERROR(VLOOKUP(B159,Enrollment!$A$1:$F$147,6,FALSE),0) -> 1 | H159: 108 | I159: =IFERROR(VLOOKUP(B159,Enrollment!$A$1:$F$147,5,FALSE),0) -> 3 | J159: 1296 | K159: 7020 | L159: =IF(E159>$E$17,_xlfn.IFNA(VLOOKUP(B159,'other funds ftr 2023'!A:I,9,FALSE),0),1) -> 0 | M159: 7020 | N159: =1+IF(ISNA(VLOOKUP(B159,'Rural and Low Income 23-24'!$A:$B,2,FALSE)),0,$N$17) -> 1.1 | O159: 7722 | R159: 0 | S159: 7722 | T159: =IFERROR(VLOOKUP(B159,'[3]2022-23 Final'!$B$19:$S$156,18,FALSE),0) -> 0 | U159: 7722 | V159: =IF(ISNA(VLOOKUP(B159,[4]Sheet1!$B$1:$D$96,1,FALSE)),"N","Y") -> Y | Y159: 1500 | Z159: 9222
A160: 142 | B160: 08404 | D160: WOODLAND | E160: =IFERROR(VLOOKUP(B160,Enrollment!$A$1:$F$147,4,FALSE),0) -> 41 | F160: 17711 | G160: =IFERROR(VLOOKUP(B160,Enrollment!$A$1:$F$147,6,FALSE),0) -> 2 | H160: 216 | I160: =IFERROR(VLOOKUP(B160,Enrollment!$A$1:$F$147,5,FALSE),0) -> 38 | J160: 16415 | K160: 34342 | L160: =IF(E160>$E$17,_xlfn.IFNA(VLOOKUP(B160,'other funds ftr 2023'!A:I,9,FALSE),0),1) -> 0 | M160: 34342 | N160: =1+IF(ISNA(VLOOKUP(B160,'Rural and Low Income 23-24'!$A:$B,2,FALSE)),0,$N$17) -> 1 | O160: 0 | R160: 0 | S160: 0 | T160: =IFERROR(VLOOKUP(B160,'[3]2022-23 Final'!$B$19:$S$156,18,FALSE),0) -> 0 | U160: 0 | V160: =IF(ISNA(VLOOKUP(B160,[4]Sheet1!$B$1:$D$96,1,FALSE)),"N","Y") -> N | Y160: 0 | Z160: 0
A161: 143 | B161: 39901 | D161: YAKAMA NATION TRIBAL COMPACT | E161: =IFERROR(VLOOKUP(B161,Enrollment!$A$1:$F$147,4,FALSE),0) -> 38 | F161: 16415 | G161: =IFERROR(VLOOKUP(B161,Enrollment!$A$1:$F$147,6,FALSE),0) -> 13 | H161: 1404 | I161: =IFERROR(VLOOKUP(B161,Enrollment!$A$1:$F$147,5,FALSE),0) -> 23 | J161: 9936 | K161: 27755 | L161: =IF(E161>$E$17,_xlfn.IFNA(VLOOKUP(B161,'other funds ftr 2023'!A:I,9,FALSE),0),1) -> 0.85 | M161: 23592 | N161: =1+IF(ISNA(VLOOKUP(B161,'Rural and Low Income 23-24'!$A:$B,2,FALSE)),0,$N$17) -> 1 | O161: 0 | R161: 0 | S161: 0 | T161: =IFERROR(VLOOKUP(B161,'[3]2022-23 Final'!$B$19:$S$156,18,FALSE),0) -> 44928 | U161: -44928 | V161: =IF(ISNA(VLOOKUP(B161,[4]Sheet1!$B$1:$D$96,1,FALSE)),"N","Y") -> N | Y161: 0 | Z161: 0
A162: 144 | B162: 39007 | D162: YAKIMA | E162: =IFERROR(VLOOKUP(B162,Enrollment!$A$1:$F$147,4,FALSE),0) -> 2044 | F162: 882979 | G162: =IFERROR(VLOOKUP(B162,Enrollment!$A$1:$F$147,6,FALSE),0) -> 518 | H162: 55942 | I162: =IFERROR(VLOOKUP(B162,Enrollment!$A$1:$F$147,5,FALSE),0) -> 1374 | J162: 593548 | K162: 1532469 | L162: =IF(E162>$E$17,_xlfn.IFNA(VLOOKUP(B162,'other funds ftr 2023'!A:I,9,FALSE),0),1) -> 1 | M162: 1532469 | N162: =1+IF(ISNA(VLOOKUP(B162,'Rural and Low Income 23-24'!$A:$B,2,FALSE)),0,$N$17) -> 1 | O162: 1532469 | R162: 0 | S162: 1532469 | T162: =IFERROR(VLOOKUP(B162,'[3]2022-23 Final'!$B$19:$S$156,18,FALSE),0) -> 1485646 | U162: 46823 | V162: =IF(ISNA(VLOOKUP(B162,[4]Sheet1!$B$1:$D$96,1,FALSE)),"N","Y") -> Y | Y162: 4000 | Z162: 1536469
A163: 145 | B163: 34002 | D163: YELM | E163: =IFERROR(VLOOKUP(B163,Enrollment!$A$1:$F$147,4,FALSE),0) -> 64 | F163: 27647 | G163: =IFERROR(VLOOKUP(B163,Enrollment!$A$1:$F$147,6,FALSE),0) -> 4 | H163: 432 | I163: =IFERROR(VLOOKUP(B163,Enrollment!$A$1:$F$147,5,FALSE),0) -> 45 | J163: 19439 | K163: 47518 | L163: =IF(E163>$E$17,_xlfn.IFNA(VLOOKUP(B163,'other funds ftr 2023'!A:I,9,FALSE),0),1) -> 1.15 | M163: 54646 | N163: =1+IF(ISNA(VLOOKUP(B163,'Rural and Low Income 23-24'!$A:$B,2,FALSE)),0,$N$17) -> 1 | O163: 0 | R163: 0 | S163: 0 | T163: =IFERROR(VLOOKUP(B163,'[3]2022-23 Final'!$B$19:$S$156,18,FALSE),0) -> 0 | U163: 0 | V163: =IF(ISNA(VLOOKUP(B163,[4]Sheet1!$B$1:$D$96,1,FALSE)),"N","Y") -> N | Y163: 0 | Z163: 0
A164: 146 | B164: 39205 | D164: ZILLAH | E164: =IFERROR(VLOOKUP(B164,Enrollment!$A$1:$F$147,4,FALSE),0) -> 88 | F164: 38015 | G164: =IFERROR(VLOOKUP(B164,Enrollment!$A$1:$F$147,6,FALSE),0) -> 24 | H164: 2592 | I164: =IFERROR(VLOOKUP(B164,Enrollment!$A$1:$F$147,5,FALSE),0) -> 49 | J164: 21167 | K164: 61774 | L164: =IF(E164>$E$17,_xlfn.IFNA(VLOOKUP(B164,'other funds ftr 2023'!A:I,9,FALSE),0),1) -> 1.05 | M164: 64863 | N164: =1+IF(ISNA(VLOOKUP(B164,'Rural and Low Income 23-24'!$A:$B,2,FALSE)),0,$N$17) -> 1 | O164: 64863 | R164: =ROUND(IF(Q164>0,-(0.9-Q164)*O164,0),0) -> 0 | S164: 64863 | T164: =IFERROR(VLOOKUP(B164,'[3]2022-23 Final'!$B$19:$S$156,18,FALSE),0) -> 57750 | U164: 7113 | V164: =IF(ISNA(VLOOKUP(B164,[4]Sheet1!$B$1:$D$96,1,FALSE)),"N","Y") -> Y | Y164: 1500 | Z164: 66363

Sheet Assumptions (hidden)
A1: Assumptions and Factors — Title I Part C Migrant - Final
B2: Caution: Yellow Cells below drive are inputs into the calculations in this model
AJ3: Row Headings on Allocation Table
A4: Funding | C4: FINAL 2023-24 | D4: Preliminary 2023-24 | E4: Final 2022-23 | F4: Preliminary 2022-23 | G4: Final 2021-22 | H4: Preliminary 2021-22 | I4: Final 2020-21 | J4: Preliminary 2020-21 | K4: Final 2019-20 | L4: Preliminary 2019-20 | M4: Final 2018-19 | N4: Preliminary 2018-19 | O4: Final 2017-18 | P4: Preliminary 2017-18 | Q4: 2nd Rev Final 2016-17 | R4: Rev Final 2016-17 | S4: Final 2016-17 | T4: Final 2015-16 | U4: Preliminary 2015-16 | V4: Final 2014-15 | W4: Preliminary 2014-15 | X4: Revised Final 2013-14 | Y4: Final 2013-14 | Z4: Final 2012-13 | AA4: Preliminary 2012-13 | AB4: Final 2011-12 | AC4: Preliminary 2011-12 | AD4: Final 2010-11 | AE4: Final 2009-10 | AF4: Final 2008-09 | AG4: Source:
B5: Total State Allocation | C5: 38616843 | D5: 38616843 | E5: 38126160 | F5: 38,168,234 | G5: 36172055 | H5: 36170767 | I5: 33650164 | J5: 32545772 | K5: 29253692 | L5: 28509499 | M5: 27865765 | N5: 26740196 | O5: 24667573 | P5: 24540413 | Q5: 14921087 | R5: 14921087 | S5: 14921087 | T5: 14921087 | U5: 14875015 | V5: 14875015 | W5: 14875015 | X5: 14839257 | Y5: 14839257 | Z5: 15628872 | AA5: 15628872 | AB5: 15659257 | AC5: 15659257 | AD5: 15691456 | AE5: 14450894 | AF5: 15015291
B6: State Allocation under $14B rule | C6: 28466965 | D6: 28448427 | E6: ='[5]Final T-I State Admin 1004(b)'!$C$60 -> 29491607 | F6: ='[6]Prel. T-I State Admin 1004(b)'!$C$60 -> 29524149 | G6: 29680217 | H6: 29680217 | I6: 28007581 | J6: 32545800 | K6: 23817704 | L6: 23834846 | M6: 21267203 | N6: 21267203 | O6: 13112612 | P6: 13104377 | Q6: 13566765 | R6: 13616032 | S6: 13566765 | T6: 14077428 | U6: 14055099 | V6: 14085411 | W6: 14041918 | X6: 14645076 | Y6: 14645076 | Z6: 14620622 | AA6: 14620622 | AB6: 14680941 | AC6: 14680941 | AD6: 14980942
A7: General Admin | B7: State Admin | C7: =ROUND(C6*0.01,0) -> 284670 | D7: 284484 | E7: 294916 | F7: 295241 | G7: 296802 | H7: 296802 | I7: 280076 | J7: 325458 | K7: =ROUND(K6*0.01,0) -> 238177 | L7: 238348 | M7: 212672 | N7: 212672 | O7: 131126 | P7: 131044 | Q7: 135668 | R7: 136160 | S7: 135668 | T7: 140774 | U7: 140551 | V7: 140854 | W7: 140419 | X7: 146451 | Y7: =ROUND(Y6*0.01,0) -> 146451 | Z7: =ROUND(Z6*0.01,0) -> 146206 | AA7: =ROUND(AA6*0.01,0) -> 146206 | AB7: =ROUND(AB6*0.01,0) -> 146809 | AC7: =ROUND(14680941*0.01,0) -> 146809 | AD7: =ROUND(14680942*0.01,0) -> 146809 | AE7: =ROUND(13563693*0.01,0) -> 135637 | AF7: =ROUND(14649429*0.01,0) -> 146494 | AG7: 0.01
B8: State Level Activities (Unallocated Balance) | C8: =C5-C7-C18-C24 -> 15061378 | D8: 15162254 | E8: 14955548 | F8: 14972053 | G8: 13087588 | H8: 13086382 | I8: 13179990 | J8: =J5-J7-J18-J24 -> 12692851 | K8: 10935689 | L8: 11551691 | M8: 11233633 | N8: 10783406 | O8: 9920983 | P8: 12702535 | Q8: 3078585 | R8: 3078093 | S8: 4570694 | T8: 2999662 | U8: 2953813 | V8: 3913523 | W8: 2273028 | X8: 14692806 | Y8: 14692806 | Z8: 15482666 | AA8: 15482666 | AB8: 15512448 | AC8: 15512448 | AD8: 15544647 | AE8: 14315257 | AF8: 536592
A10: Other Admin | B10: Director salary
B11: Regional Offices
B12: MSDS
B13: Other stakeholders
B15: Other Grants - not through formula | G15: 180000
B16: Summer Grants - Current Year | C16: 2179730 | D16: 2317010 | E16: 2107548 | F16: 2290094 | G16: 2278840 | H16: 2278758 | I16: 3365016 | J16: 3254577 | K16: 2978130 | L16: 2786577 | M16: 2486577 | N16: 2374020 | O16: 2281677 | P16: 1492109 | Q16: 1492109 | R16: 1492109 | T16: 1565926 | U16: 1565926 | V16: 1565926 | W16: 1565926 | X16: 1562887 | Y16: 1562887 | AA16: 1000000 | AB16: 1000000 | AD16: 1550000 | AE16: 1200000 | AF16: 1200000
B17: Summer Grants - Prior Year Unspent Funds | W17: 75004
B18: Total | C18: =C16+C17 -> 2179730 | D18: 2317010 | E18: 2107548 | F18: 2290094 | G18: 2278840 | H18: 2278758 | I18: =I16+I17 -> 3365016 | J18: 3254577 | K18: 2978130 | L18: 2786577 | M18: 2486577 | N18: 2374020 | O18: 2281677 | P18: 1492109 | Q18: 1492109 | R18: 1492109 | T18: 1565926 | U18: =U16 -> 1565926 | W18: =SUM(W16:W17) -> 1640930
B19: Allocated per Worksheet
B20: Difference
B22: Total Regular Year Allocation - from Sylvia | C22: 21091065 | D22: 20853095 | E22: 20768148 | F22: 20610846 | G22: 20508825 | H22: 20508825 | I22: 16825082 | J22: 16272886 | K22: 15101696 | L22: 13932883 | M22: 13932883 | N22: 13370098 | O22: 12333787 | P22: 8952652 | Q22: 8952652 | R22: 8952652 | S22: 8952652 | T22: 9470989 | U22: 9470989 | V22: 9395554 | W22: 9395554 | X22: 9212323 | Y22: 9212323 | Z22: 11016189 | AA22: 11016189 | AB22: 11500000 | AC22: 11500000 | AD22: 11500000 | AE22: 10135000 | AF22: 9900000
B23: Regular Grants from Prior Year Unspent Funds | P23: 1262073 | Q23: 1262073 | R23: 1262073 | S23: 1262073 | T23: 743736 | U23: 743736 | V23: 1425084 | W23: 1425084 | Z23: ='[2]2012-13 FINAL'!N18 -> 11010766
B24: Total | C24: =SUM(C22:C23) -> 21091065 | D24: =SUM(D22:D23) -> 20853095 | E24: =SUM(E22:E23) -> 20768148 | F24: =SUM(F22:F23) -> 20610846 | G24: =SUM(G22:G23) -> 20508825 | H24: =SUM(H22:H23) -> 20508825 | I24: 16825082 | J24: 16272886 | K24: 15101696 | L24: 13932883 | M24: 13932883 | N24: 13370098 | O24: 12333787 | P24: 10214725 | Q24: 10214725 | R24: 10214725 | S24: 10214725 | T24: 10214725 | U24: 10214725 | V24: 10820638 | W24: 10820638
B25: Allocated per Worksheet before MOE | C25: ='2023-24 Final'!$O$18 -> 21091065 | D25: ='2023-24 Final'!$O$18 -> 21091065 | E25: =#REF! ->  | F25: ='[2]2022-23 Prelim'!O18 -> 20768148 | G25: ='[2]2021-22 Final'!N18 -> 20508825 | H25: ='[2]2021-22 Prelim'!N18 -> 20508825 | I25: ='[2]2020-21 Final'!N18 -> 16795507 | J25: ='[2]2020-21 Prelim'!N18 -> 16272886 | K25: ='[2]2019-20 Prelim'!N18 -> 13932883 | L25: ='[2]2019-20 Prelim'!N18 -> 13932883 | M25: ='[2]2018-19 Final'!N18 -> 13932883 | N25: ='[2]2018-19 Prelim'!N18 -> 13370098 | O25: ='[2]2017-18 Final'!N18 -> 12333787 | W25: ='[2]2014-15 Preliminary'!N18 -> 10820638
B26: MOE Reduction | G26: ='[2]2021-22 Prelim'!O18 -> 0 | H26: ='[2]2021-22 Prelim'!P18 -> 0 | I26: ='[2]2020-21 Final'!P18 -> 0 | J26: ='[2]2020-21 Prelim'!P18 -> 0 | K26: ='[2]2019-20 Prelim'!Q18 -> -57 | L26: ='[2]2019-20 Prelim'!Q18 -> -57 | M26: ='[2]2018-19 Final'!Q18 -> 0 | N26: ='[2]2018-19 Final'!Q18 -> 0 | O26: ='[2]2017-18 Final'!Q18 -> -1406
B27: Allocated per Worksheet after MOE | C27: =SUM(C25:C26) -> 21091065 | D27: 21091065 | F27: 20768148 | G27: 20508825 | H27: 20508825 | I27: 16795507 | J27: 16272886 | K27: 13932826 | L27: 13932826 | M27: 13932883 | N27: 13370098 | O27: 12332381
B29: MERO Allocation - Sylvia to provide | K29: 2757777 | V29: 1619378 | W29: 1619378
B30: Allocated per Worksheet | W30: ='[2]2014-15 MERO Prelim'!N18 -> 1409333
B31: Difference | W31: =+W29-W30 -> 210045
B35: Counter-do not change | AA35: 1
B37: Summer:
B38: Amount per Pass Unit | AA38: 90 | AB38: 90
B39: Amount per Credits | AA39: 900 | AB39: 900
B42: Number of LEP child within the districts | Y42: From Bilingual apportionment data
A43: DataSets: | B43: Native american students are also added. See above.
B48: Allocations
B52: Program Review (Sylvia Reyna)
A55: Other Fund Factor
A56: Min | L56: =SMALL('[2]other funds ftr 1819 for 1920'!H:H,COUNTIF('[2]other funds ftr 1819 for 1920'!H:H,0)+1) ->  | N56: =SMALL('[2]other funds ftr 1718 for 1819'!H:H,COUNTIF('[2]other funds ftr 1718 for 1819'!H:H,0)+1) -> 
A57: < 20th Percentile | B57: 1.15 | D57: =_xlfn.PERCENTILE.INC(IF('other funds ftr 2023'!$H$2:$H$139,'other funds ftr 2023'!$H$2:$H$139),0.2) -> 0.01993083996 | L57: =PERCENTILE(IF('[2]other funds ftr 1819 for 1920'!H2:H311,'[2]other funds ftr 1819 for 1920'!H2:H311),0.2) -> 0.01565336724 | N57: =PERCENTILE(IF('[2]other funds ftr 1718 for 1819'!H3:H297,'[2]other funds ftr 1718 for 1819'!H3:H297),0.2) -> 0.01719687959
A58: < 40th Percentile | B58: 1.05 | D58: =_xlfn.PERCENTILE.INC(IF('other funds ftr 2023'!$H$2:$H$139,'other funds ftr 2023'!$H$2:$H$139),0.4) -> 0.04121037659 | L58: =PERCENTILE(IF('[2]other funds ftr 1819 for 1920'!H2:H311,'[2]other funds ftr 1819 for 1920'!H2:H311),0.4) -> 0.0370609667 | N58: =PERCENTILE(IF('[2]other funds ftr 1718 for 1819'!H4:H298,'[2]other funds ftr 1718 for 1819'!H4:H298),0.4) -> 0.03624933072
A59: < 60th Percentile | B59: 1 | D59: =_xlfn.PERCENTILE.INC(IF('other funds ftr 2023'!$H$2:$H$139,'other funds ftr 2023'!$H$2:$H$139),0.6) -> 0.06688501693 | L59: =PERCENTILE(IF('[2]other funds ftr 1819 for 1920'!H2:H311,'[2]other funds ftr 1819 for 1920'!H2:H311),0.6) -> 0.0597864668 | N59: =PERCENTILE(IF('[2]other funds ftr 1718 for 1819'!H5:H299,'[2]other funds ftr 1718 for 1819'!H5:H299),0.6) -> 0.05439831943
A60: < 80th Percentile | B60: 0.95 | D60: =_xlfn.PERCENTILE.INC(IF('other funds ftr 2023'!$H$2:$H$139,'other funds ftr 2023'!$H$2:$H$139),0.8) -> 0.1163585088 | L60: =PERCENTILE(IF('[2]other funds ftr 1819 for 1920'!H2:H311,'[2]other funds ftr 1819 for 1920'!H2:H311),0.8) -> 0.08792628225 | N60: =PERCENTILE(IF('[2]other funds ftr 1718 for 1819'!H5:H299,'[2]other funds ftr 1718 for 1819'!H5:H299),0.8) -> 0.07666408416
A61: < Max | B61: 0.85 | D61: =MAX('other funds ftr 2023'!$H$2:$H$139) -> 1 | L61: =MAX('[2]other funds ftr 1819 for 1920'!H:H) -> 0.1706049389 | N61: =MAX('[2]other funds ftr 1718 for 1819'!H:H) -> 0.1237520479

Sheet Enrollment (hidden)
A1: CO_DIST_NUM | B1: DIST_TITLE | C1: ESD | D1: AVG STUDENTS | E1: PRIORITY | F1: NEEDY
A2: 14005 | B2: ABERDEEN | C2: 189 | D2: 114 | E2: 58 | F2: 38
A3: 29103 | B3: ANACORTES | C3: 189 | D3: 11 | E3: 10 | F3: 0
A4: 31016 | B4: ARLINGTON | C4: 189 | D4: 41 | E4: 26 | F4: 12
A5: 17408 | B5: AUBURN | C5: 189 | D5: 37 | E5: 28 | F5: 6
A6: 06119 | B6: BATTLE GROUND | C6: 189 | D6: 23 | E6: 21 | F6: 0
A7: 37501 | B7: BELLINGHAM | C7: 189 | D7: 128 | E7: 70 | F7: 43
A8: 27403 | B8: BETHEL | C8: 189 | D8: 16 | E8: 13 | F8: 2
A9: 18100 | B9: BREMERTON | C9: 189 | D9: 61 | E9: 38 | F9: 13
A10: 24111 | B10: BREWSTER | C10: 171 | D10: 237 | E10: 156 | F10: 43
A11: 09075 | B11: BRIDGEPORT | C11: 171 | D11: 128 | E11: 85 | F11: 37
A12: 29100 | B12: BURLINGTON-EDISON | C12: 189 | D12: 491 | E12: 341 | F12: 124
A13: 04228 | B13: CASCADE | C13: 171 | D13: 53 | E13: 30 | F13: 16
A14: 04222 | B14: CASHMERE | C14: 171 | D14: 184 | E14: 146 | F14: 26
A15: 18401 | B15: CENTRAL KITSAP | C15: 189 | D15: 17 | E15: 5 | F15: 10
A16: 32356 | B16: CENTRAL VALLEY | C16: 105 | D16: 17 | E16: 8 | F16: 8
A17: 21401 | B17: CENTRALIA | C17: 189 | D17: 90 | E17: 30 | F17: 49
A18: 21302 | B18: CHEHALIS | C18: 189 | D18: 38 | E18: 18 | F18: 13
A19: 32360 | B19: CHENEY | C19: 171 | D19: 21 | E19: 8 | F19: 9
A20: 27901 | B20: CHIEF LESCHI TRIBAL COMPACT | C20: 189 | D20: 37 | E20: 28 | F20: 3
A21: 27400 | B21: CLOVER PARK | C21: 189 | D21: 13 | E21: 8 | F21: 5
A22: 36250 | B22: COLLEGE PLACE | C22: 123 | D22: 144 | E22: 77 | F22: 49
A23: 36400 | B23: COLUMBIA (WALLA WALLA) | C23: 123 | D23: 53 | E23: 29 | F23: 28
A24: 29317 | B24: CONWAY | C24: 189 | D24: 14 | E24: 10 | F24: 5
A25: 15204 | B25: COUPEVILLE | C25: 189 | D25: 18 | E25: 7 | F25: 8
A26: 39090 | B26: EAST VALLEY (YAKIMA) | C26: 105 | D26: 230 | E26: 165 | F26: 43
A27: 09206 | B27: EASTMONT | C27: 171 | D27: 888 | E27: 597 | F27: 295
A28: 19028 | B28: EASTON | C28: 189 | D28: 13 | E28: 12 | F28: 0
A29: 31015 | B29: EDMONDS | C29: 189 | D29: 17 | E29: 12 | F29: 4
A30: 39801 | B30: EDUCATIONAL SERVICE DISTRICT 105 | C30: NULL | D30: 35 | E30: 19 | F30: 14
A31: 11801 | B31: EDUCATIONAL SERVICE DISTRICT 123 | C31: NULL | D31: 119 | E31: 54 | F31: 54
A32: 19401 | B32: ELLENSBURG | C32: 105 | D32: 49 | E32: 30 | F32: 15
A33: 14068 | B33: ELMA | C33: 189 | D33: 41 | E33: 34 | F33: 2
A34: 04127 | B34: ENTIAT | C34: 171 | D34: 29 | E34: 23 | F34: 1
A35: 13165 | B35: EPHRATA | C35: 171 | D35: 176 | E35: 69 | F35: 85
A36: 31002 | B36: EVERETT | C36: 189 | D36: 65 | E36: 44 | F36: 12
A37: 06114 | B37: EVERGREEN (CLARK) | C37: 189 | D37: 45 | E37: 31 | F37: 10
A38: 17210 | B38: FEDERAL WAY | C38: 189 | D38: 49 | E38: 13 | F38: 16
A39: 37502 | B39: FERNDALE | C39: 189 | D39: 144 | E39: 102 | F39: 33
A40: 03053 | B40: FINLEY | C40: 123 | D40: 122 | E40: 61 | F40: 61
A41: 27402 | B41: FRANKLIN PIERCE | C41: 189 | D41: 12 | E41: 3 | F41: 4
A42: 20404 | B42: GOLDENDALE | C42: 105 | D42: 83 | E42: 65 | F42: 13
A43: 13301 | B43: GRAND COULEE DAM | C43: 171 | D43: 233 | E43: 166 | F43: 33
A44: 39200 | B44: GRANDVIEW | C44: 105 | D44: 589 | E44: 429 | F44: 134
A45: 39204 | B45: GRANGER | C45: 105 | D45: 362 | E45: 196 | F45: 149
A46: 39203 | B46: HIGHLAND | C46: 105 | D46: 218 | E46: 150 | F46: 46
A47: 17401 | B47: HIGHLINE | C47: 189 | D47: 17 | E47: 8 | F47: 8
A48: 23404 | B48: HOOD CANAL | C48: 189 | D48: 34 | E48: 15 | F48: 17
A49: 14028 | B49: HOQUIAM | C49: 189 | D49: 43 | E49: 16 | F49: 19
A50: 10070 | B50: INCHELIUM | C50: 189 | D50: 18 | E50: 6 | F50: 5
A51: 08458 | B51: KELSO | C51: 189 | D51: 38 | E51: 28 | F51: 8
A52: 03017 | B52: KENNEWICK | C52: 123 | D52: 3081 | E52: 1633 | F52: 1107
A53: 17415 | B53: KENT | C53: 189 | D53: 32 | E53: 23 | F53: 8
A54: 03052 | B54: KIONA-BENTON CITY | C54: 123 | D54: 374 | E54: 243 | F54: 132
A55: 19403 | B55: KITTITAS | C55: 105 | D55: 25 | E55: 17 | F55: 5
A56: 29311 | B56: LA CONNER | C56: 189 | D56: 160 | E56: 132 | F56: 23
A57: 04129 | B57: LAKE CHELAN | C57: 171 | D57: 164 | E57: 94 | F57: 59
A58: 31306 | B58: LAKEWOOD | C58: 189 | D58: 11 | E58: 9 | F58: 2
A59: 01158 | B59: LIND | C59: 123 | D59: 36 | E59: 29 | F59: 3
A60: 08122 | B60: LONGVIEW | C60: 189 | D60: 47 | E60: 29 | F60: 13
A61: 20406 | B61: LYLE | C61: 105 | D61: 28 | E61: 21 | F61: 1
A62: 37504 | B62: LYNDEN | C62: 189 | D62: 129 | E62: 76 | F62: 32
A63: 39120 | B63: MABTON | C63: 105 | D63: 382 | E63: 255 | F63: 136
A64: 04019 | B64: MANSON | C64: 171 | D64: 89 | E64: 53 | F64: 20
A65: 33207 | B65: MARY WALKER | C65: 189 | D65: 27 | E65: 22 | F65: 2
A66: 31025 | B66: MARYSVILLE | C66: 189 | D66: 328 | E66: 229 | F66: 68
A67: 37505 | B67: MERIDIAN | C67: 189 | D67: 45 | E67: 33 | F67: 8
A68: 31103 | B68: MONROE | C68: 189 | D68: 18 | E68: 10 | F68: 6
A69: 13161 | B69: MOSES LAKE | C69: 171 | D69: 495 | E69: 319 | F69: 158
A70: 21206 | B70: MOSSYROCK | C70: 189 | D70: 51 | E70: 25 | F70: 13
A71: 39209 | B71: MOUNT ADAMS | C71: 105 | D71: 231 | E71: 143 | F71: 61
A72: 37507 | B72: MOUNT BAKER | C72: 189 | D72: 56 | E72: 38 | F72: 14
A73: 29320 | B73: MOUNT VERNON | C73: 189 | D73: 1652 | E73: 955 | F73: 522
A74: 17903 | B74: MUCKLESHOOT INDIAN TRIBE | C74: 189 | D74: 20 | E74: 4 | F74: 12
A75: 31006 | B75: MUKILTEO | C75: 189 | D75: 29 | E75: 17 | F75: 10
A76: 39003 | B76: NACHES VALLEY | C76: 105 | D76: 141 | E76: 89 | F76: 39
A77: 25155 | B77: NASELLE-GRAYS RIVER VALLEY | C77: 189 | D77: 49 | E77: 21 | F77: 23
A78: 24014 | B78: NESPELEM | C78: 171 | D78: 56 | E78: 45 | F78: 6
A79: 37506 | B79: NOOKSACK VALLEY | C79: 189 | D79: 139 | E79: 86 | F79: 42
A80: 14064 | B80: NORTH BEACH | C80: 189 | D80: 45 | E80: 30 | F80: 9
A81: 11051 | B81: NORTH FRANKLIN | C81: 123 | D81: 674 | E81: 443 | F81: 234
A82: 18400 | B82: NORTH KITSAP | C82: 189 | D82: 40 | E82: 22 | F82: 12
A83: 23403 | B83: NORTH MASON | C83: 189 | D83: 13 | E83: 11 | F83: 2
A84: 34003 | B84: NORTH THURSTON PUBLIC SCHOOLS | C84: 189 | D84: 50 | E84: 33 | F84: 10
A85: 15201 | B85: OAK HARBOR | C85: 189 | D85: 24 | E85: 14 | F85: 8
A86: 25101 | B86: OCEAN BEACH | C86: 189 | D86: 41 | E86: 9 | F86: 28
A87: 14172 | B87: OCOSTA | C87: 189 | D87: 31 | E87: 17 | F87: 9
A88: 24105 | B88: OKANOGAN | C88: 171 | D88: 64 | E88: 42 | F88: 18
A89: 34111 | B89: OLYMPIA | C89: 189 | D89: 39 | E89: 21 | F89: 13
A90: 24019 | B90: OMAK | C90: 171 | D90: 65 | E90: 37 | F90: 17
A91: 09013 | B91: ORONDO | C91: 171 | D91: 49 | E91: 27 | F91: 13
A92: 24410 | B92: OROVILLE | C92: 171 | D92: 28 | E92: 20 | F92: 3
A93: 01147 | B93: OTHELLO | C93: 123 | D93: 845 | E93: 494 | F93: 268
A94: 11001 | B94: PASCO | C94: 123 | D94: 2018 | E94: 1229 | F94: 628
A95: 24122 | B95: PATEROS | C95: 171 | D95: 43 | E95: 17 | F95: 9
A96: 03050 | B96: PATERSON | C96: 123 | D96: 24 | E96: 17 | F96: 4
A97: 04901 | B97: PINNACLES PREP CHARTER SCHOOL | C97: NULL | D97: 13 | E97: 7 | F97: 4
A98: 36402 | B98: PRESCOTT | C98: 123 | D98: 25 | E98: 12 | F98: 11
A99: 03116 | B99: PROSSER | C99: 123 | D99: 802 | E99: 557 | F99: 261
A100: 27003 | B100: PUYALLUP | C100: 189 | D100: 18 | E100: 11 | F100: 4
A101: 05402 | B101: QUILLAYUTE VALLEY | C101: 189 | D101: 110 | E101: 47 | F101: 47
A102: 13144 | B102: QUINCY | C102: 171 | D102: 627 | E102: 466 | F102: 123
A103: 22009 | B103: REARDAN-EDWALL | C103: 171 | D103: 15 | E103: 11 | F103: 4
A104: 17403 | B104: RENTON | C104: 189 | D104: 29 | E104: 17 | F104: 8
A105: 03400 | B105: RICHLAND | C105: 123 | D105: 254 | E105: 174 | F105: 81
A106: 06122 | B106: RIDGEFIELD | C106: 189 | D106: 30 | E106: 26 | F106: 3
A107: 17407 | B107: RIVERVIEW | C107: 189 | D107: 11 | E107: 8 | F107: 0
A108: 34401 | B108: ROCHESTER | C108: 189 | D108: 42 | E108: 32 | F108: 8
A109: 20403 | B109: ROOSEVELT | C109: 105 | D109: 27 | E109: 21 | F109: 2
A110: 13160 | B110: ROYAL | C110: 105 | D110: 237 | E110: 139 | F110: 80
A111: 28149 | B111: SAN JUAN ISLAND | C111: 189 | D111: 12 | E111: 7 | F111: 2
A112: 17001 | B112: SEATTLE PUBLIC SCHOOLS | C112: 189 | D112: 57 | E112: 9 | F112: 37
A113: 29101 | B113: SEDRO-WOOLLEY | C113: 189 | D113: 176 | E113: 116 | F113: 39
A114: 39119 | B114: SELAH | C114: 105 | D114: 204 | E114: 151 | F114: 38
A115: 23309 | B115: SHELTON | C115: 189 | D115: 137 | E115: 35 | F115: 89
A116: 31201 | B116: SNOHOMISH | C116: 189 | D116: 77 | E116: 43 | F116: 18
A117: 13156 | B117: SOAP LAKE | C117: 171 | D117: 55 | E117: 32 | F117: 17
A118: 32081 | B118: SPOKANE | C118: 171 | D118: 119 | E118: 70 | F118: 31
A119: 31401 | B119: STANWOOD-CAMANO | C119: 189 | D119: 18 | E119: 16 | F119: 2
A120: 30303 | B120: STEVENSON-CARSON | C120: 189 | D120: 21 | E120: 14 | F120: 6
A121: 39201 | B121: SUNNYSIDE | C121: 105 | D121: 1911 | E121: 1047 | F121: 458
A122: 27010 | B122: TACOMA | C122: 189 | D122: 25 | E122: 13 | F122: 10
A123: 14077 | B123: TAHOLAH | C123: 189 | D123: 99 | E123: 78 | F123: 21
A124: 24404 | B124: TONASKET | C124: 171 | D124: 318 | E124: 234 | F124: 91
A125: 39202 | B125: TOPPENISH | C125: 105 | D125: 852 | E125: 515 | F125: 270
A126: 20400 | B126: TROUT LAKE | C126: 105 | D126: 52 | E126: 48 | F126: 2
A127: 34033 | B127: TUMWATER | C127: 189 | D127: 10 | E127: 8 | F127: 2
A128: 39002 | B128: UNION GAP | C128: 105 | D128: 82 | E128: 54 | F128: 18
A129: 06037 | B129: VANCOUVER | C129: 189 | D129: 59 | E129: 55 | F129: 1
A130: 34901 | B130: WA HE LUT INDIAN SCHOOL | C130: 189 | D130: 14 | E130: 7 | F130: 3
A131: 13073 | B131: WAHLUKE | C131: 105 | D131: 1856 | E131: 1318 | F131: 422
A132: 36140 | B132: WALLA WALLA PUBLIC SCHOOLS | C132: 123 | D132: 82 | E132: 20 | F132: 50
A133: 39207 | B133: WAPATO | C133: 105 | D133: 905 | E133: 596 | F133: 206
A134: 13146 | B134: WARDEN | C134: 171 | D134: 279 | E134: 180 | F134: 74
A135: 09209 | B135: WATERVILLE | C135: 171 | D135: 19 | E135: 14 | F135: 4
A136: 33049 | B136: WELLPINIT | C136: 189 | D136: 114 | E136: 39 | F136: 35
A137: 04246 | B137: WENATCHEE | C137: 171 | D137: 1562 | E137: 1105 | F137: 431
A138: 39208 | B138: WEST VALLEY (YAKIMA) | C138: 105 | D138: 197 | E138: 142 | F138: 40
A139: 21303 | B139: WHITE PASS | C139: 189 | D139: 27 | E139: 23 | F139: 0
A140: 20405 | B140: WHITE SALMON VALLEY | C140: 105 | D140: 34 | E140: 26 | F140: 6
A141: 21232 | B141: WINLOCK | C141: 189 | D141: 99 | E141: 39 | F141: 41
A142: 20094 | B142: WISHRAM | C142: 105 | D142: 13 | E142: 3 | F142: 1
A143: 08404 | B143: WOODLAND | C143: 189 | D143: 41 | E143: 38 | F143: 2
A144: 39901 | B144: YAKAMA NATION TRIBAL COMPACT | C144: 105 | D144: 38 | E144: 23 | F144: 13
A145: 39007 | B145: YAKIMA | C145: 105 | D145: 2044 | E145: 1374 | F145: 518
A146: 34002 | B146: YELM | C146: 189 | D146: 64 | E146: 45 | F146: 4
A147: 39205 | B147: ZILLAH | C147: 105 | D147: 88 | E147: 49 | F147: 24

Sheet Rural and Low Income 23-24 (hidden)
A1: CoDis | B1: Local Education Agency (LEA) | D1: Ask Tony May for the list of current year REAP amd RLIS districts
A2: 14005 | B2: Aberdeen School District
A3: 22017 | B3: Almira School District
A4: 01122 | B4: Benge School District
A5: 20203 | B5: Bickleton School District
A6: 21234 | B6: Boistfort School District
A7: 24111 | B7: Brewster School District
A8: 09075 | B8: Bridgeport School District
A9: 16046 | B9: Brinnon School District
A10: 05401 | B10: Cape Flattery School District
A11: 27019 | B11: Carbonado School District
A12: 20215 | B12: Centerville School District
A13: 33036 | B13: Chewelah School District
A14: 38300 | B14: Colfax School District
A15: 38306 | B15: Colton School District
A16: 33206 | B16: Columbia (Stevens) School District
A17: 29011 | B17: Concrete School District
A18: 29317 | B18: Conway School District
A19: 14099 | B19: Cosmopolis School District
A20: 13151 | B20: Coulee-Hartline School District
A21: 05313 | B21: Crescent School District
A22: 22073 | B22: Creston School District
A23: 10050 | B23: Curlew School District
A24: 26059 | B24: Cusick School District
A25: 19007 | B25: Damman School District
A26: 31330 | B26: Darrington School District
A27: 22207 | B27: Davenport School District
A28: 07002 | B28: Dayton School District
A29: 36101 | B29: Dixie School District
A30: 19028 | B30: Easton School District
A31: 38308 | B31: Endicott School District
A32: 04127 | B32: Entiat School District
A33: 21036 | B33: Evaline School District
A34: 33205 | B34: Evergreen School District (Stevens)
A35: 38302 | B35: Garfield School District
A36: 20401 | B36: Glenwood School District
A37: 20404 | B37: Goldendale School District
A38: 39204 | B38: Granger School District
A39: 23054 | B39: Grapeview School District
A40: 32312 | B40: Great Northern School District
A41: 06103 | B41: Green Mountain School District
A42: 22204 | B42: Harrington School District
A43: 23404 | B43: Hood Canal School District
A44: 14028 | B44: Hoquiam School District
A45: 10070 | B45: Inchelium School District
A46: 31063 | B46: Index Elementary School District 63
A47: 11056 | B47: Kahlotus School District
A48: 10003 | B48: Keller School District
A49: 20402 | B49: Klickitat School District
A50: 29311 | B50: La Conner School District
A51: 38126 | B51: LaCrosse School District
A52: 14097 | B52: Lake Quinault School District
A53: 38264 | B53: Lamont School District
A54: 32362 | B54: Liberty School District
A55: 01158 | B55: Lind School District
A56: 33183 | B56: Loon Lake School District
A57: 28144 | B57: Lopez School District
A58: 20406 | B58: Lyle School District
A59: 39120 | B59: Mabton School District
A60: 09207 | B60: Mansfield School District
A61: 33207 | B61: Mary Walker School District
A62: 14065 | B62: McCleary School District
A63: 24350 | B63: Methow Valley School District
A64: 30031 | B64: Mill A School District
A65: 21214 | B65: Morton School District
A66: 21206 | B66: Mossyrock School District
A67: 39209 | B67: Mount Adams School District
A68: 30029 | B68: Mount Pleasant School District
A69: 25155 | B69: Naselle-Grays River Valley School District
A70: 24014 | B70: Nespelem School District
A71: 26056 | B71: Newport School District
A72: 14064 | B72: North Beach School District No. 64
A73: 25200 | B73: North River School District
A74: 33211 | B74: Northport School District
A75: 38324 | B75: Oakesdale School District
A76: 14400 | B76: Oakville School District
A77: 14172 | B77: Ocosta School District
A78: 22105 | B78: Odessa School District
A79: 24105 | B79: Okanogan School District
A80: 24019 | B80: Omak School District
A81: 33030 | B81: Onion Creek School District
A82: 32123 | B82: Orchard Prairie School District
A83: 10065 | B83: Orient School District
A84: 09013 | B84: Orondo School District
A85: 24410 | B85: Oroville School District
A86: 09102 | B86: Palisades School District
A87: 38301 | B87: Palouse School District
A88: 24122 | B88: Pateros School District
A89: 03050 | B89: Paterson School District
A90: 21301 | B90: Pe Ell School District
A91: 12110 | B91: Pomeroy School District
A92: 36402 | B92: Prescott School District
A93: 16020 | B93: Queets-Clearwater School District
A94: 16048 | B94: Quilcene School District
A95: 05402 | B95: Quillayute Valley School District
A96: 25116 | B96: Raymond School District
A97: 22009 | B97: Reardan-Edwall School District
A98: 10309 | B98: Republic School District
A99: 01160 | B99: Ritzville School District
A100: 20403 | B100: Roosevelt School District
A101: 38320 | B101: Rosalia School District
A102: 26070 | B102: Selkirk School District
A103: 28010 | B103: Shaw Island School District
A104: 30002 | B104: Skamania School District
A105: 17404 | B105: Skykomish School District
A106: 13156 | B106: Soap Lake School District
A107: 25118 | B107: South Bend School District
A108: 23042 | B108: Southside School District
A109: 22008 | B109: Sprague School District
A110: 38322 | B110: St. John School District
A111: 11054 | B111: Star School District No. 054
A112: 07035 | B112: Starbuck School District
A113: 04069 | B113: Stehekin School District
A114: 38304 | B114: Steptoe School District
A115: 30303 | B115: Stevenson-Carson School District
A116: 33202 | B116: Summit Valley School District
A117: 39201 | B117: Sunnyside School District
A118: 14077 | B118: Taholah School District
A119: 38265 | B119: Tekoa School District
A120: 19400 | B120: Thorp School District
A121: 24404 | B121: Tonasket School District
A122: 36300 | B122: Touchet School District
A123: 20400 | B123: Trout Lake School District
A124: 39002 | B124: Union Gap School District
A125: 33070 | B125: Valley School District
A126: 35200 | B126: Wahkiakum School District
A127: 36401 | B127: Waitsburg School District
A128: 01109 | B128: Washtucna School District
A129: 09209 | B129: Waterville School District
A130: 33049 | B130: Wellpinit School District #49
A131: 21303 | B131: White Pass School District
A132: 22200 | B132: Wilbur School District
A133: 25160 | B133: Willapa Valley School District
A134: 13167 | B134: Wilson Creek School District
A135: 14117 | B135: Wishkah Valley School District
A136: 20094 | B136: Wishram School District

Sheet other funds ftr 2023 (hidden)
A1: CCDDD | B1: Migrant Districts | C1: Title III 22-23 | D1: Title I A 22-23 | E1: LAP 22-23 | F1: TBIP 22-23 | G1: Title I C 22-23 | H1: Title I C as % of Revs | I1: "Other Funds" Factor
A2: 14005 | B2: ABERDEEN | C2: =IFERROR(VLOOKUP(A2,'[7]Allocation 2022-23'!$B$9:$AC$326,20,FALSE),0) -> 63316 | D2: =IFERROR(VLOOKUP(A2,'[8]22-23 Revised Final'!$A$13:$CI$328,81,FALSE),0) -> 1490904 | E2: =IFERROR(VLOOKUP(A2,[9]Sheet1!$A$3:$D$379,3,FALSE),0) -> 2389675.21 | F2: =IFERROR(VLOOKUP(A2,[9]Sheet1!$A$3:$D$379,4,FALSE),0) -> 699060.11 | G2: =IFERROR(VLOOKUP(A2,'[3]2022-23 Final'!$B$19:$S$156,18,FALSE),0) -> 80840 | H2: =IFERROR(G2/SUM(C2:G2),0) -> 0.01711335791 | I2: =_xlfn.IFS('other funds ftr 2023'!H2<=Assumptions!$D$57,Assumptions!$B$57,'other funds ftr 2023'!H2<=Assumptions!$D$58,Assumptions!$B$58,'other funds ftr 2023'!H2<=Assumptions!$D$59,Assumptions!$B$59,'other funds ftr 2023'!H2<=Assumptions!$D$60,Assumptions!$B$60,'other funds ftr 2023'!H2<=Assumptions!$D$61,Assumptions!$B$61) -> 1.15
A3: 29103 | B3: ANACORTES | C3: =IFERROR(VLOOKUP(A3,'[7]Allocation 2022-23'!$B$9:$AC$326,20,FALSE),0) -> 0 | D3: =IFERROR(VLOOKUP(A3,'[8]22-23 Revised Final'!$A$13:$CI$328,81,FALSE),0) -> 434805 | E3: =IFERROR(VLOOKUP(A3,[9]Sheet1!$A$3:$D$379,3,FALSE),0) -> 553826.38 | F3: =IFERROR(VLOOKUP(A3,[9]Sheet1!$A$3:$D$379,4,FALSE),0) -> 107381.29 | G3: =IFERROR(VLOOKUP(A3,'[3]2022-23 Final'!$B$19:$S$156,18,FALSE),0) -> 0 | H3: 0 | I3: =_xlfn.IFS('other funds ftr 2023'!H3<=Assumptions!$D$57,Assumptions!$B$57,'other funds ftr 2023'!H3<=Assumptions!$D$58,Assumptions!$B$58,'other funds ftr 2023'!H3<=Assumptions!$D$59,Assumptions!$B$59,'other funds ftr 2023'!H3<=Assumptions!$D$60,Assumptions!$B$60,'other funds ftr 2023'!H3<=Assumptions!$D$61,Assumptions!$B$61) -> 1.15
A4: 31016 | B4: ARLINGTON | C4: =IFERROR(VLOOKUP(A4,'[7]Allocation 2022-23'!$B$9:$AC$326,20,FALSE),0) -> 39022 | D4: =IFERROR(VLOOKUP(A4,'[8]22-23 Revised Final'!$A$13:$CI$328,81,FALSE),0) -> 636952 | E4: =IFERROR(VLOOKUP(A4,[9]Sheet1!$A$3:$D$379,3,FALSE),0) -> 1292476.79 | F4: =IFERROR(VLOOKUP(A4,[9]Sheet1!$A$3:$D$379,4,FALSE),0) -> 599452.31 | G4: =IFERROR(VLOOKUP(A4,'[3]2022-23 Final'!$B$19:$S$156,18,FALSE),0) -> 0 | H4: 0 | I4: =_xlfn.IFS('other funds ftr 2023'!H4<=Assumptions!$D$57,Assumptions!$B$57,'other funds ftr 2023'!H4<=Assumptions!$D$58,Assumptions!$B$58,'other funds ftr 2023'!H4<=Assumptions!$D$59,Assumptions!$B$59,'other funds ftr 2023'!H4<=Assumptions!$D$60,Assumptions!$B$60,'other funds ftr 2023'!H4<=Assumptions!$D$61,Assumptions!$B$61) -> 1.15
A5: 17408 | B5: AUBURN | C5: =IFERROR(VLOOKUP(A5,'[7]Allocation 2022-23'!$B$9:$AC$326,20,FALSE),0) -> 569027 | D5: =IFERROR(VLOOKUP(A5,'[8]22-23 Revised Final'!$A$13:$CI$328,81,FALSE),0) -> 4079279 | E5: =IFERROR(VLOOKUP(A5,[9]Sheet1!$A$3:$D$379,3,FALSE),0) -> 10931433.63 | F5: =IFERROR(VLOOKUP(A5,[9]Sheet1!$A$3:$D$379,4,FALSE),0) -> 8543746.25 | G5: =IFERROR(VLOOKUP(A5,'[3]2022-23 Final'!$B$19:$S$156,18,FALSE),0) -> 0 | H5: 0 | I5: =_xlfn.IFS('other funds ftr 2023'!H5<=Assumptions!$D$57,Assumptions!$B$57,'other funds ftr 2023'!H5<=Assumptions!$D$58,Assumptions!$B$58,'other funds ftr 2023'!H5<=Assumptions!$D$59,Assumptions!$B$59,'other funds ftr 2023'!H5<=Assumptions!$D$60,Assumptions!$B$60,'other funds ftr 2023'!H5<=Assumptions!$D$61,Assumptions!$B$61) -> 1.15
A6: 06119 | B6: BATTLE GROUND | C6: =IFERROR(VLOOKUP(A6,'[7]Allocation 2022-23'!$B$9:$AC$326,20,FALSE),0) -> 113227 | D6: =IFERROR(VLOOKUP(A6,'[8]22-23 Revised Final'!$A$13:$CI$328,81,FALSE),0) -> 1783766 | E6: =IFERROR(VLOOKUP(A6,[9]Sheet1!$A$3:$D$379,3,FALSE),0) -> 2792916.01 | F6: =IFERROR(VLOOKUP(A6,[9]Sheet1!$A$3:$D$379,4,FALSE),0) -> 1872851.59 | G6: =IFERROR(VLOOKUP(A6,'[3]2022-23 Final'!$B$19:$S$156,18,FALSE),0) -> 0 | H6: 0 | I6: =_xlfn.IFS('other funds ftr 2023'!H6<=Assumptions!$D$57,Assumptions!$B$57,'other funds ftr 2023'!H6<=Assumptions!$D$58,Assumptions!$B$58,'other funds ftr 2023'!H6<=Assumptions!$D$59,Assumptions!$B$59,'other funds ftr 2023'!H6<=Assumptions!$D$60,Assumptions!$B$60,'other funds ftr 2023'!H6<=Assumptions!$D$61,Assumptions!$B$61) -> 1.15
A7: 17405 | B7: BELLEVUE | C7: =IFERROR(VLOOKUP(A7,'[7]Allocation 2022-23'!$B$9:$AC$326,20,FALSE),0) -> 421685 | D7: =IFERROR(VLOOKUP(A7,'[8]22-23 Revised Final'!$A$13:$CI$328,81,FALSE),0) -> 1936298 | E7: =IFERROR(VLOOKUP(A7,[9]Sheet1!$A$3:$D$379,3,FALSE),0) -> 2619874.45 | F7: =IFERROR(VLOOKUP(A7,[9]Sheet1!$A$3:$D$379,4,FALSE),0) -> 6382409.37 | G7: =IFERROR(VLOOKUP(A7,'[3]2022-23 Final'!$B$19:$S$156,18,FALSE),0) -> 0 | H7: 0 | I7: =_xlfn.IFS('other funds ftr 2023'!H7<=Assumptions!$D$57,Assumptions!$B$57,'other funds ftr 2023'!H7<=Assumptions!$D$58,Assumptions!$B$58,'other funds ftr 2023'!H7<=Assumptions!$D$59,Assumptions!$B$59,'other funds ftr 2023'!H7<=Assumptions!$D$60,Assumptions!$B$60,'other funds ftr 2023'!H7<=Assumptions!$D$61,Assumptions!$B$61) -> 1.15
A8: 37501 | B8: BELLINGHAM | C8: =IFERROR(VLOOKUP(A8,'[7]Allocation 2022-23'!$B$9:$AC$326,20,FALSE),0) -> 113462 | D8: =IFERROR(VLOOKUP(A8,'[8]22-23 Revised Final'!$A$13:$CI$328,81,FALSE),0) -> 2293509 | E8: =IFERROR(VLOOKUP(A8,[9]Sheet1!$A$3:$D$379,3,FALSE),0) -> 3611543.52 | F8: =IFERROR(VLOOKUP(A8,[9]Sheet1!$A$3:$D$379,4,FALSE),0) -> 1607253.37 | G8: =IFERROR(VLOOKUP(A8,'[3]2022-23 Final'!$B$19:$S$156,18,FALSE),0) -> 0 | H8: 0 | I8: =_xlfn.IFS('other funds ftr 2023'!H8<=Assumptions!$D$57,Assumptions!$B$57,'other funds ftr 2023'!H8<=Assumptions!$D$58,Assumptions!$B$58,'other funds ftr 2023'!H8<=Assumptions!$D$59,Assumptions!$B$59,'other funds ftr 2023'!H8<=Assumptions!$D$60,Assumptions!$B$60,'other funds ftr 2023'!H8<=Assumptions!$D$61,Assumptions!$B$61) -> 1.15
A9: 27403 | B9: BETHEL | C9: =IFERROR(VLOOKUP(A9,'[7]Allocation 2022-23'!$B$9:$AC$326,20,FALSE),0) -> 176706 | D9: =IFERROR(VLOOKUP(A9,'[8]22-23 Revised Final'!$A$13:$CI$328,81,FALSE),0) -> 3955849 | E9: =IFERROR(VLOOKUP(A9,[9]Sheet1!$A$3:$D$379,3,FALSE),0) -> 8879764.11 | F9: =IFERROR(VLOOKUP(A9,[9]Sheet1!$A$3:$D$379,4,FALSE),0) -> 2329625.17 | G9: =IFERROR(VLOOKUP(A9,'[3]2022-23 Final'!$B$19:$S$156,18,FALSE),0) -> 0 | H9: 0 | I9: =_xlfn.IFS('other funds ftr 2023'!H9<=Assumptions!$D$57,Assumptions!$B$57,'other funds ftr 2023'!H9<=Assumptions!$D$58,Assumptions!$B$58,'other funds ftr 2023'!H9<=Assumptions!$D$59,Assumptions!$B$59,'other funds ftr 2023'!H9<=Assumptions!$D$60,Assumptions!$B$60,'other funds ftr 2023'!H9<=Assumptions!$D$61,Assumptions!$B$61) -> 1.15
A10: 18100 | B10: BREMERTON | C10: =IFERROR(VLOOKUP(A10,'[7]Allocation 2022-23'!$B$9:$AC$326,20,FALSE),0) -> 66365 | D10: =IFERROR(VLOOKUP(A10,'[8]22-23 Revised Final'!$A$13:$CI$328,81,FALSE),0) -> 1585413 | E10: =IFERROR(VLOOKUP(A10,[9]Sheet1!$A$3:$D$379,3,FALSE),0) -> 3596920.98 | F10: =IFERROR(VLOOKUP(A10,[9]Sheet1!$A$3:$D$379,4,FALSE),0) -> 905894.92 | G10: =IFERROR(VLOOKUP(A10,'[3]2022-23 Final'!$B$19:$S$156,18,FALSE),0) -> 45790 | H10: 0.007385026595 | I10: =_xlfn.IFS('other funds ftr 2023'!H10<=Assumptions!$D$57,Assumptions!$B$57,'other funds ftr 2023'!H10<=Assumptions!$D$58,Assumptions!$B$58,'other funds ftr 2023'!H10<=Assumptions!$D$59,Assumptions!$B$59,'other funds ftr 2023'!H10<=Assumptions!$D$60,Assumptions!$B$60,'other funds ftr 2023'!H10<=Assumptions!$D$61,Assumptions!$B$61) -> 1.15
A11: 24111 | B11: BREWSTER | C11: =IFERROR(VLOOKUP(A11,'[7]Allocation 2022-23'!$B$9:$AC$326,20,FALSE),0) -> 45678 | D11: =IFERROR(VLOOKUP(A11,'[8]22-23 Revised Final'!$A$13:$CI$328,81,FALSE),0) -> 629970 | E11: =IFERROR(VLOOKUP(A11,[9]Sheet1!$A$3:$D$379,3,FALSE),0) -> 892248.85 | F11: =IFERROR(VLOOKUP(A11,[9]Sheet1!$A$3:$D$379,4,FALSE),0) -> 506607.97 | G11: =IFERROR(VLOOKUP(A11,'[3]2022-23 Final'!$B$19:$S$156,18,FALSE),0) -> 169488 | H11: 0.07552965343 | I11: =_xlfn.IFS('other funds ftr 2023'!H11<=Assumptions!$D$57,Assumptions!$B$57,'other funds ftr 2023'!H11<=Assumptions!$D$58,Assumptions!$B$58,'other funds ftr 2023'!H11<=Assumptions!$D$59,Assumptions!$B$59,'other funds ftr 2023'!H11<=Assumptions!$D$60,Assumptions!$B$60,'other funds ftr 2023'!H11<=Assumptions!$D$61,Assumptions!$B$61) -> 0.95
A12: 09075 | B12: BRIDGEPORT | C12: =IFERROR(VLOOKUP(A12,'[7]Allocation 2022-23'!$B$9:$AC$326,20,FALSE),0) -> 49913 | D12: =IFERROR(VLOOKUP(A12,'[8]22-23 Revised Final'!$A$13:$CI$328,81,FALSE),0) -> 438636 | E12: =IFERROR(VLOOKUP(A12,[9]Sheet1!$A$3:$D$379,3,FALSE),0) -> 688971.29 | F12: =IFERROR(VLOOKUP(A12,[9]Sheet1!$A$3:$D$379,4,FALSE),0) -> 611969.43 | G12: =IFERROR(VLOOKUP(A12,'[3]2022-23 Final'!$B$19:$S$156,18,FALSE),0) -> 126591 | H12: 0.0660676759 | I12: =_xlfn.IFS('other funds ftr 2023'!H12<=Assumptions!$D$57,Assumptions!$B$57,'other funds ftr 2023'!H12<=Assumptions!$D$58,Assumptions!$B$58,'other funds ftr 2023'!H12<=Assumptions!$D$59,Assumptions!$B$59,'other funds ftr 2023'!H12<=Assumptions!$D$60,Assumptions!$B$60,'other funds ftr 2023'!H12<=Assumptions!$D$61,Assumptions!$B$61) -> 1
A13: 29100 | B13: BURLINGTON-EDISON | C13: =IFERROR(VLOOKUP(A13,'[7]Allocation 2022-23'!$B$9:$AC$326,20,FALSE),0) -> 103711 | D13: =IFERROR(VLOOKUP(A13,'[8]22-23 Revised Final'!$A$13:$CI$328,81,FALSE),0) -> 1210729 | E13: =IFERROR(VLOOKUP(A13,[9]Sheet1!$A$3:$D$379,3,FALSE),0) -> 1804831.01 | F13: =IFERROR(VLOOKUP(A13,[9]Sheet1!$A$3:$D$379,4,FALSE),0) -> 1351237.64 | G13: =IFERROR(VLOOKUP(A13,'[3]2022-23 Final'!$B$19:$S$156,18,FALSE),0) -> 246367 | H13: 0.052230972 | I13: =_xlfn.IFS('other funds ftr 2023'!H13<=Assumptions!$D$57,Assumptions!$B$57,'other funds ftr 2023'!H13<=Assumptions!$D$58,Assumptions!$B$58,'other funds ftr 2023'!H13<=Assumptions!$D$59,Assumptions!$B$59,'other funds ftr 2023'!H13<=Assumptions!$D$60,Assumptions!$B$60,'other funds ftr 2023'!H13<=Assumptions!$D$61,Assumptions!$B$61) -> 1
A14: 04228 | B14: CASCADE | C14: =IFERROR(VLOOKUP(A14,'[7]Allocation 2022-23'!$B$9:$AC$326,20,FALSE),0) -> 18709 | D14: =IFERROR(VLOOKUP(A14,'[8]22-23 Revised Final'!$A$13:$CI$328,81,FALSE),0) -> 368219 | E14: =IFERROR(VLOOKUP(A14,[9]Sheet1!$A$3:$D$379,3,FALSE),0) -> 311692.26 | F14: =IFERROR(VLOOKUP(A14,[9]Sheet1!$A$3:$D$379,4,FALSE),0) -> 223918.49 | G14: =IFERROR(VLOOKUP(A14,'[3]2022-23 Final'!$B$19:$S$156,18,FALSE),0) -> 40123 | H14: 0.04167922949 | I14: =_xlfn.IFS('other funds ftr 2023'!H14<=Assumptions!$D$57,Assumptions!$B$57,'other funds ftr 2023'!H14<=Assumptions!$D$58,Assumptions!$B$58,'other funds ftr 2023'!H14<=Assumptions!$D$59,Assumptions!$B$59,'other funds ftr 2023'!H14<=Assumptions!$D$60,Assumptions!$B$60,'other funds ftr 2023'!H14<=Assumptions!$D$61,Assumptions!$B$61) -> 1
A15: 04222 | B15: CASHMERE | C15: =IFERROR(VLOOKUP(A15,'[7]Allocation 2022-23'!$B$9:$AC$326,20,FALSE),0) -> 26294 | D15: =IFERROR(VLOOKUP(A15,'[8]22-23 Revised Final'!$A$13:$CI$328,81,FALSE),0) -> 375767 | E15: =IFERROR(VLOOKUP(A15,[9]Sheet1!$A$3:$D$379,3,FALSE),0) -> 449362.2 | F15: =IFERROR(VLOOKUP(A15,[9]Sheet1!$A$3:$D$379,4,FALSE),0) -> 308335.28 | G15: =IFERROR(VLOOKUP(A15,'[3]2022-23 Final'!$B$19:$S$156,18,FALSE),0) -> 151656 | H15: 0.1156430727 | I15: =_xlfn.IFS('other funds ftr 2023'!H15<=Assumptions!$D$57,Assumptions!$B$57,'other funds ftr 2023'!H15<=Assumptions!$D$58,Assumptions!$B$58,'other funds ftr 2023'!H15<=Assumptions!$D$59,Assumptions!$B$59,'other funds ftr 2023'!H15<=Assumptions!$D$60,Assumptions!$B$60,'other funds ftr 2023'!H15<=Assumptions!$D$61,Assumptions!$B$61) -> 0.95
A16: 18401 | B16: CENTRAL KITSAP | C16: =IFERROR(VLOOKUP(A16,'[7]Allocation 2022-23'!$B$9:$AC$326,20,FALSE),0) -> 59639 | D16: =IFERROR(VLOOKUP(A16,'[8]22-23 Revised Final'!$A$13:$CI$328,81,FALSE),0) -> 1465625 | E16: =IFERROR(VLOOKUP(A16,[9]Sheet1!$A$3:$D$379,3,FALSE),0) -> 3465489.96 | F16: =IFERROR(VLOOKUP(A16,[9]Sheet1!$A$3:$D$379,4,FALSE),0) -> 914946.8 | G16: =IFERROR(VLOOKUP(A16,'[3]2022-23 Final'!$B$19:$S$156,18,FALSE),0) -> 0 | H16: 0 | I16: =_xlfn.IFS('other funds ftr 2023'!H16<=Assumptions!$D$57,Assumptions!$B$57,'other funds ftr 2023'!H16<=Assumptions!$D$58,Assumptions!$B$58,'other funds ftr 2023'!H16<=Assumptions!$D$59,Assumptions!$B$59,'other funds ftr 2023'!H16<=Assumptions!$D$60,Assumptions!$B$60,'other funds ftr 2023'!H16<=Assumptions!$D$61,Assumptions!$B$61) -> 1.15
A17: 32356 | B17: CENTRAL VALLEY | C17: =IFERROR(VLOOKUP(A17,'[7]Allocation 2022-23'!$B$9:$AC$326,20,FALSE),0) -> 70530 | D17: =IFERROR(VLOOKUP(A17,'[8]22-23 Revised Final'!$A$13:$CI$328,81,FALSE),0) -> 2871477 | E17: =IFERROR(VLOOKUP(A17,[9]Sheet1!$A$3:$D$379,3,FALSE),0) -> 4280104.85 | F17: =IFERROR(VLOOKUP(A17,[9]Sheet1!$A$3:$D$379,4,FALSE),0) -> 968148 | G17: =IFERROR(VLOOKUP(A17,'[3]2022-23 Final'!$B$19:$S$156,18,FALSE),0) -> 0 | H17: 0 | I17: =_xlfn.IFS('other funds ftr 2023'!H17<=Assumptions!$D$57,Assumptions!$B$57,'other funds ftr 2023'!H17<=Assumptions!$D$58,Assumptions!$B$58,'other funds ftr 2023'!H17<=Assumptions!$D$59,Assumptions!$B$59,'other funds ftr 2023'!H17<=Assumptions!$D$60,Assumptions!$B$60,'other funds ftr 2023'!H17<=Assumptions!$D$61,Assumptions!$B$61) -> 1.15
A18: 21401 | B18: CENTRALIA | C18: =IFERROR(VLOOKUP(A18,'[7]Allocation 2022-23'!$B$9:$AC$326,20,FALSE),0) -> 67389 | D18: =IFERROR(VLOOKUP(A18,'[8]22-23 Revised Final'!$A$13:$CI$328,81,FALSE),0) -> 1434691 | E18: =IFERROR(VLOOKUP(A18,[9]Sheet1!$A$3:$D$379,3,FALSE),0) -> 2812678.74 | F18: =IFERROR(VLOOKUP(A18,[9]Sheet1!$A$3:$D$379,4,FALSE),0) -> 790820 | G18: =IFERROR(VLOOKUP(A18,'[3]2022-23 Final'!$B$19:$S$156,18,FALSE),0) -> 67220 | H18: 0.01299489955 | I18: =_xlfn.IFS('other funds ftr 2023'!H18<=Assumptions!$D$57,Assumptions!$B$57,'other funds ftr 2023'!H18<=Assumptions!$D$58,Assumptions!$B$58,'other funds ftr 2023'!H18<=Assumptions!$D$59,Assumptions!$B$59,'other funds ftr 2023'!H18<=Assumptions!$D$60,Assumptions!$B$60,'other funds ftr 2023'!H18<=Assumptions!$D$61,Assumptions!$B$61) -> 1.15
A19: 21302 | B19: CHEHALIS | C19: =IFERROR(VLOOKUP(A19,'[7]Allocation 2022-23'!$B$9:$AC$326,20,FALSE),0) -> 16405 | D19: =IFERROR(VLOOKUP(A19,'[8]22-23 Revised Final'!$A$13:$CI$328,81,FALSE),0) -> 524319 | E19: =IFERROR(VLOOKUP(A19,[9]Sheet1!$A$3:$D$379,3,FALSE),0) -> 1097548.71 | F19: =IFERROR(VLOOKUP(A19,[9]Sheet1!$A$3:$D$379,4,FALSE),0) -> 224501.71 | G19: =IFERROR(VLOOKUP(A19,'[3]2022-23 Final'!$B$19:$S$156,18,FALSE),0) -> 18866 | H19: 0.01002635775 | I19: =_xlfn.IFS('other funds ftr 2023'!H19<=Assumptions!$D$57,Assumptions!$B$57,'other funds ftr 2023'!H19<=Assumptions!$D$58,Assumptions!$B$58,'other funds ftr 2023'!H19<=Assumptions!$D$59,Assumptions!$B$59,'other funds ftr 2023'!H19<=Assumptions!$D$60,Assumptions!$B$60,'other funds ftr 2023'!H19<=Assumptions!$D$61,Assumptions!$B$61) -> 1.15
A20: 32360 | B20: CHENEY | C20: =IFERROR(VLOOKUP(A20,'[7]Allocation 2022-23'!$B$9:$AC$326,20,FALSE),0) -> 35905 | D20: =IFERROR(VLOOKUP(A20,'[8]22-23 Revised Final'!$A$13:$CI$328,81,FALSE),0) -> 1048522 | E20: =IFERROR(VLOOKUP(A20,[9]Sheet1!$A$3:$D$379,3,FALSE),0) -> 2012189.28 | F20: =IFERROR(VLOOKUP(A20,[9]Sheet1!$A$3:$D$379,4,FALSE),0) -> 590958.03 | G20: =IFERROR(VLOOKUP(A20,'[3]2022-23 Final'!$B$19:$S$156,18,FALSE),0) -> 0 | H20: 0 | I20: =_xlfn.IFS('other funds ftr 2023'!H20<=Assumptions!$D$57,Assumptions!$B$57,'other funds ftr 2023'!H20<=Assumptions!$D$58,Assumptions!$B$58,'other funds ftr 2023'!H20<=Assumptions!$D$59,Assumptions!$B$59,'other funds ftr 2023'!H20<=Assumptions!$D$60,Assumptions!$B$60,'other funds ftr 2023'!H20<=Assumptions!$D$61,Assumptions!$B$61) -> 1.15
A21: 27901 | B21: CHIEF LESCHI TRIBAL COMPACT | C21: =IFERROR(VLOOKUP(A21,'[7]Allocation 2022-23'!$B$9:$AC$326,20,FALSE),0) -> 0 | D21: =IFERROR(VLOOKUP(A21,'[8]22-23 Revised Final'!$A$13:$CI$328,81,FALSE),0) -> 0 | E21: =IFERROR(VLOOKUP(A21,[9]Sheet1!$A$3:$D$379,3,FALSE),0) -> 397494.48 | F21: =IFERROR(VLOOKUP(A21,[9]Sheet1!$A$3:$D$379,4,FALSE),0) -> 0 | G21: =IFERROR(VLOOKUP(A21,'[3]2022-23 Final'!$B$19:$S$156,18,FALSE),0) -> 10344 | H21: 0.02536298193 | I21: =_xlfn.IFS('other funds ftr 2023'!H21<=Assumptions!$D$57,Assumptions!$B$57,'other funds ftr 2023'!H21<=Assumptions!$D$58,Assumptions!$B$58,'other funds ftr 2023'!H21<=Assumptions!$D$59,Assumptions!$B$59,'other funds ftr 2023'!H21<=Assumptions!$D$60,Assumptions!$B$60,'other funds ftr 2023'!H21<=Assumptions!$D$61,Assumptions!$B$61) -> 1.05
A22: 27400 | B22: CLOVER PARK | C22: =IFERROR(VLOOKUP(A22,'[7]Allocation 2022-23'!$B$9:$AC$326,20,FALSE),0) -> 227504 | D22: =IFERROR(VLOOKUP(A22,'[8]22-23 Revised Final'!$A$13:$CI$328,81,FALSE),0) -> 4396926 | E22: =IFERROR(VLOOKUP(A22,[9]Sheet1!$A$3:$D$379,3,FALSE),0) -> 8398568.31 | F22: =IFERROR(VLOOKUP(A22,[9]Sheet1!$A$3:$D$379,4,FALSE),0) -> 2992373.82 | G22: =IFERROR(VLOOKUP(A22,'[3]2022-23 Final'!$B$19:$S$156,18,FALSE),0) -> 0 | H22: 0 | I22: =_xlfn.IFS('other funds ftr 2023'!H22<=Assumptions!$D$57,Assumptions!$B$57,'other funds ftr 2023'!H22<=Assumptions!$D$58,Assumptions!$B$58,'other funds ftr 2023'!H22<=Assumptions!$D$59,Assumptions!$B$59,'other funds ftr 2023'!H22<=Assumptions!$D$60,Assumptions!$B$60,'other funds ftr 2023'!H22<=Assumptions!$D$61,Assumptions!$B$61) -> 1.15
A23: 36250 | B23: COLLEGE PLACE | C23: =IFERROR(VLOOKUP(A23,'[7]Allocation 2022-23'!$B$9:$AC$326,20,FALSE),0) -> 40885 | D23: =IFERROR(VLOOKUP(A23,'[8]22-23 Revised Final'!$A$13:$CI$328,81,FALSE),0) -> 413542 | E23: =IFERROR(VLOOKUP(A23,[9]Sheet1!$A$3:$D$379,3,FALSE),0) -> 1007491.21 | F23: =IFERROR(VLOOKUP(A23,[9]Sheet1!$A$3:$D$379,4,FALSE),0) -> 449461.03 | G23: =IFERROR(VLOOKUP(A23,'[3]2022-23 Final'!$B$19:$S$156,18,FALSE),0) -> 76049 | H23: 0.03826502938 | I23: =_xlfn.IFS('other funds ftr 2023'!H23<=Assumptions!$D$57,Assumptions!$B$57,'other funds ftr 2023'!H23<=Assumptions!$D$58,Assumptions!$B$58,'other funds ftr 2023'!H23<=Assumptions!$D$59,Assumptions!$B$59,'other funds ftr 2023'!H23<=Assumptions!$D$60,Assumptions!$B$60,'other funds ftr 2023'!H23<=Assumptions!$D$61,Assumptions!$B$61) -> 1.05
A24: 36400 | B24: COLUMBIA (WALLA WALLA) | C24: =IFERROR(VLOOKUP(A24,'[7]Allocation 2022-23'!$B$9:$AC$326,20,FALSE),0) -> 18591 | D24: =IFERROR(VLOOKUP(A24,'[8]22-23 Revised Final'!$A$13:$CI$328,81,FALSE),0) -> 281090 | E24: =IFERROR(VLOOKUP(A24,[9]Sheet1!$A$3:$D$379,3,FALSE),0) -> 499576.85 | F24: =IFERROR(VLOOKUP(A24,[9]Sheet1!$A$3:$D$379,4,FALSE),0) -> 231750.47 | G24: =IFERROR(VLOOKUP(A24,'[3]2022-23 Final'!$B$19:$S$156,18,FALSE),0) -> 30296 | H24: 0.02854600648 | I24: =_xlfn.IFS('other funds ftr 2023'!H24<=Assumptions!$D$57,Assumptions!$B$57,'other funds ftr 2023'!H24<=Assumptions!$D$58,Assumptions!$B$58,'other funds ftr 2023'!H24<=Assumptions!$D$59,Assumptions!$B$59,'other funds ftr 2023'!H24<=Assumptions!$D$60,Assumptions!$B$60,'other funds ftr 2023'!H24<=Assumptions!$D$61,Assumptions!$B$61) -> 1.05
A25: 29317 | B25: CONWAY | C25: =IFERROR(VLOOKUP(A25,'[7]Allocation 2022-23'!$B$9:$AC$326,20,FALSE),0) -> 4398 | D25: =IFERROR(VLOOKUP(A25,'[8]22-23 Revised Final'!$A$13:$CI$328,81,FALSE),0) -> 61000 | E25: =IFERROR(VLOOKUP(A25,[9]Sheet1!$A$3:$D$379,3,FALSE),0) -> 63962.46 | F25: =IFERROR(VLOOKUP(A25,[9]Sheet1!$A$3:$D$379,4,FALSE),0) -> 52808.82 | G25: =IFERROR(VLOOKUP(A25,'[3]2022-23 Final'!$B$19:$S$156,18,FALSE),0) -> 25079 | H25: 0.1210094482 | I25: =_xlfn.IFS('other funds ftr 2023'!H25<=Assumptions!$D$57,Assumptions!$B$57,'other funds ftr 2023'!H25<=Assumptions!$D$58,Assumptions!$B$58,'other funds ftr 2023'!H25<=Assumptions!$D$59,Assumptions!$B$59,'other funds ftr 2023'!H25<=Assumptions!$D$60,Assumptions!$B$60,'other funds ftr 2023'!H25<=Assumptions!$D$61,Assumptions!$B$61) -> 0.85
A26: 15204 | B26: COUPEVILLE | C26: =IFERROR(VLOOKUP(A26,'[7]Allocation 2022-23'!$B$9:$AC$326,20,FALSE),0) -> 0 | D26: =IFERROR(VLOOKUP(A26,'[8]22-23 Revised Final'!$A$13:$CI$328,81,FALSE),0) -> 221520 | E26: =IFERROR(VLOOKUP(A26,[9]Sheet1!$A$3:$D$379,3,FALSE),0) -> 242083.44 | F26: =IFERROR(VLOOKUP(A26,[9]Sheet1!$A$3:$D$379,4,FALSE),0) -> 63203.05 | G26: =IFERROR(VLOOKUP(A26,'[3]2022-23 Final'!$B$19:$S$156,18,FALSE),0) -> 8700 | H26: 0.0162463017 | I26: =_xlfn.IFS('other funds ftr 2023'!H26<=Assumptions!$D$57,Assumptions!$B$57,'other funds ftr 2023'!H26<=Assumptions!$D$58,Assumptions!$B$58,'other funds ftr 2023'!H26<=Assumptions!$D$59,Assumptions!$B$59,'other funds ftr 2023'!H26<=Assumptions!$D$60,Assumptions!$B$60,'other funds ftr 2023'!H26<=Assumptions!$D$61,Assumptions!$B$61) -> 1.15
A27: 39090 | B27: EAST VALLEY (YAKIMA) | C27: =IFERROR(VLOOKUP(A27,'[7]Allocation 2022-23'!$B$9:$AC$326,20,FALSE),0) -> 49121 | D27: =IFERROR(VLOOKUP(A27,'[8]22-23 Revised Final'!$A$13:$CI$328,81,FALSE),0) -> 707636 | E27: =IFERROR(VLOOKUP(A27,[9]Sheet1!$A$3:$D$379,3,FALSE),0) -> 2259225.83 | F27: =IFERROR(VLOOKUP(A27,[9]Sheet1!$A$3:$D$379,4,FALSE),0) -> 653687.69 | G27: =IFERROR(VLOOKUP(A27,'[3]2022-23 Final'!$B$19:$S$156,18,FALSE),0) -> 0 | H27: 0 | I27: =_xlfn.IFS('other funds ftr 2023'!H27<=Assumptions!$D$57,Assumptions!$B$57,'other funds ftr 2023'!H27<=Assumptions!$D$58,Assumptions!$B$58,'other funds ftr 2023'!H27<=Assumptions!$D$59,Assumptions!$B$59,'other funds ftr 2023'!H27<=Assumptions!$D$60,Assumptions!$B$60,'other funds ftr 2023'!H27<=Assumptions!$D$61,Assumptions!$B$61) -> 1.15
A28: 09206 | B28: EASTMONT | C28: =IFERROR(VLOOKUP(A28,'[7]Allocation 2022-23'!$B$9:$AC$326,20,FALSE),0) -> 144735 | D28: =IFERROR(VLOOKUP(A28,'[8]22-23 Revised Final'!$A$13:$CI$328,81,FALSE),0) -> 1378309 | E28: =IFERROR(VLOOKUP(A28,[9]Sheet1!$A$3:$D$379,3,FALSE),0) -> 3801445.67 | F28: =IFERROR(VLOOKUP(A28,[9]Sheet1!$A$3:$D$379,4,FALSE),0) -> 1766377.82 | G28: =IFERROR(VLOOKUP(A28,'[3]2022-23 Final'!$B$19:$S$156,18,FALSE),0) -> 640986 | H28: 0.08290198473 | I28: =_xlfn.IFS('other funds ftr 2023'!H28<=Assumptions!$D$57,Assumptions!$B$57,'other funds ftr 2023'!H28<=Assumptions!$D$58,Assumptions!$B$58,'other funds ftr 2023'!H28<=Assumptions!$D$59,Assumptions!$B$59,'other funds ftr 2023'!H28<=Assumptions!$D$60,Assumptions!$B$60,'other funds ftr 2023'!H28<=Assumptions!$D$61,Assumptions!$B$61) -> 0.95
A29: 31015 | B29: EDMONDS | C29: =IFERROR(VLOOKUP(A29,'[7]Allocation 2022-23'!$B$9:$AC$326,20,FALSE),0) -> 476951 | D29: =IFERROR(VLOOKUP(A29,'[8]22-23 Revised Final'!$A$13:$CI$328,81,FALSE),0) -> 3455194 | E29: =IFERROR(VLOOKUP(A29,[9]Sheet1!$A$3:$D$379,3,FALSE),0) -> 5900138.92 | F29: =IFERROR(VLOOKUP(A29,[9]Sheet1!$A$3:$D$379,4,FALSE),0) -> 6608236.54 | G29: =IFERROR(VLOOKUP(A29,'[3]2022-23 Final'!$B$19:$S$156,18,FALSE),0) -> 0 | H29: 0 | I29: =_xlfn.IFS('other funds ftr 2023'!H29<=Assumptions!$D$57,Assumptions!$B$57,'other funds ftr 2023'!H29<=Assumptions!$D$58,Assumptions!$B$58,'other funds ftr 2023'!H29<=Assumptions!$D$59,Assumptions!$B$59,'other funds ftr 2023'!H29<=Assumptions!$D$60,Assumptions!$B$60,'other funds ftr 2023'!H29<=Assumptions!$D$61,Assumptions!$B$61) -> 1.15
A30: 19401 | B30: ELLENSBURG | C30: =IFERROR(VLOOKUP(A30,'[7]Allocation 2022-23'!$B$9:$AC$326,20,FALSE),0) -> 32553 | D30: =IFERROR(VLOOKUP(A30,'[8]22-23 Revised Final'!$A$13:$CI$328,81,FALSE),0) -> 654383 | E30: =IFERROR(VLOOKUP(A30,[9]Sheet1!$A$3:$D$379,3,FALSE),0) -> 1043698.42 | F30: =IFERROR(VLOOKUP(A30,[9]Sheet1!$A$3:$D$379,4,FALSE),0) -> 384904.31 | G30: =IFERROR(VLOOKUP(A30,'[3]2022-23 Final'!$B$19:$S$156,18,FALSE),0) -> 0 | H30: 0 | I30: =_xlfn.IFS('other funds ftr 2023'!H30<=Assumptions!$D$57,Assumptions!$B$57,'other funds ftr 2023'!H30<=Assumptions!$D$58,Assumptions!$B$58,'other funds ftr 2023'!H30<=Assumptions!$D$59,Assumptions!$B$59,'other funds ftr 2023'!H30<=Assumptions!$D$60,Assumptions!$B$60,'other funds ftr 2023'!H30<=Assumptions!$D$61,Assumptions!$B$61) -> 1.15
A31: 14068 | B31: ELMA | C31: =IFERROR(VLOOKUP(A31,'[7]Allocation 2022-23'!$B$9:$AC$326,20,FALSE),0) -> 17569 | D31: =IFERROR(VLOOKUP(A31,'[8]22-23 Revised Final'!$A$13:$CI$328,81,FALSE),0) -> 420492 | E31: =IFERROR(VLOOKUP(A31,[9]Sheet1!$A$3:$D$379,3,FALSE),0) -> 1321855.07 | F31: =IFERROR(VLOOKUP(A31,[9]Sheet1!$A$3:$D$379,4,FALSE),0) -> 215677.12 | G31: =IFERROR(VLOOKUP(A31,'[3]2022-23 Final'!$B$19:$S$156,18,FALSE),0) -> 0 | H31: 0 | I31: =_xlfn.IFS('other funds ftr 2023'!H31<=Assumptions!$D$57,Assumptions!$B$57,'other funds ftr 2023'!H31<=Assumptions!$D$58,Assumptions!$B$58,'other funds ftr 2023'!H31<=Assumptions!$D$59,Assumptions!$B$59,'other funds ftr 2023'!H31<=Assumptions!$D$60,Assumptions!$B$60,'other funds ftr 2023'!H31<=Assumptions!$D$61,Assumptions!$B$61) -> 1.15
A32: 04127 | B32: ENTIAT | C32: =IFERROR(VLOOKUP(A32,'[7]Allocation 2022-23'!$B$9:$AC$326,20,FALSE),0) -> 0 | D32: =IFERROR(VLOOKUP(A32,'[8]22-23 Revised Final'!$A$13:$CI$328,81,FALSE),0) -> 135532 | E32: =IFERROR(VLOOKUP(A32,[9]Sheet1!$A$3:$D$379,3,FALSE),0) -> 234798.96 | F32: =IFERROR(VLOOKUP(A32,[9]Sheet1!$A$3:$D$379,4,FALSE),0) -> 115980.28 | G32: =IFERROR(VLOOKUP(A32,'[3]2022-23 Final'!$B$19:$S$156,18,FALSE),0) -> 0 | H32: 0 | I32: =_xlfn.IFS('other funds ftr 2023'!H32<=Assumptions!$D$57,Assumptions!$B$57,'other funds ftr 2023'!H32<=Assumptions!$D$58,Assumptions!$B$58,'other funds ftr 2023'!H32<=Assumptions!$D$59,Assumptions!$B$59,'other funds ftr 2023'!H32<=Assumptions!$D$60,Assumptions!$B$60,'other funds ftr 2023'!H32<=Assumptions!$D$61,Assumptions!$B$61) -> 1.15
A33: 13165 | B33: EPHRATA | C33: =IFERROR(VLOOKUP(A33,'[7]Allocation 2022-23'!$B$9:$AC$326,20,FALSE),0) -> 52751 | D33: =IFERROR(VLOOKUP(A33,'[8]22-23 Revised Final'!$A$13:$CI$328,81,FALSE),0) -> 638372 | E33: =IFERROR(VLOOKUP(A33,[9]Sheet1!$A$3:$D$379,3,FALSE),0) -> 1538773.79 | F33: =IFERROR(VLOOKUP(A33,[9]Sheet1!$A$3:$D$379,4,FALSE),0) -> 622343.5 | G33: =IFERROR(VLOOKUP(A33,'[3]2022-23 Final'!$B$19:$S$156,18,FALSE),0) -> 142757 | H33: 0.04766515164 | I33: =_xlfn.IFS('other funds ftr 2023'!H33<=Assumptions!$D$57,Assumptions!$B$57,'other funds ftr 2023'!H33<=Assumptions!$D$58,Assumptions!$B$58,'other funds ftr 2023'!H33<=Assumptions!$D$59,Assumptions!$B$59,'other funds ftr 2023'!H33<=Assumptions!$D$60,Assumptions!$B$60,'other funds ftr 2023'!H33<=Assumptions!$D$61,Assumptions!$B$61) -> 1
A34: 31002 | B34: EVERETT | C34: =IFERROR(VLOOKUP(A34,'[7]Allocation 2022-23'!$B$9:$AC$326,20,FALSE),0) -> 471947 | D34: =IFERROR(VLOOKUP(A34,'[8]22-23 Revised Final'!$A$13:$CI$328,81,FALSE),0) -> 3360648 | E34: =IFERROR(VLOOKUP(A34,[9]Sheet1!$A$3:$D$379,3,FALSE),0) -> 8484190.36 | F34: =IFERROR(VLOOKUP(A34,[9]Sheet1!$A$3:$D$379,4,FALSE),0) -> 6445655.08 | G34: =IFERROR(VLOOKUP(A34,'[3]2022-23 Final'!$B$19:$S$156,18,FALSE),0) -> 0 | H34: =IFERROR(G34/SUM(C34:G34),0) -> 0 | I34: =_xlfn.IFS('other funds ftr 2023'!H34<=Assumptions!$D$57,Assumptions!$B$57,'other funds ftr 2023'!H34<=Assumptions!$D$58,Assumptions!$B$58,'other funds ftr 2023'!H34<=Assumptions!$D$59,Assumptions!$B$59,'other funds ftr 2023'!H34<=Assumptions!$D$60,Assumptions!$B$60,'other funds ftr 2023'!H34<=Assumptions!$D$61,Assumptions!$B$61) -> 1.15
A35: 06114 | B35: EVERGREEN (CLARK) | C35: =IFERROR(VLOOKUP(A35,'[7]Allocation 2022-23'!$B$9:$AC$326,20,FALSE),0) -> 470413 | D35: =IFERROR(VLOOKUP(A35,'[8]22-23 Revised Final'!$A$13:$CI$328,81,FALSE),0) -> 6756066 | E35: =IFERROR(VLOOKUP(A35,[9]Sheet1!$A$3:$D$379,3,FALSE),0) -> 12698151.75 | F35: =IFERROR(VLOOKUP(A35,[9]Sheet1!$A$3:$D$379,4,FALSE),0) -> 6116500.13 | G35: =IFERROR(VLOOKUP(A35,'[3]2022-23 Final'!$B$19:$S$156,18,FALSE),0) -> 0 | H35: 0 | I35: =_xlfn.IFS('other funds ftr 2023'!H35<=Assumptions!$D$57,Assumptions!$B$57,'other funds ftr 2023'!H35<=Assumptions!$D$58,Assumptions!$B$58,'other funds ftr 2023'!H35<=Assumptions!$D$59,Assumptions!$B$59,'other funds ftr 2023'!H35<=Assumptions!$D$60,Assumptions!$B$60,'other funds ftr 2023'!H35<=Assumptions!$D$61,Assumptions!$B$61) -> 1.15
A36: 17210 | B36: FEDERAL WAY | C36: =IFERROR(VLOOKUP(A36,'[7]Allocation 2022-23'!$B$9:$AC$326,20,FALSE),0) -> 724699 | D36: =IFERROR(VLOOKUP(A36,'[8]22-23 Revised Final'!$A$13:$CI$328,81,FALSE),0) -> 6707976 | E36: =IFERROR(VLOOKUP(A36,[9]Sheet1!$A$3:$D$379,3,FALSE),0) -> 16032489.69 | F36: =IFERROR(VLOOKUP(A36,[9]Sheet1!$A$3:$D$379,4,FALSE),0) -> 9942026.6 | G36: =IFERROR(VLOOKUP(A36,'[3]2022-23 Final'!$B$19:$S$156,18,FALSE),0) -> 47729 | H36: 0.00142666608 | I36: =_xlfn.IFS('other funds ftr 2023'!H36<=Assumptions!$D$57,Assumptions!$B$57,'other funds ftr 2023'!H36<=Assumptions!$D$58,Assumptions!$B$58,'other funds ftr 2023'!H36<=Assumptions!$D$59,Assumptions!$B$59,'other funds ftr 2023'!H36<=Assumptions!$D$60,Assumptions!$B$60,'other funds ftr 2023'!H36<=Assumptions!$D$61,Assumptions!$B$61) -> 1.15
A37: 37502 | B37: FERNDALE | C37: =IFERROR(VLOOKUP(A37,'[7]Allocation 2022-23'!$B$9:$AC$326,20,FALSE),0) -> 50401 | D37: =IFERROR(VLOOKUP(A37,'[8]22-23 Revised Final'!$A$13:$CI$328,81,FALSE),0) -> 1177877 | E37: =IFERROR(VLOOKUP(A37,[9]Sheet1!$A$3:$D$379,3,FALSE),0) -> 2034109.56 | F37: =IFERROR(VLOOKUP(A37,[9]Sheet1!$A$3:$D$379,4,FALSE),0) -> 744589.66 | G37: =IFERROR(VLOOKUP(A37,'[3]2022-23 Final'!$B$19:$S$156,18,FALSE),0) -> 95805 | H37: 0.02335122726 | I37: =_xlfn.IFS('other funds ftr 2023'!H37<=Assumptions!$D$57,Assumptions!$B$57,'other funds ftr 2023'!H37<=Assumptions!$D$58,Assumptions!$B$58,'other funds ftr 2023'!H37<=Assumptions!$D$59,Assumptions!$B$59,'other funds ftr 2023'!H37<=Assumptions!$D$60,Assumptions!$B$60,'other funds ftr 2023'!H37<=Assumptions!$D$61,Assumptions!$B$61) -> 1.05
A38: 03053 | B38: FINLEY | C38: =IFERROR(VLOOKUP(A38,'[7]Allocation 2022-23'!$B$9:$AC$326,20,FALSE),0) -> 23618 | D38: =IFERROR(VLOOKUP(A38,'[8]22-23 Revised Final'!$A$13:$CI$328,81,FALSE),0) -> 366879 | E38: =IFERROR(VLOOKUP(A38,[9]Sheet1!$A$3:$D$379,3,FALSE),0) -> 696109.28 | F38: =IFERROR(VLOOKUP(A38,[9]Sheet1!$A$3:$D$379,4,FALSE),0) -> 301873.78 | G38: =IFERROR(VLOOKUP(A38,'[3]2022-23 Final'!$B$19:$S$156,18,FALSE),0) -> 70727 | H38: 0.04846947492 | I38: =_xlfn.IFS('other funds ftr 2023'!H38<=Assumptions!$D$57,Assumptions!$B$57,'other funds ftr 2023'!H38<=Assumptions!$D$58,Assumptions!$B$58,'other funds ftr 2023'!H38<=Assumptions!$D$59,Assumptions!$B$59,'other funds ftr 2023'!H38<=Assumptions!$D$60,Assumptions!$B$60,'other funds ftr 2023'!H38<=Assumptions!$D$61,Assumptions!$B$61) -> 1
A39: 27402 | B39: FRANKLIN PIERCE | C39: =IFERROR(VLOOKUP(A39,'[7]Allocation 2022-23'!$B$9:$AC$326,20,FALSE),0) -> 129749 | D39: =IFERROR(VLOOKUP(A39,'[8]22-23 Revised Final'!$A$13:$CI$328,81,FALSE),0) -> 2738493 | E39: =IFERROR(VLOOKUP(A39,[9]Sheet1!$A$3:$D$379,3,FALSE),0) -> 5960674.76 | F39: =IFERROR(VLOOKUP(A39,[9]Sheet1!$A$3:$D$379,4,FALSE),0) -> 1778712.13 | G39: =IFERROR(VLOOKUP(A39,'[3]2022-23 Final'!$B$19:$S$156,18,FALSE),0) -> 0 | H39: 0 | I39: =_xlfn.IFS('other funds ftr 2023'!H39<=Assumptions!$D$57,Assumptions!$B$57,'other funds ftr 2023'!H39<=Assumptions!$D$58,Assumptions!$B$58,'other funds ftr 2023'!H39<=Assumptions!$D$59,Assumptions!$B$59,'other funds ftr 2023'!H39<=Assumptions!$D$60,Assumptions!$B$60,'other funds ftr 2023'!H39<=Assumptions!$D$61,Assumptions!$B$61) -> 1.15
A40: 20404 | B40: GOLDENDALE | C40: =IFERROR(VLOOKUP(A40,'[7]Allocation 2022-23'!$B$9:$AC$326,20,FALSE),0) -> 11076 | D40: =IFERROR(VLOOKUP(A40,'[8]22-23 Revised Final'!$A$13:$CI$328,81,FALSE),0) -> 440258 | E40: =IFERROR(VLOOKUP(A40,[9]Sheet1!$A$3:$D$379,3,FALSE),0) -> 867317.62 | F40: =IFERROR(VLOOKUP(A40,[9]Sheet1!$A$3:$D$379,4,FALSE),0) -> 178343.07 | G40: =IFERROR(VLOOKUP(A40,'[3]2022-23 Final'!$B$19:$S$156,18,FALSE),0) -> 45241 | H40: 0.02933468619 | I40: =_xlfn.IFS('other funds ftr 2023'!H40<=Assumptions!$D$57,Assumptions!$B$57,'other funds ftr 2023'!H40<=Assumptions!$D$58,Assumptions!$B$58,'other funds ftr 2023'!H40<=Assumptions!$D$59,Assumptions!$B$59,'other funds ftr 2023'!H40<=Assumptions!$D$60,Assumptions!$B$60,'other funds ftr 2023'!H40<=Assumptions!$D$61,Assumptions!$B$61) -> 1.05
A41: 13301 | B41: GRAND COULEE DAM | C41: =IFERROR(VLOOKUP(A41,'[7]Allocation 2022-23'!$B$9:$AC$326,20,FALSE),0) -> 15660 | D41: =IFERROR(VLOOKUP(A41,'[8]22-23 Revised Final'!$A$13:$CI$328,81,FALSE),0) -> 195881 | E41: =IFERROR(VLOOKUP(A41,[9]Sheet1!$A$3:$D$379,3,FALSE),0) -> 566694.41 | F41: =IFERROR(VLOOKUP(A41,[9]Sheet1!$A$3:$D$379,4,FALSE),0) -> 0 | G41: =IFERROR(VLOOKUP(A41,'[3]2022-23 Final'!$B$19:$S$156,18,FALSE),0) -> 111512 | H41: 0.1253299518 | I41: =_xlfn.IFS('other funds ftr 2023'!H41<=Assumptions!$D$57,Assumptions!$B$57,'other funds ftr 2023'!H41<=Assumptions!$D$58,Assumptions!$B$58,'other funds ftr 2023'!H41<=Assumptions!$D$59,Assumptions!$B$59,'other funds ftr 2023'!H41<=Assumptions!$D$60,Assumptions!$B$60,'other funds ftr 2023'!H41<=Assumptions!$D$61,Assumptions!$B$61) -> 0.85
A42: 39200 | B42: GRANDVIEW | C42: =IFERROR(VLOOKUP(A42,'[7]Allocation 2022-23'!$B$9:$AC$326,20,FALSE),0) -> 152530 | D42: =IFERROR(VLOOKUP(A42,'[8]22-23 Revised Final'!$A$13:$CI$328,81,FALSE),0) -> 1316969 | E42: =IFERROR(VLOOKUP(A42,[9]Sheet1!$A$3:$D$379,3,FALSE),0) -> 3010370.06 | F42: =IFERROR(VLOOKUP(A42,[9]Sheet1!$A$3:$D$379,4,FALSE),0) -> 1747396.51 | G42: =IFERROR(VLOOKUP(A42,'[3]2022-23 Final'!$B$19:$S$156,18,FALSE),0) -> 362657 | H42: 0.05503205783 | I42: =_xlfn.IFS('other funds ftr 2023'!H42<=Assumptions!$D$57,Assumptions!$B$57,'other funds ftr 2023'!H42<=Assumptions!$D$58,Assumptions!$B$58,'other funds ftr 2023'!H42<=Assumptions!$D$59,Assumptions!$B$59,'other funds ftr 2023'!H42<=Assumptions!$D$60,Assumptions!$B$60,'other funds ftr 2023'!H42<=Assumptions!$D$61,Assumptions!$B$61) -> 1
A43: 39204 | B43: GRANGER | C43: =IFERROR(VLOOKUP(A43,'[7]Allocation 2022-23'!$B$9:$AC$326,20,FALSE),0) -> 86748 | D43: =IFERROR(VLOOKUP(A43,'[8]22-23 Revised Final'!$A$13:$CI$328,81,FALSE),0) -> 954137 | E43: =IFERROR(VLOOKUP(A43,[9]Sheet1!$A$3:$D$379,3,FALSE),0) -> 1312769.61 | F43: =IFERROR(VLOOKUP(A43,[9]Sheet1!$A$3:$D$379,4,FALSE),0) -> 1139487.27 | G43: =IFERROR(VLOOKUP(A43,'[3]2022-23 Final'!$B$19:$S$156,18,FALSE),0) -> 266679 | H43: 0.07092864488 | I43: =_xlfn.IFS('other funds ftr 2023'!H43<=Assumptions!$D$57,Assumptions!$B$57,'other funds ftr 2023'!H43<=Assumptions!$D$58,Assumptions!$B$58,'other funds ftr 2023'!H43<=Assumptions!$D$59,Assumptions!$B$59,'other funds ftr 2023'!H43<=Assumptions!$D$60,Assumptions!$B$60,'other funds ftr 2023'!H43<=Assumptions!$D$61,Assumptions!$B$61) -> 0.95
A44: 39203 | B44: HIGHLAND | C44: =IFERROR(VLOOKUP(A44,'[7]Allocation 2022-23'!$B$9:$AC$326,20,FALSE),0) -> 41536 | D44: =IFERROR(VLOOKUP(A44,'[8]22-23 Revised Final'!$A$13:$CI$328,81,FALSE),0) -> 300205 | E44: =IFERROR(VLOOKUP(A44,[9]Sheet1!$A$3:$D$379,3,FALSE),0) -> 867214.15 | F44: =IFERROR(VLOOKUP(A44,[9]Sheet1!$A$3:$D$379,4,FALSE),0) -> 507115.49 | G44: =IFERROR(VLOOKUP(A44,'[3]2022-23 Final'!$B$19:$S$156,18,FALSE),0) -> 110004 | H44: 0.06024069202 | I44: =_xlfn.IFS('other funds ftr 2023'!H44<=Assumptions!$D$57,Assumptions!$B$57,'other funds ftr 2023'!H44<=Assumptions!$D$58,Assumptions!$B$58,'other funds ftr 2023'!H44<=Assumptions!$D$59,Assumptions!$B$59,'other funds ftr 2023'!H44<=Assumptions!$D$60,Assumptions!$B$60,'other funds ftr 2023'!H44<=Assumptions!$D$61,Assumptions!$B$61) -> 1
A45: 17401 | B45: HIGHLINE | C45: =IFERROR(VLOOKUP(A45,'[7]Allocation 2022-23'!$B$9:$AC$326,20,FALSE),0) -> 822081 | D45: =IFERROR(VLOOKUP(A45,'[8]22-23 Revised Final'!$A$13:$CI$328,81,FALSE),0) -> 6494027 | E45: =IFERROR(VLOOKUP(A45,[9]Sheet1!$A$3:$D$379,3,FALSE),0) -> 14719196.81 | F45: =IFERROR(VLOOKUP(A45,[9]Sheet1!$A$3:$D$379,4,FALSE),0) -> 10793856.61 | G45: =IFERROR(VLOOKUP(A45,'[3]2022-23 Final'!$B$19:$S$156,18,FALSE),0) -> 0 | H45: 0 | I45: =_xlfn.IFS('other funds ftr 2023'!H45<=Assumptions!$D$57,Assumptions!$B$57,'other funds ftr 2023'!H45<=Assumptions!$D$58,Assumptions!$B$58,'other funds ftr 2023'!H45<=Assumptions!$D$59,Assumptions!$B$59,'other funds ftr 2023'!H45<=Assumptions!$D$60,Assumptions!$B$60,'other funds ftr 2023'!H45<=Assumptions!$D$61,Assumptions!$B$61) -> 1.15
A46: 23404 | B46: HOOD CANAL | C46: =IFERROR(VLOOKUP(A46,'[7]Allocation 2022-23'!$B$9:$AC$326,20,FALSE),0) -> 0 | D46: =IFERROR(VLOOKUP(A46,'[8]22-23 Revised Final'!$A$13:$CI$328,81,FALSE),0) -> 223815 | E46: =IFERROR(VLOOKUP(A46,[9]Sheet1!$A$3:$D$379,3,FALSE),0) -> 257381.48 | F46: =IFERROR(VLOOKUP(A46,[9]Sheet1!$A$3:$D$379,4,FALSE),0) -> 0 | G46: =IFERROR(VLOOKUP(A46,'[3]2022-23 Final'!$B$19:$S$156,18,FALSE),0) -> 0 | H46: 0 | I46: =_xlfn.IFS('other funds ftr 2023'!H46<=Assumptions!$D$57,Assumptions!$B$57,'other funds ftr 2023'!H46<=Assumptions!$D$58,Assumptions!$B$58,'other funds ftr 2023'!H46<=Assumptions!$D$59,Assumptions!$B$59,'other funds ftr 2023'!H46<=Assumptions!$D$60,Assumptions!$B$60,'other funds ftr 2023'!H46<=Assumptions!$D$61,Assumptions!$B$61) -> 1.15
A47: 14028 | B47: HOQUIAM | C47: =IFERROR(VLOOKUP(A47,'[7]Allocation 2022-23'!$B$9:$AC$326,20,FALSE),0) -> 13495 | D47: =IFERROR(VLOOKUP(A47,'[8]22-23 Revised Final'!$A$13:$CI$328,81,FALSE),0) -> 657629 | E47: =IFERROR(VLOOKUP(A47,[9]Sheet1!$A$3:$D$379,3,FALSE),0) -> 1268493.4 | F47: =IFERROR(VLOOKUP(A47,[9]Sheet1!$A$3:$D$379,4,FALSE),0) -> 0 | G47: =IFERROR(VLOOKUP(A47,'[3]2022-23 Final'!$B$19:$S$156,18,FALSE),0) -> 0 | H47: 0 | I47: =_xlfn.IFS('other funds ftr 2023'!H47<=Assumptions!$D$57,Assumptions!$B$57,'other funds ftr 2023'!H47<=Assumptions!$D$58,Assumptions!$B$58,'other funds ftr 2023'!H47<=Assumptions!$D$59,Assumptions!$B$59,'other funds ftr 2023'!H47<=Assumptions!$D$60,Assumptions!$B$60,'other funds ftr 2023'!H47<=Assumptions!$D$61,Assumptions!$B$61) -> 1.15
A48: 10070 | B48: INCHELIUM | C48: =IFERROR(VLOOKUP(A48,'[7]Allocation 2022-23'!$B$9:$AC$326,20,FALSE),0) -> 0 | D48: =IFERROR(VLOOKUP(A48,'[8]22-23 Revised Final'!$A$13:$CI$328,81,FALSE),0) -> 121395 | E48: =IFERROR(VLOOKUP(A48,[9]Sheet1!$A$3:$D$379,3,FALSE),0) -> 186208.46 | F48: =IFERROR(VLOOKUP(A48,[9]Sheet1!$A$3:$D$379,4,FALSE),0) -> 0 | G48: =IFERROR(VLOOKUP(A48,'[3]2022-23 Final'!$B$19:$S$156,18,FALSE),0) -> 0 | H48: 0 | I48: =_xlfn.IFS('other funds ftr 2023'!H48<=Assumptions!$D$57,Assumptions!$B$57,'other funds ftr 2023'!H48<=Assumptions!$D$58,Assumptions!$B$58,'other funds ftr 2023'!H48<=Assumptions!$D$59,Assumptions!$B$59,'other funds ftr 2023'!H48<=Assumptions!$D$60,Assumptions!$B$60,'other funds ftr 2023'!H48<=Assumptions!$D$61,Assumptions!$B$61) -> 1.15
A49: 08458 | B49: KELSO | C49: =IFERROR(VLOOKUP(A49,'[7]Allocation 2022-23'!$B$9:$AC$326,20,FALSE),0) -> 45840 | D49: =IFERROR(VLOOKUP(A49,'[8]22-23 Revised Final'!$A$13:$CI$328,81,FALSE),0) -> 1501622 | E49: =IFERROR(VLOOKUP(A49,[9]Sheet1!$A$3:$D$379,3,FALSE),0) -> 3336234.87 | F49: =IFERROR(VLOOKUP(A49,[9]Sheet1!$A$3:$D$379,4,FALSE),0) -> 543758.53 | G49: =IFERROR(VLOOKUP(A49,'[3]2022-23 Final'!$B$19:$S$156,18,FALSE),0) -> 0 | H49: 0 | I49: =_xlfn.IFS('other funds ftr 2023'!H49<=Assumptions!$D$57,Assumptions!$B$57,'other funds ftr 2023'!H49<=Assumptions!$D$58,Assumptions!$B$58,'other funds ftr 2023'!H49<=Assumptions!$D$59,Assumptions!$B$59,'other funds ftr 2023'!H49<=Assumptions!$D$60,Assumptions!$B$60,'other funds ftr 2023'!H49<=Assumptions!$D$61,Assumptions!$B$61) -> 1.15
A50: 03017 | B50: KENNEWICK | C50: =IFERROR(VLOOKUP(A50,'[7]Allocation 2022-23'!$B$9:$AC$326,20,FALSE),0) -> 371749 | D50: =IFERROR(VLOOKUP(A50,'[8]22-23 Revised Final'!$A$13:$CI$328,81,FALSE),0) -> 6780903 | E50: =IFERROR(VLOOKUP(A50,[9]Sheet1!$A$3:$D$379,3,FALSE),0) -> 10934160.64 | F50: =IFERROR(VLOOKUP(A50,[9]Sheet1!$A$3:$D$379,4,FALSE),0) -> 4679754.23 | G50: =IFERROR(VLOOKUP(A50,'[3]2022-23 Final'!$B$19:$S$156,18,FALSE),0) -> 2108260 | H50: 0.08475476075 | I50: =_xlfn.IFS('other funds ftr 2023'!H50<=Assumptions!$D$57,Assumptions!$B$57,'other funds ftr 2023'!H50<=Assumptions!$D$58,Assumptions!$B$58,'other funds ftr 2023'!H50<=Assumptions!$D$59,Assumptions!$B$59,'other funds ftr 2023'!H50<=Assumptions!$D$60,Assumptions!$B$60,'other funds ftr 2023'!H50<=Assumptions!$D$61,Assumptions!$B$61) -> 0.95
A51: 17415 | B51: KENT | C51: =IFERROR(VLOOKUP(A51,'[7]Allocation 2022-23'!$B$9:$AC$326,20,FALSE),0) -> 825408 | D51: =IFERROR(VLOOKUP(A51,'[8]22-23 Revised Final'!$A$13:$CI$328,81,FALSE),0) -> 8226443 | E51: =IFERROR(VLOOKUP(A51,[9]Sheet1!$A$3:$D$379,3,FALSE),0) -> 13936241.7 | F51: =IFERROR(VLOOKUP(A51,[9]Sheet1!$A$3:$D$379,4,FALSE),0) -> 11844581.85 | G51: =IFERROR(VLOOKUP(A51,'[3]2022-23 Final'!$B$19:$S$156,18,FALSE),0) -> 0 | H51: 0 | I51: =_xlfn.IFS('other funds ftr 2023'!H51<=Assumptions!$D$57,Assumptions!$B$57,'other funds ftr 2023'!H51<=Assumptions!$D$58,Assumptions!$B$58,'other funds ftr 2023'!H51<=Assumptions!$D$59,Assumptions!$B$59,'other funds ftr 2023'!H51<=Assumptions!$D$60,Assumptions!$B$60,'other funds ftr 2023'!H51<=Assumptions!$D$61,Assumptions!$B$61) -> 1.15
A52: 03052 | B52: KIONA-BENTON CITY | C52: =IFERROR(VLOOKUP(A52,'[7]Allocation 2022-23'!$B$9:$AC$326,20,FALSE),0) -> 48353 | D52: =IFERROR(VLOOKUP(A52,'[8]22-23 Revised Final'!$A$13:$CI$328,81,FALSE),0) -> 412931 | E52: =IFERROR(VLOOKUP(A52,[9]Sheet1!$A$3:$D$379,3,FALSE),0) -> 1076905.57 | F52: =IFERROR(VLOOKUP(A52,[9]Sheet1!$A$3:$D$379,4,FALSE),0) -> 550051.79 | G52: =IFERROR(VLOOKUP(A52,'[3]2022-23 Final'!$B$19:$S$156,18,FALSE),0) -> 287578 | H52: 0.1210437144 | I52: =_xlfn.IFS('other funds ftr 2023'!H52<=Assumptions!$D$57,Assumptions!$B$57,'other funds ftr 2023'!H52<=Assumptions!$D$58,Assumptions!$B$58,'other funds ftr 2023'!H52<=Assumptions!$D$59,Assumptions!$B$59,'other funds ftr 2023'!H52<=Assumptions!$D$60,Assumptions!$B$60,'other funds ftr 2023'!H52<=Assumptions!$D$61,Assumptions!$B$61) -> 0.85
A53: 19403 | B53: KITTITAS | C53: =IFERROR(VLOOKUP(A53,'[7]Allocation 2022-23'!$B$9:$AC$326,20,FALSE),0) -> 0 | D53: =IFERROR(VLOOKUP(A53,'[8]22-23 Revised Final'!$A$13:$CI$328,81,FALSE),0) -> 97993 | E53: =IFERROR(VLOOKUP(A53,[9]Sheet1!$A$3:$D$379,3,FALSE),0) -> 180829.1 | F53: =IFERROR(VLOOKUP(A53,[9]Sheet1!$A$3:$D$379,4,FALSE),0) -> 79376.37 | G53: =IFERROR(VLOOKUP(A53,'[3]2022-23 Final'!$B$19:$S$156,18,FALSE),0) -> 0 | H53: 0 | I53: =_xlfn.IFS('other funds ftr 2023'!H53<=Assumptions!$D$57,Assumptions!$B$57,'other funds ftr 2023'!H53<=Assumptions!$D$58,Assumptions!$B$58,'other funds ftr 2023'!H53<=Assumptions!$D$59,Assumptions!$B$59,'other funds ftr 2023'!H53<=Assumptions!$D$60,Assumptions!$B$60,'other funds ftr 2023'!H53<=Assumptions!$D$61,Assumptions!$B$61) -> 1.15
A54: 29311 | B54: LA CONNER | C54: =IFERROR(VLOOKUP(A54,'[7]Allocation 2022-23'!$B$9:$AC$326,20,FALSE),0) -> 22407 | D54: =IFERROR(VLOOKUP(A54,'[8]22-23 Revised Final'!$A$13:$CI$328,81,FALSE),0) -> 132719 | E54: =IFERROR(VLOOKUP(A54,[9]Sheet1!$A$3:$D$379,3,FALSE),0) -> 431668.28 | F54: =IFERROR(VLOOKUP(A54,[9]Sheet1!$A$3:$D$379,4,FALSE),0) -> 24887.64 | G54: =IFERROR(VLOOKUP(A54,'[3]2022-23 Final'!$B$19:$S$156,18,FALSE),0) -> 142219 | H54: 0.1886441523 | I54: =_xlfn.IFS('other funds ftr 2023'!H54<=Assumptions!$D$57,Assumptions!$B$57,'other funds ftr 2023'!H54<=Assumptions!$D$58,Assumptions!$B$58,'other funds ftr 2023'!H54<=Assumptions!$D$59,Assumptions!$B$59,'other funds ftr 2023'!H54<=Assumptions!$D$60,Assumptions!$B$60,'other funds ftr 2023'!H54<=Assumptions!$D$61,Assumptions!$B$61) -> 0.85
A55: 04129 | B55: LAKE CHELAN | C55: =IFERROR(VLOOKUP(A55,'[7]Allocation 2022-23'!$B$9:$AC$326,20,FALSE),0) -> 50192 | D55: =IFERROR(VLOOKUP(A55,'[8]22-23 Revised Final'!$A$13:$CI$328,81,FALSE),0) -> 223750 | E55: =IFERROR(VLOOKUP(A55,[9]Sheet1!$A$3:$D$379,3,FALSE),0) -> 828524.2 | F55: =IFERROR(VLOOKUP(A55,[9]Sheet1!$A$3:$D$379,4,FALSE),0) -> 566698.49 | G55: =IFERROR(VLOOKUP(A55,'[3]2022-23 Final'!$B$19:$S$156,18,FALSE),0) -> 138017 | H55: 0.07637140237 | I55: =_xlfn.IFS('other funds ftr 2023'!H55<=Assumptions!$D$57,Assumptions!$B$57,'other funds ftr 2023'!H55<=Assumptions!$D$58,Assumptions!$B$58,'other funds ftr 2023'!H55<=Assumptions!$D$59,Assumptions!$B$59,'other funds ftr 2023'!H55<=Assumptions!$D$60,Assumptions!$B$60,'other funds ftr 2023'!H55<=Assumptions!$D$61,Assumptions!$B$61) -> 0.95
A56: 31306 | B56: LAKEWOOD | C56: =IFERROR(VLOOKUP(A56,'[7]Allocation 2022-23'!$B$9:$AC$326,20,FALSE),0) -> 30181 | D56: =IFERROR(VLOOKUP(A56,'[8]22-23 Revised Final'!$A$13:$CI$328,81,FALSE),0) -> 405036 | E56: =IFERROR(VLOOKUP(A56,[9]Sheet1!$A$3:$D$379,3,FALSE),0) -> 812203.23 | F56: =IFERROR(VLOOKUP(A56,[9]Sheet1!$A$3:$D$379,4,FALSE),0) -> 461019.94 | G56: =IFERROR(VLOOKUP(A56,'[3]2022-23 Final'!$B$19:$S$156,18,FALSE),0) -> 0 | H56: 0 | I56: =_xlfn.IFS('other funds ftr 2023'!H56<=Assumptions!$D$57,Assumptions!$B$57,'other funds ftr 2023'!H56<=Assumptions!$D$58,Assumptions!$B$58,'other funds ftr 2023'!H56<=Assumptions!$D$59,Assumptions!$B$59,'other funds ftr 2023'!H56<=Assumptions!$D$60,Assumptions!$B$60,'other funds ftr 2023'!H56<=Assumptions!$D$61,Assumptions!$B$61) -> 1.15
A57: 01158 | B57: LIND | C57: =IFERROR(VLOOKUP(A57,'[7]Allocation 2022-23'!$B$9:$AC$326,20,FALSE),0) -> 4164 | D57: =IFERROR(VLOOKUP(A57,'[8]22-23 Revised Final'!$A$13:$CI$328,81,FALSE),0) -> 64780 | E57: =IFERROR(VLOOKUP(A57,[9]Sheet1!$A$3:$D$379,3,FALSE),0) -> 142449.48 | F57: =IFERROR(VLOOKUP(A57,[9]Sheet1!$A$3:$D$379,4,FALSE),0) -> 50549.12 | G57: =IFERROR(VLOOKUP(A57,'[3]2022-23 Final'!$B$19:$S$156,18,FALSE),0) -> 45112 | H57: 0.1469184959 | I57: =_xlfn.IFS('other funds ftr 2023'!H57<=Assumptions!$D$57,Assumptions!$B$57,'other funds ftr 2023'!H57<=Assumptions!$D$58,Assumptions!$B$58,'other funds ftr 2023'!H57<=Assumptions!$D$59,Assumptions!$B$59,'other funds ftr 2023'!H57<=Assumptions!$D$60,Assumptions!$B$60,'other funds ftr 2023'!H57<=Assumptions!$D$61,Assumptions!$B$61) -> 0.85
A58: 08122 | B58: LONGVIEW | C58: =IFERROR(VLOOKUP(A58,'[7]Allocation 2022-23'!$B$9:$AC$326,20,FALSE),0) -> 60128 | D58: =IFERROR(VLOOKUP(A58,'[8]22-23 Revised Final'!$A$13:$CI$328,81,FALSE),0) -> 2520339 | E58: =IFERROR(VLOOKUP(A58,[9]Sheet1!$A$3:$D$379,3,FALSE),0) -> 3874997.99 | F58: =IFERROR(VLOOKUP(A58,[9]Sheet1!$A$3:$D$379,4,FALSE),0) -> 659777.94 | G58: =IFERROR(VLOOKUP(A58,'[3]2022-23 Final'!$B$19:$S$156,18,FALSE),0) -> 0 | H58: 0 | I58: =_xlfn.IFS('other funds ftr 2023'!H58<=Assumptions!$D$57,Assumptions!$B$57,'other funds ftr 2023'!H58<=Assumptions!$D$58,Assumptions!$B$58,'other funds ftr 2023'!H58<=Assumptions!$D$59,Assumptions!$B$59,'other funds ftr 2023'!H58<=Assumptions!$D$60,Assumptions!$B$60,'other funds ftr 2023'!H58<=Assumptions!$D$61,Assumptions!$B$61) -> 1.15
A59: 20406 | B59: LYLE | C59: =IFERROR(VLOOKUP(A59,'[7]Allocation 2022-23'!$B$9:$AC$326,20,FALSE),0) -> 0 | D59: =IFERROR(VLOOKUP(A59,'[8]22-23 Revised Final'!$A$13:$CI$328,81,FALSE),0) -> 231034 | E59: =IFERROR(VLOOKUP(A59,[9]Sheet1!$A$3:$D$379,3,FALSE),0) -> 182691.17 | F59: =IFERROR(VLOOKUP(A59,[9]Sheet1!$A$3:$D$379,4,FALSE),0) -> 0 | G59: =IFERROR(VLOOKUP(A59,'[3]2022-23 Final'!$B$19:$S$156,18,FALSE),0) -> 25363 | H59: 0.05776288621 | I59: =_xlfn.IFS('other funds ftr 2023'!H59<=Assumptions!$D$57,Assumptions!$B$57,'other funds ftr 2023'!H59<=Assumptions!$D$58,Assumptions!$B$58,'other funds ftr 2023'!H59<=Assumptions!$D$59,Assumptions!$B$59,'other funds ftr 2023'!H59<=Assumptions!$D$60,Assumptions!$B$60,'other funds ftr 2023'!H59<=Assumptions!$D$61,Assumptions!$B$61) -> 1
A60: 37504 | B60: LYNDEN | C60: =IFERROR(VLOOKUP(A60,'[7]Allocation 2022-23'!$B$9:$AC$326,20,FALSE),0) -> 48329 | D60: =IFERROR(VLOOKUP(A60,'[8]22-23 Revised Final'!$A$13:$CI$328,81,FALSE),0) -> 407741 | E60: =IFERROR(VLOOKUP(A60,[9]Sheet1!$A$3:$D$379,3,FALSE),0) -> 556492.26 | F60: =IFERROR(VLOOKUP(A60,[9]Sheet1!$A$3:$D$379,4,FALSE),0) -> 663784.68 | G60: =IFERROR(VLOOKUP(A60,'[3]2022-23 Final'!$B$19:$S$156,18,FALSE),0) -> 104940 | H60: 0.05891246247 | I60: =_xlfn.IFS('other funds ftr 2023'!H60<=Assumptions!$D$57,Assumptions!$B$57,'other funds ftr 2023'!H60<=Assumptions!$D$58,Assumptions!$B$58,'other funds ftr 2023'!H60<=Assumptions!$D$59,Assumptions!$B$59,'other funds ftr 2023'!H60<=Assumptions!$D$60,Assumptions!$B$60,'other funds ftr 2023'!H60<=Assumptions!$D$61,Assumptions!$B$61) -> 1
A61: 39120 | B61: MABTON | C61: =IFERROR(VLOOKUP(A61,'[7]Allocation 2022-23'!$B$9:$AC$326,20,FALSE),0) -> 46632 | D61: =IFERROR(VLOOKUP(A61,'[8]22-23 Revised Final'!$A$13:$CI$328,81,FALSE),0) -> 352971 | E61: =IFERROR(VLOOKUP(A61,[9]Sheet1!$A$3:$D$379,3,FALSE),0) -> 770385.77 | F61: =IFERROR(VLOOKUP(A61,[9]Sheet1!$A$3:$D$379,4,FALSE),0) -> 512799.73 | G61: =IFERROR(VLOOKUP(A61,'[3]2022-23 Final'!$B$19:$S$156,18,FALSE),0) -> 322879 | H61: 0.1609833135 | I61: =_xlfn.IFS('other funds ftr 2023'!H61<=Assumptions!$D$57,Assumptions!$B$57,'other funds ftr 2023'!H61<=Assumptions!$D$58,Assumptions!$B$58,'other funds ftr 2023'!H61<=Assumptions!$D$59,Assumptions!$B$59,'other funds ftr 2023'!H61<=Assumptions!$D$60,Assumptions!$B$60,'other funds ftr 2023'!H61<=Assumptions!$D$61,Assumptions!$B$61) -> 0.85
A62: 04019 | B62: MANSON | C62: =IFERROR(VLOOKUP(A62,'[7]Allocation 2022-23'!$B$9:$AC$326,20,FALSE),0) -> 30297 | D62: =IFERROR(VLOOKUP(A62,'[8]22-23 Revised Final'!$A$13:$CI$328,81,FALSE),0) -> 158422 | E62: =IFERROR(VLOOKUP(A62,[9]Sheet1!$A$3:$D$379,3,FALSE),0) -> 442555.45 | F62: =IFERROR(VLOOKUP(A62,[9]Sheet1!$A$3:$D$379,4,FALSE),0) -> 359731.22 | G62: =IFERROR(VLOOKUP(A62,'[3]2022-23 Final'!$B$19:$S$156,18,FALSE),0) -> 59150 | H62: 0.05632498275 | I62: =_xlfn.IFS('other funds ftr 2023'!H62<=Assumptions!$D$57,Assumptions!$B$57,'other funds ftr 2023'!H62<=Assumptions!$D$58,Assumptions!$B$58,'other funds ftr 2023'!H62<=Assumptions!$D$59,Assumptions!$B$59,'other funds ftr 2023'!H62<=Assumptions!$D$60,Assumptions!$B$60,'other funds ftr 2023'!H62<=Assumptions!$D$61,Assumptions!$B$61) -> 1
A63: 31025 | B63: MARYSVILLE | C63: =IFERROR(VLOOKUP(A63,'[7]Allocation 2022-23'!$B$9:$AC$326,20,FALSE),0) -> 172938 | D63: =IFERROR(VLOOKUP(A63,'[8]22-23 Revised Final'!$A$13:$CI$328,81,FALSE),0) -> 2049341 | E63: =IFERROR(VLOOKUP(A63,[9]Sheet1!$A$3:$D$379,3,FALSE),0) -> 5902377.03 | F63: =IFERROR(VLOOKUP(A63,[9]Sheet1!$A$3:$D$379,4,FALSE),0) -> 2027086.23 | G63: =IFERROR(VLOOKUP(A63,'[3]2022-23 Final'!$B$19:$S$156,18,FALSE),0) -> 180231 | H63: 0.01744400566 | I63: =_xlfn.IFS('other funds ftr 2023'!H63<=Assumptions!$D$57,Assumptions!$B$57,'other funds ftr 2023'!H63<=Assumptions!$D$58,Assumptions!$B$58,'other funds ftr 2023'!H63<=Assumptions!$D$59,Assumptions!$B$59,'other funds ftr 2023'!H63<=Assumptions!$D$60,Assumptions!$B$60,'other funds ftr 2023'!H63<=Assumptions!$D$61,Assumptions!$B$61) -> 1.15
A64: 37505 | B64: MERIDIAN | C64: =IFERROR(VLOOKUP(A64,'[7]Allocation 2022-23'!$B$9:$AC$326,20,FALSE),0) -> 27807 | D64: =IFERROR(VLOOKUP(A64,'[8]22-23 Revised Final'!$A$13:$CI$328,81,FALSE),0) -> 280912 | E64: =IFERROR(VLOOKUP(A64,[9]Sheet1!$A$3:$D$379,3,FALSE),0) -> 295997.27 | F64: =IFERROR(VLOOKUP(A64,[9]Sheet1!$A$3:$D$379,4,FALSE),0) -> 362773.48 | G64: =IFERROR(VLOOKUP(A64,'[3]2022-23 Final'!$B$19:$S$156,18,FALSE),0) -> 0 | H64: 0 | I64: =_xlfn.IFS('other funds ftr 2023'!H64<=Assumptions!$D$57,Assumptions!$B$57,'other funds ftr 2023'!H64<=Assumptions!$D$58,Assumptions!$B$58,'other funds ftr 2023'!H64<=Assumptions!$D$59,Assumptions!$B$59,'other funds ftr 2023'!H64<=Assumptions!$D$60,Assumptions!$B$60,'other funds ftr 2023'!H64<=Assumptions!$D$61,Assumptions!$B$61) -> 1.15
A65: 31103 | B65: MONROE | C65: =IFERROR(VLOOKUP(A65,'[7]Allocation 2022-23'!$B$9:$AC$326,20,FALSE),0) -> 94614 | D65: =IFERROR(VLOOKUP(A65,'[8]22-23 Revised Final'!$A$13:$CI$328,81,FALSE),0) -> 512968 | E65: =IFERROR(VLOOKUP(A65,[9]Sheet1!$A$3:$D$379,3,FALSE),0) -> 1580407.18 | F65: =IFERROR(VLOOKUP(A65,[9]Sheet1!$A$3:$D$379,4,FALSE),0) -> 1409391.91 | G65: =IFERROR(VLOOKUP(A65,'[3]2022-23 Final'!$B$19:$S$156,18,FALSE),0) -> 0 | H65: 0 | I65: =_xlfn.IFS('other funds ftr 2023'!H65<=Assumptions!$D$57,Assumptions!$B$57,'other funds ftr 2023'!H65<=Assumptions!$D$58,Assumptions!$B$58,'other funds ftr 2023'!H65<=Assumptions!$D$59,Assumptions!$B$59,'other funds ftr 2023'!H65<=Assumptions!$D$60,Assumptions!$B$60,'other funds ftr 2023'!H65<=Assumptions!$D$61,Assumptions!$B$61) -> 1.15
A66: 13161 | B66: MOSES LAKE | C66: =IFERROR(VLOOKUP(A66,'[7]Allocation 2022-23'!$B$9:$AC$326,20,FALSE),0) -> 160628 | D66: =IFERROR(VLOOKUP(A66,'[8]22-23 Revised Final'!$A$13:$CI$328,81,FALSE),0) -> 3184919 | E66: =IFERROR(VLOOKUP(A66,[9]Sheet1!$A$3:$D$379,3,FALSE),0) -> 5878214.69 | F66: =IFERROR(VLOOKUP(A66,[9]Sheet1!$A$3:$D$379,4,FALSE),0) -> 2063488.59 | G66: =IFERROR(VLOOKUP(A66,'[3]2022-23 Final'!$B$19:$S$156,18,FALSE),0) -> 275845 | H66: =IFERROR(G66/SUM(C66:G66),0) -> 0.02385563669 | I66: =_xlfn.IFS('other funds ftr 2023'!H66<=Assumptions!$D$57,Assumptions!$B$57,'other funds ftr 2023'!H66<=Assumptions!$D$58,Assumptions!$B$58,'other funds ftr 2023'!H66<=Assumptions!$D$59,Assumptions!$B$59,'other funds ftr 2023'!H66<=Assumptions!$D$60,Assumptions!$B$60,'other funds ftr 2023'!H66<=Assumptions!$D$61,Assumptions!$B$61) -> 1.05
A67: 21206 | B67: MOSSYROCK | C67: =IFERROR(VLOOKUP(A67,'[7]Allocation 2022-23'!$B$9:$AC$326,20,FALSE),0) -> 7727 | D67: =IFERROR(VLOOKUP(A67,'[8]22-23 Revised Final'!$A$13:$CI$328,81,FALSE),0) -> 171730 | E67: =IFERROR(VLOOKUP(A67,[9]Sheet1!$A$3:$D$379,3,FALSE),0) -> 386796.34 | F67: =IFERROR(VLOOKUP(A67,[9]Sheet1!$A$3:$D$379,4,FALSE),0) -> 93789.96 | G67: =IFERROR(VLOOKUP(A67,'[3]2022-23 Final'!$B$19:$S$156,18,FALSE),0) -> 34251 | H67: 0.049332106 | I67: =_xlfn.IFS('other funds ftr 2023'!H67<=Assumptions!$D$57,Assumptions!$B$57,'other funds ftr 2023'!H67<=Assumptions!$D$58,Assumptions!$B$58,'other funds ftr 2023'!H67<=Assumptions!$D$59,Assumptions!$B$59,'other funds ftr 2023'!H67<=Assumptions!$D$60,Assumptions!$B$60,'other funds ftr 2023'!H67<=Assumptions!$D$61,Assumptions!$B$61) -> 1
A68: 39209 | B68: MOUNT ADAMS | C68: =IFERROR(VLOOKUP(A68,'[7]Allocation 2022-23'!$B$9:$AC$326,20,FALSE),0) -> 56545 | D68: =IFERROR(VLOOKUP(A68,'[8]22-23 Revised Final'!$A$13:$CI$328,81,FALSE),0) -> 407215 | E68: =IFERROR(VLOOKUP(A68,[9]Sheet1!$A$3:$D$379,3,FALSE),0) -> 810834.39 | F68: =IFERROR(VLOOKUP(A68,[9]Sheet1!$A$3:$D$379,4,FALSE),0) -> 208083.81 | G68: =IFERROR(VLOOKUP(A68,'[3]2022-23 Final'!$B$19:$S$156,18,FALSE),0) -> 168529 | H68: 0.1020641141 | I68: =_xlfn.IFS('other funds ftr 2023'!H68<=Assumptions!$D$57,Assumptions!$B$57,'other funds ftr 2023'!H68<=Assumptions!$D$58,Assumptions!$B$58,'other funds ftr 2023'!H68<=Assumptions!$D$59,Assumptions!$B$59,'other funds ftr 2023'!H68<=Assumptions!$D$60,Assumptions!$B$60,'other funds ftr 2023'!H68<=Assumptions!$D$61,Assumptions!$B$61) -> 0.95
A69: 37507 | B69: MOUNT BAKER | C69: =IFERROR(VLOOKUP(A69,'[7]Allocation 2022-23'!$B$9:$AC$326,20,FALSE),0) -> 18080 | D69: =IFERROR(VLOOKUP(A69,'[8]22-23 Revised Final'!$A$13:$CI$328,81,FALSE),0) -> 674664 | E69: =IFERROR(VLOOKUP(A69,[9]Sheet1!$A$3:$D$379,3,FALSE),0) -> 1081808.24 | F69: =IFERROR(VLOOKUP(A69,[9]Sheet1!$A$3:$D$379,4,FALSE),0) -> 170328.95 | G69: =IFERROR(VLOOKUP(A69,'[3]2022-23 Final'!$B$19:$S$156,18,FALSE),0) -> 32144 | H69: 0.01625877109 | I69: =_xlfn.IFS('other funds ftr 2023'!H69<=Assumptions!$D$57,Assumptions!$B$57,'other funds ftr 2023'!H69<=Assumptions!$D$58,Assumptions!$B$58,'other funds ftr 2023'!H69<=Assumptions!$D$59,Assumptions!$B$59,'other funds ftr 2023'!H69<=Assumptions!$D$60,Assumptions!$B$60,'other funds ftr 2023'!H69<=Assumptions!$D$61,Assumptions!$B$61) -> 1.15
A70: 29320 | B70: MOUNT VERNON | C70: =IFERROR(VLOOKUP(A70,'[7]Allocation 2022-23'!$B$9:$AC$326,20,FALSE),0) -> 223688 | D70: =IFERROR(VLOOKUP(A70,'[8]22-23 Revised Final'!$A$13:$CI$328,81,FALSE),0) -> 1980962 | E70: =IFERROR(VLOOKUP(A70,[9]Sheet1!$A$3:$D$379,3,FALSE),0) -> 5089530.42 | F70: =IFERROR(VLOOKUP(A70,[9]Sheet1!$A$3:$D$379,4,FALSE),0) -> 2931946.91 | G70: =IFERROR(VLOOKUP(A70,'[3]2022-23 Final'!$B$19:$S$156,18,FALSE),0) -> 1001526 | H70: 0.08920172102 | I70: =_xlfn.IFS('other funds ftr 2023'!H70<=Assumptions!$D$57,Assumptions!$B$57,'other funds ftr 2023'!H70<=Assumptions!$D$58,Assumptions!$B$58,'other funds ftr 2023'!H70<=Assumptions!$D$59,Assumptions!$B$59,'other funds ftr 2023'!H70<=Assumptions!$D$60,Assumptions!$B$60,'other funds ftr 2023'!H70<=Assumptions!$D$61,Assumptions!$B$61) -> 0.95
A71: 17903 | B71: MUCKLESHOOT INDIAN TRIBE | C71: =IFERROR(VLOOKUP(A71,'[7]Allocation 2022-23'!$B$9:$AC$326,20,FALSE),0) -> 0 | D71: =IFERROR(VLOOKUP(A71,'[8]22-23 Revised Final'!$A$13:$CI$328,81,FALSE),0) -> 0 | E71: =IFERROR(VLOOKUP(A71,[9]Sheet1!$A$3:$D$379,3,FALSE),0) -> 524885.45 | F71: =IFERROR(VLOOKUP(A71,[9]Sheet1!$A$3:$D$379,4,FALSE),0) -> 0 | G71: =IFERROR(VLOOKUP(A71,'[3]2022-23 Final'!$B$19:$S$156,18,FALSE),0) -> 15623 | H71: 0.02890426597 | I71: =_xlfn.IFS('other funds ftr 2023'!H71<=Assumptions!$D$57,Assumptions!$B$57,'other funds ftr 2023'!H71<=Assumptions!$D$58,Assumptions!$B$58,'other funds ftr 2023'!H71<=Assumptions!$D$59,Assumptions!$B$59,'other funds ftr 2023'!H71<=Assumptions!$D$60,Assumptions!$B$60,'other funds ftr 2023'!H71<=Assumptions!$D$61,Assumptions!$B$61) -> 1.05
A72: 31006 | B72: MUKILTEO | C72: =IFERROR(VLOOKUP(A72,'[7]Allocation 2022-23'!$B$9:$AC$326,20,FALSE),0) -> 458079 | D72: =IFERROR(VLOOKUP(A72,'[8]22-23 Revised Final'!$A$13:$CI$328,81,FALSE),0) -> 3388432 | E72: =IFERROR(VLOOKUP(A72,[9]Sheet1!$A$3:$D$379,3,FALSE),0) -> 8714703.82 | F72: =IFERROR(VLOOKUP(A72,[9]Sheet1!$A$3:$D$379,4,FALSE),0) -> 6660549.43 | G72: =IFERROR(VLOOKUP(A72,'[3]2022-23 Final'!$B$19:$S$156,18,FALSE),0) -> 0 | H72: 0 | I72: =_xlfn.IFS('other funds ftr 2023'!H72<=Assumptions!$D$57,Assumptions!$B$57,'other funds ftr 2023'!H72<=Assumptions!$D$58,Assumptions!$B$58,'other funds ftr 2023'!H72<=Assumptions!$D$59,Assumptions!$B$59,'other funds ftr 2023'!H72<=Assumptions!$D$60,Assumptions!$B$60,'other funds ftr 2023'!H72<=Assumptions!$D$61,Assumptions!$B$61) -> 1.15
A73: 39003 | B73: NACHES VALLEY | C73: =IFERROR(VLOOKUP(A73,'[7]Allocation 2022-23'!$B$9:$AC$326,20,FALSE),0) -> 10284 | D73: =IFERROR(VLOOKUP(A73,'[8]22-23 Revised Final'!$A$13:$CI$328,81,FALSE),0) -> 313140 | E73: =IFERROR(VLOOKUP(A73,[9]Sheet1!$A$3:$D$379,3,FALSE),0) -> 686385.06 | F73: =IFERROR(VLOOKUP(A73,[9]Sheet1!$A$3:$D$379,4,FALSE),0) -> 116729.95 | G73: =IFERROR(VLOOKUP(A73,'[3]2022-23 Final'!$B$19:$S$156,18,FALSE),0) -> 0 | H73: 0 | I73: =_xlfn.IFS('other funds ftr 2023'!H73<=Assumptions!$D$57,Assumptions!$B$57,'other funds ftr 2023'!H73<=Assumptions!$D$58,Assumptions!$B$58,'other funds ftr 2023'!H73<=Assumptions!$D$59,Assumptions!$B$59,'other funds ftr 2023'!H73<=Assumptions!$D$60,Assumptions!$B$60,'other funds ftr 2023'!H73<=Assumptions!$D$61,Assumptions!$B$61) -> 1.15
A74: 25155 | B74: NASELLE-GRAYS RIVER VALLEY | C74: =IFERROR(VLOOKUP(A74,'[7]Allocation 2022-23'!$B$9:$AC$326,20,FALSE),0) -> 1606 | D74: =IFERROR(VLOOKUP(A74,'[8]22-23 Revised Final'!$A$13:$CI$328,81,FALSE),0) -> 90114 | E74: =IFERROR(VLOOKUP(A74,[9]Sheet1!$A$3:$D$379,3,FALSE),0) -> 208781.59 | F74: =IFERROR(VLOOKUP(A74,[9]Sheet1!$A$3:$D$379,4,FALSE),0) -> 19014.88 | G74: =IFERROR(VLOOKUP(A74,'[3]2022-23 Final'!$B$19:$S$156,18,FALSE),0) -> 49611 | H74: 0.1344007261 | I74: =_xlfn.IFS('other funds ftr 2023'!H74<=Assumptions!$D$57,Assumptions!$B$57,'other funds ftr 2023'!H74<=Assumptions!$D$58,Assumptions!$B$58,'other funds ftr 2023'!H74<=Assumptions!$D$59,Assumptions!$B$59,'other funds ftr 2023'!H74<=Assumptions!$D$60,Assumptions!$B$60,'other funds ftr 2023'!H74<=Assumptions!$D$61,Assumptions!$B$61) -> 0.85
A75: 24014 | B75: NESPELEM | C75: =IFERROR(VLOOKUP(A75,'[7]Allocation 2022-23'!$B$9:$AC$326,20,FALSE),0) -> 0 | D75: =IFERROR(VLOOKUP(A75,'[8]22-23 Revised Final'!$A$13:$CI$328,81,FALSE),0) -> 183470 | E75: =IFERROR(VLOOKUP(A75,[9]Sheet1!$A$3:$D$379,3,FALSE),0) -> 124449.31 | F75: =IFERROR(VLOOKUP(A75,[9]Sheet1!$A$3:$D$379,4,FALSE),0) -> 0 | G75: =IFERROR(VLOOKUP(A75,'[3]2022-23 Final'!$B$19:$S$156,18,FALSE),0) -> 25244 | H75: 0.07577064833 | I75: =_xlfn.IFS('other funds ftr 2023'!H75<=Assumptions!$D$57,Assumptions!$B$57,'other funds ftr 2023'!H75<=Assumptions!$D$58,Assumptions!$B$58,'other funds ftr 2023'!H75<=Assumptions!$D$59,Assumptions!$B$59,'other funds ftr 2023'!H75<=Assumptions!$D$60,Assumptions!$B$60,'other funds ftr 2023'!H75<=Assumptions!$D$61,Assumptions!$B$61) -> 0.95
A76: 37506 | B76: NOOKSACK VALLEY | C76: =IFERROR(VLOOKUP(A76,'[7]Allocation 2022-23'!$B$9:$AC$326,20,FALSE),0) -> 35927 | D76: =IFERROR(VLOOKUP(A76,'[8]22-23 Revised Final'!$A$13:$CI$328,81,FALSE),0) -> 348376 | E76: =IFERROR(VLOOKUP(A76,[9]Sheet1!$A$3:$D$379,3,FALSE),0) -> 1089243.75 | F76: =IFERROR(VLOOKUP(A76,[9]Sheet1!$A$3:$D$379,4,FALSE),0) -> 457660.94 | G76: =IFERROR(VLOOKUP(A76,'[3]2022-23 Final'!$B$19:$S$156,18,FALSE),0) -> 102031 | H76: 0.05018151607 | I76: =_xlfn.IFS('other funds ftr 2023'!H76<=Assumptions!$D$57,Assumptions!$B$57,'other funds ftr 2023'!H76<=Assumptions!$D$58,Assumptions!$B$58,'other funds ftr 2023'!H76<=Assumptions!$D$59,Assumptions!$B$59,'other funds ftr 2023'!H76<=Assumptions!$D$60,Assumptions!$B$60,'other funds ftr 2023'!H76<=Assumptions!$D$61,Assumptions!$B$61) -> 1
A77: 14064 | B77: NORTH BEACH | C77: =IFERROR(VLOOKUP(A77,'[7]Allocation 2022-23'!$B$9:$AC$326,20,FALSE),0) -> 0 | D77: =IFERROR(VLOOKUP(A77,'[8]22-23 Revised Final'!$A$13:$CI$328,81,FALSE),0) -> 257597 | E77: =IFERROR(VLOOKUP(A77,[9]Sheet1!$A$3:$D$379,3,FALSE),0) -> 572073.76 | F77: =IFERROR(VLOOKUP(A77,[9]Sheet1!$A$3:$D$379,4,FALSE),0) -> 21620.41 | G77: =IFERROR(VLOOKUP(A77,'[3]2022-23 Final'!$B$19:$S$156,18,FALSE),0) -> 26466 | H77: 0.03015184712 | I77: =_xlfn.IFS('other funds ftr 2023'!H77<=Assumptions!$D$57,Assumptions!$B$57,'other funds ftr 2023'!H77<=Assumptions!$D$58,Assumptions!$B$58,'other funds ftr 2023'!H77<=Assumptions!$D$59,Assumptions!$B$59,'other funds ftr 2023'!H77<=Assumptions!$D$60,Assumptions!$B$60,'other funds ftr 2023'!H77<=Assumptions!$D$61,Assumptions!$B$61) -> 1.05
A78: 11051 | B78: NORTH FRANKLIN | C78: =IFERROR(VLOOKUP(A78,'[7]Allocation 2022-23'!$B$9:$AC$326,20,FALSE),0) -> 101315 | D78: =IFERROR(VLOOKUP(A78,'[8]22-23 Revised Final'!$A$13:$CI$328,81,FALSE),0) -> 809950 | E78: =IFERROR(VLOOKUP(A78,[9]Sheet1!$A$3:$D$379,3,FALSE),0) -> 1619082.55 | F78: =IFERROR(VLOOKUP(A78,[9]Sheet1!$A$3:$D$379,4,FALSE),0) -> 1186382.23 | G78: =IFERROR(VLOOKUP(A78,'[3]2022-23 Final'!$B$19:$S$156,18,FALSE),0) -> 593122 | H78: 0.1376200459 | I78: =_xlfn.IFS('other funds ftr 2023'!H78<=Assumptions!$D$57,Assumptions!$B$57,'other funds ftr 2023'!H78<=Assumptions!$D$58,Assumptions!$B$58,'other funds ftr 2023'!H78<=Assumptions!$D$59,Assumptions!$B$59,'other funds ftr 2023'!H78<=Assumptions!$D$60,Assumptions!$B$60,'other funds ftr 2023'!H78<=Assumptions!$D$61,Assumptions!$B$61) -> 0.85
A79: 18400 | B79: NORTH KITSAP | C79: =IFERROR(VLOOKUP(A79,'[7]Allocation 2022-23'!$B$9:$AC$326,20,FALSE),0) -> 35903 | D79: =IFERROR(VLOOKUP(A79,'[8]22-23 Revised Final'!$A$13:$CI$328,81,FALSE),0) -> 968494 | E79: =IFERROR(VLOOKUP(A79,[9]Sheet1!$A$3:$D$379,3,FALSE),0) -> 1443704.55 | F79: =IFERROR(VLOOKUP(A79,[9]Sheet1!$A$3:$D$379,4,FALSE),0) -> 466936.75 | G79: =IFERROR(VLOOKUP(A79,'[3]2022-23 Final'!$B$19:$S$156,18,FALSE),0) -> 0 | H79: 0 | I79: =_xlfn.IFS('other funds ftr 2023'!H79<=Assumptions!$D$57,Assumptions!$B$57,'other funds ftr 2023'!H79<=Assumptions!$D$58,Assumptions!$B$58,'other funds ftr 2023'!H79<=Assumptions!$D$59,Assumptions!$B$59,'other funds ftr 2023'!H79<=Assumptions!$D$60,Assumptions!$B$60,'other funds ftr 2023'!H79<=Assumptions!$D$61,Assumptions!$B$61) -> 1.15
A80: 23403 | B80: NORTH MASON | C80: =IFERROR(VLOOKUP(A80,'[7]Allocation 2022-23'!$B$9:$AC$326,20,FALSE),0) -> 46400 | D80: =IFERROR(VLOOKUP(A80,'[8]22-23 Revised Final'!$A$13:$CI$328,81,FALSE),0) -> 601652 | E80: =IFERROR(VLOOKUP(A80,[9]Sheet1!$A$3:$D$379,3,FALSE),0) -> 1347125.14 | F80: =IFERROR(VLOOKUP(A80,[9]Sheet1!$A$3:$D$379,4,FALSE),0) -> 517820.44 | G80: =IFERROR(VLOOKUP(A80,'[3]2022-23 Final'!$B$19:$S$156,18,FALSE),0) -> 0 | H80: 0 | I80: =_xlfn.IFS('other funds ftr 2023'!H80<=Assumptions!$D$57,Assumptions!$B$57,'other funds ftr 2023'!H80<=Assumptions!$D$58,Assumptions!$B$58,'other funds ftr 2023'!H80<=Assumptions!$D$59,Assumptions!$B$59,'other funds ftr 2023'!H80<=Assumptions!$D$60,Assumptions!$B$60,'other funds ftr 2023'!H80<=Assumptions!$D$61,Assumptions!$B$61) -> 1.15
A81: 34003 | B81: NORTH THURSTON PUBLIC SCHOOLS | C81: =IFERROR(VLOOKUP(A81,'[7]Allocation 2022-23'!$B$9:$AC$326,20,FALSE),0) -> 129145 | D81: =IFERROR(VLOOKUP(A81,'[8]22-23 Revised Final'!$A$13:$CI$328,81,FALSE),0) -> 2951636 | E81: =IFERROR(VLOOKUP(A81,[9]Sheet1!$A$3:$D$379,3,FALSE),0) -> 5426330.19 | F81: =IFERROR(VLOOKUP(A81,[9]Sheet1!$A$3:$D$379,4,FALSE),0) -> 1533421.93 | G81: =IFERROR(VLOOKUP(A81,'[3]2022-23 Final'!$B$19:$S$156,18,FALSE),0) -> 0 | H81: 0 | I81: =_xlfn.IFS('other funds ftr 2023'!H81<=Assumptions!$D$57,Assumptions!$B$57,'other funds ftr 2023'!H81<=Assumptions!$D$58,Assumptions!$B$58,'other funds ftr 2023'!H81<=Assumptions!$D$59,Assumptions!$B$59,'other funds ftr 2023'!H81<=Assumptions!$D$60,Assumptions!$B$60,'other funds ftr 2023'!H81<=Assumptions!$D$61,Assumptions!$B$61) -> 1.15
A82: 15201 | B82: OAK HARBOR | C82: =IFERROR(VLOOKUP(A82,'[7]Allocation 2022-23'!$B$9:$AC$326,20,FALSE),0) -> 32578 | D82: =IFERROR(VLOOKUP(A82,'[8]22-23 Revised Final'!$A$13:$CI$328,81,FALSE),0) -> 838676 | E82: =IFERROR(VLOOKUP(A82,[9]Sheet1!$A$3:$D$379,3,FALSE),0) -> 1814601.82 | F82: =IFERROR(VLOOKUP(A82,[9]Sheet1!$A$3:$D$379,4,FALSE),0) -> 417406.9 | G82: =IFERROR(VLOOKUP(A82,'[3]2022-23 Final'!$B$19:$S$156,18,FALSE),0) -> 0 | H82: 0 | I82: =_xlfn.IFS('other funds ftr 2023'!H82<=Assumptions!$D$57,Assumptions!$B$57,'other funds ftr 2023'!H82<=Assumptions!$D$58,Assumptions!$B$58,'other funds ftr 2023'!H82<=Assumptions!$D$59,Assumptions!$B$59,'other funds ftr 2023'!H82<=Assumptions!$D$60,Assumptions!$B$60,'other funds ftr 2023'!H82<=Assumptions!$D$61,Assumptions!$B$61) -> 1.15
A83: 25101 | B83: OCEAN BEACH | C83: =IFERROR(VLOOKUP(A83,'[7]Allocation 2022-23'!$B$9:$AC$326,20,FALSE),0) -> 7050 | D83: =IFERROR(VLOOKUP(A83,'[8]22-23 Revised Final'!$A$13:$CI$328,81,FALSE),0) -> 376263 | E83: =IFERROR(VLOOKUP(A83,[9]Sheet1!$A$3:$D$379,3,FALSE),0) -> 643453.67 | F83: =IFERROR(VLOOKUP(A83,[9]Sheet1!$A$3:$D$379,4,FALSE),0) -> 0 | G83: =IFERROR(VLOOKUP(A83,'[3]2022-23 Final'!$B$19:$S$156,18,FALSE),0) -> 35926 | H83: 0.03380657552 | I83: =_xlfn.IFS('other funds ftr 2023'!H83<=Assumptions!$D$57,Assumptions!$B$57,'other funds ftr 2023'!H83<=Assumptions!$D$58,Assumptions!$B$58,'other funds ftr 2023'!H83<=Assumptions!$D$59,Assumptions!$B$59,'other funds ftr 2023'!H83<=Assumptions!$D$60,Assumptions!$B$60,'other funds ftr 2023'!H83<=Assumptions!$D$61,Assumptions!$B$61) -> 1.05
A84: 14172 | B84: OCOSTA | C84: =IFERROR(VLOOKUP(A84,'[7]Allocation 2022-23'!$B$9:$AC$326,20,FALSE),0) -> 7260 | D84: =IFERROR(VLOOKUP(A84,'[8]22-23 Revised Final'!$A$13:$CI$328,81,FALSE),0) -> 325883 | E84: =IFERROR(VLOOKUP(A84,[9]Sheet1!$A$3:$D$379,3,FALSE),0) -> 443383.03 | F84: =IFERROR(VLOOKUP(A84,[9]Sheet1!$A$3:$D$379,4,FALSE),0) -> 96530.59 | G84: =IFERROR(VLOOKUP(A84,'[3]2022-23 Final'!$B$19:$S$156,18,FALSE),0) -> 36858 | H84: 0.04050709725 | I84: =_xlfn.IFS('other funds ftr 2023'!H84<=Assumptions!$D$57,Assumptions!$B$57,'other funds ftr 2023'!H84<=Assumptions!$D$58,Assumptions!$B$58,'other funds ftr 2023'!H84<=Assumptions!$D$59,Assumptions!$B$59,'other funds ftr 2023'!H84<=Assumptions!$D$60,Assumptions!$B$60,'other funds ftr 2023'!H84<=Assumptions!$D$61,Assumptions!$B$61) -> 1.05
A85: 24105 | B85: OKANOGAN | C85: =IFERROR(VLOOKUP(A85,'[7]Allocation 2022-23'!$B$9:$AC$326,20,FALSE),0) -> 10122 | D85: =IFERROR(VLOOKUP(A85,'[8]22-23 Revised Final'!$A$13:$CI$328,81,FALSE),0) -> 561179 | E85: =IFERROR(VLOOKUP(A85,[9]Sheet1!$A$3:$D$379,3,FALSE),0) -> 827631.6 | F85: =IFERROR(VLOOKUP(A85,[9]Sheet1!$A$3:$D$379,4,FALSE),0) -> 151698.85 | G85: =IFERROR(VLOOKUP(A85,'[3]2022-23 Final'!$B$19:$S$156,18,FALSE),0) -> 0 | H85: 0 | I85: =_xlfn.IFS('other funds ftr 2023'!H85<=Assumptions!$D$57,Assumptions!$B$57,'other funds ftr 2023'!H85<=Assumptions!$D$58,Assumptions!$B$58,'other funds ftr 2023'!H85<=Assumptions!$D$59,Assumptions!$B$59,'other funds ftr 2023'!H85<=Assumptions!$D$60,Assumptions!$B$60,'other funds ftr 2023'!H85<=Assumptions!$D$61,Assumptions!$B$61) -> 1.15
A86: 34111 | B86: OLYMPIA | C86: =IFERROR(VLOOKUP(A86,'[7]Allocation 2022-23'!$B$9:$AC$326,20,FALSE),0) -> 43885 | D86: =IFERROR(VLOOKUP(A86,'[8]22-23 Revised Final'!$A$13:$CI$328,81,FALSE),0) -> 1666347 | E86: =IFERROR(VLOOKUP(A86,[9]Sheet1!$A$3:$D$379,3,FALSE),0) -> 2114582.68 | F86: =IFERROR(VLOOKUP(A86,[9]Sheet1!$A$3:$D$379,4,FALSE),0) -> 518864.72 | G86: =IFERROR(VLOOKUP(A86,'[3]2022-23 Final'!$B$19:$S$156,18,FALSE),0) -> 21440 | H86: 0.004911664043 | I86: =_xlfn.IFS('other funds ftr 2023'!H86<=Assumptions!$D$57,Assumptions!$B$57,'other funds ftr 2023'!H86<=Assumptions!$D$58,Assumptions!$B$58,'other funds ftr 2023'!H86<=Assumptions!$D$59,Assumptions!$B$59,'other funds ftr 2023'!H86<=Assumptions!$D$60,Assumptions!$B$60,'other funds ftr 2023'!H86<=Assumptions!$D$61,Assumptions!$B$61) -> 1.15
A87: 24019 | B87: OMAK | C87: =IFERROR(VLOOKUP(A87,'[7]Allocation 2022-23'!$B$9:$AC$326,20,FALSE),0) -> 38463 | D87: =IFERROR(VLOOKUP(A87,'[8]22-23 Revised Final'!$A$13:$CI$328,81,FALSE),0) -> 1088179 | E87: =IFERROR(VLOOKUP(A87,[9]Sheet1!$A$3:$D$379,3,FALSE),0) -> 3820583.75 | F87: =IFERROR(VLOOKUP(A87,[9]Sheet1!$A$3:$D$379,4,FALSE),0) -> 535942.69 | G87: =IFERROR(VLOOKUP(A87,'[3]2022-23 Final'!$B$19:$S$156,18,FALSE),0) -> 0 | H87: 0 | I87: =_xlfn.IFS('other funds ftr 2023'!H87<=Assumptions!$D$57,Assumptions!$B$57,'other funds ftr 2023'!H87<=Assumptions!$D$58,Assumptions!$B$58,'other funds ftr 2023'!H87<=Assumptions!$D$59,Assumptions!$B$59,'other funds ftr 2023'!H87<=Assumptions!$D$60,Assumptions!$B$60,'other funds ftr 2023'!H87<=Assumptions!$D$61,Assumptions!$B$61) -> 1.15
A88: 09013 | B88: ORONDO | C88: =IFERROR(VLOOKUP(A88,'[7]Allocation 2022-23'!$B$9:$AC$326,20,FALSE),0) -> 8283 | D88: =IFERROR(VLOOKUP(A88,'[8]22-23 Revised Final'!$A$13:$CI$328,81,FALSE),0) -> 142743 | E88: =IFERROR(VLOOKUP(A88,[9]Sheet1!$A$3:$D$379,3,FALSE),0) -> 122483.81 | F88: =IFERROR(VLOOKUP(A88,[9]Sheet1!$A$3:$D$379,4,FALSE),0) -> 91556.87 | G88: =IFERROR(VLOOKUP(A88,'[3]2022-23 Final'!$B$19:$S$156,18,FALSE),0) -> 56562 | H88: 0.1341512157 | I88: =_xlfn.IFS('other funds ftr 2023'!H88<=Assumptions!$D$57,Assumptions!$B$57,'other funds ftr 2023'!H88<=Assumptions!$D$58,Assumptions!$B$58,'other funds ftr 2023'!H88<=Assumptions!$D$59,Assumptions!$B$59,'other funds ftr 2023'!H88<=Assumptions!$D$60,Assumptions!$B$60,'other funds ftr 2023'!H88<=Assumptions!$D$61,Assumptions!$B$61) -> 0.85
A89: 24410 | B89: OROVILLE | C89: =IFERROR(VLOOKUP(A89,'[7]Allocation 2022-23'!$B$9:$AC$326,20,FALSE),0) -> 0 | D89: =IFERROR(VLOOKUP(A89,'[8]22-23 Revised Final'!$A$13:$CI$328,81,FALSE),0) -> 754725 | E89: =IFERROR(VLOOKUP(A89,[9]Sheet1!$A$3:$D$379,3,FALSE),0) -> 322347.54 | F89: =IFERROR(VLOOKUP(A89,[9]Sheet1!$A$3:$D$379,4,FALSE),0) -> 106782.52 | G89: =IFERROR(VLOOKUP(A89,'[3]2022-23 Final'!$B$19:$S$156,18,FALSE),0) -> 0 | H89: 0 | I89: =_xlfn.IFS('other funds ftr 2023'!H89<=Assumptions!$D$57,Assumptions!$B$57,'other funds ftr 2023'!H89<=Assumptions!$D$58,Assumptions!$B$58,'other funds ftr 2023'!H89<=Assumptions!$D$59,Assumptions!$B$59,'other funds ftr 2023'!H89<=Assumptions!$D$60,Assumptions!$B$60,'other funds ftr 2023'!H89<=Assumptions!$D$61,Assumptions!$B$61) -> 1.15
A90: 01147 | B90: OTHELLO | C90: =IFERROR(VLOOKUP(A90,'[7]Allocation 2022-23'!$B$9:$AC$326,20,FALSE),0) -> 249843 | D90: =IFERROR(VLOOKUP(A90,'[8]22-23 Revised Final'!$A$13:$CI$328,81,FALSE),0) -> 1862939 | E90: =IFERROR(VLOOKUP(A90,[9]Sheet1!$A$3:$D$379,3,FALSE),0) -> 3702962.07 | F90: =IFERROR(VLOOKUP(A90,[9]Sheet1!$A$3:$D$379,4,FALSE),0) -> 3054771.87 | G90: =IFERROR(VLOOKUP(A90,'[3]2022-23 Final'!$B$19:$S$156,18,FALSE),0) -> 648339 | H90: 0.06811102849 | I90: =_xlfn.IFS('other funds ftr 2023'!H90<=Assumptions!$D$57,Assumptions!$B$57,'other funds ftr 2023'!H90<=Assumptions!$D$58,Assumptions!$B$58,'other funds ftr 2023'!H90<=Assumptions!$D$59,Assumptions!$B$59,'other funds ftr 2023'!H90<=Assumptions!$D$60,Assumptions!$B$60,'other funds ftr 2023'!H90<=Assumptions!$D$61,Assumptions!$B$61) -> 0.95
A91: 11001 | B91: PASCO | C91: =IFERROR(VLOOKUP(A91,'[7]Allocation 2022-23'!$B$9:$AC$326,20,FALSE),0) -> 886745 | D91: =IFERROR(VLOOKUP(A91,'[8]22-23 Revised Final'!$A$13:$CI$328,81,FALSE),0) -> 6534599 | E91: =IFERROR(VLOOKUP(A91,[9]Sheet1!$A$3:$D$379,3,FALSE),0) -> 13645355.78 | F91: =IFERROR(VLOOKUP(A91,[9]Sheet1!$A$3:$D$379,4,FALSE),0) -> 10405814.74 | G91: =IFERROR(VLOOKUP(A91,'[3]2022-23 Final'!$B$19:$S$156,18,FALSE),0) -> 1286287 | H91: 0.03926538641 | I91: =_xlfn.IFS('other funds ftr 2023'!H91<=Assumptions!$D$57,Assumptions!$B$57,'other funds ftr 2023'!H91<=Assumptions!$D$58,Assumptions!$B$58,'other funds ftr 2023'!H91<=Assumptions!$D$59,Assumptions!$B$59,'other funds ftr 2023'!H91<=Assumptions!$D$60,Assumptions!$B$60,'other funds ftr 2023'!H91<=Assumptions!$D$61,Assumptions!$B$61) -> 1.05
A92: 24122 | B92: PATEROS | C92: =IFERROR(VLOOKUP(A92,'[7]Allocation 2022-23'!$B$9:$AC$326,20,FALSE),0) -> 0 | D92: =IFERROR(VLOOKUP(A92,'[8]22-23 Revised Final'!$A$13:$CI$328,81,FALSE),0) -> 147163 | E92: =IFERROR(VLOOKUP(A92,[9]Sheet1!$A$3:$D$379,3,FALSE),0) -> 235655.52 | F92: =IFERROR(VLOOKUP(A92,[9]Sheet1!$A$3:$D$379,4,FALSE),0) -> 48535.24 | G92: =IFERROR(VLOOKUP(A92,'[3]2022-23 Final'!$B$19:$S$156,18,FALSE),0) -> 51109 | H92: 0.1059335647 | I92: =_xlfn.IFS('other funds ftr 2023'!H92<=Assumptions!$D$57,Assumptions!$B$57,'other funds ftr 2023'!H92<=Assumptions!$D$58,Assumptions!$B$58,'other funds ftr 2023'!H92<=Assumptions!$D$59,Assumptions!$B$59,'other funds ftr 2023'!H92<=Assumptions!$D$60,Assumptions!$B$60,'other funds ftr 2023'!H92<=Assumptions!$D$61,Assumptions!$B$61) -> 0.95
A93: 03050 | B93: PATERSON | C93: =IFERROR(VLOOKUP(A93,'[7]Allocation 2022-23'!$B$9:$AC$326,20,FALSE),0) -> 3491 | D93: =IFERROR(VLOOKUP(A93,'[8]22-23 Revised Final'!$A$13:$CI$328,81,FALSE),0) -> 17783 | E93: =IFERROR(VLOOKUP(A93,[9]Sheet1!$A$3:$D$379,3,FALSE),0) -> 135828.72 | F93: =IFERROR(VLOOKUP(A93,[9]Sheet1!$A$3:$D$379,4,FALSE),0) -> 46793.48 | G93: =IFERROR(VLOOKUP(A93,'[3]2022-23 Final'!$B$19:$S$156,18,FALSE),0) -> 20782 | H93: 0.09249673533 | I93: =_xlfn.IFS('other funds ftr 2023'!H93<=Assumptions!$D$57,Assumptions!$B$57,'other funds ftr 2023'!H93<=Assumptions!$D$58,Assumptions!$B$58,'other funds ftr 2023'!H93<=Assumptions!$D$59,Assumptions!$B$59,'other funds ftr 2023'!H93<=Assumptions!$D$60,Assumptions!$B$60,'other funds ftr 2023'!H93<=Assumptions!$D$61,Assumptions!$B$61) -> 0.95
A94: 36402 | B94: PRESCOTT | C94: =IFERROR(VLOOKUP(A94,'[7]Allocation 2022-23'!$B$9:$AC$326,20,FALSE),0) -> 12729 | D94: =IFERROR(VLOOKUP(A94,'[8]22-23 Revised Final'!$A$13:$CI$328,81,FALSE),0) -> 73667 | E94: =IFERROR(VLOOKUP(A94,[9]Sheet1!$A$3:$D$379,3,FALSE),0) -> 212174.21 | F94: =IFERROR(VLOOKUP(A94,[9]Sheet1!$A$3:$D$379,4,FALSE),0) -> 139974.43 | G94: =IFERROR(VLOOKUP(A94,'[3]2022-23 Final'!$B$19:$S$156,18,FALSE),0) -> 23520 | H94: 0.05090196904 | I94: =_xlfn.IFS('other funds ftr 2023'!H94<=Assumptions!$D$57,Assumptions!$B$57,'other funds ftr 2023'!H94<=Assumptions!$D$58,Assumptions!$B$58,'other funds ftr 2023'!H94<=Assumptions!$D$59,Assumptions!$B$59,'other funds ftr 2023'!H94<=Assumptions!$D$60,Assumptions!$B$60,'other funds ftr 2023'!H94<=Assumptions!$D$61,Assumptions!$B$61) -> 1
A95: 03116 | B95: PROSSER | C95: =IFERROR(VLOOKUP(A95,'[7]Allocation 2022-23'!$B$9:$AC$326,20,FALSE),0) -> 82118 | D95: =IFERROR(VLOOKUP(A95,'[8]22-23 Revised Final'!$A$13:$CI$328,81,FALSE),0) -> 948493 | E95: =IFERROR(VLOOKUP(A95,[9]Sheet1!$A$3:$D$379,3,FALSE),0) -> 1904395.29 | F95: =IFERROR(VLOOKUP(A95,[9]Sheet1!$A$3:$D$379,4,FALSE),0) -> 946832.1 | G95: =IFERROR(VLOOKUP(A95,'[3]2022-23 Final'!$B$19:$S$156,18,FALSE),0) -> 646276 | H95: 0.1427251929 | I95: =_xlfn.IFS('other funds ftr 2023'!H95<=Assumptions!$D$57,Assumptions!$B$57,'other funds ftr 2023'!H95<=Assumptions!$D$58,Assumptions!$B$58,'other funds ftr 2023'!H95<=Assumptions!$D$59,Assumptions!$B$59,'other funds ftr 2023'!H95<=Assumptions!$D$60,Assumptions!$B$60,'other funds ftr 2023'!H95<=Assumptions!$D$61,Assumptions!$B$61) -> 0.85
A96: 16020 | B96: QUEETS-CLEARWATER | C96: =IFERROR(VLOOKUP(A96,'[7]Allocation 2022-23'!$B$9:$AC$326,20,FALSE),0) -> 0 | D96: =IFERROR(VLOOKUP(A96,'[8]22-23 Revised Final'!$A$13:$CI$328,81,FALSE),0) -> 33588 | E96: =IFERROR(VLOOKUP(A96,[9]Sheet1!$A$3:$D$379,3,FALSE),0) -> 48621.1 | F96: =IFERROR(VLOOKUP(A96,[9]Sheet1!$A$3:$D$379,4,FALSE),0) -> 0 | G96: =IFERROR(VLOOKUP(A96,'[3]2022-23 Final'!$B$19:$S$156,18,FALSE),0) -> 0 | H96: 0 | I96: =_xlfn.IFS('other funds ftr 2023'!H96<=Assumptions!$D$57,Assumptions!$B$57,'other funds ftr 2023'!H96<=Assumptions!$D$58,Assumptions!$B$58,'other funds ftr 2023'!H96<=Assumptions!$D$59,Assumptions!$B$59,'other funds ftr 2023'!H96<=Assumptions!$D$60,Assumptions!$B$60,'other funds ftr 2023'!H96<=Assumptions!$D$61,Assumptions!$B$61) -> 1.15
A97: 05402 | B97: QUILLAYUTE VALLEY | C97: =IFERROR(VLOOKUP(A97,'[7]Allocation 2022-23'!$B$9:$AC$326,20,FALSE),0) -> 38185 | D97: =IFERROR(VLOOKUP(A97,'[8]22-23 Revised Final'!$A$13:$CI$328,81,FALSE),0) -> 740822 | E97: =IFERROR(VLOOKUP(A97,[9]Sheet1!$A$3:$D$379,3,FALSE),0) -> 2525917.72 | F97: =IFERROR(VLOOKUP(A97,[9]Sheet1!$A$3:$D$379,4,FALSE),0) -> 434539.9 | G97: =IFERROR(VLOOKUP(A97,'[3]2022-23 Final'!$B$19:$S$156,18,FALSE),0) -> 51578 | H97: 0.01360522821 | I97: =_xlfn.IFS('other funds ftr 2023'!H97<=Assumptions!$D$57,Assumptions!$B$57,'other funds ftr 2023'!H97<=Assumptions!$D$58,Assumptions!$B$58,'other funds ftr 2023'!H97<=Assumptions!$D$59,Assumptions!$B$59,'other funds ftr 2023'!H97<=Assumptions!$D$60,Assumptions!$B$60,'other funds ftr 2023'!H97<=Assumptions!$D$61,Assumptions!$B$61) -> 1.15
A98: 13144 | B98: QUINCY | C98: =IFERROR(VLOOKUP(A98,'[7]Allocation 2022-23'!$B$9:$AC$326,20,FALSE),0) -> 168795 | D98: =IFERROR(VLOOKUP(A98,'[8]22-23 Revised Final'!$A$13:$CI$328,81,FALSE),0) -> 1240007 | E98: =IFERROR(VLOOKUP(A98,[9]Sheet1!$A$3:$D$379,3,FALSE),0) -> 2637849.69 | F98: =IFERROR(VLOOKUP(A98,[9]Sheet1!$A$3:$D$379,4,FALSE),0) -> 1966747.31 | G98: =IFERROR(VLOOKUP(A98,'[3]2022-23 Final'!$B$19:$S$156,18,FALSE),0) -> 362011 | H98: =IFERROR(G98/SUM(C98:G98),0) -> 0.05678238733 | I98: =_xlfn.IFS('other funds ftr 2023'!H98<=Assumptions!$D$57,Assumptions!$B$57,'other funds ftr 2023'!H98<=Assumptions!$D$58,Assumptions!$B$58,'other funds ftr 2023'!H98<=Assumptions!$D$59,Assumptions!$B$59,'other funds ftr 2023'!H98<=Assumptions!$D$60,Assumptions!$B$60,'other funds ftr 2023'!H98<=Assumptions!$D$61,Assumptions!$B$61) -> 1
A99: 17403 | B99: RENTON | C99: =IFERROR(VLOOKUP(A99,'[7]Allocation 2022-23'!$B$9:$AC$326,20,FALSE),0) -> 438182 | D99: =IFERROR(VLOOKUP(A99,'[8]22-23 Revised Final'!$A$13:$CI$328,81,FALSE),0) -> 4410098 | E99: =IFERROR(VLOOKUP(A99,[9]Sheet1!$A$3:$D$379,3,FALSE),0) -> 8420451.7 | F99: =IFERROR(VLOOKUP(A99,[9]Sheet1!$A$3:$D$379,4,FALSE),0) -> 6190673.76 | G99: =IFERROR(VLOOKUP(A99,'[3]2022-23 Final'!$B$19:$S$156,18,FALSE),0) -> 0 | H99: 0 | I99: =_xlfn.IFS('other funds ftr 2023'!H99<=Assumptions!$D$57,Assumptions!$B$57,'other funds ftr 2023'!H99<=Assumptions!$D$58,Assumptions!$B$58,'other funds ftr 2023'!H99<=Assumptions!$D$59,Assumptions!$B$59,'other funds ftr 2023'!H99<=Assumptions!$D$60,Assumptions!$B$60,'other funds ftr 2023'!H99<=Assumptions!$D$61,Assumptions!$B$61) -> 1.15
A100: 03400 | B100: RICHLAND | C100: =IFERROR(VLOOKUP(A100,'[7]Allocation 2022-23'!$B$9:$AC$326,20,FALSE),0) -> 109808 | D100: =IFERROR(VLOOKUP(A100,'[8]22-23 Revised Final'!$A$13:$CI$328,81,FALSE),0) -> 2580805 | E100: =IFERROR(VLOOKUP(A100,[9]Sheet1!$A$3:$D$379,3,FALSE),0) -> 4227710.81 | F100: =IFERROR(VLOOKUP(A100,[9]Sheet1!$A$3:$D$379,4,FALSE),0) -> 1453724.42 | G100: =IFERROR(VLOOKUP(A100,'[3]2022-23 Final'!$B$19:$S$156,18,FALSE),0) -> 167538 | H100: 0.01961898334 | I100: =_xlfn.IFS('other funds ftr 2023'!H100<=Assumptions!$D$57,Assumptions!$B$57,'other funds ftr 2023'!H100<=Assumptions!$D$58,Assumptions!$B$58,'other funds ftr 2023'!H100<=Assumptions!$D$59,Assumptions!$B$59,'other funds ftr 2023'!H100<=Assumptions!$D$60,Assumptions!$B$60,'other funds ftr 2023'!H100<=Assumptions!$D$61,Assumptions!$B$61) -> 1.15
A101: 06122 | B101: RIDGEFIELD | C101: =IFERROR(VLOOKUP(A101,'[7]Allocation 2022-23'!$B$9:$AC$326,20,FALSE),0) -> 16241 | D101: =IFERROR(VLOOKUP(A101,'[8]22-23 Revised Final'!$A$13:$CI$328,81,FALSE),0) -> 264580 | E101: =IFERROR(VLOOKUP(A101,[9]Sheet1!$A$3:$D$379,3,FALSE),0) -> 619655.78 | F101: =IFERROR(VLOOKUP(A101,[9]Sheet1!$A$3:$D$379,4,FALSE),0) -> 243843.62 | G101: =IFERROR(VLOOKUP(A101,'[3]2022-23 Final'!$B$19:$S$156,18,FALSE),0) -> 0 | H101: 0 | I101: =_xlfn.IFS('other funds ftr 2023'!H101<=Assumptions!$D$57,Assumptions!$B$57,'other funds ftr 2023'!H101<=Assumptions!$D$58,Assumptions!$B$58,'other funds ftr 2023'!H101<=Assumptions!$D$59,Assumptions!$B$59,'other funds ftr 2023'!H101<=Assumptions!$D$60,Assumptions!$B$60,'other funds ftr 2023'!H101<=Assumptions!$D$61,Assumptions!$B$61) -> 1.15
A102: 34401 | B102: ROCHESTER | C102: =IFERROR(VLOOKUP(A102,'[7]Allocation 2022-23'!$B$9:$AC$326,20,FALSE),0) -> 34160 | D102: =IFERROR(VLOOKUP(A102,'[8]22-23 Revised Final'!$A$13:$CI$328,81,FALSE),0) -> 720285 | E102: =IFERROR(VLOOKUP(A102,[9]Sheet1!$A$3:$D$379,3,FALSE),0) -> 961249.45 | F102: =IFERROR(VLOOKUP(A102,[9]Sheet1!$A$3:$D$379,4,FALSE),0) -> 351001.86 | G102: =IFERROR(VLOOKUP(A102,'[3]2022-23 Final'!$B$19:$S$156,18,FALSE),0) -> 21657 | H102: 0.01037037167 | I102: =_xlfn.IFS('other funds ftr 2023'!H102<=Assumptions!$D$57,Assumptions!$B$57,'other funds ftr 2023'!H102<=Assumptions!$D$58,Assumptions!$B$58,'other funds ftr 2023'!H102<=Assumptions!$D$59,Assumptions!$B$59,'other funds ftr 2023'!H102<=Assumptions!$D$60,Assumptions!$B$60,'other funds ftr 2023'!H102<=Assumptions!$D$61,Assumptions!$B$61) -> 1.15
A103: 20403 | B103: ROOSEVELT | C103: =IFERROR(VLOOKUP(A103,'[7]Allocation 2022-23'!$B$9:$AC$326,20,FALSE),0) -> 0 | D103: =IFERROR(VLOOKUP(A103,'[8]22-23 Revised Final'!$A$13:$CI$328,81,FALSE),0) -> 927 | E103: =IFERROR(VLOOKUP(A103,[9]Sheet1!$A$3:$D$379,3,FALSE),0) -> 0 | F103: =IFERROR(VLOOKUP(A103,[9]Sheet1!$A$3:$D$379,4,FALSE),0) -> 24361.04 | G103: =IFERROR(VLOOKUP(A103,'[3]2022-23 Final'!$B$19:$S$156,18,FALSE),0) -> 15763 | H103: 0.3839853996 | I103: =_xlfn.IFS('other funds ftr 2023'!H103<=Assumptions!$D$57,Assumptions!$B$57,'other funds ftr 2023'!H103<=Assumptions!$D$58,Assumptions!$B$58,'other funds ftr 2023'!H103<=Assumptions!$D$59,Assumptions!$B$59,'other funds ftr 2023'!H103<=Assumptions!$D$60,Assumptions!$B$60,'other funds ftr 2023'!H103<=Assumptions!$D$61,Assumptions!$B$61) -> 0.85
A104: 13160 | B104: ROYAL | C104: =IFERROR(VLOOKUP(A104,'[7]Allocation 2022-23'!$B$9:$AC$326,20,FALSE),0) -> 105248 | D104: =IFERROR(VLOOKUP(A104,'[8]22-23 Revised Final'!$A$13:$CI$328,81,FALSE),0) -> 757237 | E104: =IFERROR(VLOOKUP(A104,[9]Sheet1!$A$3:$D$379,3,FALSE),0) -> 1422011.91 | F104: =IFERROR(VLOOKUP(A104,[9]Sheet1!$A$3:$D$379,4,FALSE),0) -> 1290830.18 | G104: =IFERROR(VLOOKUP(A104,'[3]2022-23 Final'!$B$19:$S$156,18,FALSE),0) -> 162130 | H104: 0.04337976225 | I104: =_xlfn.IFS('other funds ftr 2023'!H104<=Assumptions!$D$57,Assumptions!$B$57,'other funds ftr 2023'!H104<=Assumptions!$D$58,Assumptions!$B$58,'other funds ftr 2023'!H104<=Assumptions!$D$59,Assumptions!$B$59,'other funds ftr 2023'!H104<=Assumptions!$D$60,Assumptions!$B$60,'other funds ftr 2023'!H104<=Assumptions!$D$61,Assumptions!$B$61) -> 1
A105: 28149 | B105: SAN JUAN ISLAND | C105: =IFERROR(VLOOKUP(A105,'[7]Allocation 2022-23'!$B$9:$AC$326,20,FALSE),0) -> 6841 | D105: =IFERROR(VLOOKUP(A105,'[8]22-23 Revised Final'!$A$13:$CI$328,81,FALSE),0) -> 138823 | E105: =IFERROR(VLOOKUP(A105,[9]Sheet1!$A$3:$D$379,3,FALSE),0) -> 201381 | F105: =IFERROR(VLOOKUP(A105,[9]Sheet1!$A$3:$D$379,4,FALSE),0) -> 104688.35 | G105: =IFERROR(VLOOKUP(A105,'[3]2022-23 Final'!$B$19:$S$156,18,FALSE),0) -> 11851 | H105: 0.02556384831 | I105: =_xlfn.IFS('other funds ftr 2023'!H105<=Assumptions!$D$57,Assumptions!$B$57,'other funds ftr 2023'!H105<=Assumptions!$D$58,Assumptions!$B$58,'other funds ftr 2023'!H105<=Assumptions!$D$59,Assumptions!$B$59,'other funds ftr 2023'!H105<=Assumptions!$D$60,Assumptions!$B$60,'other funds ftr 2023'!H105<=Assumptions!$D$61,Assumptions!$B$61) -> 1.05
A106: 17001 | B106: SEATTLE PUBLIC SCHOOLS | C106: =IFERROR(VLOOKUP(A106,'[7]Allocation 2022-23'!$B$9:$AC$326,20,FALSE),0) -> 946689 | D106: =IFERROR(VLOOKUP(A106,'[8]22-23 Revised Final'!$A$13:$CI$328,81,FALSE),0) -> 11693317 | E106: =IFERROR(VLOOKUP(A106,[9]Sheet1!$A$3:$D$379,3,FALSE),0) -> 20332511.77 | F106: =IFERROR(VLOOKUP(A106,[9]Sheet1!$A$3:$D$379,4,FALSE),0) -> 12398628.39 | G106: =IFERROR(VLOOKUP(A106,'[3]2022-23 Final'!$B$19:$S$156,18,FALSE),0) -> 121802 | H106: 0.002677381988 | I106: =_xlfn.IFS('other funds ftr 2023'!H106<=Assumptions!$D$57,Assumptions!$B$57,'other funds ftr 2023'!H106<=Assumptions!$D$58,Assumptions!$B$58,'other funds ftr 2023'!H106<=Assumptions!$D$59,Assumptions!$B$59,'other funds ftr 2023'!H106<=Assumptions!$D$60,Assumptions!$B$60,'other funds ftr 2023'!H106<=Assumptions!$D$61,Assumptions!$B$61) -> 1.15
A107: 29101 | B107: SEDRO-WOOLLEY | C107: =IFERROR(VLOOKUP(A107,'[7]Allocation 2022-23'!$B$9:$AC$326,20,FALSE),0) -> 56242 | D107: =IFERROR(VLOOKUP(A107,'[8]22-23 Revised Final'!$A$13:$CI$328,81,FALSE),0) -> 928015 | E107: =IFERROR(VLOOKUP(A107,[9]Sheet1!$A$3:$D$379,3,FALSE),0) -> 2339610.46 | F107: =IFERROR(VLOOKUP(A107,[9]Sheet1!$A$3:$D$379,4,FALSE),0) -> 679520.49 | G107: =IFERROR(VLOOKUP(A107,'[3]2022-23 Final'!$B$19:$S$156,18,FALSE),0) -> 125077 | H107: 0.03029624849 | I107: =_xlfn.IFS('other funds ftr 2023'!H107<=Assumptions!$D$57,Assumptions!$B$57,'other funds ftr 2023'!H107<=Assumptions!$D$58,Assumptions!$B$58,'other funds ftr 2023'!H107<=Assumptions!$D$59,Assumptions!$B$59,'other funds ftr 2023'!H107<=Assumptions!$D$60,Assumptions!$B$60,'other funds ftr 2023'!H107<=Assumptions!$D$61,Assumptions!$B$61) -> 1.05
A108: 39119 | B108: SELAH | C108: =IFERROR(VLOOKUP(A108,'[7]Allocation 2022-23'!$B$9:$AC$326,20,FALSE),0) -> 54007 | D108: =IFERROR(VLOOKUP(A108,'[8]22-23 Revised Final'!$A$13:$CI$328,81,FALSE),0) -> 782656 | E108: =IFERROR(VLOOKUP(A108,[9]Sheet1!$A$3:$D$379,3,FALSE),0) -> 2088224.4 | F108: =IFERROR(VLOOKUP(A108,[9]Sheet1!$A$3:$D$379,4,FALSE),0) -> 606589.68 | G108: =IFERROR(VLOOKUP(A108,'[3]2022-23 Final'!$B$19:$S$156,18,FALSE),0) -> 134493 | H108: 0.0366868788 | I108: =_xlfn.IFS('other funds ftr 2023'!H108<=Assumptions!$D$57,Assumptions!$B$57,'other funds ftr 2023'!H108<=Assumptions!$D$58,Assumptions!$B$58,'other funds ftr 2023'!H108<=Assumptions!$D$59,Assumptions!$B$59,'other funds ftr 2023'!H108<=Assumptions!$D$60,Assumptions!$B$60,'other funds ftr 2023'!H108<=Assumptions!$D$61,Assumptions!$B$61) -> 1.05
A109: 23309 | B109: SHELTON | C109: =IFERROR(VLOOKUP(A109,'[7]Allocation 2022-23'!$B$9:$AC$326,20,FALSE),0) -> 132264 | D109: =IFERROR(VLOOKUP(A109,'[8]22-23 Revised Final'!$A$13:$CI$328,81,FALSE),0) -> 1970672 | E109: =IFERROR(VLOOKUP(A109,[9]Sheet1!$A$3:$D$379,3,FALSE),0) -> 3166061.03 | F109: =IFERROR(VLOOKUP(A109,[9]Sheet1!$A$3:$D$379,4,FALSE),0) -> 1493128.25 | G109: =IFERROR(VLOOKUP(A109,'[3]2022-23 Final'!$B$19:$S$156,18,FALSE),0) -> 0 | H109: 0 | I109: =_xlfn.IFS('other funds ftr 2023'!H109<=Assumptions!$D$57,Assumptions!$B$57,'other funds ftr 2023'!H109<=Assumptions!$D$58,Assumptions!$B$58,'other funds ftr 2023'!H109<=Assumptions!$D$59,Assumptions!$B$59,'other funds ftr 2023'!H109<=Assumptions!$D$60,Assumptions!$B$60,'other funds ftr 2023'!H109<=Assumptions!$D$61,Assumptions!$B$61) -> 1.15
A110: 31201 | B110: SNOHOMISH | C110: =IFERROR(VLOOKUP(A110,'[7]Allocation 2022-23'!$B$9:$AC$326,20,FALSE),0) -> 56359 | D110: =IFERROR(VLOOKUP(A110,'[8]22-23 Revised Final'!$A$13:$CI$328,81,FALSE),0) -> 376331 | E110: =IFERROR(VLOOKUP(A110,[9]Sheet1!$A$3:$D$379,3,FALSE),0) -> 1363791.6 | F110: =IFERROR(VLOOKUP(A110,[9]Sheet1!$A$3:$D$379,4,FALSE),0) -> 955739.12 | G110: =IFERROR(VLOOKUP(A110,'[3]2022-23 Final'!$B$19:$S$156,18,FALSE),0) -> 56193 | H110: 0.02000880412 | I110: =_xlfn.IFS('other funds ftr 2023'!H110<=Assumptions!$D$57,Assumptions!$B$57,'other funds ftr 2023'!H110<=Assumptions!$D$58,Assumptions!$B$58,'other funds ftr 2023'!H110<=Assumptions!$D$59,Assumptions!$B$59,'other funds ftr 2023'!H110<=Assumptions!$D$60,Assumptions!$B$60,'other funds ftr 2023'!H110<=Assumptions!$D$61,Assumptions!$B$61) -> 1.05
A111: 13156 | B111: SOAP LAKE | C111: =IFERROR(VLOOKUP(A111,'[7]Allocation 2022-23'!$B$9:$AC$326,20,FALSE),0) -> 13008 | D111: =IFERROR(VLOOKUP(A111,'[8]22-23 Revised Final'!$A$13:$CI$328,81,FALSE),0) -> 322029 | E111: =IFERROR(VLOOKUP(A111,[9]Sheet1!$A$3:$D$379,3,FALSE),0) -> 450417.57 | F111: =IFERROR(VLOOKUP(A111,[9]Sheet1!$A$3:$D$379,4,FALSE),0) -> 191234.09 | G111: =IFERROR(VLOOKUP(A111,'[3]2022-23 Final'!$B$19:$S$156,18,FALSE),0) -> 0 | H111: 0 | I111: =_xlfn.IFS('other funds ftr 2023'!H111<=Assumptions!$D$57,Assumptions!$B$57,'other funds ftr 2023'!H111<=Assumptions!$D$58,Assumptions!$B$58,'other funds ftr 2023'!H111<=Assumptions!$D$59,Assumptions!$B$59,'other funds ftr 2023'!H111<=Assumptions!$D$60,Assumptions!$B$60,'other funds ftr 2023'!H111<=Assumptions!$D$61,Assumptions!$B$61) -> 1.15
A112: 32081 | B112: SPOKANE | C112: =IFERROR(VLOOKUP(A112,'[7]Allocation 2022-23'!$B$9:$AC$326,20,FALSE),0) -> 266317 | D112: =IFERROR(VLOOKUP(A112,'[8]22-23 Revised Final'!$A$13:$CI$328,81,FALSE),0) -> 14324473 | E112: =IFERROR(VLOOKUP(A112,[9]Sheet1!$A$3:$D$379,3,FALSE),0) -> 16799040.02 | F112: =IFERROR(VLOOKUP(A112,[9]Sheet1!$A$3:$D$379,4,FALSE),0) -> 3369486.12 | G112: =IFERROR(VLOOKUP(A112,'[3]2022-23 Final'!$B$19:$S$156,18,FALSE),0) -> 0 | H112: 0 | I112: =_xlfn.IFS('other funds ftr 2023'!H112<=Assumptions!$D$57,Assumptions!$B$57,'other funds ftr 2023'!H112<=Assumptions!$D$58,Assumptions!$B$58,'other funds ftr 2023'!H112<=Assumptions!$D$59,Assumptions!$B$59,'other funds ftr 2023'!H112<=Assumptions!$D$60,Assumptions!$B$60,'other funds ftr 2023'!H112<=Assumptions!$D$61,Assumptions!$B$61) -> 1.15
A113: 31401 | B113: STANWOOD-CAMANO | C113: =IFERROR(VLOOKUP(A113,'[7]Allocation 2022-23'!$B$9:$AC$326,20,FALSE),0) -> 18964 | D113: =IFERROR(VLOOKUP(A113,'[8]22-23 Revised Final'!$A$13:$CI$328,81,FALSE),0) -> 597755 | E113: =IFERROR(VLOOKUP(A113,[9]Sheet1!$A$3:$D$379,3,FALSE),0) -> 1032115.21 | F113: =IFERROR(VLOOKUP(A113,[9]Sheet1!$A$3:$D$379,4,FALSE),0) -> 262682.04 | G113: =IFERROR(VLOOKUP(A113,'[3]2022-23 Final'!$B$19:$S$156,18,FALSE),0) -> 12821 | H113: 0.006662553562 | I113: =_xlfn.IFS('other funds ftr 2023'!H113<=Assumptions!$D$57,Assumptions!$B$57,'other funds ftr 2023'!H113<=Assumptions!$D$58,Assumptions!$B$58,'other funds ftr 2023'!H113<=Assumptions!$D$59,Assumptions!$B$59,'other funds ftr 2023'!H113<=Assumptions!$D$60,Assumptions!$B$60,'other funds ftr 2023'!H113<=Assumptions!$D$61,Assumptions!$B$61) -> 1.15
A114: 30303 | B114: STEVENSON-CARSON | C114: =IFERROR(VLOOKUP(A114,'[7]Allocation 2022-23'!$B$9:$AC$326,20,FALSE),0) -> 0 | D114: =IFERROR(VLOOKUP(A114,'[8]22-23 Revised Final'!$A$13:$CI$328,81,FALSE),0) -> 260838 | E114: =IFERROR(VLOOKUP(A114,[9]Sheet1!$A$3:$D$379,3,FALSE),0) -> 505349.07 | F114: =IFERROR(VLOOKUP(A114,[9]Sheet1!$A$3:$D$379,4,FALSE),0) -> 27812.17 | G114: =IFERROR(VLOOKUP(A114,'[3]2022-23 Final'!$B$19:$S$156,18,FALSE),0) -> 0 | H114: 0 | I114: =_xlfn.IFS('other funds ftr 2023'!H114<=Assumptions!$D$57,Assumptions!$B$57,'other funds ftr 2023'!H114<=Assumptions!$D$58,Assumptions!$B$58,'other funds ftr 2023'!H114<=Assumptions!$D$59,Assumptions!$B$59,'other funds ftr 2023'!H114<=Assumptions!$D$60,Assumptions!$B$60,'other funds ftr 2023'!H114<=Assumptions!$D$61,Assumptions!$B$61) -> 1.15
A115: 31311 | B115: SULTAN | C115: =IFERROR(VLOOKUP(A115,'[7]Allocation 2022-23'!$B$9:$AC$326,20,FALSE),0) -> 30715 | D115: =IFERROR(VLOOKUP(A115,'[8]22-23 Revised Final'!$A$13:$CI$328,81,FALSE),0) -> 308678 | E115: =IFERROR(VLOOKUP(A115,[9]Sheet1!$A$3:$D$379,3,FALSE),0) -> 1469583.4 | F115: =IFERROR(VLOOKUP(A115,[9]Sheet1!$A$3:$D$379,4,FALSE),0) -> 482571.84 | G115: =IFERROR(VLOOKUP(A115,'[3]2022-23 Final'!$B$19:$S$156,18,FALSE),0) -> 0 | H115: 0 | I115: =_xlfn.IFS('other funds ftr 2023'!H115<=Assumptions!$D$57,Assumptions!$B$57,'other funds ftr 2023'!H115<=Assumptions!$D$58,Assumptions!$B$58,'other funds ftr 2023'!H115<=Assumptions!$D$59,Assumptions!$B$59,'other funds ftr 2023'!H115<=Assumptions!$D$60,Assumptions!$B$60,'other funds ftr 2023'!H115<=Assumptions!$D$61,Assumptions!$B$61) -> 1.15
A116: 39201 | B116: SUNNYSIDE | C116: =IFERROR(VLOOKUP(A116,'[7]Allocation 2022-23'!$B$9:$AC$326,20,FALSE),0) -> 281513 | D116: =IFERROR(VLOOKUP(A116,'[8]22-23 Revised Final'!$A$13:$CI$328,81,FALSE),0) -> 2622155 | E116: =IFERROR(VLOOKUP(A116,[9]Sheet1!$A$3:$D$379,3,FALSE),0) -> 5951325.77 | F116: =IFERROR(VLOOKUP(A116,[9]Sheet1!$A$3:$D$379,4,FALSE),0) -> 3193629.76 | G116: =IFERROR(VLOOKUP(A116,'[3]2022-23 Final'!$B$19:$S$156,18,FALSE),0) -> 1500016 | H116: 0.1107134039 | I116: =_xlfn.IFS('other funds ftr 2023'!H116<=Assumptions!$D$57,Assumptions!$B$57,'other funds ftr 2023'!H116<=Assumptions!$D$58,Assumptions!$B$58,'other funds ftr 2023'!H116<=Assumptions!$D$59,Assumptions!$B$59,'other funds ftr 2023'!H116<=Assumptions!$D$60,Assumptions!$B$60,'other funds ftr 2023'!H116<=Assumptions!$D$61,Assumptions!$B$61) -> 0.95
A117: 27010 | B117: TACOMA | C117: =IFERROR(VLOOKUP(A117,'[7]Allocation 2022-23'!$B$9:$AC$326,20,FALSE),0) -> 435790 | D117: =IFERROR(VLOOKUP(A117,'[8]22-23 Revised Final'!$A$13:$CI$328,81,FALSE),0) -> 10486023 | E117: =IFERROR(VLOOKUP(A117,[9]Sheet1!$A$3:$D$379,3,FALSE),0) -> 17317165.58 | F117: =IFERROR(VLOOKUP(A117,[9]Sheet1!$A$3:$D$379,4,FALSE),0) -> 5489574.06 | G117: =IFERROR(VLOOKUP(A117,'[3]2022-23 Final'!$B$19:$S$156,18,FALSE),0) -> 0 | H117: 0 | I117: =_xlfn.IFS('other funds ftr 2023'!H117<=Assumptions!$D$57,Assumptions!$B$57,'other funds ftr 2023'!H117<=Assumptions!$D$58,Assumptions!$B$58,'other funds ftr 2023'!H117<=Assumptions!$D$59,Assumptions!$B$59,'other funds ftr 2023'!H117<=Assumptions!$D$60,Assumptions!$B$60,'other funds ftr 2023'!H117<=Assumptions!$D$61,Assumptions!$B$61) -> 1.15
A118: 14077 | B118: TAHOLAH | C118: =IFERROR(VLOOKUP(A118,'[7]Allocation 2022-23'!$B$9:$AC$326,20,FALSE),0) -> 0 | D118: =IFERROR(VLOOKUP(A118,'[8]22-23 Revised Final'!$A$13:$CI$328,81,FALSE),0) -> 77645 | E118: =IFERROR(VLOOKUP(A118,[9]Sheet1!$A$3:$D$379,3,FALSE),0) -> 130035.57 | F118: =IFERROR(VLOOKUP(A118,[9]Sheet1!$A$3:$D$379,4,FALSE),0) -> 0 | G118: =IFERROR(VLOOKUP(A118,'[3]2022-23 Final'!$B$19:$S$156,18,FALSE),0) -> 42428 | H118: 0.1696383295 | I118: =_xlfn.IFS('other funds ftr 2023'!H118<=Assumptions!$D$57,Assumptions!$B$57,'other funds ftr 2023'!H118<=Assumptions!$D$58,Assumptions!$B$58,'other funds ftr 2023'!H118<=Assumptions!$D$59,Assumptions!$B$59,'other funds ftr 2023'!H118<=Assumptions!$D$60,Assumptions!$B$60,'other funds ftr 2023'!H118<=Assumptions!$D$61,Assumptions!$B$61) -> 0.85
A119: 24404 | B119: TONASKET | C119: =IFERROR(VLOOKUP(A119,'[7]Allocation 2022-23'!$B$9:$AC$326,20,FALSE),0) -> 18104 | D119: =IFERROR(VLOOKUP(A119,'[8]22-23 Revised Final'!$A$13:$CI$328,81,FALSE),0) -> 826882 | E119: =IFERROR(VLOOKUP(A119,[9]Sheet1!$A$3:$D$379,3,FALSE),0) -> 912835.24 | F119: =IFERROR(VLOOKUP(A119,[9]Sheet1!$A$3:$D$379,4,FALSE),0) -> 209809.39 | G119: =IFERROR(VLOOKUP(A119,'[3]2022-23 Final'!$B$19:$S$156,18,FALSE),0) -> 275856 | H119: 0.1229586111 | I119: =_xlfn.IFS('other funds ftr 2023'!H119<=Assumptions!$D$57,Assumptions!$B$57,'other funds ftr 2023'!H119<=Assumptions!$D$58,Assumptions!$B$58,'other funds ftr 2023'!H119<=Assumptions!$D$59,Assumptions!$B$59,'other funds ftr 2023'!H119<=Assumptions!$D$60,Assumptions!$B$60,'other funds ftr 2023'!H119<=Assumptions!$D$61,Assumptions!$B$61) -> 0.85
A120: 39202 | B120: TOPPENISH | C120: =IFERROR(VLOOKUP(A120,'[7]Allocation 2022-23'!$B$9:$AC$326,20,FALSE),0) -> 206583 | D120: =IFERROR(VLOOKUP(A120,'[8]22-23 Revised Final'!$A$13:$CI$328,81,FALSE),0) -> 1705136 | E120: =IFERROR(VLOOKUP(A120,[9]Sheet1!$A$3:$D$379,3,FALSE),0) -> 3754169.41 | F120: =IFERROR(VLOOKUP(A120,[9]Sheet1!$A$3:$D$379,4,FALSE),0) -> 2082360.7 | G120: =IFERROR(VLOOKUP(A120,'[3]2022-23 Final'!$B$19:$S$156,18,FALSE),0) -> 614175 | H120: 0.0734446127 | I120: =_xlfn.IFS('other funds ftr 2023'!H120<=Assumptions!$D$57,Assumptions!$B$57,'other funds ftr 2023'!H120<=Assumptions!$D$58,Assumptions!$B$58,'other funds ftr 2023'!H120<=Assumptions!$D$59,Assumptions!$B$59,'other funds ftr 2023'!H120<=Assumptions!$D$60,Assumptions!$B$60,'other funds ftr 2023'!H120<=Assumptions!$D$61,Assumptions!$B$61) -> 0.95
A121: 20400 | B121: TROUT LAKE | C121: =IFERROR(VLOOKUP(A121,'[7]Allocation 2022-23'!$B$9:$AC$326,20,FALSE),0) -> 0 | D121: =IFERROR(VLOOKUP(A121,'[8]22-23 Revised Final'!$A$13:$CI$328,81,FALSE),0) -> 79391 | E121: =IFERROR(VLOOKUP(A121,[9]Sheet1!$A$3:$D$379,3,FALSE),0) -> 0 | F121: =IFERROR(VLOOKUP(A121,[9]Sheet1!$A$3:$D$379,4,FALSE),0) -> 19082.8 | G121: =IFERROR(VLOOKUP(A121,'[3]2022-23 Final'!$B$19:$S$156,18,FALSE),0) -> 0 | H121: 0 | I121: =_xlfn.IFS('other funds ftr 2023'!H121<=Assumptions!$D$57,Assumptions!$B$57,'other funds ftr 2023'!H121<=Assumptions!$D$58,Assumptions!$B$58,'other funds ftr 2023'!H121<=Assumptions!$D$59,Assumptions!$B$59,'other funds ftr 2023'!H121<=Assumptions!$D$60,Assumptions!$B$60,'other funds ftr 2023'!H121<=Assumptions!$D$61,Assumptions!$B$61) -> 1.15
A122: 39002 | B122: UNION GAP | C122: =IFERROR(VLOOKUP(A122,'[7]Allocation 2022-23'!$B$9:$AC$326,20,FALSE),0) -> 23082 | D122: =IFERROR(VLOOKUP(A122,'[8]22-23 Revised Final'!$A$13:$CI$328,81,FALSE),0) -> 343877 | E122: =IFERROR(VLOOKUP(A122,[9]Sheet1!$A$3:$D$379,3,FALSE),0) -> 528314.76 | F122: =IFERROR(VLOOKUP(A122,[9]Sheet1!$A$3:$D$379,4,FALSE),0) -> 255689.32 | G122: =IFERROR(VLOOKUP(A122,'[3]2022-23 Final'!$B$19:$S$156,18,FALSE),0) -> 35517 | H122: 0.029934763 | I122: =_xlfn.IFS('other funds ftr 2023'!H122<=Assumptions!$D$57,Assumptions!$B$57,'other funds ftr 2023'!H122<=Assumptions!$D$58,Assumptions!$B$58,'other funds ftr 2023'!H122<=Assumptions!$D$59,Assumptions!$B$59,'other funds ftr 2023'!H122<=Assumptions!$D$60,Assumptions!$B$60,'other funds ftr 2023'!H122<=Assumptions!$D$61,Assumptions!$B$61) -> 1.05
A123: 06037 | B123: VANCOUVER | C123: =IFERROR(VLOOKUP(A123,'[7]Allocation 2022-23'!$B$9:$AC$326,20,FALSE),0) -> 421570 | D123: =IFERROR(VLOOKUP(A123,'[8]22-23 Revised Final'!$A$13:$CI$328,81,FALSE),0) -> 6657988 | E123: =IFERROR(VLOOKUP(A123,[9]Sheet1!$A$3:$D$379,3,FALSE),0) -> 11152823.9 | F123: =IFERROR(VLOOKUP(A123,[9]Sheet1!$A$3:$D$379,4,FALSE),0) -> 5493747.87 | G123: =IFERROR(VLOOKUP(A123,'[3]2022-23 Final'!$B$19:$S$156,18,FALSE),0) -> 42450 | H123: 0.001785971245 | I123: =_xlfn.IFS('other funds ftr 2023'!H123<=Assumptions!$D$57,Assumptions!$B$57,'other funds ftr 2023'!H123<=Assumptions!$D$58,Assumptions!$B$58,'other funds ftr 2023'!H123<=Assumptions!$D$59,Assumptions!$B$59,'other funds ftr 2023'!H123<=Assumptions!$D$60,Assumptions!$B$60,'other funds ftr 2023'!H123<=Assumptions!$D$61,Assumptions!$B$61) -> 1.15
A124: 34901 | B124: WA HE LUT INDIAN SCHOOL | C124: =IFERROR(VLOOKUP(A124,'[7]Allocation 2022-23'!$B$9:$AC$326,20,FALSE),0) -> 0 | D124: =IFERROR(VLOOKUP(A124,'[8]22-23 Revised Final'!$A$13:$CI$328,81,FALSE),0) -> 0 | E124: =IFERROR(VLOOKUP(A124,[9]Sheet1!$A$3:$D$379,3,FALSE),0) -> 125499.88 | F124: =IFERROR(VLOOKUP(A124,[9]Sheet1!$A$3:$D$379,4,FALSE),0) -> 0 | G124: =IFERROR(VLOOKUP(A124,'[3]2022-23 Final'!$B$19:$S$156,18,FALSE),0) -> 12067 | H124: 0.08771733429 | I124: =_xlfn.IFS('other funds ftr 2023'!H124<=Assumptions!$D$57,Assumptions!$B$57,'other funds ftr 2023'!H124<=Assumptions!$D$58,Assumptions!$B$58,'other funds ftr 2023'!H124<=Assumptions!$D$59,Assumptions!$B$59,'other funds ftr 2023'!H124<=Assumptions!$D$60,Assumptions!$B$60,'other funds ftr 2023'!H124<=Assumptions!$D$61,Assumptions!$B$61) -> 0.95
A125: 13073 | B125: WAHLUKE | C125: =IFERROR(VLOOKUP(A125,'[7]Allocation 2022-23'!$B$9:$AC$326,20,FALSE),0) -> 169214 | D125: =IFERROR(VLOOKUP(A125,'[8]22-23 Revised Final'!$A$13:$CI$328,81,FALSE),0) -> 681490 | E125: =IFERROR(VLOOKUP(A125,[9]Sheet1!$A$3:$D$379,3,FALSE),0) -> 2256018.9 | F125: =IFERROR(VLOOKUP(A125,[9]Sheet1!$A$3:$D$379,4,FALSE),0) -> 1980044.36 | G125: =IFERROR(VLOOKUP(A125,'[3]2022-23 Final'!$B$19:$S$156,18,FALSE),0) -> 1364113 | H125: 0.2114615285 | I125: =_xlfn.IFS('other funds ftr 2023'!H125<=Assumptions!$D$57,Assumptions!$B$57,'other funds ftr 2023'!H125<=Assumptions!$D$58,Assumptions!$B$58,'other funds ftr 2023'!H125<=Assumptions!$D$59,Assumptions!$B$59,'other funds ftr 2023'!H125<=Assumptions!$D$60,Assumptions!$B$60,'other funds ftr 2023'!H125<=Assumptions!$D$61,Assumptions!$B$61) -> 0.85
A126: 36140 | B126: WALLA WALLA PUBLIC SCHOOLS | C126: =IFERROR(VLOOKUP(A126,'[7]Allocation 2022-23'!$B$9:$AC$326,20,FALSE),0) -> 110321 | D126: =IFERROR(VLOOKUP(A126,'[8]22-23 Revised Final'!$A$13:$CI$328,81,FALSE),0) -> 1500366 | E126: =IFERROR(VLOOKUP(A126,[9]Sheet1!$A$3:$D$379,3,FALSE),0) -> 2912342.46 | F126: =IFERROR(VLOOKUP(A126,[9]Sheet1!$A$3:$D$379,4,FALSE),0) -> 1339761.42 | G126: =IFERROR(VLOOKUP(A126,'[3]2022-23 Final'!$B$19:$S$156,18,FALSE),0) -> 62916 | H126: 0.01061746746 | I126: =_xlfn.IFS('other funds ftr 2023'!H126<=Assumptions!$D$57,Assumptions!$B$57,'other funds ftr 2023'!H126<=Assumptions!$D$58,Assumptions!$B$58,'other funds ftr 2023'!H126<=Assumptions!$D$59,Assumptions!$B$59,'other funds ftr 2023'!H126<=Assumptions!$D$60,Assumptions!$B$60,'other funds ftr 2023'!H126<=Assumptions!$D$61,Assumptions!$B$61) -> 1.15
A127: 39207 | B127: WAPATO | C127: =IFERROR(VLOOKUP(A127,'[7]Allocation 2022-23'!$B$9:$AC$326,20,FALSE),0) -> 202116 | D127: =IFERROR(VLOOKUP(A127,'[8]22-23 Revised Final'!$A$13:$CI$328,81,FALSE),0) -> 1717101 | E127: =IFERROR(VLOOKUP(A127,[9]Sheet1!$A$3:$D$379,3,FALSE),0) -> 2806264.92 | F127: =IFERROR(VLOOKUP(A127,[9]Sheet1!$A$3:$D$379,4,FALSE),0) -> 1658681.76 | G127: =IFERROR(VLOOKUP(A127,'[3]2022-23 Final'!$B$19:$S$156,18,FALSE),0) -> 683408 | H127: 0.09669629555 | I127: =_xlfn.IFS('other funds ftr 2023'!H127<=Assumptions!$D$57,Assumptions!$B$57,'other funds ftr 2023'!H127<=Assumptions!$D$58,Assumptions!$B$58,'other funds ftr 2023'!H127<=Assumptions!$D$59,Assumptions!$B$59,'other funds ftr 2023'!H127<=Assumptions!$D$60,Assumptions!$B$60,'other funds ftr 2023'!H127<=Assumptions!$D$61,Assumptions!$B$61) -> 0.95
A128: 13146 | B128: WARDEN | C128: =IFERROR(VLOOKUP(A128,'[7]Allocation 2022-23'!$B$9:$AC$326,20,FALSE),0) -> 33135 | D128: =IFERROR(VLOOKUP(A128,'[8]22-23 Revised Final'!$A$13:$CI$328,81,FALSE),0) -> 419008 | E128: =IFERROR(VLOOKUP(A128,[9]Sheet1!$A$3:$D$379,3,FALSE),0) -> 747523.5 | F128: =IFERROR(VLOOKUP(A128,[9]Sheet1!$A$3:$D$379,4,FALSE),0) -> 392415.63 | G128: =IFERROR(VLOOKUP(A128,'[3]2022-23 Final'!$B$19:$S$156,18,FALSE),0) -> 234696 | H128: 0.1284753721 | I128: =_xlfn.IFS('other funds ftr 2023'!H128<=Assumptions!$D$57,Assumptions!$B$57,'other funds ftr 2023'!H128<=Assumptions!$D$58,Assumptions!$B$58,'other funds ftr 2023'!H128<=Assumptions!$D$59,Assumptions!$B$59,'other funds ftr 2023'!H128<=Assumptions!$D$60,Assumptions!$B$60,'other funds ftr 2023'!H128<=Assumptions!$D$61,Assumptions!$B$61) -> 0.85
A129: 09209 | B129: WATERVILLE | C129: =IFERROR(VLOOKUP(A129,'[7]Allocation 2022-23'!$B$9:$AC$326,20,FALSE),0) -> 0 | D129: =IFERROR(VLOOKUP(A129,'[8]22-23 Revised Final'!$A$13:$CI$328,81,FALSE),0) -> 77165 | E129: =IFERROR(VLOOKUP(A129,[9]Sheet1!$A$3:$D$379,3,FALSE),0) -> 118552.72 | F129: =IFERROR(VLOOKUP(A129,[9]Sheet1!$A$3:$D$379,4,FALSE),0) -> 25376.08 | G129: =IFERROR(VLOOKUP(A129,'[3]2022-23 Final'!$B$19:$S$156,18,FALSE),0) -> 0 | H129: 0 | I129: =_xlfn.IFS('other funds ftr 2023'!H129<=Assumptions!$D$57,Assumptions!$B$57,'other funds ftr 2023'!H129<=Assumptions!$D$58,Assumptions!$B$58,'other funds ftr 2023'!H129<=Assumptions!$D$59,Assumptions!$B$59,'other funds ftr 2023'!H129<=Assumptions!$D$60,Assumptions!$B$60,'other funds ftr 2023'!H129<=Assumptions!$D$61,Assumptions!$B$61) -> 1.15
A130: 33049 | B130: WELLPINIT | C130: =IFERROR(VLOOKUP(A130,'[7]Allocation 2022-23'!$B$9:$AC$326,20,FALSE),0) -> 16730 | D130: =IFERROR(VLOOKUP(A130,'[8]22-23 Revised Final'!$A$13:$CI$328,81,FALSE),0) -> 185996 | E130: =IFERROR(VLOOKUP(A130,[9]Sheet1!$A$3:$D$379,3,FALSE),0) -> 338899.4 | F130: =IFERROR(VLOOKUP(A130,[9]Sheet1!$A$3:$D$379,4,FALSE),0) -> 0 | G130: =IFERROR(VLOOKUP(A130,'[3]2022-23 Final'!$B$19:$S$156,18,FALSE),0) -> 63880 | H130: =IFERROR(G130/SUM(C130:G130),0) -> 0.1054986463 | I130: =_xlfn.IFS('other funds ftr 2023'!H130<=Assumptions!$D$57,Assumptions!$B$57,'other funds ftr 2023'!H130<=Assumptions!$D$58,Assumptions!$B$58,'other funds ftr 2023'!H130<=Assumptions!$D$59,Assumptions!$B$59,'other funds ftr 2023'!H130<=Assumptions!$D$60,Assumptions!$B$60,'other funds ftr 2023'!H130<=Assumptions!$D$61,Assumptions!$B$61) -> 0.95
A131: 04246 | B131: WENATCHEE | C131: =IFERROR(VLOOKUP(A131,'[7]Allocation 2022-23'!$B$9:$AC$326,20,FALSE),0) -> 222315 | D131: =IFERROR(VLOOKUP(A131,'[8]22-23 Revised Final'!$A$13:$CI$328,81,FALSE),0) -> 2289546 | E131: =IFERROR(VLOOKUP(A131,[9]Sheet1!$A$3:$D$379,3,FALSE),0) -> 4625233.26 | F131: =IFERROR(VLOOKUP(A131,[9]Sheet1!$A$3:$D$379,4,FALSE),0) -> 2621683.76 | G131: =IFERROR(VLOOKUP(A131,'[3]2022-23 Final'!$B$19:$S$156,18,FALSE),0) -> 1320925 | H131: 0.1192202533 | I131: =_xlfn.IFS('other funds ftr 2023'!H131<=Assumptions!$D$57,Assumptions!$B$57,'other funds ftr 2023'!H131<=Assumptions!$D$58,Assumptions!$B$58,'other funds ftr 2023'!H131<=Assumptions!$D$59,Assumptions!$B$59,'other funds ftr 2023'!H131<=Assumptions!$D$60,Assumptions!$B$60,'other funds ftr 2023'!H131<=Assumptions!$D$61,Assumptions!$B$61) -> 0.85
A132: 39208 | B132: WEST VALLEY (YAKIMA) | C132: =IFERROR(VLOOKUP(A132,'[7]Allocation 2022-23'!$B$9:$AC$326,20,FALSE),0) -> 62594 | D132: =IFERROR(VLOOKUP(A132,'[8]22-23 Revised Final'!$A$13:$CI$328,81,FALSE),0) -> 990639 | E132: =IFERROR(VLOOKUP(A132,[9]Sheet1!$A$3:$D$379,3,FALSE),0) -> 2125216.22 | F132: =IFERROR(VLOOKUP(A132,[9]Sheet1!$A$3:$D$379,4,FALSE),0) -> 773534.74 | G132: =IFERROR(VLOOKUP(A132,'[3]2022-23 Final'!$B$19:$S$156,18,FALSE),0) -> 63007 | H132: 0.01569293695 | I132: =_xlfn.IFS('other funds ftr 2023'!H132<=Assumptions!$D$57,Assumptions!$B$57,'other funds ftr 2023'!H132<=Assumptions!$D$58,Assumptions!$B$58,'other funds ftr 2023'!H132<=Assumptions!$D$59,Assumptions!$B$59,'other funds ftr 2023'!H132<=Assumptions!$D$60,Assumptions!$B$60,'other funds ftr 2023'!H132<=Assumptions!$D$61,Assumptions!$B$61) -> 1.15
A133: 21303 | B133: WHITE PASS | C133: =IFERROR(VLOOKUP(A133,'[7]Allocation 2022-23'!$B$9:$AC$326,20,FALSE),0) -> 0 | D133: =IFERROR(VLOOKUP(A133,'[8]22-23 Revised Final'!$A$13:$CI$328,81,FALSE),0) -> 237471 | E133: =IFERROR(VLOOKUP(A133,[9]Sheet1!$A$3:$D$379,3,FALSE),0) -> 245174.46 | F133: =IFERROR(VLOOKUP(A133,[9]Sheet1!$A$3:$D$379,4,FALSE),0) -> 0 | G133: =IFERROR(VLOOKUP(A133,'[3]2022-23 Final'!$B$19:$S$156,18,FALSE),0) -> 0 | H133: 0 | I133: =_xlfn.IFS('other funds ftr 2023'!H133<=Assumptions!$D$57,Assumptions!$B$57,'other funds ftr 2023'!H133<=Assumptions!$D$58,Assumptions!$B$58,'other funds ftr 2023'!H133<=Assumptions!$D$59,Assumptions!$B$59,'other funds ftr 2023'!H133<=Assumptions!$D$60,Assumptions!$B$60,'other funds ftr 2023'!H133<=Assumptions!$D$61,Assumptions!$B$61) -> 1.15
A134: 20405 | B134: WHITE SALMON VALLEY | C134: =IFERROR(VLOOKUP(A134,'[7]Allocation 2022-23'!$B$9:$AC$326,20,FALSE),0) -> 26224 | D134: =IFERROR(VLOOKUP(A134,'[8]22-23 Revised Final'!$A$13:$CI$328,81,FALSE),0) -> 230283 | E134: =IFERROR(VLOOKUP(A134,[9]Sheet1!$A$3:$D$379,3,FALSE),0) -> 314692.31 | F134: =IFERROR(VLOOKUP(A134,[9]Sheet1!$A$3:$D$379,4,FALSE),0) -> 285531.58 | G134: =IFERROR(VLOOKUP(A134,'[3]2022-23 Final'!$B$19:$S$156,18,FALSE),0) -> 0 | H134: 0 | I134: =_xlfn.IFS('other funds ftr 2023'!H134<=Assumptions!$D$57,Assumptions!$B$57,'other funds ftr 2023'!H134<=Assumptions!$D$58,Assumptions!$B$58,'other funds ftr 2023'!H134<=Assumptions!$D$59,Assumptions!$B$59,'other funds ftr 2023'!H134<=Assumptions!$D$60,Assumptions!$B$60,'other funds ftr 2023'!H134<=Assumptions!$D$61,Assumptions!$B$61) -> 1.15
A135: 21232 | B135: WINLOCK | C135: =IFERROR(VLOOKUP(A135,'[7]Allocation 2022-23'!$B$9:$AC$326,20,FALSE),0) -> 6492 | D135: =IFERROR(VLOOKUP(A135,'[8]22-23 Revised Final'!$A$13:$CI$328,81,FALSE),0) -> 262517 | E135: =IFERROR(VLOOKUP(A135,[9]Sheet1!$A$3:$D$379,3,FALSE),0) -> 620991.37 | F135: =IFERROR(VLOOKUP(A135,[9]Sheet1!$A$3:$D$379,4,FALSE),0) -> 68810.77 | G135: =IFERROR(VLOOKUP(A135,'[3]2022-23 Final'!$B$19:$S$156,18,FALSE),0) -> 64710 | H135: 0.06322292474 | I135: =_xlfn.IFS('other funds ftr 2023'!H135<=Assumptions!$D$57,Assumptions!$B$57,'other funds ftr 2023'!H135<=Assumptions!$D$58,Assumptions!$B$58,'other funds ftr 2023'!H135<=Assumptions!$D$59,Assumptions!$B$59,'other funds ftr 2023'!H135<=Assumptions!$D$60,Assumptions!$B$60,'other funds ftr 2023'!H135<=Assumptions!$D$61,Assumptions!$B$61) -> 1
A136: 39901 | B136: YAKAMA NATION TRIBAL COMPACT | C136: =IFERROR(VLOOKUP(A136,'[7]Allocation 2022-23'!$B$9:$AC$326,20,FALSE),0) -> 0 | D136: =IFERROR(VLOOKUP(A136,'[8]22-23 Revised Final'!$A$13:$CI$328,81,FALSE),0) -> 0 | E136: =IFERROR(VLOOKUP(A136,[9]Sheet1!$A$3:$D$379,3,FALSE),0) -> 0 | F136: =IFERROR(VLOOKUP(A136,[9]Sheet1!$A$3:$D$379,4,FALSE),0) -> 0 | G136: =IFERROR(VLOOKUP(A136,'[3]2022-23 Final'!$B$19:$S$156,18,FALSE),0) -> 44928 | H136: 1 | I136: =_xlfn.IFS('other funds ftr 2023'!H136<=Assumptions!$D$57,Assumptions!$B$57,'other funds ftr 2023'!H136<=Assumptions!$D$58,Assumptions!$B$58,'other funds ftr 2023'!H136<=Assumptions!$D$59,Assumptions!$B$59,'other funds ftr 2023'!H136<=Assumptions!$D$60,Assumptions!$B$60,'other funds ftr 2023'!H136<=Assumptions!$D$61,Assumptions!$B$61) -> 0.85
A137: 39007 | B137: YAKIMA | C137: =IFERROR(VLOOKUP(A137,'[7]Allocation 2022-23'!$B$9:$AC$326,20,FALSE),0) -> 650631 | D137: =IFERROR(VLOOKUP(A137,'[8]22-23 Revised Final'!$A$13:$CI$328,81,FALSE),0) -> 10005935 | E137: =IFERROR(VLOOKUP(A137,[9]Sheet1!$A$3:$D$379,3,FALSE),0) -> 13336146.27 | F137: =IFERROR(VLOOKUP(A137,[9]Sheet1!$A$3:$D$379,4,FALSE),0) -> 7210053.39 | G137: =IFERROR(VLOOKUP(A137,'[3]2022-23 Final'!$B$19:$S$156,18,FALSE),0) -> 1485646 | H137: 0.04544870566 | I137: =_xlfn.IFS('other funds ftr 2023'!H137<=Assumptions!$D$57,Assumptions!$B$57,'other funds ftr 2023'!H137<=Assumptions!$D$58,Assumptions!$B$58,'other funds ftr 2023'!H137<=Assumptions!$D$59,Assumptions!$B$59,'other funds ftr 2023'!H137<=Assumptions!$D$60,Assumptions!$B$60,'other funds ftr 2023'!H137<=Assumptions!$D$61,Assumptions!$B$61) -> 1
A138: 34002 | B138: YELM | C138: =IFERROR(VLOOKUP(A138,'[7]Allocation 2022-23'!$B$9:$AC$326,20,FALSE),0) -> 25364 | D138: =IFERROR(VLOOKUP(A138,'[8]22-23 Revised Final'!$A$13:$CI$328,81,FALSE),0) -> 1060224 | E138: =IFERROR(VLOOKUP(A138,[9]Sheet1!$A$3:$D$379,3,FALSE),0) -> 1822463.57 | F138: =IFERROR(VLOOKUP(A138,[9]Sheet1!$A$3:$D$379,4,FALSE),0) -> 280557.9 | G138: =IFERROR(VLOOKUP(A138,'[3]2022-23 Final'!$B$19:$S$156,18,FALSE),0) -> 0 | H138: 0 | I138: =_xlfn.IFS('other funds ftr 2023'!H138<=Assumptions!$D$57,Assumptions!$B$57,'other funds ftr 2023'!H138<=Assumptions!$D$58,Assumptions!$B$58,'other funds ftr 2023'!H138<=Assumptions!$D$59,Assumptions!$B$59,'other funds ftr 2023'!H138<=Assumptions!$D$60,Assumptions!$B$60,'other funds ftr 2023'!H138<=Assumptions!$D$61,Assumptions!$B$61) -> 1.15
A139: 39205 | B139: ZILLAH | C139: =IFERROR(VLOOKUP(A139,'[7]Allocation 2022-23'!$B$9:$AC$326,20,FALSE),0) -> 21409 | D139: =IFERROR(VLOOKUP(A139,'[8]22-23 Revised Final'!$A$13:$CI$328,81,FALSE),0) -> 349335 | E139: =IFERROR(VLOOKUP(A139,[9]Sheet1!$A$3:$D$379,3,FALSE),0) -> 867524.51 | F139: =IFERROR(VLOOKUP(A139,[9]Sheet1!$A$3:$D$379,4,FALSE),0) -> 257617.9 | G139: =IFERROR(VLOOKUP(A139,'[3]2022-23 Final'!$B$19:$S$156,18,FALSE),0) -> 57750 | H139: 0.03717085904 | I139: =_xlfn.IFS('other funds ftr 2023'!H139<=Assumptions!$D$57,Assumptions!$B$57,'other funds ftr 2023'!H139<=Assumptions!$D$58,Assumptions!$B$58,'other funds ftr 2023'!H139<=Assumptions!$D$59,Assumptions!$B$59,'other funds ftr 2023'!H139<=Assumptions!$D$60,Assumptions!$B$60,'other funds ftr 2023'!H139<=Assumptions!$D$61,Assumptions!$B$61) -> 1.05

Sheet CCDDD (hidden)
A1: 14005 | B1: ABERDEEN | C1: =A1 -> 14005
A2: 29103 | B2: ANACORTES | C2: =A2 -> 29103
A3: 31016 | B3: ARLINGTON | C3: 31016
A4: 17408 | B4: AUBURN | C4: 17408
A5: 06119 | B5: BATTLE GROUND | C5: 06119
A6: 17405 | B6: BELLEVUE | C6: 17405
A7: 37501 | B7: BELLINGHAM | C7: 37501
A8: 27403 | B8: BETHEL | C8: 27403
A9: 37503 | B9: BLAINE | C9: 37503
A10: 18100 | B10: BREMERTON | C10: 18100
A11: 24111 | B11: BREWSTER | C11: 24111
A12: 09075 | B12: BRIDGEPORT | C12: 09075
A13: 29100 | B13: BURLINGTON | C13: 29100
A14: 06117 | B14: CAMAS | C14: 06117
A15: 04228 | B15: CASCADE | C15: 04228
A16: 04222 | B16: CASHMERE | C16: 04222
A17: 32356 | B17: CENTRAL VALLEY | C17: 32356
A18: 21401 | B18: CENTRALIA | C18: 21401
A19: 21302 | B19: CHEHALIS | C19: 21302
A20: 16049 | B20: CHIMACUM | C20: 16049
A21: 19404 | B21: CLE ELUM | C21: 19404
A22: 27400 | B22: CLOVER PARK | C22: 27400
A23: 36250 | B23: COLLEGE PLACE | C23: 36250
A24: 36400 | B24: COLUMBIA | C24: 36400
A25: 29317 | B25: CONWAY | C25: 29317
A26: 15204 | B26: COUPEVILLE | C26: 15204
A27: 39090 | B27: EAST VALLEY | C27: 39090
A28: 09206 | B28: EASTMONT | C28: 09206
A29: 31015 | B29: EDMONDS | C29: 31015
A30: 19401 | B30: ELLENSBURG | C30: 19401
A31: 14068 | B31: ELMA | C31: 14068
A32: 04127 | B32: ENTIAT | C32: 04127
A33: 17216 | B33: ENUMCLAW | C33: 17216
A34: 13165 | B34: EPHRATA | C34: 13165
A35: 31002 | B35: EVERETT | C35: 31002
A36: 06114 | B36: EVERGREEN | C36: 06114
A37: 17210 | B37: FEDERAL WAY | C37: 17210
A38: 37502 | B38: FERNDALE | C38: 37502
A39: 27417 | B39: FIFE | C39: 27417
A40: 03053 | B40: FINLEY | C40: 03053
A41: 27402 | B41: FRANKLIN PIERCE | C41: 27402
A42: 20404 | B42: GOLDENDALE | C42: 20404
A43: 13301 | B43: GRAND COULEE DAM | C43: 13301
A44: 39200 | B44: GRANDVIEW | C44: 39200
A45: 39204 | B45: GRANGER | C45: 39204
A46: 39203 | B46: HIGHLAND | C46: 39203
A47: 17401 | B47: HIGHLINE | C47: 17401
A48: 23404 | B48: HOOD CANAL | C48: 23404
A49: 14028 | B49: HOQUIAM | C49: 14028
A50: 11056 | B50: KAHLOTUS | C50: 11056
A51: 08458 | B51: KELSO | C51: 08458
A52: 03017 | B52: KENNEWICK | C52: 03017
A53: 17415 | B53: KENT | C53: 17415
A54: 03052 | B54: KIONA BENTON | C54: 03052
A55: 19403 | B55: KITTITAS | C55: 19403
A56: 06101 | B56: LA CENTER | C56: 06101
A57: 29311 | B57: LA CONNER | C57: 29311
A58: 04129 | B58: LAKE CHELAN | C58: 04129
A59: 34307 | B59: LAKE QUINAULT | C59: 34307
A60: 17414 | B60: LAKE WASHINGTON | C60: 17414
A61: 31306 | B61: LAKEWOOD | C61: 31306
A62: 01158 | B62: LIND | C62: 01158
A63: 08122 | B63: LONGVIEW | C63: 08122
A64: 28144 | B64: LOPEZ ISLAND | C64: 28144
A65: 20406 | B65: LYLE | C65: 20406
A66: 37504 | B66: LYNDEN | C66: =A66 -> 37504
A67: 39120 | B67: MABTON | C67: 39120
A68: 04019 | B68: MANSON | C68: 04019
A69: 31025 | B69: MARYSVILLE | C69: 31025
A70: 37505 | B70: MERIDIAN | C70: 37505
A71: 31103 | B71: MONROE | C71: 31103
A72: 14066 | B72: MONTESANO | C72: 14066
A73: 13161 | B73: MOSES LAKE | C73: 13161
A74: 21206 | B74: MOSSYROCK | C74: 21206
A75: 29320 | B75: MOUNT VERNON | C75: 29320
A76: 39209 | B76: MT ADAMS | C76: 39209
A77: 37507 | B77: MT BAKER | C77: 37507
A78: 31006 | B78: MUKILTEO | C78: 31006
A79: 39003 | B79: NACHES | C79: 39003
A80: 25155 | B80: NASELLE-GRAYS RIVER | C80: 25155
A81: 24014 | B81: NESPELEM | C81: 24014
A82: 37506 | B82: NOOKSACK VALLEY | C82: 37506
A83: 14064 | B83: NORTH BEACH | C83: 14064
A84: 11051 | B84: NORTH FRANKLIN | C84: 11051
A85: 18400 | B85: NORTH KITSAP | C85: 18400
A86: 34003 | B86: NORTH THURSTON | C86: 34003
A87: 17417 | B87: NORTHSHORE | C87: 17417
A88: 15201 | B88: OAK HARBOR | C88: 15201
A89: 25101 | B89: OCEAN BEACH | C89: 25101
A90: 14172 | B90: OCOSTA | C90: 14172
A91: 24105 | B91: OKANOGAN | C91: 24105
A92: 34111 | B92: OLYMPIA | C92: 34111
A93: 24019 | B93: OMAK | C93: 24019
A94: 09013 | B94: ORONDO | C94: 09013
A95: 24410 | B95: OROVILLE | C95: 24410
A96: 01147 | B96: OTHELLO | C96: 01147
A97: 09102 | B97: PALISADES | C97: 09102
A98: 11001 | B98: PASCO | C98: 11001
A99: 24122 | B99: PATEROS | C99: 24122
A100: 03050 | B100: PATERSON | C100: 03050
A101: 23402 | B101: PIONEER | C101: 23402
A102: 12110 | B102: POMEROY | C102: 12110
A103: 05121 | B103: PORT ANGELES | C103: 05121
A104: 16050 | B104: PORT TOWNSEND | C104: 16050
A105: 36402 | B105: PRESCOTT | C105: 36402
A106: 03116 | B106: PROSSER | C106: 03116
A107: 27003 | B107: PUYALLUP | C107: 27003
A108: 05402 | B108: QUILLAYUTE VALLEY | C108: 05402
A109: 13144 | B109: QUINCY | C109: 13144
A110: 25116 | B110: RAYMOND | C110: 25116
A111: 17403 | B111: RENTON | C111: 17403
A112: 03400 | B112: RICHLAND | C112: 03400
A113: 06122 | B113: RIDGEFIELD | C113: 06122
A114: 17407 | B114: RIVERVIEW | C114: 17407
A115: 34401 | B115: ROCHESTER | C115: 34401
A116: 20403 | B116: ROOSEVELT | C116: 20403
A117: 13160 | B117: ROYAL CITY | C117: 13160
A118: 28149 | B118: SAN JUAN ISLAND | C118: 28149
A119: 14104 | B119: SATSOP | C119: 14104
A120: 17001 | B120: SEATTLE | C120: 17001
A121: 29101 | B121: SEDRO WOOLLEY | C121: 29101
A122: 39119 | B122: SELAH | C122: 39119
A123: 05323 | B123: SEQUIM | C123: 05323
A124: 23309 | B124: SHELTON | C124: 23309
A125: 31201 | B125: SNOHOMISH | C125: 31201
A126: 17410 | B126: SNOQUALMIE VALLEY | C126: 17410
A127: 13156 | B127: SOAP LAKE | C127: 13156
A128: 25118 | B128: SOUTH BEND | C128: 25118
A129: 23042 | B129: SOUTHSIDE | C129: 23042
A130: 32081 | B130: SPOKANE | C130: =A130 -> 32081
A131: 31401 | B131: STANWOOD | C131: 31401
A132: 11054 | B132: STAR | C132: 11054
A133: 31311 | B133: SULTAN | C133: 31311
A134: 27320 | B134: SUMNER | C134: 27320
A135: 39201 | B135: SUNNYSIDE | C135: 39201
A136: 27010 | B136: TACOMA | C136: 27010
A137: 34402 | B137: TENINO | C137: 34402
A138: 19400 | B138: THORP | C138: 19400
A139: 24404 | B139: TONASKET | C139: 24404
A140: 39202 | B140: TOPPENISH | C140: 39202
A141: 36300 | B141: TOUCHET | C141: 36300
A142: 20400 | B142: TROUT LAKE | C142: 20400
A143: 17406 | B143: TUKWILA | C143: 17406
A144: 34033 | B144: TUMWATER | C144: 34033
A145: 39002 | B145: UNION GAP | C145: 39002
A146: 06037 | B146: VANCOUVER | C146: 06037
A147: 35200 | B147: WAHKIAKUM | C147: 35200
A148: 13073 | B148: WAHLUKE | C148: 13073
A149: 36140 | B149: WALLA WALLA | C149: 36140
A150: 39207 | B150: WAPATO | C150: 39207
A151: 13146 | B151: WARDEN | C151: 13146
A152: 09209 | B152: WATERVILLE | C152: 09209
A153: 04246 | B153: WENATCHEE | C153: 04246
A154: 39208 | B154: WEST VALLEY | C154: 39208
A155: 21303 | B155: WHITE PASS | C155: 21303
A156: 27416 | B156: WHITE RIVER | C156: 27416
A157: 20405 | B157: WHITE SALMON | C157: 20405
A158: 21232 | B158: WINLOCK | C158: 21232
A159: 20094 | B159: WISHRAM | C159: 20094
A160: 08404 | B160: WOODLAND | C160: 08404
A161: 39007 | B161: YAKIMA | C161: 39007
A162: 34002 | B162: YELM | C162: 34002
A163: 39205 | B163: ZILLAH | C163: 39205

Sheet 22-23 Final (hidden)
J1: From Assumptions Page:
D2: Constant Dollar Multipliers - Do Not Change Here | J2: Target Amounts | O2: =[3]Assumptions!C24 -> 20768148
D3: =[2]Assumptions!$AO$4 -> 0 | F3: 2.036969198e+66 | G3: 430.9654675 | H3: Use CTRL K | J3: Actual Amounts | O3: =O18 -> 20768148
J4: Difference | O4: =O3-O2 -> 0
J6: =O18 -> 20768148
H7: Put total here | J7: =[3]Assumptions!C24 -> 20768148
J10: Go to H9 & Control K to set dollar amount
E14: Migrant Students | V14: Accepting Funding? | X14: HOLD HARMLESS
D15: =G3 -> 430.9654675 | E15: K-12 | G15: Needs Support | I15: Priority Interuption | S15: =S18 -> 20768148
C16: CCDDD | D16: District | E16: Ave. number | F16: Regular Dollars | G16: Ave. number | H16: Regular Dollars | I16: Priority Number | J16: Priority Dollars | K16: Subtotal | L16: Other Funds Factor | M16: Subtotal 2 | N16: Add'l Rural Factor | O16: Total Allocated Amount | Q16: MOE | R16: MOE Red. | S16: Subtotal After MOE | V16: Y for yes, N for no (reallocates money) | X16: Override funding? Y for yes, otherwise blank. | Y16: Health Support Grant | Z16: Total
E17: 10 | F17: =F18/E18 -> 464.3864753 | G17: 0.25 | H17: =H18/G18 -> 110.2483823 | I17: 1 | J17: =J18/I18 -> 434.6471498 | N17: 0.1 | O17: 124
A18: 0 | C18: 99999 | D18: State Total | E18: =SUMIF(E19:E152,">-10") -> 29117 | F18: =SUM(F19:F156) -> 13521541 | G18: =SUMIF(G19:G156,">=10") -> 8036 | H18: =SUM(H19:H156) -> 885956 | I18: =SUMIF(I19:I156,">=10") -> 16157 | J18: =SUM(J19:J156) -> 7022594 | K18: =SUM(K19:K156) -> 21430091 | M18: =SUM(M19:M156) -> 22039546 | O18: =SUM(O19:O156) -> 20768148 | R18: =SUM(R19:R152) -> 0 | S18: =SUM(S19:S156) -> 20768148 | T18: Previous Year Final Allocations | U18: Allocation Difference | W18: Consortia | Y18: =SUM(Y19:Y152) -> 190500 | Z18: =SUM(Z19:Z156) -> 20665567
A19: 1 | B19: 14005 | C19: 14005 | D19: ABERDEEN | E19: =IFERROR(VLOOKUP(C19,'[3]Enrollment 22-23'!A:E,3,FALSE),0) -> 130 | F19: =IF(E19>=10,ROUND(E19*$G$3,0),0) -> 56026 | G19: =IFERROR(VLOOKUP(C19,'[3]Enrollment 22-23'!A:E,5,0),0) -> 30 | H19: =IF(E19>=$E$17,ROUND(G19*$G$3*$G$17,0),0) -> 3232 | I19: =IFERROR(VLOOKUP(C19,'[3]Enrollment 22-23'!A:E,4,FALSE),0) -> 42 | J19: =IF(E19>=$E$17,ROUND(I19*$G$3*$I$17,0),0) -> 18101 | K19: =+F19+H19+J19 -> 77359 | L19: =IF(E19>$E$17,_xlfn.IFNA(VLOOKUP(C19,'[3]other funds ftr 2022'!A:I,9,FALSE),0),1) -> 0.95 | M19: =IF(L19=0,K19,ROUND(K19*L19,0)) -> 73491 | N19: =1+IF(ISNA(VLOOKUP(VALUE(C19),'[3]Rural and Low Income 22-23'!$A:$B,2,FALSE)),0,'[3]2022-23 Final'!$N$17) -> 1.1 | O19: =IF(V19="y",ROUND(M19*N19,0),0) -> 80840 | R19: =ROUND(IF(Q19>0,-(0.9-Q19)*O19,0),0) -> 0 | S19: =O19+R19 -> 80840 | T19: =VLOOKUP(TRIM(C19),'[3]2021-22 Final'!B:X,17,FALSE) -> 88261 | U19: =S19-T19 -> -7421 | V19: Y | Y19: =IF(V19="Y",IF(E19<=99,1500,IF(AND(E19>=100,E19<=399),2500,4000)),0) -> 2500 | Z19: =IF(W19=1, 0, Y19+S19) -> 83340
A20: 2 | B20: 29103 | C20: 29103 | D20: ANACORTES | E20: =IFERROR(VLOOKUP(C20,'[3]Enrollment 22-23'!A:E,3,FALSE),0) -> 13 | F20: =IF(E20>=10,ROUND(E20*$G$3,0),0) -> 5603 | G20: =IFERROR(VLOOKUP(C20,'[3]Enrollment 22-23'!A:E,5,0),0) -> 2 | H20: =IF(E20>=$E$17,ROUND(G20*$G$3*$G$17,0),0) -> 215 | I20: =IFERROR(VLOOKUP(C20,'[3]Enrollment 22-23'!A:E,4,FALSE),0) -> 6 | J20: =IF(E20>=$E$17,ROUND(I20*$G$3*$I$17,0),0) -> 2586 | K20: 8404 | L20: =IF(E20>$E$17,_xlfn.IFNA(VLOOKUP(C20,'[3]other funds ftr 2022'!A:I,9,FALSE),0),1) -> 0 | M20: 8404 | N20: =1+IF(ISNA(VLOOKUP(VALUE(C20),'[3]Rural and Low Income 22-23'!$A:$B,2,FALSE)),0,'[3]2022-23 Final'!$N$17) -> 1 | O20: 0 | R20: 0 | S20: 0 | T20: =VLOOKUP(TRIM(C20),'[3]2021-22 Final'!B:X,17,FALSE) ->  | V20: N | Y20: =IF(V20="Y",IF(E20<=99,1500,IF(AND(E20>=100,E20<=399),2500,4000)),0) -> 0 | Z20: =IF(W20=1, 0, Y20+S20) -> 0
A21: 3 | B21: 31016 | C21: 31016 | D21: ARLINGTON | E21: =IFERROR(VLOOKUP(C21,'[3]Enrollment 22-23'!A:E,3,FALSE),0) -> 48 | F21: 20686 | G21: =IFERROR(VLOOKUP(C21,'[3]Enrollment 22-23'!A:E,5,0),0) -> 13 | H21: 1401 | I21: =IFERROR(VLOOKUP(C21,'[3]Enrollment 22-23'!A:E,4,FALSE),0) -> 31 | J21: 13360 | K21: 35447 | L21: =IF(E21>$E$17,_xlfn.IFNA(VLOOKUP(C21,'[3]other funds ftr 2022'!A:I,9,FALSE),0),1) -> 0 | M21: 35447 | N21: =1+IF(ISNA(VLOOKUP(VALUE(C21),'[3]Rural and Low Income 22-23'!$A:$B,2,FALSE)),0,'[3]2022-23 Final'!$N$17) -> 1 | O21: 0 | R21: 0 | S21: 0 | T21: =VLOOKUP(TRIM(C21),'[3]2021-22 Final'!B:X,17,FALSE) -> 0 | U21: 0 | V21: N | Y21: 0 | Z21: 0
A22: 4 | B22: 17408 | C22: 17408 | D22: AUBURN | E22: =IFERROR(VLOOKUP(C22,'[3]Enrollment 22-23'!A:E,3,FALSE),0) -> 39 | F22: 16808 | G22: =IFERROR(VLOOKUP(C22,'[3]Enrollment 22-23'!A:E,5,0),0) -> 9 | H22: 970 | I22: =IFERROR(VLOOKUP(C22,'[3]Enrollment 22-23'!A:E,4,FALSE),0) -> 4 | J22: 1724 | K22: 19502 | L22: =IF(E22>$E$17,_xlfn.IFNA(VLOOKUP(C22,'[3]other funds ftr 2022'!A:I,9,FALSE),0),1) -> 0 | M22: 19502 | N22: =1+IF(ISNA(VLOOKUP(VALUE(C22),'[3]Rural and Low Income 22-23'!$A:$B,2,FALSE)),0,'[3]2022-23 Final'!$N$17) -> 1 | O22: 0 | R22: 0 | S22: 0 | T22: =VLOOKUP(TRIM(C22),'[3]2021-22 Final'!B:X,17,FALSE) -> 0 | U22: 0 | V22: N | Y22: 0 | Z22: 0
A23: 5 | B23: 06119 | C23: 06119 | D23: BATTLE GROUND | E23: =IFERROR(VLOOKUP(C23,'[3]Enrollment 22-23'!A:E,3,FALSE),0) -> 21 | F23: 9050 | G23: =IFERROR(VLOOKUP(C23,'[3]Enrollment 22-23'!A:E,5,0),0) -> 5 | H23: 539 | I23: =IFERROR(VLOOKUP(C23,'[3]Enrollment 22-23'!A:E,4,FALSE),0) -> 1 | J23: 431 | K23: 10020 | L23: =IF(E23>$E$17,_xlfn.IFNA(VLOOKUP(C23,'[3]other funds ftr 2022'!A:I,9,FALSE),0),1) -> 0 | M23: 10020 | N23: =1+IF(ISNA(VLOOKUP(VALUE(C23),'[3]Rural and Low Income 22-23'!$A:$B,2,FALSE)),0,'[3]2022-23 Final'!$N$17) -> 1 | O23: 0 | R23: 0 | S23: 0 | T23: =VLOOKUP(TRIM(C23),'[3]2021-22 Final'!B:X,17,FALSE) -> 0 | U23: 0 | V23: N | Y23: 0 | Z23: 0
A24: 6 | B24: 17405 | C24: 17405 | D24: BELLEVUE | E24: =IFERROR(VLOOKUP(C24,'[3]Enrollment 22-23'!A:E,3,FALSE),0) -> 10 | F24: 4310 | G24: =IFERROR(VLOOKUP(C24,'[3]Enrollment 22-23'!A:E,5,0),0) -> 3 | H24: 323 | I24: =IFERROR(VLOOKUP(C24,'[3]Enrollment 22-23'!A:E,4,FALSE),0) -> 2 | J24: 862 | K24: 5495 | L24: =IF(E24>$E$17,_xlfn.IFNA(VLOOKUP(C24,'[3]other funds ftr 2022'!A:I,9,FALSE),0),1) -> 1 | M24: 5495 | N24: =1+IF(ISNA(VLOOKUP(VALUE(C24),'[3]Rural and Low Income 22-23'!$A:$B,2,FALSE)),0,'[3]2022-23 Final'!$N$17) -> 1 | O24: 0 | R24: 0 | S24: 0 | T24: =VLOOKUP(TRIM(C24),'[3]2021-22 Final'!B:X,17,FALSE) ->  | V24: N | Y24: 0 | Z24: 0
A25: 7 | B25: 37501 | C25: 37501 | D25: BELLINGHAM | E25: =IFERROR(VLOOKUP(C25,'[3]Enrollment 22-23'!A:E,3,FALSE),0) -> 163 | F25: 70247 | G25: =IFERROR(VLOOKUP(C25,'[3]Enrollment 22-23'!A:E,5,0),0) -> 46 | H25: 4956 | I25: =IFERROR(VLOOKUP(C25,'[3]Enrollment 22-23'!A:E,4,FALSE),0) -> 63 | J25: 27151 | K25: 102354 | L25: =IF(E25>$E$17,_xlfn.IFNA(VLOOKUP(C25,'[3]other funds ftr 2022'!A:I,9,FALSE),0),1) -> 0 | M25: 102354 | N25: =1+IF(ISNA(VLOOKUP(VALUE(C25),'[3]Rural and Low Income 22-23'!$A:$B,2,FALSE)),0,'[3]2022-23 Final'!$N$17) -> 1 | O25: 0 | R25: 0 | S25: 0 | T25: =VLOOKUP(TRIM(C25),'[3]2021-22 Final'!B:X,17,FALSE) -> 0 | U25: 0 | V25: N | Y25: 0 | Z25: 0
A26: 8 | B26: 27403 | C26: 27403 | D26: BETHEL | E26: =IFERROR(VLOOKUP(C26,'[3]Enrollment 22-23'!A:E,3,FALSE),0) -> 11 | F26: 4741 | G26: =IFERROR(VLOOKUP(C26,'[3]Enrollment 22-23'!A:E,5,0),0) -> 3 | H26: 323 | I26: =IFERROR(VLOOKUP(C26,'[3]Enrollment 22-23'!A:E,4,FALSE),0) -> 8 | J26: 3448 | K26: 8512 | L26: =IF(E26>$E$17,_xlfn.IFNA(VLOOKUP(C26,'[3]other funds ftr 2022'!A:I,9,FALSE),0),1) -> 0 | M26: 8512 | N26: =1+IF(ISNA(VLOOKUP(VALUE(C26),'[3]Rural and Low Income 22-23'!$A:$B,2,FALSE)),0,'[3]2022-23 Final'!$N$17) -> 1 | O26: 0 | R26: 0 | S26: 0 | T26: =VLOOKUP(TRIM(C26),'[3]2021-22 Final'!B:X,17,FALSE) ->  | V26: N | Y26: 0 | Z26: 0
A27: 9 | B27: 18100 | C27: 18100 | D27: BREMERTON | E27: =IFERROR(VLOOKUP(C27,'[3]Enrollment 22-23'!A:E,3,FALSE),0) -> 84 | F27: 36201 | G27: =IFERROR(VLOOKUP(C27,'[3]Enrollment 22-23'!A:E,5,0),0) -> 21 | H27: 2263 | I27: =IFERROR(VLOOKUP(C27,'[3]Enrollment 22-23'!A:E,4,FALSE),0) -> 17 | J27: 7326 | K27: 45790 | L27: =IF(E27>$E$17,_xlfn.IFNA(VLOOKUP(C27,'[3]other funds ftr 2022'!A:I,9,FALSE),0),1) -> 0 | M27: 45790 | N27: =1+IF(ISNA(VLOOKUP(VALUE(C27),'[3]Rural and Low Income 22-23'!$A:$B,2,FALSE)),0,'[3]2022-23 Final'!$N$17) -> 1 | O27: 45790 | R27: 0 | S27: 45790 | T27: =VLOOKUP(TRIM(C27),'[3]2021-22 Final'!B:X,17,FALSE) -> 0 | U27: 45790 | V27: Y | Y27: 1500 | Z27: 47290
A28: 10 | B28: 24111 | C28: 24111 | D28: BREWSTER | E28: =IFERROR(VLOOKUP(C28,'[3]Enrollment 22-23'!A:E,3,FALSE),0) -> 220 | F28: 94812 | G28: =IFERROR(VLOOKUP(C28,'[3]Enrollment 22-23'!A:E,5,0),0) -> 50 | H28: 5387 | I28: =IFERROR(VLOOKUP(C28,'[3]Enrollment 22-23'!A:E,4,FALSE),0) -> 108 | J28: 46544 | K28: 146743 | L28: =IF(E28>$E$17,_xlfn.IFNA(VLOOKUP(C28,'[3]other funds ftr 2022'!A:I,9,FALSE),0),1) -> 1.05 | M28: 154080 | N28: =1+IF(ISNA(VLOOKUP(VALUE(C28),'[3]Rural and Low Income 22-23'!$A:$B,2,FALSE)),0,'[3]2022-23 Final'!$N$17) -> 1.1 | O28: 169488 | R28: 0 | S28: 169488 | T28: =VLOOKUP(TRIM(C28),'[3]2021-22 Final'!B:X,17,FALSE) -> 163854 | U28: 5634 | V28: Y | Y28: 2500 | Z28: 171988
A29: 11 | B29: 09075 | C29: 09075 | D29: BRIDGEPORT | E29: =IFERROR(VLOOKUP(C29,'[3]Enrollment 22-23'!A:E,3,FALSE),0) -> 230 | F29: 99122 | G29: =IFERROR(VLOOKUP(C29,'[3]Enrollment 22-23'!A:E,5,0),0) -> 47 | H29: 5064 | I29: =IFERROR(VLOOKUP(C29,'[3]Enrollment 22-23'!A:E,4,FALSE),0) -> 38 | J29: 16377 | K29: 120563 | L29: =IF(E29>$E$17,_xlfn.IFNA(VLOOKUP(C29,'[3]other funds ftr 2022'!A:I,9,FALSE),0),1) -> 1.05 | M29: 126591 | N29: =1+IF(ISNA(VLOOKUP(VALUE(C29),'[3]Rural and Low Income 22-23'!$A:$B,2,FALSE)),0,'[3]2022-23 Final'!$N$17) -> 1 | O29: 126591 | R29: 0 | S29: 126591 | T29: =VLOOKUP(TRIM(C29),'[3]2021-22 Final'!B:X,17,FALSE) -> 152034 | U29: -25443 | V29: Y | Y29: 2500 | Z29: 129091
A30: 12 | B30: 29100 | C30: 29100 | D30: BURLINGTON-EDISON | E30: =IFERROR(VLOOKUP(C30,'[3]Enrollment 22-23'!A:E,3,FALSE),0) -> 388 | F30: 167215 | G30: =IFERROR(VLOOKUP(C30,'[3]Enrollment 22-23'!A:E,5,0),0) -> 123 | H30: 13252 | I30: =IFERROR(VLOOKUP(C30,'[3]Enrollment 22-23'!A:E,4,FALSE),0) -> 183 | J30: 78867 | K30: 259334 | L30: =IF(E30>$E$17,_xlfn.IFNA(VLOOKUP(C30,'[3]other funds ftr 2022'!A:I,9,FALSE),0),1) -> 0.95 | M30: 246367 | N30: =1+IF(ISNA(VLOOKUP(VALUE(C30),'[3]Rural and Low Income 22-23'!$A:$B,2,FALSE)),0,'[3]2022-23 Final'!$N$17) -> 1 | O30: 246367 | R30: 0 | S30: 246367 | T30: =VLOOKUP(TRIM(C30),'[3]2021-22 Final'!B:X,17,FALSE) -> 205956 | U30: 40411 | V30: Y | Y30: 2500 | Z30: 248867
A31: 14 | B31: 04228 | C31: 04228 | D31: CASCADE | E31: =IFERROR(VLOOKUP(C31,'[3]Enrollment 22-23'!A:E,3,FALSE),0) -> 59 | F31: 25427 | G31: =IFERROR(VLOOKUP(C31,'[3]Enrollment 22-23'!A:E,5,0),0) -> 12 | H31: 1293 | I31: =IFERROR(VLOOKUP(C31,'[3]Enrollment 22-23'!A:E,4,FALSE),0) -> 36 | J31: 15515 | K31: 42235 | L31: =IF(E31>$E$17,_xlfn.IFNA(VLOOKUP(C31,'[3]other funds ftr 2022'!A:I,9,FALSE),0),1) -> 0.95 | M31: 40123 | N31: =1+IF(ISNA(VLOOKUP(VALUE(C31),'[3]Rural and Low Income 22-23'!$A:$B,2,FALSE)),0,'[3]2022-23 Final'!$N$17) -> 1 | O31: 40123 | R31: 0 | S31: 40123 | T31: =VLOOKUP(TRIM(C31),'[3]2021-22 Final'!B:X,17,FALSE) -> 41924 | U31: -1801 | V31: Y | Y31: 1500 | Z31: 41623
A32: 13 | B32: 04222 | C32: 04222 | D32: CASHMERE | E32: =IFERROR(VLOOKUP(C32,'[3]Enrollment 22-23'!A:E,3,FALSE),0) -> 257 | F32: 110758 | G32: =IFERROR(VLOOKUP(C32,'[3]Enrollment 22-23'!A:E,5,0),0) -> 20 | H32: 2155 | I32: =IFERROR(VLOOKUP(C32,'[3]Enrollment 22-23'!A:E,4,FALSE),0) -> 44 | J32: 18962 | K32: 131875 | L32: =IF(E32>$E$17,_xlfn.IFNA(VLOOKUP(C32,'[3]other funds ftr 2022'!A:I,9,FALSE),0),1) -> 1.15 | M32: 151656 | N32: =1+IF(ISNA(VLOOKUP(VALUE(C32),'[3]Rural and Low Income 22-23'!$A:$B,2,FALSE)),0,'[3]2022-23 Final'!$N$17) -> 1 | O32: 151656 | R32: =ROUND(IF(Q32>0,-(0.9-Q32)*O32,0),0) -> 0 | S32: 151656 | T32: =VLOOKUP(TRIM(C32),'[3]2021-22 Final'!B:X,17,FALSE) -> 165579 | U32: -13923 | V32: Y | Y32: 2500 | Z32: 154156
A33: 15 | B33: 18401 | C33: 18401 | D33: CENTRAL KITSAP | E33: =IFERROR(VLOOKUP(C33,'[3]Enrollment 22-23'!A:E,3,FALSE),0) -> 16 | F33: 6895 | G33: =IFERROR(VLOOKUP(C33,'[3]Enrollment 22-23'!A:E,5,0),0) -> 5 | H33: 539 | I33: =IFERROR(VLOOKUP(C33,'[3]Enrollment 22-23'!A:E,4,FALSE),0) -> 8 | J33: 3448 | K33: 10882 | L33: =IF(E33>$E$17,_xlfn.IFNA(VLOOKUP(C33,'[3]other funds ftr 2022'!A:I,9,FALSE),0),1) -> 0 | M33: 10882 | N33: =1+IF(ISNA(VLOOKUP(VALUE(C33),'[3]Rural and Low Income 22-23'!$A:$B,2,FALSE)),0,'[3]2022-23 Final'!$N$17) -> 1 | O33: 0 | R33: =ROUND(IF(Q33>0,-(0.9-Q33)*O33,0),0) -> 0 | S33: 0 | T33: =VLOOKUP(TRIM(C33),'[3]2021-22 Final'!B:X,17,FALSE) -> 0 | U33: 0 | V33: N | Y33: 0 | Z33: 0
A34: 16 | B34: 32356 | C34: 32356 | D34: CENTRAL VALLEY | E34: =IFERROR(VLOOKUP(C34,'[3]Enrollment 22-23'!A:E,3,FALSE),0) -> 16 | F34: 6895 | G34: =IFERROR(VLOOKUP(C34,'[3]Enrollment 22-23'!A:E,5,0),0) -> 4 | H34: 431 | I34: =IFERROR(VLOOKUP(C34,'[3]Enrollment 22-23'!A:E,4,FALSE),0) -> 5 | J34: 2155 | K34: 9481 | L34: =IF(E34>$E$17,_xlfn.IFNA(VLOOKUP(C34,'[3]other funds ftr 2022'!A:I,9,FALSE),0),1) -> 0 | M34: 9481 | N34: =1+IF(ISNA(VLOOKUP(VALUE(C34),'[3]Rural and Low Income 22-23'!$A:$B,2,FALSE)),0,'[3]2022-23 Final'!$N$17) -> 1 | O34: 0 | R34: =ROUND(IF(Q34>0,-(0.9-Q34)*O34,0),0) -> 0 | S34: 0 | T34: =VLOOKUP(TRIM(C34),'[3]2021-22 Final'!B:X,17,FALSE) -> 0 | U34: 0 | V34: N | X34: Y | Y34: 0 | Z34: 0
A35: 17 | B35: 21401 | C35: 21401 | D35: CENTRALIA | E35: =IFERROR(VLOOKUP(C35,'[3]Enrollment 22-23'!A:E,3,FALSE),0) -> 122 | F35: 52578 | G35: =IFERROR(VLOOKUP(C35,'[3]Enrollment 22-23'!A:E,5,0),0) -> 42 | H35: 4525 | I35: =IFERROR(VLOOKUP(C35,'[3]Enrollment 22-23'!A:E,4,FALSE),0) -> 51 | J35: 21979 | K35: 79082 | L35: =IF(E35>$E$17,_xlfn.IFNA(VLOOKUP(C35,'[3]other funds ftr 2022'!A:I,9,FALSE),0),1) -> 0.85 | M35: 67220 | N35: =1+IF(ISNA(VLOOKUP(VALUE(C35),'[3]Rural and Low Income 22-23'!$A:$B,2,FALSE)),0,'[3]2022-23 Final'!$N$17) -> 1 | O35: 67220 | R35: 0 | S35: 67220 | T35: =VLOOKUP(TRIM(C35),'[3]2021-22 Final'!B:X,17,FALSE) -> 60052 | U35: 7168 | V35: Y | Y35: 2500 | Z35: 69720
A36: 18 | B36: 21302 | C36: 21302 | D36: CHEHALIS | E36: =IFERROR(VLOOKUP(C36,'[3]Enrollment 22-23'!A:E,3,FALSE),0) -> 34 | F36: 14653 | G36: =IFERROR(VLOOKUP(C36,'[3]Enrollment 22-23'!A:E,5,0),0) -> 14 | H36: 1508 | I36: =IFERROR(VLOOKUP(C36,'[3]Enrollment 22-23'!A:E,4,FALSE),0) -> 14 | J36: 6034 | K36: 22195 | L36: =IF(E36>$E$17,_xlfn.IFNA(VLOOKUP(C36,'[3]other funds ftr 2022'!A:I,9,FALSE),0),1) -> 0.85 | M36: 18866 | N36: =1+IF(ISNA(VLOOKUP(VALUE(C36),'[3]Rural and Low Income 22-23'!$A:$B,2,FALSE)),0,'[3]2022-23 Final'!$N$17) -> 1 | O36: 18866 | R36: =ROUND(IF(Q36>0,-(0.9-Q36)*O36,0),0) -> 0 | S36: 18866 | T36: =VLOOKUP(TRIM(C36),'[3]2021-22 Final'!B:X,17,FALSE) -> 20597 | U36: -1731 | V36: Y | X36: Y | Y36: 1500 | Z36: 20366
A37: 19 | B37: 32360 | C37: 32360 | D37: CHENEY | E37: =IFERROR(VLOOKUP(C37,'[3]Enrollment 22-23'!A:E,3,FALSE),0) -> 10 | F37: 4310 | G37: =IFERROR(VLOOKUP(C37,'[3]Enrollment 22-23'!A:E,5,0),0) -> 0 | H37: 0 | I37: =IFERROR(VLOOKUP(C37,'[3]Enrollment 22-23'!A:E,4,FALSE),0) -> 7 | J37: 3017 | K37: 7327 | L37: =IF(E37>$E$17,_xlfn.IFNA(VLOOKUP(C37,'[3]other funds ftr 2022'!A:I,9,FALSE),0),1) -> 1 | M37: 7327 | N37: =1+IF(ISNA(VLOOKUP(VALUE(C37),'[3]Rural and Low Income 22-23'!$A:$B,2,FALSE)),0,'[3]2022-23 Final'!$N$17) -> 1 | O37: 0 | R37: 0 | S37: 0 | T37: =VLOOKUP(TRIM(C37),'[3]2021-22 Final'!B:X,17,FALSE) ->  | V37: N | Y37: 0 | Z37: 0
A38: 20 | B38: 27901 | C38: 27901 | D38: CHIEF LESCHI TRIBAL COMPACT | E38: =IFERROR(VLOOKUP(C38,'[3]Enrollment 22-23'!A:E,3,FALSE),0) -> 13 | F38: 5603 | G38: =IFERROR(VLOOKUP(C38,'[3]Enrollment 22-23'!A:E,5,0),0) -> 0 | H38: 0 | I38: =IFERROR(VLOOKUP(C38,'[3]Enrollment 22-23'!A:E,4,FALSE),0) -> 11 | J38: 4741 | K38: 10344 | L38: =IF(E38>$E$17,_xlfn.IFNA(VLOOKUP(C38,'[3]other funds ftr 2022'!A:I,9,FALSE),0),1) -> 0 | M38: 10344 | N38: =1+IF(ISNA(VLOOKUP(VALUE(C38),'[3]Rural and Low Income 22-23'!$A:$B,2,FALSE)),0,'[3]2022-23 Final'!$N$17) -> 1 | O38: 10344 | R38: 0 | S38: 10344 | T38: =VLOOKUP(TRIM(C38),'[3]2021-22 Final'!B:X,17,FALSE) -> 6587 | U38: 3757 | V38: Y | Y38: 1500 | Z38: 11844
A39: 21 | B39: 27400 | C39: 27400 | D39: CLOVER PARK | E39: =IFERROR(VLOOKUP(C39,'[3]Enrollment 22-23'!A:E,3,FALSE),0) -> 13 | F39: 5603 | G39: =IFERROR(VLOOKUP(C39,'[3]Enrollment 22-23'!A:E,5,0),0) -> 2 | H39: 215 | I39: =IFERROR(VLOOKUP(C39,'[3]Enrollment 22-23'!A:E,4,FALSE),0) -> 9 | J39: 3879 | K39: 9697 | L39: =IF(E39>$E$17,_xlfn.IFNA(VLOOKUP(C39,'[3]other funds ftr 2022'!A:I,9,FALSE),0),1) -> 0 | M39: 9697 | N39: =1+IF(ISNA(VLOOKUP(VALUE(C39),'[3]Rural and Low Income 22-23'!$A:$B,2,FALSE)),0,'[3]2022-23 Final'!$N$17) -> 1 | O39: 0 | R39: 0 | S39: 0 | T39: =VLOOKUP(TRIM(C39),'[3]2021-22 Final'!B:X,17,FALSE) ->  | V39: N | Y39: 0 | Z39: 0
A40: 22 | B40: 36250 | C40: 36250 | D40: COLLEGE PLACE | E40: =IFERROR(VLOOKUP(C40,'[3]Enrollment 22-23'!A:E,3,FALSE),0) -> 116 | F40: 49992 | G40: =IFERROR(VLOOKUP(C40,'[3]Enrollment 22-23'!A:E,5,0),0) -> 31 | H40: 3340 | I40: =IFERROR(VLOOKUP(C40,'[3]Enrollment 22-23'!A:E,4,FALSE),0) -> 62 | J40: 26720 | K40: 80052 | L40: =IF(E40>$E$17,_xlfn.IFNA(VLOOKUP(C40,'[3]other funds ftr 2022'!A:I,9,FALSE),0),1) -> 0.95 | M40: 76049 | N40: =1+IF(ISNA(VLOOKUP(VALUE(C40),'[3]Rural and Low Income 22-23'!$A:$B,2,FALSE)),0,'[3]2022-23 Final'!$N$17) -> 1 | O40: 76049 | R40: 0 | S40: 76049 | T40: =VLOOKUP(TRIM(C40),'[3]2021-22 Final'!B:X,17,FALSE) -> 57551 | U40: 18498 | V40: Y | Y40: 2500 | Z40: 78549
A41: 23 | B41: 36400 | C41: 36400 | D41: COLUMBIA (WALLA WALLA) | E41: =IFERROR(VLOOKUP(C41,'[3]Enrollment 22-23'!A:E,3,FALSE),0) -> 44 | F41: 18962 | G41: =IFERROR(VLOOKUP(C41,'[3]Enrollment 22-23'!A:E,5,0),0) -> 4 | H41: 431 | I41: =IFERROR(VLOOKUP(C41,'[3]Enrollment 22-23'!A:E,4,FALSE),0) -> 29 | J41: 12498 | K41: 31891 | L41: =IF(E41>$E$17,_xlfn.IFNA(VLOOKUP(C41,'[3]other funds ftr 2022'!A:I,9,FALSE),0),1) -> 0.95 | M41: 30296 | N41: =1+IF(ISNA(VLOOKUP(VALUE(C41),'[3]Rural and Low Income 22-23'!$A:$B,2,FALSE)),0,'[3]2022-23 Final'!$N$17) -> 1 | O41: 30296 | R41: 0 | S41: 30296 | T41: =VLOOKUP(TRIM(C41),'[3]2021-22 Final'!B:X,17,FALSE) -> 37739 | U41: -7443 | V41: Y | W41: 1 | Y41: 1500 | Z41: 0
A42: 24 | B42: 29317 | C42: 29317 | D42: CONWAY | E42: =IFERROR(VLOOKUP(C42,'[3]Enrollment 22-23'!A:E,3,FALSE),0) -> 31 | F42: 13360 | G42: =IFERROR(VLOOKUP(C42,'[3]Enrollment 22-23'!A:E,5,0),0) -> 8 | H42: 862 | I42: =IFERROR(VLOOKUP(C42,'[3]Enrollment 22-23'!A:E,4,FALSE),0) -> 13 | J42: 5603 | K42: 19825 | L42: =IF(E42>$E$17,_xlfn.IFNA(VLOOKUP(C42,'[3]other funds ftr 2022'!A:I,9,FALSE),0),1) -> 1.15 | M42: 22799 | N42: =1+IF(ISNA(VLOOKUP(VALUE(C42),'[3]Rural and Low Income 22-23'!$A:$B,2,FALSE)),0,'[3]2022-23 Final'!$N$17) -> 1.1 | O42: 25079 | R42: 0 | S42: 25079 | T42: =VLOOKUP(TRIM(C42),'[3]2021-22 Final'!B:X,17,FALSE) -> 24891 | U42: 188 | V42: Y | Y42: 1500 | Z42: 26579
A43: 25 | B43: 15204 | C43: 15204 | D43: COUPEVILLE | E43: =IFERROR(VLOOKUP(C43,'[3]Enrollment 22-23'!A:E,3,FALSE),0) -> 16 | F43: 6895 | G43: =IFERROR(VLOOKUP(C43,'[3]Enrollment 22-23'!A:E,5,0),0) -> 7 | H43: 754 | I43: =IFERROR(VLOOKUP(C43,'[3]Enrollment 22-23'!A:E,4,FALSE),0) -> 6 | J43: 2586 | K43: 10235 | L43: =IF(E43>$E$17,_xlfn.IFNA(VLOOKUP(C43,'[3]other funds ftr 2022'!A:I,9,FALSE),0),1) -> 0.85 | M43: 8700 | N43: =1+IF(ISNA(VLOOKUP(VALUE(C43),'[3]Rural and Low Income 22-23'!$A:$B,2,FALSE)),0,'[3]2022-23 Final'!$N$17) -> 1 | O43: 8700 | R43: 0 | S43: 8700 | T43: =VLOOKUP(TRIM(C43),'[3]2021-22 Final'!B:X,17,FALSE) -> 7099 | U43: 1601 | V43: Y | Y43: 1500 | Z43: 10200
A44: 26 | B44: 39090 | C44: 39090 | D44: EAST VALLEY (YAKIMA) | E44: =IFERROR(VLOOKUP(C44,'[3]Enrollment 22-23'!A:E,3,FALSE),0) -> 235 | F44: 101277 | G44: =IFERROR(VLOOKUP(C44,'[3]Enrollment 22-23'!A:E,5,0),0) -> 32 | H44: 3448 | I44: =IFERROR(VLOOKUP(C44,'[3]Enrollment 22-23'!A:E,4,FALSE),0) -> 160 | J44: 68954 | K44: 173679 | L44: =IF(E44>$E$17,_xlfn.IFNA(VLOOKUP(C44,'[3]other funds ftr 2022'!A:I,9,FALSE),0),1) -> 0 | M44: 173679 | N44: =1+IF(ISNA(VLOOKUP(VALUE(C44),'[3]Rural and Low Income 22-23'!$A:$B,2,FALSE)),0,'[3]2022-23 Final'!$N$17) -> 1 | O44: 0 | R44: 0 | S44: 0 | T44: =VLOOKUP(TRIM(C44),'[3]2021-22 Final'!B:X,17,FALSE) -> 0 | U44: 0 | V44: N | Y44: 0 | Z44: 0
A45: 27 | B45: 09206 | C45: 09206 | D45: EASTMONT | E45: =IFERROR(VLOOKUP(C45,'[3]Enrollment 22-23'!A:E,3,FALSE),0) -> 852 | F45: 367183 | G45: =IFERROR(VLOOKUP(C45,'[3]Enrollment 22-23'!A:E,5,0),0) -> 174 | H45: 18747 | I45: =IFERROR(VLOOKUP(C45,'[3]Enrollment 22-23'!A:E,4,FALSE),0) -> 521 | J45: 224533 | K45: 610463 | L45: =IF(E45>$E$17,_xlfn.IFNA(VLOOKUP(C45,'[3]other funds ftr 2022'!A:I,9,FALSE),0),1) -> 1.05 | M45: 640986 | N45: =1+IF(ISNA(VLOOKUP(VALUE(C45),'[3]Rural and Low Income 22-23'!$A:$B,2,FALSE)),0,'[3]2022-23 Final'!$N$17) -> 1 | O45: 640986 | R45: 0 | S45: 640986 | T45: =VLOOKUP(TRIM(C45),'[3]2021-22 Final'!B:X,17,FALSE) -> 601515 | U45: 39471 | V45: Y | Y45: 4000 | Z45: 644986
A46: 28 | B46: 31015 | C46: 31015 | D46: EDMONDS | E46: =IFERROR(VLOOKUP(C46,'[3]Enrollment 22-23'!A:E,3,FALSE),0) -> 19 | F46: 8188 | G46: =IFERROR(VLOOKUP(C46,'[3]Enrollment 22-23'!A:E,5,0),0) -> 1 | H46: 108 | I46: =IFERROR(VLOOKUP(C46,'[3]Enrollment 22-23'!A:E,4,FALSE),0) -> 5 | J46: 2155 | K46: 10451 | L46: =IF(E46>$E$17,_xlfn.IFNA(VLOOKUP(C46,'[3]other funds ftr 2022'!A:I,9,FALSE),0),1) -> 0 | M46: 10451 | N46: =1+IF(ISNA(VLOOKUP(VALUE(C46),'[3]Rural and Low Income 22-23'!$A:$B,2,FALSE)),0,'[3]2022-23 Final'!$N$17) -> 1 | O46: 0 | R46: 0 | S46: 0 | T46: =VLOOKUP(TRIM(C46),'[3]2021-22 Final'!B:X,17,FALSE) -> 0 | U46: 0 | V46: N | Y46: 0 | Z46: 0
A47: 29 | B47: 19401 | C47: 19401 | D47: ELLENSBURG | E47: =IFERROR(VLOOKUP(C47,'[3]Enrollment 22-23'!A:E,3,FALSE),0) -> 64 | F47: 27582 | G47: =IFERROR(VLOOKUP(C47,'[3]Enrollment 22-23'!A:E,5,0),0) -> 23 | H47: 2478 | I47: =IFERROR(VLOOKUP(C47,'[3]Enrollment 22-23'!A:E,4,FALSE),0) -> 24 | J47: 10343 | K47: 40403 | L47: =IF(E47>$E$17,_xlfn.IFNA(VLOOKUP(C47,'[3]other funds ftr 2022'!A:I,9,FALSE),0),1) -> 0.85 | M47: 34343 | N47: =1+IF(ISNA(VLOOKUP(VALUE(C47),'[3]Rural and Low Income 22-23'!$A:$B,2,FALSE)),0,'[3]2022-23 Final'!$N$17) -> 1 | O47: 0 | R47: 0 | S47: 0 | T47: =VLOOKUP(TRIM(C47),'[3]2021-22 Final'!B:X,17,FALSE) -> 30397 | U47: -30397 | V47: N | Y47: 0 | Z47: 0
A48: 30 | B48: 14068 | C48: 14068 | D48: ELMA | E48: =IFERROR(VLOOKUP(C48,'[3]Enrollment 22-23'!A:E,3,FALSE),0) -> 35 | F48: 15084 | G48: =IFERROR(VLOOKUP(C48,'[3]Enrollment 22-23'!A:E,5,0),0) -> 13 | H48: 1401 | I48: =IFERROR(VLOOKUP(C48,'[3]Enrollment 22-23'!A:E,4,FALSE),0) -> 19 | J48: 8188 | K48: 24673 | L48: =IF(E48>$E$17,_xlfn.IFNA(VLOOKUP(C48,'[3]other funds ftr 2022'!A:I,9,FALSE),0),1) -> 0 | M48: 24673 | N48: =1+IF(ISNA(VLOOKUP(VALUE(C48),'[3]Rural and Low Income 22-23'!$A:$B,2,FALSE)),0,'[3]2022-23 Final'!$N$17) -> 1 | O48: 0 | R48: 0 | S48: 0 | T48: =VLOOKUP(TRIM(C48),'[3]2021-22 Final'!B:X,17,FALSE) -> 0 | U48: 0 | V48: N | Y48: 0 | Z48: 0
A49: 31 | B49: 04127 | C49: 04127 | D49: ENTIAT | E49: =IFERROR(VLOOKUP(C49,'[3]Enrollment 22-23'!A:E,3,FALSE),0) -> 35 | F49: 15084 | G49: =IFERROR(VLOOKUP(C49,'[3]Enrollment 22-23'!A:E,5,0),0) -> 3 | H49: 323 | I49: =IFERROR(VLOOKUP(C49,'[3]Enrollment 22-23'!A:E,4,FALSE),0) -> 12 | J49: 5172 | K49: 20579 | L49: =IF(E49>$E$17,_xlfn.IFNA(VLOOKUP(C49,'[3]other funds ftr 2022'!A:I,9,FALSE),0),1) -> 0 | M49: 20579 | N49: =1+IF(ISNA(VLOOKUP(VALUE(C49),'[3]Rural and Low Income 22-23'!$A:$B,2,FALSE)),0,'[3]2022-23 Final'!$N$17) -> 1.1 | O49: 0 | R49: 0 | S49: 0 | T49: =VLOOKUP(TRIM(C49),'[3]2021-22 Final'!B:X,17,FALSE) -> 0 | U49: 0 | V49: N | Y49: 0 | Z49: 0
A50: 32 | B50: 13165 | C50: 13165 | D50: EPHRATA | E50: =IFERROR(VLOOKUP(C50,'[3]Enrollment 22-23'!A:E,3,FALSE),0) -> 218 | F50: 93950 | G50: =IFERROR(VLOOKUP(C50,'[3]Enrollment 22-23'!A:E,5,0),0) -> 57 | H50: 6141 | I50: =IFERROR(VLOOKUP(C50,'[3]Enrollment 22-23'!A:E,4,FALSE),0) -> 99 | J50: 42666 | K50: 142757 | L50: =IF(E50>$E$17,_xlfn.IFNA(VLOOKUP(C50,'[3]other funds ftr 2022'!A:I,9,FALSE),0),1) -> 1 | M50: 142757 | N50: =1+IF(ISNA(VLOOKUP(VALUE(C50),'[3]Rural and Low Income 22-23'!$A:$B,2,FALSE)),0,'[3]2022-23 Final'!$N$17) -> 1 | O50: 142757 | R50: 0 | S50: 142757 | T50: =VLOOKUP(TRIM(C50),'[3]2021-22 Final'!B:X,17,FALSE) -> 136448 | U50: 6309 | V50: Y | Y50: 2500 | Z50: 145257
A51: 33 | B51: 31002 | C51: 31002 | D51: EVERETT | E51: =IFERROR(VLOOKUP(C51,'[3]Enrollment 22-23'!A:E,3,FALSE),0) -> 50 | F51: 21548 | G51: =IFERROR(VLOOKUP(C51,'[3]Enrollment 22-23'!A:E,5,0),0) -> 3 | H51: 323 | I51: =IFERROR(VLOOKUP(C51,'[3]Enrollment 22-23'!A:E,4,FALSE),0) -> 39 | J51: 16808 | K51: 38679 | L51: =IF(E51>$E$17,_xlfn.IFNA(VLOOKUP(C51,'[3]other funds ftr 2022'!A:I,9,FALSE),0),1) -> 0 | M51: 38679 | N51: =1+IF(ISNA(VLOOKUP(VALUE(C51),'[3]Rural and Low Income 22-23'!$A:$B,2,FALSE)),0,'[3]2022-23 Final'!$N$17) -> 1 | O51: 0 | R51: 0 | S51: 0 | T51: =VLOOKUP(TRIM(C51),'[3]2021-22 Final'!B:X,17,FALSE) -> 0 | U51: 0 | V51: N | Y51: 0 | Z51: 0
A52: 34 | B52: 06114 | C52: 06114 | D52: EVERGREEN (CLARK) | E52: =IFERROR(VLOOKUP(C52,'[3]Enrollment 22-23'!A:E,3,FALSE),0) -> 37 | F52: 15946 | G52: =IFERROR(VLOOKUP(C52,'[3]Enrollment 22-23'!A:E,5,0),0) -> 13 | H52: 1401 | I52: =IFERROR(VLOOKUP(C52,'[3]Enrollment 22-23'!A:E,4,FALSE),0) -> 15 | J52: 6464 | K52: 23811 | L52: =IF(E52>$E$17,_xlfn.IFNA(VLOOKUP(C52,'[3]other funds ftr 2022'!A:I,9,FALSE),0),1) -> 0 | M52: 23811 | N52: =1+IF(ISNA(VLOOKUP(VALUE(C52),'[3]Rural and Low Income 22-23'!$A:$B,2,FALSE)),0,'[3]2022-23 Final'!$N$17) -> 1 | O52: 0 | R52: 0 | S52: 0 | T52: =VLOOKUP(TRIM(C52),'[3]2021-22 Final'!B:X,17,FALSE) -> 0 | U52: 0 | V52: N | Y52: 0 | Z52: 0
A53: 35 | B53: 17210 | C53: 17210 | D53: FEDERAL WAY | E53: =IFERROR(VLOOKUP(C53,'[3]Enrollment 22-23'!A:E,3,FALSE),0) -> 78 | F53: 33615 | G53: =IFERROR(VLOOKUP(C53,'[3]Enrollment 22-23'!A:E,5,0),0) -> 7 | H53: 754 | I53: =IFERROR(VLOOKUP(C53,'[3]Enrollment 22-23'!A:E,4,FALSE),0) -> 31 | J53: 13360 | K53: 47729 | L53: =IF(E53>$E$17,_xlfn.IFNA(VLOOKUP(C53,'[3]other funds ftr 2022'!A:I,9,FALSE),0),1) -> 0 | M53: 47729 | N53: =1+IF(ISNA(VLOOKUP(VALUE(C53),'[3]Rural and Low Income 22-23'!$A:$B,2,FALSE)),0,'[3]2022-23 Final'!$N$17) -> 1 | O53: 47729 | R53: 0 | S53: 47729 | T53: =VLOOKUP(TRIM(C53),'[3]2021-22 Final'!B:X,17,FALSE) -> 0 | U53: 47729 | V53: Y | Y53: 1500 | Z53: 49229
A54: 36 | B54: 37502 | C54: 37502 | D54: FERNDALE | E54: =IFERROR(VLOOKUP(C54,'[3]Enrollment 22-23'!A:E,3,FALSE),0) -> 187 | F54: 80591 | G54: =IFERROR(VLOOKUP(C54,'[3]Enrollment 22-23'!A:E,5,0),0) -> 32 | H54: 3448 | I54: =IFERROR(VLOOKUP(C54,'[3]Enrollment 22-23'!A:E,4,FALSE),0) -> 39 | J54: 16808 | K54: 100847 | L54: =IF(E54>$E$17,_xlfn.IFNA(VLOOKUP(C54,'[3]other funds ftr 2022'!A:I,9,FALSE),0),1) -> 0.95 | M54: 95805 | N54: =1+IF(ISNA(VLOOKUP(VALUE(C54),'[3]Rural and Low Income 22-23'!$A:$B,2,FALSE)),0,'[3]2022-23 Final'!$N$17) -> 1 | O54: 95805 | R54: 0 | S54: 95805 | T54: =VLOOKUP(TRIM(C54),'[3]2021-22 Final'!B:X,17,FALSE) -> 104599 | U54: -8794 | V54: Y | Y54: 2500 | Z54: 98305
A55: 37 | B55: 03053 | C55: 03053 | D55: FINLEY | E55: =IFERROR(VLOOKUP(C55,'[3]Enrollment 22-23'!A:E,3,FALSE),0) -> 106 | F55: 45682 | G55: =IFERROR(VLOOKUP(C55,'[3]Enrollment 22-23'!A:E,5,0),0) -> 23 | H55: 2478 | I55: =IFERROR(VLOOKUP(C55,'[3]Enrollment 22-23'!A:E,4,FALSE),0) -> 61 | J55: 26289 | K55: 74449 | L55: =IF(E55>$E$17,_xlfn.IFNA(VLOOKUP(C55,'[3]other funds ftr 2022'!A:I,9,FALSE),0),1) -> 0.95 | M55: 70727 | N55: =1+IF(ISNA(VLOOKUP(VALUE(C55),'[3]Rural and Low Income 22-23'!$A:$B,2,FALSE)),0,'[3]2022-23 Final'!$N$17) -> 1 | O55: 70727 | R55: 0 | S55: 70727 | T55: =VLOOKUP(TRIM(C55),'[3]2021-22 Final'!B:X,17,FALSE) -> 49954 | U55: 20773 | V55: Y | W55: 1 | X55: Y | Y55: 2500 | Z55: 0
A56: 38 | B56: 27402 | C56: 27402 | D56: FRANKLIN PIERCE | E56: =IFERROR(VLOOKUP(C56,'[3]Enrollment 22-23'!A:E,3,FALSE),0) -> 11 | F56: 4741 | G56: =IFERROR(VLOOKUP(C56,'[3]Enrollment 22-23'!A:E,5,0),0) -> 1 | H56: 108 | I56: =IFERROR(VLOOKUP(C56,'[3]Enrollment 22-23'!A:E,4,FALSE),0) -> 6 | J56: 2586 | K56: 7435 | L56: =IF(E56>$E$17,_xlfn.IFNA(VLOOKUP(C56,'[3]other funds ftr 2022'!A:I,9,FALSE),0),1) -> 0 | M56: 7435 | N56: =1+IF(ISNA(VLOOKUP(VALUE(C56),'[3]Rural and Low Income 22-23'!$A:$B,2,FALSE)),0,'[3]2022-23 Final'!$N$17) -> 1 | O56: 0 | R56: 0 | S56: 0 | T56: =VLOOKUP(TRIM(C56),'[3]2021-22 Final'!B:X,17,FALSE) -> 0 | U56: 0 | V56: N | X56: Y | Y56: 0 | Z56: 0
A57: 39 | B57: 20404 | C57: 20404 | D57: GOLDENDALE | E57: =IFERROR(VLOOKUP(C57,'[3]Enrollment 22-23'!A:E,3,FALSE),0) -> 67 | F57: 28875 | G57: =IFERROR(VLOOKUP(C57,'[3]Enrollment 22-23'!A:E,5,0),0) -> 10 | H57: 1077 | I57: =IFERROR(VLOOKUP(C57,'[3]Enrollment 22-23'!A:E,4,FALSE),0) -> 41 | J57: 17670 | K57: 47622 | L57: =IF(E57>$E$17,_xlfn.IFNA(VLOOKUP(C57,'[3]other funds ftr 2022'!A:I,9,FALSE),0),1) -> 0.95 | M57: 45241 | N57: =1+IF(ISNA(VLOOKUP(VALUE(C57),'[3]Rural and Low Income 22-23'!$A:$B,2,FALSE)),0,'[3]2022-23 Final'!$N$17) -> 1 | O57: 45241 | R57: 0 | S57: 45241 | T57: =VLOOKUP(TRIM(C57),'[3]2021-22 Final'!B:X,17,FALSE) -> 56417 | U57: -11176 | V57: Y | Y57: 1500 | Z57: 46741
